{"text_format":"1","workbook":"xlsx","n_sheets":18,"sheets":["INDICE","Módulo 1 - Guía técnica","Módulo 1 - CEI","Módulo 1 - APMA","Módulo 1 - Indicadores1","Módulo 1 - Indicadores2","Módulo 1 - MMO","Mod_2 CEI-MMA","Mod_3 MMA","Mod_4 CEI-MMA-ASM","Mod_5 ASM","Mod_6 CEI-MMA-ASM-IND","Mod_7 Tablero_de_Control","Mod_8 CostosMMA","Mod_8 CostosASM","FlujoEconómico","Mod_9 Centro_de_Costos","Listas"],"not_rendered":{"charts":0,"images":25,"macros":1,"external_links":0,"defined_names":62,"comments":0,"pivot_tables":3},"unopened":[],"bounds":{"document_bytes":16777216,"sheet_cells":100000,"rows_first":2000,"rows_last":500,"rows_between":2000,"halvings":0,"cell_chars":16384,"cell_head_chars":4096},"cells_cut":0,"cells_raw":0,"read":"whole","date_system":"1900"}

{"sheet":"INDICE","index":0,"n_rows":9,"n_cols":4,"rows_kept":9,"cut":false,"hidden":false,"merged":[[3,0,3,4],[4,0,4,4],[5,0,5,4],[6,0,6,4],[7,0,7,4]]}
[]
[]
[]
["AUTORIDAD NACIONAL DE LICENCIAS AMBIENTALES"]
["SUBDIRECCIÓN DE INSTRUMENTOS, PERMISOS Y TRÁMITES AMBIENTALES"]
["GRUPO DE INSTRUMENTOS"]
[]
["APLICATIVO PARA LA PRESENTACIÓN DEL PLAN DE MANEJO AMBIENTAL"]
[null,null,null,"v. 2022.10"]

{"sheet":"Módulo 1 - Guía técnica","index":1,"n_rows":92,"n_cols":4,"rows_kept":92,"cut":false,"hidden":false,"merged":[[3,0,3,4],[4,0,4,4],[76,2,76,3],[78,2,78,3],[80,2,80,3],[5,0,5,4],[6,0,6,4],[7,0,7,4],[91,2,91,3],[8,2,8,3],[9,2,9,3],[77,2,77,3],[79,2,79,3],[81,2,81,3],[83,2,83,3],[86,2,86,3],[82,2,82,3],[84,2,84,3],[85,2,85,3],[90,2,90,3]]}
[]
[]
[]
["AUTORIDAD NACIONAL DE LICENCIAS AMBIENTALES"]
["SUBDIRECCIÓN DE INSTRUMENTOS, PERMISOS Y TRÁMITES AMBIENTALES"]
["GRUPO DE INSTRUMENTOS"]
[]
["GUÍA TÉCNICA DEL APLICATIVO PARA LA PRESENTACIÓN DEL PLAN DE MANEJO AMBIENTAL"]
[]
[]
[]
[null,"SIGLAS"]
[null,null,"AA","Autoridad Ambiental"]
[null,null,"ABC","Análisis beneficio-costo"]
[null,null,"ANLA","Autoridad Nacional de Licencias Ambientales"]
[null,null,"APMA","Aplicativo para presentación del PMA"]
[null,null,"ASM","Actividad de seguimiento y monitoreo"]
[null,null,"CEI ","Categorías Estandarizadas de Impactos Ambientales "]
[null,null,"CTS","Concepto Técnico de Seguimiento"]
[null,null,"EIA","Estudio de Impacto Ambiental"]
[null,null,"IAvH","Instituto Alexander von Humboldt"]
[null,null,"ICA","Informe de Cumplimiento Ambiental"]
[null,null,"IMC","Instrumento de Manejo y Control"]
[null,null,"MGEPEA ","Metodología General para la Elaboración y Presentación de Estudios Ambientales"]
[null,null,"MMA","Medida de manejo ambiental"]
[null,null,"MINAMBIENTE","Ministerio de Ambiente y Desarrollo Sostenible"]
[null,null,"PMA","Plan de Manejo Ambiental"]
[null,null,"POA","Proyecto, obra o actividad"]
[null,null,"PSM","Plan de Seguimiento y Monitoreo"]
[null,null,"TdR","Términos de Referencia"]
[null,null,"UICN ","Unión Internacional para la Conservación de la Naturaleza"]
[null,null,"VEA","Valoración Económica Ambiental"]
[]
[]
[null,"GLOSARIO"]
[null,null,"ACTIVIDADES ESPECÍFICAS","Todas aquellas actividades que se realizan para dar cumplimiento a una(s) medida(s) de manejo."]
[]
[null,null,"ACTIVIDADES DE SEGUIMIENTO Y MONITOREO (ASM)","Actividades implementadas para verificar el cambio de los factores ambientales que ocurre como resultado de la ejecución del POA. Se realiza mediante la medición de parámetros ambientales, el cálculo de indicadores y el desarrollo de análisis que interpreten los resultados obtenidos durante el monitoreo."]
[]
[null,null,"CATEGORÍA ESTANDARIZADA DE IMPACTO AMBIENTAL (CEI)","Cualquier alteración del ambiente, que sea adversa o beneficiosa, total o parcial, que pueda ser atribuida al desarrollo de un proyecto, obra o actividad."]
[]
[null,null,"COMPONENTE","Unidad de análisis que agrupa factores ambientales y que a su vez constituye uno de los elementos que conforman un medio (abiótico, biótico o socioeconómico); por ejemplo, los componentes geológico, geomorfológico, paisaje, edafológico, hidrológico, hidrogeológico, oceanográfico, geotécnico y atmosférico, conforman el medio abiótico."]
[]
[null,null,"COORDENADAS / LOCALIZACIÓN","Referencias espaciales de las obras o actividades realizadas para el control de los impactos estandarizados, reportadas de acuerdo con la resolución vigente formulada por la AA"]
[]
[null,null,"COSTOS","Valor monetario de los insumos o recursos (humanos, técnicos, tecnológicos, maquinaria, equipos, materiales) asignados para la ejecución de las medidas de manejo, seguimiento y monitoreo. "]
[]
[null,null,"DEFINICIÓN (del impacto)","Parámetros, factores y/o componentes que tienen relación con el impacto ambiental estandarizado y la forma en que éstos se ven alterados"]
[]
[null,null,"DESCRIPCIÓN (del monitoreo)","Actividades, materiales y métodos (frecuencia y duración) requeridos para la realización del seguimiento y monitoreo de parámetros e indicadores de calidad ambiental, así como el tipo de registro válido (reporte de laboratorio certificado, listados de asistencia, entre otros)"]
[]
[null,null,"DESCRIPCIÓN (del indicador)","Establece lo que mide el indicador; identifica y describe las variables que lo componen, así como su unidad de medida."]
[]
[null,null,"FASE","Nivel de desarrollo del POA en el cual se ejecuta la medida de manejo:  construcción, operación y mantenimiento y desmantelamiento y abandono. [1]"]
[]
[null,null,"FÓRMULA DE CÁLCULO","Expresión matemática utilizada para el cálculo del indicador."]
[]
[null,null,"INDICADOR DE EFECTIVIDAD","Instrumento que sintetiza información que brinda señales clave sobre la evolución en el nivel de control de las Categorías Estandarizadas de Impactos (CEI) identificadas para el proyecto, obra o actividad (POA) y la toma de decisiones tanto de la autoridad ambiental que evalúa los estudios y hace control y seguimiento a los POA, como de quienes los ejecutan."]
[]
[null,null,"INSTRUMENTO DE MANEJO Y CONTROL (IMC)","Licencia o plan de manejo ambiental que ha sido establecido por la AA a un POA y que, de acuerdo con lo dispuesto en el artículo 2.2.2.3.8.9 del Decreto 1076 de 2015, están sujetos a las mismas reglas generales."]
[]
[null,null,"LÍNEA BASE","Información primaria y secundaria (de tipo cualitativo y/o cuantitativo) que se recolecta durante la formulación del EIA del POA, a fin de obtener una aproximación al conocimiento de las características del ambiente, de forma que sea posible realizar una primera predicción de cómo dichas características se impactarían durante el desarrollo y operación del proyecto (identificación y valoración de impactos).\n\nLa línea base constituye el referente para evaluar posteriormente, en el escenario “con proyecto”, la variación de los parámetros e indicadores de calidad ambiental. De esta forma, la información consolidada en el proceso de elaboración del EIA es el punto de referencia para la evaluación de la efectividad de las medidas de manejo para el control de las CEI en la fase de Seguimiento del POA.\n\nEn otras palabras, en la fase de ejecución del POA, contrastando lo autorizado en el IMC, la evaluación agregada de los resultados de la calidad ambiental asociados a cada una de las CEI, permiten calificar a través del indicador, la efectividad de las medidas de manejo."]
[]
[null,null,"MEDIDA DE MANEJO AMBIENTAL (MMA)","Acción implementada en el área de influencia de un POA que tienen como objetivo, de acuerdo con la jerarquía de la mitigación: prevenir, mitigar, corregir o compensar un impacto ambiental"]
[]
[null,null,"MEDIO","División general que se realiza del ambiente para facilitar su análisis y entendimiento. En el contexto de los estudios ambientales corresponde al abiótico, biótico y socioeconómico"]
[]
[null,null,"PERIODICIDAD","La medición de parámetros e indicadores de calidad ambiental se realiza de acuerdo con: a) lo establecido en el IMC; b) por concepto del grupo de seguimiento que se acoja mediante acto administrativo; o, c) en cumplimiento de la normatividad ambiental."]
[]
[null,null,"RECURSOS","Todos los insumos humanos, técnicos, tecnológicos, maquinaria, equipos, y materiales, asignados para la ejecución de las acciones de seguimiento y monitoreo de parámetros e indicadores de calidad ambiental asociados al impacto estandarizado."]
[]
[null,null,"TIPOS DE MEDIDA","Las medidas de manejo deben prevenir los impactos; si ello no resulta factible, deben centrar su propósito en mitigarlos; si no es practicable prevenir ni mitigar, las medidas deben enfocarse en corregir los impactos y; si no es posible desarrollar ninguna de las medidas mencionadas con anterioridad, entonces y solo entonces, se deben compensar los impactos ambientales residuales que aún permanezcan. Estas medidas de manejo son complementarias entre sí y no sustitutas."]
[]
[]
[]
[null,"1. INTRODUCCIÓN"]
[null,null,"En el marco del nuevo modelo de licenciamiento, se ha diseñado un sistema de Categorías Estandarizadas de Impactos Ambientales (CEI) , las cuales son el referente para la formulación del Plan de Manejo Ambiental (PMA)  por parte de los usuarios. [2]"]
[]
[null,null,"A partir de las CEI se ha diseñado un nuevo Aplicativo para la presentación del PMA (APMA) en las solicitudes de licenciamiento ambiental de competencia de la ANLA, que asegura la necesaria coherencia entre impactos, medidas de manejo ambiental para controlarlos (de acuerdo con la jerarquía de la mitigación), actividades de seguimiento y monitoreo e indicadores de efectividad, así como hacer más eficiente y eficaz el proceso de evaluación y seguimiento por parte de esta Autoridad. "]
[]
[null,null,"Así mismo, el APMA permite organizar, en un flujo anualizado o mensualizado, los costos asociados al control de cada una de las CEI del proyecto."]
[]
[null,null,"La presentación del PMA a través de este instrumento actualmente es de uso voluntario y cumple con lo solicitado en la Metodología General para la Elaboración y Presentación de Estudios Ambientales (MGEPEA) y Términos de referencia (TdR) con relación al Programa de manejo ambiental y al Plan de seguimiento y monitoreo, lo que quiere decir que reemplaza la presentación de las tradicionales “fichas”. La información sobre el Plan de gestión del riesgo y el Plan de desmantelamiento y abandono seguirán haciendo parte de la información que el usuario presenta de manera convencional en el respectivo capítulo del EIA."]
[]
[null,null,"De igual manera, es importante aclarar que en modificación de licencia ambiental también podrá hacerse uso de este Aplicativo, caso en el cual el usuario deberá migrar todo el plan de manejo ambiental al APMA, incluyendo las nuevas categorías de impactos identificadas."]
[]
[null,null,"La presente guía se divide en cuatro partes: en la primera, se presentan y definen las Categorías Estandarizadas de Impactos Ambientales (CEI); la segunda sección, describe cada uno de los módulos del APMA; en la tercera. se presenta la batería de indicadores que permiten evaluar la efectividad de las medidas de manejo; y, en la cuarta y última sección, se encuentra un inventario sugerido de medidas de manejo, que tiene a disposición el usuario para la formulación del PMA."]
[]
[]
[]
[null,null,"[1] De ser necesario, deberán especificarse etapas del proyecto que hagan parte de o expliquen cada fase, de acuerdo con las particularidades del sector."]
[null,null,"[2] Hacen parte del PMA el Programa de manejo ambiental, el Plan de Seguimiento y Monitoreo, el Plan de Gestión del Riesgo y el Plan de Desmantelamiento y Abandono."]

{"sheet":"Módulo 1 - CEI","index":2,"n_rows":65,"n_cols":8,"rows_kept":65,"cut":false,"hidden":false,"merged":[[19,1,26,6],[64,1,67,6],[63,1,63,6],[58,1,58,2],[16,1,16,6],[17,1,17,6],[18,1,18,6],[3,2,3,6],[4,2,4,6],[5,2,5,6],[10,2,10,6],[12,1,15,6]]}
[]
[]
[]
[null,null,"AUTORIDAD NACIONAL DE LICENCIAS AMBIENTALES"]
[null,null,"SUBDIRECCIÓN DE INSTRUMENTOS, PERMISOS Y TRÁMITES AMBIENTALES"]
[null,null,"GRUPO DE INSTRUMENTOS"]
[]
[]
[]
[]
[null,null,"2. CATEGORÍAS ESTANDARIZADAS DE IMPACTOS (CEI)"]
[]
[null,"Las Categorías Estandarizadas de Impactos Ambientales (CEI) constituyen el resultado de la homologación de nombres de impactos reportados en expedientes de licencias ambientales activas. [3] La definición de las CEI permite establecer, en los medios biótico, abiótico y socioeconómico, los componentes asociados a cada una de ellas, que pueden resultar afectados como consecuencia de la implementación de los POA."]
[]
[]
[]
[null,"En forma complementaria el usuario puede consultar el tablero de control del instrumento de jerarquización y estandarización de impactos ambientales, así como el documento técnico en el siguiente enlace:"]
[null,"https://www.anla.gov.co/01_anla/institucional-interno/gestion-del-conocimiento-y-la-innovacion/analitica-de-datos/tablero-control-jerarquizacion-de-impacto"]
[]
[null,"Las CEI sirven para homologar el nombre y la definición de los impactos identificados y evaluados en los EIA y permiten no solo acotar, sino identificar con mayor facilidad las medidas de manejo que resultan más eficaces para el control de cada categoría, teniendo en cuenta los componentes, efectos y parámetros asociados a ésta.[4]\n\nLas siguientes CEI son el resultado de la consolidación de impactos identificados en un trabajo conjunto con actores internos y externos de la Entidad para los diferentes sectores económicos. En caso de que el usuario en el marco del desarrollo de cada proyecto identifique alguno(s) impactos que no puedan ser clasificados bajo las presentes CEI, podrá reportarlo(s) a través del Módulo 2, botón \"Consultar listado CEI / CAI\" como Categoría Adicional de Impacto (CAI), donde deberá incluir: nombre de la CAI, medio, componente, definición y objetivo. Las CAI adicionadas, se verán reflejadas en la siguiente tabla."]
[]
[]
[]
[]
[]
[]
[]
[]
[null,"ID CEI","CATEGORÍA ESTANDARIZADA DE IMPACTO","MEDIO","COMPONENTE","DEFINICIÓN","OBJETIVO","USO_CEI"]
[null,"CEI_01","Alteración a la calidad del aire","Abiótico","Atmosférico","Cambio en las concentraciones de los contaminantes criterio y/o tóxicos en el aire producto de las emisiones generadas como consecuencia de un proyecto, obra o actividad.","Asegurar que no se superen los niveles de inmisión de gases y/o material particulado en el aire, que afecten la salud humana o el ambiente de acuerdo con lo establecido en la Resolución 2254 de 2017 del Ministerio de Ambiente y Desarrollo Sostenible, y los niveles permisibles de emisión de gases y/o material particulado establecidos en la Resolución 909 de 2008 del Ministerio de Ambiente, Vivienda y Desarrollo Territorial, o aquellas que las modifiquen o sustituyan.",{"$f":"IFERROR(MATCH(tbImpEstand[[#This Row],[ID CEI]],tbPMA[ID CEI],0),0)+IFERROR(MATCH(tbImpEstand[[#This Row],[ID CEI]],tbPSM[ID_CEI],0),0)","v":0}]
[null,"CEI_02","Alteración a las propiedades físicas del aire","Abiótico","Atmosférico","Cambio en las propiedades físicas del aire, tales como: velocidad, dispersión refractiva y/o reflectiva de la luz, potencia o capacidad de generación energética, densidad, temperatura entre otras, que como consecuencia de las actividades del proyecto modifiquen las condiciones iniciales del componente.","Disminuir la percepción de las comunidades cercanas por las molestias ocasionadas debido a sombras y reflejos producidos por las nuevas estructuras, así como implementar las medidas de adaptación que se deriven por potenciales efectos en el microclima del área de influencia.",{"$f":"IFERROR(MATCH(tbImpEstand[[#This Row],[ID CEI]],tbPMA[ID CEI],0),0)+IFERROR(MATCH(tbImpEstand[[#This Row],[ID CEI]],tbPSM[ID_CEI],0),0)","v":0}]
[null,"CEI_03","Alteración en los niveles de presión sonora","Abiótico","Atmosférico","Cambio en los niveles de ruido ambiental como consecuencia de la emisión de ruido de un proyecto, obra o actividad.","Asegurar que no se superen los niveles de emisión de ruido y ruido ambiental establecidos en la Resolución 0627 de 2006 o aquella que la modifique o sustituya.",{"$f":"IFERROR(MATCH(tbImpEstand[[#This Row],[ID CEI]],tbPMA[ID CEI],0),0)+IFERROR(MATCH(tbImpEstand[[#This Row],[ID CEI]],tbPSM[ID_CEI],0),0)","v":0}]
[null,"CEI_04","Alteración en los niveles de radiación","Abiótico","Atmosférico","Cambio en los niveles de radiación ionizante y no ionizante, como consecuencia de un proyecto, obra o actividad.","Garantizar que los niveles de radiación ionizante y/o no ionizante generados por cada fuente identificada, se encuentren dentro de los niveles de exposición establececidos en las metodologías, guías o normas técnicas aplicables por el tipo de actividad, con el fin de no afectar la salud humana y los elementos expuestos.",{"$f":"IFERROR(MATCH(tbImpEstand[[#This Row],[ID CEI]],tbPMA[ID CEI],0),0)+IFERROR(MATCH(tbImpEstand[[#This Row],[ID CEI]],tbPSM[ID_CEI],0),0)","v":0}]
[null,"CEI_05","Generación de olores ofensivos","Abiótico","Atmosférico","Cambio en la concentración de los contaminantes en el aire, producto de la emisión de sustancias generadoras de olores ofensivos, como consecuencia de un proyecto, obra o actividad. ","Asegurar que no se superen los niveles permisibles de olores ofensivos en el aire, que afecten a los receptores sensibles presentes en el área de inlcuencia del POA, de acuerdo con lo establecido en la Resolución 1541 de 2013, o aquella que la modifique o sustituya.",{"$f":"IFERROR(MATCH(tbImpEstand[[#This Row],[ID CEI]],tbPMA[ID CEI],0),0)+IFERROR(MATCH(tbImpEstand[[#This Row],[ID CEI]],tbPSM[ID_CEI],0),0)","v":0}]
[null,"CEI_06","Alteración de las condiciones geológicas en profundidad","Abiótico","Geológico","Alteración de unidades litológicas y/o de rasgos estructurales como consecuencia del incremento de esfuerzos en profundidad y/o la lubricación de zonas de fractura, debido a las actividades de un POA (fracturamiento hidraulico en perforación horizontal, recobro mejorado, inyección, reinyección, embalses, actividades mineras subterráneas a gran escala, entre otros).","Prevenir, mitigar, corregir y/o compensar la generación de sobrepresiones que ocasionen fracturamiento de unidades litológicas y/o migración de fluidos que puedan incidir en la generación de eventos sísmicos que generen afectaciones en superficie y que representen amenaza a comunidades, infraestructura y ecosistemas en general.",{"$f":"IFERROR(MATCH(tbImpEstand[[#This Row],[ID CEI]],tbPMA[ID CEI],0),0)+IFERROR(MATCH(tbImpEstand[[#This Row],[ID CEI]],tbPSM[ID_CEI],0),0)","v":0}]
[null,"CEI_07","Alteración de la geoforma del terreno ","Abiótico","Geomorfológico","Cambio en la forma del terreno continental y/o marino costero como consecuencia de un proyecto, obra o actividad que modifica la dinámica existente de los procesos geomorfológicos.","Mitigar y/o corregir los cambios en la forma del terreno continental y/o marino de las áreas intervenidas por las actividades del POA.",{"$f":"IFERROR(MATCH(tbImpEstand[[#This Row],[ID CEI]],tbPMA[ID CEI],0),0)+IFERROR(MATCH(tbImpEstand[[#This Row],[ID CEI]],tbPSM[ID_CEI],0),0)","v":0}]
[null,"CEI_08","Alteración de las condiciones geotécnicas ","Abiótico","Geotecnia","Cambios en las características geomecánicas de estabilidad del terreno y/o los macizos rocosos, como consecuencia de un proyecto, obra o actividad.","Prevenir, mitigar y/o corregir fenómenos de inestabilidad y/o ocurrencia de procesos erosivos alterando la estabilidad del terreno y/o los macizos rocosos, como consecuencia de la ejecución de las actividades asociadas a un POA",{"$f":"IFERROR(MATCH(tbImpEstand[[#This Row],[ID CEI]],tbPMA[ID CEI],0),0)+IFERROR(MATCH(tbImpEstand[[#This Row],[ID CEI]],tbPSM[ID_CEI],0),0)","v":0}]
[null,"CEI_09","Alteración a la calidad del recurso hídrico subterráneo","Abiótico","Hidrogeológico","Cambios en las características fisicoquímicas y/o microbiológicas de las aguas subterráneas o su zona de recarga como consecuencia de un proyecto, obra o actividad.","Prevenir, mitigar y/o corregir los cambios en las características fisicoquímicas y/o microbiológicas de las aguas subterráneas o su zona de recarga como consecuencia de las actividades del POA",{"$f":"IFERROR(MATCH(tbImpEstand[[#This Row],[ID CEI]],tbPMA[ID CEI],0),0)+IFERROR(MATCH(tbImpEstand[[#This Row],[ID CEI]],tbPSM[ID_CEI],0),0)","v":0}]
[null,"CEI_10","Alteración en la oferta y/o disponibilidad del recurso hídrico subterráneo","Abiótico","Hidrogeológico","Cambio en los niveles piezométricos (estáticos) en un acuífero determinado o sus zonas de recarga que causan una modificación en la oferta de aguas subterráneas como consecuencia de un proyecto, obra o actividad.","Prevenir, mitigar y/o corregir la alteración de la oferta y disponibilidad del recurso hídrico subterráneo en el área de influencia del POA",{"$f":"IFERROR(MATCH(tbImpEstand[[#This Row],[ID CEI]],tbPMA[ID CEI],0),0)+IFERROR(MATCH(tbImpEstand[[#This Row],[ID CEI]],tbPSM[ID_CEI],0),0)","v":0}]
[null,"CEI_11","Alteración hidrogeomorfológica de la dinámica fluvial y/o del régimen sedimentológico","Abiótico","Hidrológico","Cambios en la dinámica hidrogeomorfológica del sistema fluvial y/o sedimentológico generado por un proyecto, obra o actividad que origina cambios de cauce, activación de procesos erosivos, represamientos, inundaciones, movimientos en masa, entre otros.","Prevenir, mitigar y/o corregir la alteración de la oferta y disponibilidad del recurso hídrico subterráneo en el área de influencia del POA",{"$f":"IFERROR(MATCH(tbImpEstand[[#This Row],[ID CEI]],tbPMA[ID CEI],0),0)+IFERROR(MATCH(tbImpEstand[[#This Row],[ID CEI]],tbPSM[ID_CEI],0),0)","v":0}]
[null,"CEI_12","Alteración en la calidad del recurso hídrico superficial","Abiótico","Hidrológico","Cambios en las características fisicoquímicas, microbiológicas y/o hidrobiológicas de las aguas superficiales como consecuencia de un proyecto, obra o actividad.","Prevenir, mitigar y/o corregir los cambios en las características fisicoquímicas, microbiológicas y/o hidrobiologicas de las aguas superficiales como consecuencia de las actividades del POA",{"$f":"IFERROR(MATCH(tbImpEstand[[#This Row],[ID CEI]],tbPMA[ID CEI],0),0)+IFERROR(MATCH(tbImpEstand[[#This Row],[ID CEI]],tbPSM[ID_CEI],0),0)","v":0}]
[null,"CEI_13","Alteración en la oferta y disponibilidad del recurso hídrico superficial","Abiótico","Hidrológico","Cambio de los caudales y/o volúmenes  en un cuerpo de agua superficial que causan una modificación de  la oferta hídrica  como consecuencia de un proyecto, obra o actividad.","Prevenir, mitigar y/o corregir la alteración de la oferta y disponibilidad del recurso hídrico superficial en el área de influencia del POA",{"$f":"IFERROR(MATCH(tbImpEstand[[#This Row],[ID CEI]],tbPMA[ID CEI],0),0)+IFERROR(MATCH(tbImpEstand[[#This Row],[ID CEI]],tbPSM[ID_CEI],0),0)","v":0}]
[null,"CEI_14","Alteración de la calidad del agua y sedimentos marinos","Abiótico","Oceanográfico ","Cambio en las características físicas y químicas del agua y sedimentos marinos como consecuencia de las actividades del proyecto, obra o actividad.","Prevenir y/o mitigar la alteración en las características físicas y químicas del agua y sedimentos marinos producidas por las actividades desarrolladas en el POA.",{"$f":"IFERROR(MATCH(tbImpEstand[[#This Row],[ID CEI]],tbPMA[ID CEI],0),0)+IFERROR(MATCH(tbImpEstand[[#This Row],[ID CEI]],tbPSM[ID_CEI],0),0)","v":0}]
[null,"CEI_15","Alteración de las condiciones morfológicas de la línea de costa","Abiótico","Oceanográfico ","Cambio en el patrón sedimentológico que modifica el perfil de playa por procesos de erosión y acreción.","Mitigar y/o corregir los procesos de erosión y acreción de la línea de costa generados por las actividades del POA",{"$f":"IFERROR(MATCH(tbImpEstand[[#This Row],[ID CEI]],tbPMA[ID CEI],0),0)+IFERROR(MATCH(tbImpEstand[[#This Row],[ID CEI]],tbPSM[ID_CEI],0),0)","v":0}]
[null,"CEI_16","Alteración a la calidad del suelo","Abiótico","Suelo","Cambio en las características y propiedades físicas, químicas y biológicas del suelo como consecuencia de un proyecto, obra o actividad.","Prevenir, mitigar y/o corregir las alteraciones sobre las características y propiedades físicas, químicas y biológicas del suelo como consecuencia del POA.",{"$f":"IFERROR(MATCH(tbImpEstand[[#This Row],[ID CEI]],tbPMA[ID CEI],0),0)+IFERROR(MATCH(tbImpEstand[[#This Row],[ID CEI]],tbPSM[ID_CEI],0),0)","v":0}]
[null,"CEI_17","Alteración a ecosistemas terrestres","Biótico ","Ecosistema","Cambio en los  ecosistemas terrestres como consecuencia de las actividades del POA que generan: i) Fragmentación de ecosistemas  ii) Modificación de la conectividad funcional ecológica, iii) Cambios en estructura y composición, entre otras","Prevenir, corregir y mitigar los efectos de: i) Fragmentación de ecosistemas; ii) Modificación de la conectividad funcional ecológica; y iii) Cambios en estructura y composición, entre otras, en relación con los datos del IMC",{"$f":"IFERROR(MATCH(tbImpEstand[[#This Row],[ID CEI]],tbPMA[ID CEI],0),0)+IFERROR(MATCH(tbImpEstand[[#This Row],[ID CEI]],tbPSM[ID_CEI],0),0)","v":0}]
[null,"CEI_18","Alteración a cobertura vegetal","Biótico ","Cobertura","Cambio en la extensión (área), forma (geometría) y distribución de las coberturas vegetales como consecuencia de un proyecto, obra o actividad que generan, entre otros:\n\ni) Disminución de coberturas\nii) Efectos de borde\niii) Fragmentación de coberturas","Prevenir, corregir o mitigar la fragmentación, disminución, alteración del factor de forma o la distribución de coberturas vegetales ",{"$f":"IFERROR(MATCH(tbImpEstand[[#This Row],[ID CEI]],tbPMA[ID CEI],0),0)+IFERROR(MATCH(tbImpEstand[[#This Row],[ID CEI]],tbPSM[ID_CEI],0),0)","v":0}]
[null,"CEI_19","Alteración a comunidades de flora","Biótico ","Flora","Cambio en las comunidades de flora como consecuencia de un proyecto, obra o actividad que generen, entre otras:\n\ni) Disminución de individuos o ejemplares de una o más especies\nii) Modificación de poblaciones\niii) Cambio en su composición, estructura y función","Prevenir, corregir, mitigar y/o compensar la pérdida o degradación de comunidades de flora, en relación con los datos del IMC aprobado por AA",{"$f":"IFERROR(MATCH(tbImpEstand[[#This Row],[ID CEI]],tbPMA[ID CEI],0),0)+IFERROR(MATCH(tbImpEstand[[#This Row],[ID CEI]],tbPSM[ID_CEI],0),0)","v":0}]
[null,"CEI_20","Alteración a comunidades de fauna terrestre","Biótico ","Fauna ","Cambio en las comunidades de fauna como consecuencia de un proyecto, obra o actividad que generen, entre otras:\n\ni) Cambio en la composición, estructura y función\nii) Desplazamiento de fauna\niii) cambio en las cadenas tróficas.","Prevenir, corregir, mitigar y/o compensar alteraciones en la composición, abundancia y diversidad de comunidades de fauna, en relación con los datos del IMC aprobado",{"$f":"IFERROR(MATCH(tbImpEstand[[#This Row],[ID CEI]],tbPMA[ID CEI],0),0)+IFERROR(MATCH(tbImpEstand[[#This Row],[ID CEI]],tbPSM[ID_CEI],0),0)","v":0}]
[null,"CEI_21","Alteración a ecosistemas acuáticos","Biótico ","Ecosistema","Cambio en los ecosistemas acuáticos, marino-costeros y/o continentales como consecuencia de un proyecto, obra o actividad que generan, entre otras:\n\ni) Cambios en la estructura,función y composición\nii) Cambio en la conectividad ecosistémica","Prevenir, corregir y/o mitigar: i) fragmentación de ecosistemas, ii) cambio conectividad ecosistémica, iii) cambios en abundancia y composición, iv) alteración en la coberturade ecosistemas acuáticos (continentales y marino-costeros)",{"$f":"IFERROR(MATCH(tbImpEstand[[#This Row],[ID CEI]],tbPMA[ID CEI],0),0)+IFERROR(MATCH(tbImpEstand[[#This Row],[ID CEI]],tbPSM[ID_CEI],0),0)","v":0}]
[null,"CEI_22","Alteración a comunidades de fauna acuática e hidrobiota","Biótico ","Fauna-Hidrobiota ","Cambio en las comunidades de hidrobiota (Fauna acuática, Vertebrados, Peces, Bentos, Macrófitas, Perifiton, Plancton) como consecuencia de un proyecto, obra o actividad que generan, entre otras:\n\ni) Alteración de las poblaciones y/o comunidades acuáticas\nii) Alteración de número de especies\niii) Cambios en la composición, abundancia y diversidad","Prevenir, corregir y mitigar alteraciones en las comunidades de fauna acuática (vertebrados)  e hidrobiota (ictiofauna, bentónicas, macrófitas, perifiton, plánctonicas y macrofauna) como consecuencia de las actividades del POA que generan: i) alteración de las poblaciones y/o comunidades acuáticas;  ii) cambios en la composición, abundancia y diversidad, entre otras",{"$f":"IFERROR(MATCH(tbImpEstand[[#This Row],[ID CEI]],tbPMA[ID CEI],0),0)+IFERROR(MATCH(tbImpEstand[[#This Row],[ID CEI]],tbPSM[ID_CEI],0),0)","v":0}]
[null,"CEI_23","Cambio en la estructura demográfica, en la distribución espacial de la población y sus efectos en la dinámica de la población","Socioeconómico","Demográfico","Cambios en la tendencia de la estructura (sexo y edad), la cantidad (fecundidad, mortalidad, migración) y la distribución (densidad y ubicación urbano/rural) de la población en el área de influencia, como consecuencia de las actividades del POA","Prevenir, mitigar, corregir y/o compensar cambios en la tendencia de la estructura (sexo y edad), la cantidad (fecundidad, mortalidad, migración) y la distribución (densidad y ubicación urbano/rural) de la población en el área de influencia, como consecuencia de las actividades del POA",{"$f":"IFERROR(MATCH(tbImpEstand[[#This Row],[ID CEI]],tbPMA[ID CEI],0),0)+IFERROR(MATCH(tbImpEstand[[#This Row],[ID CEI]],tbPSM[ID_CEI],0),0)","v":0}]
[null,"CEI_24","Alteración en la percepción visual del paisaje","Socioeconómico","Cultural ","Cambio físico y/o en la percepción de la calidad visual de las unidades de paisaje, como consecuencia de las actividades del POA","Prevenir, mitigar, corregir y/o compensar los cambios físicos y/o en la percepción de las unidades de paisaje, como consecuencia de las actividades del POA",{"$f":"IFERROR(MATCH(tbImpEstand[[#This Row],[ID CEI]],tbPMA[ID CEI],0),0)+IFERROR(MATCH(tbImpEstand[[#This Row],[ID CEI]],tbPSM[ID_CEI],0),0)","v":0}]
[null,"CEI_25","Generación y/o incremento de conflictos sociales","Socioeconómico","Político Administrativo ","Proceso dinámico de confrontación de intereses de grupos sociales (organizados o no), ante las afectaciones de su entorno por la intervención del POA en el territorio, que se hace visible con reclamos, exigencias o medidas de fuerza, pero también se manifiesta en esfuerzos de diálogo y concertación. El conflicto socioambiental está relacionado, entre otros, con:\n\ni)  Cambio en el acceso, uso, distribución y conservación de recursos naturales\nii) Cambio en la organización comunitaria\niii) Cambio en los lazos de interrelación entre los ciudadanos  y sus instituciones, tradiciones o estilos de vida\niv) Modificación de las instancias y mecanismos de participación\nv) Generación de expectativas\nvi) Ausencia o debilidad de mecanismos de comunicación y/o flujos de información\nvii) Formas de relacionamiento entre personal vinculado al POA y la comunidad\nviii) Políticas de reclutamiento de personal del POA","Prevenir, mitigar, corregir y/o compensar procesos de confrontación de intereses entre la población, el POA y los actores involucrados en su desarrollo",{"$f":"IFERROR(MATCH(tbImpEstand[[#This Row],[ID CEI]],tbPMA[ID CEI],0),0)+IFERROR(MATCH(tbImpEstand[[#This Row],[ID CEI]],tbPSM[ID_CEI],0),0)","v":0}]
[null,"CEI_26","Modificación de la accesibilidad, movilidad y conectividad local","Socioeconómico","Espacial","Cambios en los flujos, frecuencias, tipos de movilidad, acceso de las comunidades a centros nucleados y/o servicios sociales, tiempos de desplazamiento, seguridad vial, entre otros, como consecuencia de las actividades del POA","Prevenir, mitigar, corregir y/o compensar cambios en los flujos, frecuencias, tipos de movilidad, acceso de las comunidades a centros nucleados y/o servicios sociales, tiempos de desplazamiento, seguridad vial, entre otros, como consecuencia de las actividades del POA",{"$f":"IFERROR(MATCH(tbImpEstand[[#This Row],[ID CEI]],tbPMA[ID CEI],0),0)+IFERROR(MATCH(tbImpEstand[[#This Row],[ID CEI]],tbPSM[ID_CEI],0),0)","v":0}]
[null,"CEI_27","Modificación de la infraestructura física, social y de servicios públicos","Socioeconómico","Espacial","Cambio en las condiciones de cobertura, calidad y/o disponibilidad de los servicios públicos y sociales, como consecuencia de las actividades del POA, relacionadas, entre otras con:\n \ni) Agua para consumo humano y actividades económicas \nii) Servicios de salud\niii) Educación\niv) Energía y telecomunicaciones\nv) Gestión de residuos líquidos y sólidos.\nvi) Infraestructura comunitaria y escenarios de recreación activa o pasiva.","Prevenir, mitigar, corregir y/o compensar cambios en las condiciones de cobertura, calidad y/o disponibilidad de los servicios públicos, sociales y comunitarios, afectados por el POA",{"$f":"IFERROR(MATCH(tbImpEstand[[#This Row],[ID CEI]],tbPMA[ID CEI],0),0)+IFERROR(MATCH(tbImpEstand[[#This Row],[ID CEI]],tbPSM[ID_CEI],0),0)","v":0}]
[null,"CEI_28","Modificación de las actividades económicas de la zona","Socioeconómico","Económico","Cambio en los incentivos, estímulos y/o condiciones para el desarrollo de las actividades económicas como consecuencia del POA que, entre otros, generan:\n\ni) Modificación  en la  estructura de la propiedad, dependencia y  formas de tenencia\nii) Cambio en  actividades productivas de los sectores primario, secundario y terciario\niii)  Cambio en las  actividades económicas tradicionales y/o  el turismo y/o la recreación\niv) Modificación de programas y proyectos productivos privados, públicos y/o comunitarios existentes\nv) Cambio  en las características del mercado laboral actual en cuanto al tipo de mano de obra que se encuentra en el área y su condición laboral\nvi) Cambio en la tendencias del empleo en el corto y mediano plazo. \nvii) Afectación o restricción de acceso a los recursos necesarios para el sustento","Prevenir, mitigar, corregir y/o compensar cambios en los incentivos, estímulos y/o condiciones para el desarrollo de las actividades económicas, como consecuencia del POA",{"$f":"IFERROR(MATCH(tbImpEstand[[#This Row],[ID CEI]],tbPMA[ID CEI],0),0)+IFERROR(MATCH(tbImpEstand[[#This Row],[ID CEI]],tbPSM[ID_CEI],0),0)","v":0}]
[null,"CEI_29","Traslado involuntario de población","Socioeconómico","Población a reasentar","Reasentamiento y/o relocalización involuntaria de unidades sociales como consecuencia de las actividades del POA","Restablecer las condiciones socioecómicas de las unidades sociales a reasentar y/o relocalizar",{"$f":"IFERROR(MATCH(tbImpEstand[[#This Row],[ID CEI]],tbPMA[ID CEI],0),0)+IFERROR(MATCH(tbImpEstand[[#This Row],[ID CEI]],tbPSM[ID_CEI],0),0)","v":0}]
[null,"Fuente SIPTA 2021"]
[]
[]
[]
[]
[null,"[3] Se revisaron más de 900 expedientes y se homologaron, aproximadamente, 7000 impactos reportados en los EIA."]
[null,"[4] En la fase de evaluación de licencias ambientales las Categorías Estandarizados de Impactos (CEI) se asocian al concepto de impacto ambiental potencial (IAP) definido como  (IDEA, 2018): “el Impacto… latente o posible que generaría la construcción y/o implementación de proyectos, obras o actividades sobre el ambiente…, corresponde al impacto positivo o negativo que podría generar una acción o disturbio de origen antropogénico sobre el ambiente físico, biótico, social o económico y que está relacionado con las características intrínsecas de dicha acción…”"]

{"sheet":"Módulo 1 - APMA","index":3,"n_rows":246,"n_cols":4,"rows_kept":246,"cut":false,"hidden":false,"merged":[[224,1,224,6],[225,2,234,6],[158,1,158,6],[29,1,29,6],[36,1,39,6],[45,3,68,6],[70,3,99,6],[101,3,107,6],[109,3,124,6],[126,1,127,2],[45,1,46,2],[126,3,157,6],[41,1,43,2],[41,3,43,6],[3,2,3,6],[4,2,4,6],[5,2,5,6],[28,2,28,6],[10,2,10,6],[15,1,27,6],[12,1,13,6],[237,1,237,6],[238,1,238,6],[239,1,239,6],[159,3,178,6],[240,1,240,6],[218,1,219,2],[159,1,160,2],[180,3,186,6],[188,3,216,6],[218,3,222,6],[180,1,181,2],[187,1,187,6],[188,1,189,2],[217,1,217,6],[179,1,179,6],[241,1,242,6],[243,1,243,6],[246,1,246,6],[244,1,244,6],[245,1,245,6]]}
[]
[]
[]
[null,null,"AUTORIDAD NACIONAL DE LICENCIAS AMBIENTALES"]
[null,null,"SUBDIRECCIÓN DE INSTRUMENTOS, PERMISOS Y TRÁMITES AMBIENTALES"]
[null,null,"GRUPO DE INSTRUMENTOS"]
[]
[]
[]
[]
[null,null,"3. APLICATIVO PARA PRESENTACIÓN DEL PMA (APMA)"]
[]
[null,"El Plan de Manejo Ambiental (PMA) es un documento técnico que, de manera detallada, establece las acciones que se requieren para prevenir, mitigar, corregir y/o compensar [5]  los posibles efectos o impactos ambientales causados en desarrollo de un proyecto, obra o actividad e incluye también el plan de seguimiento y monitoreo, gestión del riesgo y desmantelamiento y abandono. [6]"]
[]
[]
[null,"El plan de manejo ambiental podrá hacer parte del estudio de impacto ambiental o como instrumento de manejo y control para proyectos obras o actividades que se encuentran amparados por un régimen de transición.\n\nEl APMA se ha diseñado como una herramienta que permite sintetizar la información a través de la relación entre las CEI, las medidas de manejo para controlarlas, las actividades de seguimiento y monitoreo y los indicadores de efectividad para medir el nivel de cambio en el control de los impactos en cada periodo de seguimiento realizado por la AA.\n\nDesde el punto de vista conceptual, el APMA parte de la base que a cada CEI le corresponde al menos una medida de manejo; y para cada medida de manejo debe definirse al menos una actividad de seguimiento y monitoreo.\n\nDentro del APMA, el usuario genera relaciones entre una categoría de impacto y una medida de manejo, que se denomina “dupla” CEI-MMA; y cuando asocia la actividad de seguimiento y monitoreo conforma una “tripleta” CEI-MMA-ASM.\n\nEn cualquier caso, el APMA está diseñado de tal forma que el usuario tiene la posibilidad de relacionar varias medidas de manejo al control de una CEI. De igual forma, distintas actividades de seguimiento pueden ser asociadas a una medida de manejo en particular.\n"]
[]
[]
[]
[]
[]
[]
[]
[]
[]
[]
[]
[]
[]
[null,"Gráfica 1. Estructura básica del APMA"]
[]
[]
[]
[]
[]
[]
[null,"En todo caso, no puede existir una CEI a la cual no se le haya asociado una MMA que permita su control y que, a su vez, no se cuente con una ASM que permita generar información para verificar en el tiempo si se están logrando los objetivos y las metas de prevención, mitigación, corrección y/o compensación.\n\nEn el APMA el usuario encuentra nueve (9) módulos que se describen a continuación."]
[]
[]
[]
[]
[null,"Módulo 1 - Guía técnica",null,"El primer módulo se denomina “Guía técnica del Aplicativo para presentación de PMA” y tiene un carácter informativo. En éste se presenta el funcionamiento y alcance de cada uno de los módulos del Aplicativo, la lista de las CEI para cada medio y componente, los indicadores de efectividad para medir el control de los impactos y un inventario sugerido de medidas de manejo para controlar y realizar seguimiento y monitoreo a las CEI."]
[]
[]
[]
[null,"Módulo 2 y Módulo 3 – Generación de duplas “CEI – MMA”",null,"La primera columna del Módulo 2 del APMA “CEI-MMA” está diseñado para que el usuario seleccione de la lista automática de las CEI, aquellas que fueron identificadas para el proyecto.\n\nEn la segunda columna, se despliega automáticamente el nombre de la CEI seleccionada.\n\nUna vez realizada esta selección, el usuario pasa al Módulo 3 que le permite reportar las medidas de manejo (MMA).\n\nEn el Módulo 3 “MMA”, se reportan las medidas de manejo que el usuario propone para controlar las CEI evaluadas para el POA. \n\nEl usuario describe la medida de manejo (MMA), identifica su tipo (de acuerdo con la jerarquía de la mitigación), y establece la fase o fases en las cuales son ejecutadas.\n\nPara reportar una MMA, se utiliza el botón de “Agregar MMA” y el APMA asigna automáticamente un identificador de este tipo: MMA1, MMA2, MMA3, etc.\n\nUna vez creada las MMA en el Módulo 3, el usuario regresa al Módulo 2 para generar la dupla, es decir, la relación entre la medida de manejo y la (o las) CEI asociada(s).\n\nPara realizar el procedimiento anterior, en la columna “ID MMA” del Módulo 2 el usuario selecciona de la lista el identificador de la MMA que acaba de crear y el APMA recupera la información de su descripción, tipo de medida y la fase o fases en las que se implementa.\n\nRealizada la acción anterior, en el Módulo 2 el APMA, en la columna “ID CEI-MMA”, genera un identificador para la dupla correspondiente.\n\nEn las columnas restantes del Módulo 2, el usuario describe las actividades asociadas a la ejecución de la medida de manejo, la descripción del lugar de su ejecución, las coordenadas del sitio en el que se realizan (siempre que sea posible), la lista de anexos (diseños, esquemas, planos, entre otros) asociados a la medida y, por último, las observaciones que considere relevantes."]
[]
[]
[]
[]
[]
[]
[]
[]
[]
[]
[]
[]
[]
[]
[]
[]
[]
[]
[]
[]
[]
[]
[]
[]
[null,null,null,"Recuadro 1. Las duplas y la contabilidad de costos\n\nEs muy importante resaltar dos novedades que se incluyen en el Módulo 2 del APMA.\n\nSe trata, en primer lugar, de la columna “Asociación MMA-CEI”. En ella, automáticamente se valida la información que ha sido reportada en el aplicativo y se establece el número de duplas que se han generado.\n\nEn el modelo básico, una MMA está asociada a una sola CEI, pero incluso en proyectos de baja complejidad es muy probable que una medida de manejo contribuya al control de más de un impacto ambiental.\n\nEs común, entonces, que exista más de una dupla. En el pasado, esas duplas se establecían en forma cualitativa y con baja rigurosidad, generando incertidumbre y dificultad para realizar el seguimiento y la medición de la eficacia de las medidas de manejo.\n\nDe allí que sea altamente conveniente, a través de la información automática que genera el APMA en la columna “Asociación MMA-CEI”, contar con la información de las duplas que se van generando.\n\nEn segundo lugar, en la columna “Porcentaje costos CEI”, para cada dupla que se genera, el usuario establece a través de un porcentaje, el nivel de participación de la medida de manejo en el control de esa categoría específica de impacto.\n\nDe esa forma, los datos que se consignan en la columna de “Porcentaje costos CEI”, permite establecer la participación de los costos de implementación de una medida de manejo, para el control de una categoría de impacto.\n\nEl APMA incluye un semáforo; una ayuda visual que le permite al usuario determinar mediante el color verde cuales de las CEI-MMA han sido adecuadamente costeadas y en color rojo aquellas que no cuentan con esa información. El color amarillo representa un reporte parcial de las contribuciones de una MMA en las duplas de las que hace parte.\n\nEl objetivo de esta herramienta es determinar con mayor grado de precisión la contabilidad de costos, facilitar el análisis beneficio-costo (ABC) y el proceso de internalización, en el marco de la valoración económica ambiental del POA."]
[]
[]
[]
[]
[]
[]
[]
[]
[]
[]
[]
[]
[]
[]
[]
[]
[]
[]
[]
[]
[]
[]
[]
[]
[]
[]
[]
[]
[]
[]
[null,null,null,"El usuario, de ser necesario, cuenta además con el botón de “Eliminar MMA” una a una; o “Eliminar todo”. \n\nAsí mismo, cuenta con un botón de “Consultar listado CEI / CAI” donde podrá consultar los diferentes impactos estandarizados, así como agregar o eliminar Categorías Adicionales de Impacto (CAI), en caso de que el usuario en el marco del desarrollo de su proyecto identifique alguno(s) impactos que no puedan ser clasificados bajo las CEI que se encuentran en el numeral 2 de esta guía técnica. La información asociada a la CAI deberá incluir: nombre de la CAI, medio, componente, definición y objetivo. Solo se podrán adicionar un máximo de 5 CAI, teniendo en cuenta que las CEI existentes cubren un extenso listado de impactos identificados para los diferentes sectores productivos."]
[]
[]
[]
[]
[]
[]
[]
[null,null,null,"Recuadro 2. Ejemplo: ¿Cómo se generan las duplas?\n\nUna vez se selecciona la CEI “Alteración hidrogeomorfológica de la dinámica fluvial y/o el régimen sedimentológico”, se asigna el identificador CEI_11 y su información correspondiente.\n\nA partir de allí, el usuario diligencia la información sobre la primera medida de manejo seleccionada MMA1 y el APMA genera el identificador CEI_11_MMA1.\n\nEn caso de que se ejecute más de una medida para el control de la CEI_11, el usuario adiciona una fila y el APMA asigna el identificador: CEI_11_MM2 y así sucesivamente.\n\nEs posible que medidas de manejo para el control de otros impactos resulten adecuadas también o contribuyan al control de la CEI_11, en cuyo caso el usuario registra la información de esa medida en las categorías adicionales a las que contribuye.\n\nLa revegetalización de un área es una medida de manejo que sirve de ejemplo, en tanto puede contribuir a mitigar la alteración de las coberturas vegetales, prevenir cambios en la geoforma del terreno y a la corrección del impacto en la percepción visual del paisaje; en este caso, debe registrarse la misma información de la medida, asociada a cada una de estas CEI."]
[]
[]
[]
[]
[]
[]
[]
[]
[]
[]
[]
[]
[]
[]
[]
[]
[null,"Módulo 4 y Módulo 5 – Generación de tripletas “CEI-MMA-ASM”",null,"Como se mencionó, no puede registrarse en el APMA una MMA para la cual no se define una actividad de seguimiento y monitoreo (ASM) que permita la verificación y medición de su efectividad en el control de la CEI.\n\nDe acuerdo con lo anterior, en el Módulo 5 del APMA se reportan las “Actividades de Seguimiento y Monitoreo” (ASM) y, aplicando la misma base conceptual, se construyen las tripletas CEI-MMA-ASM en el Módulo 4.\n\nEl seguimiento y monitoreo al PMA tiene como propósito revisar la efectividad de las medidas de manejo, así como identificar deficiencias en la ejecución del POA, de tal forma que haya lugar a la aplicación de los ajustes necesarios, en forma oportuna, a través de los mecanismos legales vigentes. [7]\n\nEl usuario, en las columnas correspondientes del Módulo 5, para cada ASM, a la que el APMA asigna un identificador, se registra la información sobre frecuencia, duración, metodología y tipo de registro. En la última columna del Módulo, el usuario puede reportar las observaciones o aclaraciones que considera relevantes.\n\nEl Módulo 4 permite completar el modelo conceptual del APMA a través de la generación de las tripletas: para cada CEI existe “al menos una” MMA que tiene asociada “al menos una” ASM que permite la evaluación de su efectividad.\n\nSi se retoma el ejemplo anterior, una vez el usuario reporta la ASM_1 el APMA genera el identificador para la tripleta: CEI_11_MMA_1_ASM_1.\n\nEstá tripleta corresponde a la relación entre la ASM_1 establecida para la MMA_1, que contribuye al control de la “Alteración hidrogeomorfológica de la dinámica fluvial y/o del régimen sedimentológico”, CEI_11.\n\nLas CEI pueden tener asociadas más de una MMA y, a su vez, varias ASM que, para diferentes componentes y factores, son definidos por la AA o reglamentados en el marco normativo vigente.\n\nEn el Módulo 4 se utiliza el mismo procedimiento que en el Módulo 2, en caso de que se ejecute la ASM_2 asociada a la MMA_1, el identificador asignado a la tripleta es CEI_11_MMA_1_ASM_2 y así sucesivamente. [8]\n\nEn este Módulo 4 el APMA aplica el mismo esquema de semáforo para informar en color rojo o amarillo si la participación porcentual de una ASM asociada a varias tripletas, aún no alcanza el 100%; o, en caso de llegar al máximo de la asignación de costos, utiliza el color verde.\t\n\nEn las columnas restantes del Módulo 4, el usuario describe el lugar de su ejecución, las coordenadas del sitio en el que se realizan (siempre que sea posible), la lista de anexos (diseños, esquemas, planos, entre otros) asociados a la actividad de seguimiento y monitoreo y, por último, las observaciones que considere relevantes."]
[]
[]
[]
[]
[]
[]
[]
[]
[]
[]
[]
[]
[]
[]
[]
[]
[]
[]
[]
[]
[]
[]
[]
[]
[]
[]
[]
[]
[]
[]
[]
[]
[null,"Módulo 6 – Indicadores de efectividad ",null,"En el Módulo 6, el usuario selecciona los indicadores de efectividad que están asociados a cada tripleta prestablecida.\n\nEs importante recordar que los indicadores de efectividad están directamente relacionados con la categoría estandarizada de impacto, ya que están diseñados para medir el nivel de avance en el control de las CEI identificadas para el POA, con base en la información generada por el EIA.\n\nLos indicadores de efectividad son seleccionados teniendo en cuenta la CEI identificada e, incluso, los componentes y/o factores específicos que son afectados por el POA. [9]\n\nEl usuario, cuenta además con el botón de “Consultar indicadores de efectividad” donde podrá consultar para las diferentes CEI los indicadores de efectividad previamente formulados por la ANLA. Así mismo, podrá agregar nuevos indicadores a las diferentes CEI existentes o incluso a las CAI (en caso de haberlas reportado). Cuando se adicione un indicador, la información que se deberá incluir en la ventana emergente es la categoría de impacto a la cual se adiciona y el nombre del indicador de efectividad. No obstante, también se deberá anexar un documento al PMA donde se relacione: periodicidad de medición, definición del indicador, fórmula de cálculo, meta, interpretación del resultado y notas que el usuario considere relevantes; anexo que se relacionará en la última columna de este módulo identificada como “Nombre del anexo (Indicadores adicionales)”.\n\nSolo se podrán adicionar un máximo de 3 indicadores por CEI o CAI, teniendo en cuenta que estos deberán ser indicadores de efectividad puntuales y precisos para evaluar el control de una CEI / CAI.\n\nLos indicadores de efectividad formulados por la ANLA, se deberán consultar como punto de referencia de manera previa al diligenciamiento de este módulo a través del acceso que se encuentra en el Capítulo 4. Indicadores de efectividad de la presente guía técnica."]
[]
[]
[]
[]
[]
[]
[]
[]
[]
[]
[]
[]
[]
[]
[]
[]
[]
[]
[]
[]
[null,"Módulo 7 - Tablero de control",null,"La verificación de la completitud y la coherencia interna del PMA se realiza en el Módulo 6 denominado “Tablero de control” del APMA. \n\nEn este Módulo 6, a través de alertas visuales en color rojo, es posible determinar si una dupla o tripleta se encuentra incompleta o si alguna CEI aún no cuenta con indicador(es) de efectividad asociados, lo que significa que aún es necesario ingresar información al APMA relacionada con las CEI, MMA, ASM o indicadores de efectividad. \n\nEl usuario puede revisar toda la información desde varias “vistas”, utilizando botones de validación por CEI, por MMA, o por ASM."]
[]
[]
[]
[]
[]
[]
[]
[null,"Módulo 8 – Flujo económico",null,"Uno de los aspectos más sensibles a la deficiencia o ausencia de información es el de la valoración económica ambiental y el proceso de internalización de costos en el marco del análisis beneficio-costo (ABC) del POA.\n\nEn ese sentido, el Módulo 8 es de gran utilidad porque permite tanto al usuario, como a la AA, llevar el control de todos los costos del POA, pero, además, con énfasis en aquellos relacionados específicamente con medidas de manejo de mitigación y de compensación (no susceptibles de internalización). [10]\n\nPor ello, el APMA incluye tres submódulos en los que se consolida la información de los costos del PMA que permiten obtener el flujo económico del POA.\n\nPara cada MMA y ASM los costos son desagregados por el usuario en operativos, de personal y de transacción, siguiendo los lineamientos establecidos en la Resolución 2182 del 23 de diciembre de 2016. [11]\n\nA partir del modelo conceptual establecido, en el que una MMA puede aportar al control de varias CEI y, a su vez, varias ASM pueden estar relacionadas con el seguimiento de una MMA, resulta determinante validar que no exista información duplicada o triplicada en relación con los costos totales para el control de una CEI.\n\nPor ello, el APMA calcula automáticamente el flujo económico a partir de la información reportada por el usuario sobre los porcentajes de participación de costos de las MMA y de las ASM establecidos en las duplas (Módulo 2) y en las tripletas (Módulo 4).\n\nDe acuerdo con lo anterior, el usuario reporta en el Módulo 8 los costos anuales o mensuales reales de las MMA y ASM, respectivamente.\n\n“Estimación de los costos ambientales anuales: Se deben presentar los costos considerados, con temporalidad anual y con un horizonte de tiempo coherente con la presencia del impacto, durante el desarrollo del proyecto y aún más allá de la vida úitl (sic) de éste, en los casos en que así ocurra, indicando de forma detallada los rubros estimados más representativos de la medida utilizada para la aproximación a la cuantificación económica del impacto”. [12]\n\nEl usuario establece el periodo de tiempo de vigencia del PMA, mediante la celda “Duración del proyecto” (en años o meses) y, a través del botón “Generar flujo económico”, el APMA establece automáticamente los campos necesarios para el reporte de costos con los que se calcula el flujo económico del POA.\n\nPosteriormente, el usuario reporta la información de los costos reales de las MMA para el número de años/meses que ha predefinido. El módulo funciona en la misma forma para las ASM; en ambos casos, desagregados en operativos, de transacción y personal."]
[]
[]
[]
[]
[]
[]
[]
[]
[]
[]
[]
[]
[]
[]
[]
[]
[]
[]
[]
[]
[]
[]
[]
[]
[]
[]
[]
[]
[]
[null,"Módulo 9 – Centro de costos",null,"Por último, el APMA en el Módulo 9 denominado “Centro de costos”, consolida la información reportada por el usuario en el Módulo 8.\n\nEl centro de costos permite realizar la validación de la información económica anualizada del POA ya sea por cada CEI, dupla o tripleta; así mismo, mediante filtros, por el tipo de medidas de manejo de acuerdo con la jerarquía de la mitigación, para la evaluación económica del proyecto. "]
[]
[]
[]
[]
[]
[null,"Finalmente, para el correcto funcionamiento del Aplicativo es importante mencionar y recomendar lo siguiente:"]
[null,null," -    El APMA funciona con excel en Microsoft 365 y excel en Microsoft Office 2021 o versiones superiores, en versiones diferentes, las macros que se almacenan en este no permitirán su correcta ejecución. \n\n -    Para el correcto uso de las macros se recomienda, descargar el archivo de la página web, guardarlo en el equipo, cerrarlo y volver a abrirlo desde la ubicación donde se guardó.\n\n -    Conforme se vaya diligenciando cada módulo, ir guardando la información con el botón ubicado en la parte superior izquierda, denominado “Guardar”.\n\n -    En caso de que el Aplicativo no permita en algún momento continuar con su diligenciamiento o presente alguna falla de otro tipo, se recomienda cerrarlo y volverlo a abrir para poder continuar con el relacionamiento de información."]
[]
[]
[]
[]
[]
[]
[]
[]
[]
[]
[]
[null,"[5] Jerarquía de la mitigación"]
[null,"[6] Decreto 1076 de 2015. Decreto Único Reglamentario del Sector Ambiente y Desarrollo Sostenible. Ministerio de Ambiente y Desarrollo Sostenible. "]
[null,"[7] 2018. Minambiente. Metodología general para la Elaboración y Presentación de Estudios Ambientales (MGEPEA)"]
[null,"[8] Es decir que, de ser necesario, el usuario reporta más de una fila en la hoja “ASM”, de acuerdo con el número de monitoreos que sea técnicamente necesario realizar para el adecuado seguimiento de la medida de manejo."]
[null,"[9] Si el POA no presenta fuentes fijas puntuales de emisión de gases y/o material particulado, no se selecciona el indicador correspondiente. Sin embargo, la medición del Índice de calidad del aire, puede ser relevante, si se desarrollan actividades que afectan este recurso. "]
[]
[null,"[10] En el caso en que se evidencie que las medidas de manejo planteadas no logran la prevención o corrección de los impactos relacionados (según resultado esperado durante el seguimiento), es decir, que no se logra la internalización del impacto, durante la etapa de seguimiento se debe realizar la valoración económica de los servicios ecosistémicos relacionados, puesto que se interpretan como externalidades (Minambiente, 2017)"]
[null,"[11] Adicionalmente, se puede consultar el documento ANLA (2017) “Criterios técnicos para el uso de herramientas económicas en los proyectos, obras o actividades objeto de licenciamiento ambiental”."]
[null,"[12] Op. Cit., ANLA (2017: pág. 62)"]

{"sheet":"Módulo 1 - Indicadores1","index":4,"n_rows":107,"n_cols":3,"rows_kept":107,"cut":false,"hidden":false,"merged":[[18,2,18,6],[19,1,19,6],[39,1,39,6],[3,2,3,6],[4,2,4,6],[5,2,5,6],[10,2,10,6],[12,1,17,6],[105,1,105,6],[106,1,106,6],[107,1,107,6],[42,1,44,6],[46,1,46,6],[48,1,61,6],[65,1,86,6],[90,1,103,6]]}
[]
[]
[]
[null,null,"AUTORIDAD NACIONAL DE LICENCIAS AMBIENTALES"]
[null,null,"SUBDIRECCIÓN DE INSTRUMENTOS, PERMISOS Y TRÁMITES AMBIENTALES"]
[null,null,"GRUPO DE INSTRUMENTOS"]
[]
[]
[]
[]
[null,null,"4. INDICADORES DE EFECTIVIDAD"]
[]
[null,"En esta guía se proponen indicadores de efectividad que están diseñados para medir de manera agregada el estado de los recursos naturales durante la ejecución de los proyectos, evaluar la efectividad de las medidas de manejo implementadas y generar el insumo para el análisis de tendencia del medio en el desarrollo de los proyectos (Gráfica 2).\n\nPor una parte, en la fase de evaluación de la licencia ambiental, los indicadores de efectividad tienen un carácter informativo, pues se trata de que el usuario conozca de antemano el instrumento a través del cual se realizará, en la etapa de seguimiento del POA, la medición de los avances y la efectividad de las medidas de manejo implementadas. "]
[]
[]
[]
[]
[]
[]
[null,"Gráfica 2. Parámetros de Línea base e Instrumento de Manejo y Control"]
[]
[]
[]
[]
[]
[]
[]
[]
[]
[]
[]
[]
[]
[]
[]
[]
[]
[]
[]
[null,"Fuente: Grupo Instrumentos Internos – ANLA."]
[]
[]
[null,"De otro lado, en la fase de seguimiento, los indicadores permiten medir el nivel de efectividad del conjunto de medidas implementadas para el control de las CEI del POA. Los resultados de estos indicadores se compararán con la línea base (caracterización de los diferentes medios) y/o referentes normativos."]
[]
[]
[]
[null,"Posteriormente, en fase de seguimiento, la meta permite determinar el avance en el control de las CEI, a través de la medición de los indicadores de efectividad propuestos en esta guía. [13]"]
[]
[null,"En algunos casos, por la complejidad de las medidas, parámetros e indicadores de calidad ambiental involucrados en el seguimiento de una CEI en particular, se requiere la medición de más de un indicador.\n\nEs importante aclarar que, al momento de presentar el PMA el usuario tiene la posibilidad de dar alcance al objetivo y la meta de cada indicador de efectividad, dependiendo de los componentes, factores, indicadores o parámetros que efectivamente serán alterados por la ejecución del POA. Por ejemplo, la CEI “Alteración a la calidad del aire” está definida ampliamente como el “Cambio en las concentraciones de los contaminantes criterio y/o tóxicos en el aire producto de las emisiones generadas como consecuencia de un proyecto, obra o actividad”. \n\nSin embargo, puede que un proyecto no cuente con fuentes fijas de emisión, por lo que para este caso el usuario solo debería monitorear los niveles de inmisión de gases y/o material particulado en el aire. El usuario tiene entonces la posibilidad de dar alcance al objetivo y la meta del indicador, en términos de los factores alterados por el POA.  \n\nLos indicadores de efectividad son de dos tipos. Por una parte, se presentan indicadores que se calculan con base en parámetros de calidad ambiental que, en ocasiones tienen como referencia una norma específica que establece sus niveles de cumplimiento o que, por otra parte, se les ha definido límites en el IMC que aprueba la AA.\n\nComo ejemplo de este tipo de indicadores se puede mencionar el asociado a la CEI “Alteración a la calidad del aire”, que está basado en el Índice de Calidad del Aire (ICA) definido a través del artículo 20 de la Resolución 2254 de 2017."]
[]
[]
[]
[]
[]
[]
[]
[]
[]
[]
[]
[]
[]
[]
[]
[]
[null,"Donde:\n\nCriterio de cumplimiento: el indicador deberá estar en categoría buena o aceptable.\n\nICA p\t\t: Índice de Calidad del Aire para el contaminante p.\nC p\t\t: concentración medida para el contaminante p.\nPC alto\t: punto de corte mayor o igual a Cp.\nPC bajo\t: punto de corte menor o igual a Cp.\nI alto\t\t: valor del ICA correspondiente al PC alto.\nI bajo\t\t: valor del ICA correspondiente al PC bajo.\n\nComo se mencionó, la periodicidad de medición de los indicadores basados en parámetros de calidad será la que se establezca en las normas; en el IMC que aprueba la AA; las asociadas a la entrega del ICA; o la imposición de obligaciones que se determine en el proceso de seguimiento.\n\nEn cualquier caso, es importante recordar que los periodos de reporte de los ICA están determinados por las Resoluciones 077 de 2019 y 549 de 2020 y pueden diferir de los tiempos de medición de los indicadores de calidad ambiental (monitoreos).\n\nEl segundo tipo de indicadores de efectividad también mide el logro [14] de las medidas de manejo seleccionadas y ejecutadas por el usuario para el control de CEI, pero tiene como punto de referencia la línea base o los límites permisibles autorizados en el IMC.\n\nEste tipo de indicador se aplica, por ejemplo, en la CEI “Alteración a ecosistemas acuáticos”, en el que se define como el nivel de control de la alteración, medido en porcentaje. En este caso, el indicador de efectividad se calcula con base en el análisis agregado de la información sobre todas las medidas de manejo implementadas para su control."]
[]
[]
[]
[]
[]
[]
[]
[]
[]
[]
[]
[]
[]
[]
[]
[]
[]
[]
[]
[]
[]
[]
[]
[]
[null,"Dónde:\n\nAEA\t: Control de la alteración de ecosistemas acuáticos\nAAMM\t: Área bajo medidas de manejo (prevención, corrección, \tmitigación y/o compensación) por periodo de reporte.\nAAIMC\t: Área a alterar autorizada en IMC (línea base).\n\nPara cada uno de los medios biótico, abiótico y socioeconómico, se presentan indicadores para evaluar la efectividad de las medidas de manejo propuestas (fase de evaluación) o implementadas (fase de seguimiento) por el usuario.\n\nEn cada caso se hacen observaciones muy importantes que tienen que ver con la frecuencia de medición, la necesidad de tener en cuenta información asociada a otros indicadores disponibles o información de contexto que ayuda en el proceso de medición e interpretación de los resultados.\n\nFinalmente, es importante aclarar que los indicadores de efectividad, aunque hacen parte de este Aplicativo, pueden emplearse en trámites de formulación de PMA que no hagan uso de esta herramienta."]
[]
[]
[]
[]
[]
[]
[]
[]
[]
[]
[]
[]
[]
[]
[null,"[13] La batería de indicadores de efectividad diseñada no sustituye, sino que complementa los indicadores de seguimiento y monitoreo a la calidad del medio, de los que se habla en el numeral 9.1.2.2 de la MGEPEA (pág. 202)."]
[null,"[14] Avances alcanzados con referencia a un valor objetivo definido previamente. Guía metodológica para la formulación de indicadores (DNP, 2009)."]

{"sheet":"Módulo 1 - Indicadores2","index":5,"n_rows":13,"n_cols":3,"rows_kept":13,"cut":false,"hidden":false,"merged":[[12,1,12,8],[10,1,10,8],[9,2,9,8],[11,2,11,8],[3,2,3,8],[4,2,4,8],[5,2,5,8],[6,2,6,8],[7,2,7,8],[8,2,8,8]]}
[]
[]
[]
[null,null,"AUTORIDAD NACIONAL DE LICENCIAS AMBIENTALES"]
[null,null,"SUBDIRECCIÓN DE INSTRUMENTOS, PERMISOS Y TRÁMITES AMBIENTALES"]
[null,null,"GRUPO DE INSTRUMENTOS"]
[]
[]
[]
[]
[null,"4. INDICADORES DE EFECTIVIDAD"]
[]
[null,"Consultar la batería de indicadores de efectividad para cada una de las CEI en el siguiente enlace"]

{"sheet":"Módulo 1 - MMO","index":6,"n_rows":760,"n_cols":2,"rows_kept":760,"cut":false,"hidden":false,"merged":[[482,1,483,1],[555,1,556,1],[588,1,589,1]]}
[]
[]
[]
[]
[]
[]
[]
[]
[]
[]
[null,"5.            MEDIDAS DE MANEJO OPCIONALES"]
[]
[null,"A continuación, se presenta un inventario sugerido de medidas de manejo para controlar y realizar seguimiento y monitoreo a los impactos ambientales estandarizados, el cual ha sido el resultado de analizar los estudios de impacto ambiental presentados por los usuarios ante la AA; de la realización de mesas de trabajo con profesionales de experiencia en la evaluación y seguimiento de POA; y, finalmente, de la consulta con personal de los sectores productivos."]
[]
[null,"Aunque las medidas de manejo y de seguimiento y monitoreo que se proponen en este anexo corresponden a aquellas de normal uso en los POA y que se consideran técnicamente eficaces para el control de los impactos, tienen el carácter de opcionales."]
[]
[null,"En tal sentido, el usuario puede hacer uso de las medidas que aquí se proponen o formular y presentar otras diferentes; en cualquier caso, la AA evalúa y decide sobre la viabilidad ambiental del POA, con base en la información presentada."]
[]
[null,"En cuanto a los parámetros clave presentados para algunas fichas y que no atienden a los establecidos en una norma ambiental vigente, se aclara que, también son sugeridos, pues cada proyecto se desarrolla bajo condiciones particulares. De igual manera se aclara que, bajo ningún motivo se podrá entender que los parámetros propuestos para los indicadores de seguimiento del PMA eximen el análisis de cada uno de los parámetros que se deben abordar con rigurosidad en el seguimiento de los proyectos. "]
[]
[null,"En algunos casos, existen medidas de manejo o de seguimiento y monitoreo que están establecidas en la normatividad ambiental vigente, por ello, se recomienda su revisión, junto con el listado de Obligaciones Mínimas que se encuentra disponible en www.anla.gov.co."]
[]
[null,"Por último, el usuario debe tener en cuenta si existen especies CITES, en alguna categoría de amenaza o que requieran medidas especiales de manejo. Es necesario revisar la guía para especies en veda disponible en www.anla.gov.co."]
[]
[]
[null,"CEI 1"]
[null,"ALTERACIÓN A LA CALIDAD DEL AIRE"]
[null,"MEDIDAS DE MANEJO OPCIONALES"]
[null,"Implementar sistemas de control que permitan la mitigación de gases y/o material particulado de las fuentes de emisión de gases y/o material particulado en el POA, y realizar el mantenimiento preventivo y correctivo de dichos sistemas, de conformidad con lo establecido en el Protocolo de Control y Vigilancia de la Contaminación Atmosférica Generada por Fuentes Fijas (ajustado por la Resolución 760 de 2010 del MAVDT y ajustado por la Resolución 2153 de 2010 del MAVDT)."]
[null,"Implementar procesos de reducción de emisiones fugitivas o dispersas para fuentes fijas, tales como: buenas prácticas (riego de vías, cubrimiento y humedecimiento de áreas expuestas a la acción del viento, programa de control de fugas, mantenimiento periódico de equipos, reducir el área y el tiempo de exposición de los materiales almacenados), mejora de procesos (estrategias para mejorar la eficiencia de los procesos de combustión y/o reducción de pérdidas, integración energética), cambio de tecnología (combustibles bajo en carbono/renovables), entre otros."]
[null,"Implementar procesos de reducción de emisiones de fuentes móviles, tales como: inspecciones, mantenimiento preventivo y correctivo de vehículos, revisión técnico-mecánica, combustibles bajo en carbono/renovables, limitaciones en los horarios de circulación de vehículos y maquinaria, entre otros."]
[null,"DESCRIPCIÓN DEL SEGUIMIENTO (OPCIONAL)"]
[null,"Medición de las emisiones atmosféricas:"]
[null,"Se realizará monitoreo de las emisiones atmosféricas generadas en las fuentes puntuales del proyecto de conformidad con lo establecido en el Protocolo de Control y Vigilancia de la Contaminación Atmosférica Generada por Fuentes Fijas (adoptado por la Resolución 760 de 2010 del MAVDT y ajustado por la Resolución 2153 de 2010 del MAVDT), dando cumplimiento con las siguientes condiciones:"]
[null,"Para determinar la frecuencia de los monitoreos de emisiones atmosféricas asociadas a fuentes puntuales, se realizará un monitoreo al inicio de la operación y dando cumplimiento a lo establecido en el numeral 3.2 y en la tabla No. 9 del Protocolo para el Control y Vigilancia de la Contaminación Atmosférica Generada por Fuentes Fijas. Se presentarán los resultados del monitoreo inicial, las frecuencias establecidas con su respectiva justificación (determinación de las UCA) y el cumplimiento de altura mínima de descarga de las fuentes autorizadas según el Protocolo, en el primer ICA."]
[null,"Se medirá en cada monitoreo de acuerdo con la actividad industrial realizada, los contaminantes establecidos en la Tabla 2 del Protocolo de Control y Vigilancia de la Contaminación Atmosférica Generada por Fuentes Fijas."]
[null,"La medición directa (monitoreos), será realizada a través de laboratorios acreditados por el IDEAM, tanto para la toma de la muestra, como para el análisis del parámetro monitoreado."]
[null,"Las fuentes de emisión contarán con un sistema de extracción localizada, chimenea, plataforma y puertos de muestreo que permita realizar la medición directa y demostrar el cumplimiento normativo. La plataforma, diámetro y localización de los puertos de muestreo, se construirán de acuerdo con los métodos y procedimientos adoptados en el Protocolo para el Control y Vigilancia de la Contaminación Atmosférica generada por fuentes fijas última versión."]
[null,"En los Informes de Cumplimiento Ambiental - ICA se presentará el informe de las mediciones de emisiones (asociadas a fuentes fijas puntuales), cumpliendo con lo establecido en el numeral 2.2 del Protocolo de Control y Vigilancia de la Contaminación Atmosférica Generada por Fuentes Fijas (adoptado por la Resolución 760 de 2010 del MAVDT y ajustado por la Resolución 2153 de 2010 del MAVDT) y empleando los formatos establecidos en el Anexo 2, 3 y 4 del mismo. En dicho informe se compararán las mediciones con los estándares establecidos en la Resolución 909 de 2008 (o la que la modifique o sustituya) para los contaminantes de la Tabla 2 según el Protocolo."]
[null,"Actualización del inventario de emisiones atmosféricas:"]
[null,"Se actualizará el inventario de emisiones atmosféricas generadas por el proyecto, teniendo en cuenta lo siguiente:"]
[null,"Para las fuentes fijas puntuales que cuenten con las condiciones técnicas de medición, se realizará la estimación de emisiones a partir de medición directa, dando cumplimiento a los criterios establecidos en el Protocolo para el Control y Vigilancia de la Contaminación Atmosférica Generada por Fuentes Fijas (adoptado por la Resolución 760 de 2010 del MAVDT y ajustado por la Resolución 2153 de 2010 del MAVDT)."]
[null,"Para fuentes fijas puntuales a las que no les aplique la medición directa por aspectos técnicos o de seguridad, fuentes dispersas de área y móviles (que sean identificadas de acuerdo con las características del proyecto), se aplicarán métodos alternativos como factores de emisión y balance de masas, teniendo en cuenta además lo establecido en la Guía para la Elaboración de Inventarios de Emisiones Atmosféricas del MADS. De igual manera, se tendrán en cuenta las metodologías para el uso de factores de emisión desarrolladas por entidades oficiales, centros de investigación o academia (AP-42 Agencia de Protección Ambiental de los Estados Unidos US-EPA, National Pollutant Inventory - NPI, entre otras)."]
[null,"Se presentará el inventario con y sin las eficiencias de las medidas de control en el cálculo de las emisiones. Para cada contaminante se justificarán las eficiencias de control con las respectivas evidencias documentales."]
[null,"La frecuencia con la que se realice la estimación (directa e indirecta) de emisiones, será mínimo una vez al año o cada vez que se presenten cambios en los procesos y/o actividades que generan emisiones (por ejemplo, introducción de nuevas fuentes)."]
[null,"Se presentará en los Informes de Cumplimiento Ambiental - ICA la actualización del inventario de emisiones conteniendo como mínimo:"]
[null,"Metodología empleada"]
[null,"Memorias de cálculo con soportes"]
[null,"Información georreferenciada de las fuentes"]
[null,"Tipo de fuente"]
[null,"Tipo combustible empleado"]
[null,"Consumo de combustible por cada fuente (nominal en base horaria y total acumulado anual)"]
[null,"Tiempos de operación (horas/año)"]
[null,"Sistemas de control de emisiones (discriminando sistema y tipo de contaminante)"]
[null,"Porcentaje de eficiencia de los sistemas"]
[null,"Emisiones desagregadas por actividad"]
[null,"Para fuentes fijas puntuales se requieren los datos de altura y diámetro de las chimeneas. "]
[null,"Fuentes de información utilizada"]
[null,"Monitoreos de calidad de aire:"]
[null,"Se realizarán monitoreos de calidad del aire con la frecuencia y criterios establecidos para Sistemas de Vigilancia de Calidad del Aire Industriales – SVCAI según el Protocolo para el Monitoreo y Seguimiento de la Calidad del Aire del MAVDT del 2010 (adoptado por la Resolución 650 de 2010, y ajustado por la Resolución 2154 de 2010). El SVCA contará con monitoreo meteorológico en los mismos sitios donde se localicen las estaciones de calidad de aire, para la medición de: precipitación, temperatura, humedad relativa, velocidad y dirección del viento, radiación solar. Se presentará en los Informes de Cumplimiento Ambiental - ICA, la siguiente información:"]
[null,"Documento donde se argumente la selección de la localización de las estaciones de monitoreo de calidad de aire, teniendo en cuenta los criterios establecidos en el Protocolo para el Monitoreo y Seguimiento de la Calidad del Aire del MAVDT (2010)."]
[null,"Información meteorológica que será previamente validada de acuerdo con los estándares establecidos por la EPA (Meteorological Monitoring Guidance for Regulatory Modeling Applications - EPA 454/R 99 005). Se anexarán los archivos georreferenciados de acuerdo con el modelo de almacenamiento de datos geográfico establecido en la Resolución 2182 de 2016, o aquella que la modifique o sustituya."]
[null,"Reportes de laboratorio y comparación de las mediciones con los niveles máximos permisibles establecidos en la Resolución 2254 de 2017 del MADS, o aquella que la modifique o sustituya, y con la línea base presentada en el EIA para los contaminantes evaluados. Los contaminantes para registrar serán los establecidos en la Resolución 2254 de 2017 del MADS, o aquella que la modifique o sustituya, aplicables según la actividad industrial desarrollada y las fuentes de emisión identificadas."]
[null,"Información georreferenciada de los monitoreos de calidad de aire, de acuerdo con el modelo de almacenamiento geográfico establecido en la Resolución 2182 de 2016 del MADS, o aquella que la modifique o sustituya."]
[null,"Informe de las acciones implementadas para garantizar el cumplimiento de los estándares en caso de sobrepasar los límites de inmisión para cada contaminante."]
[null,"Certificados de laboratorios acreditados por el IDEAM para la toma de la muestra y para el análisis del parámetro monitoreado. Estos laboratorios, contarán contar con las técnicas de medición que cuenten con los límites de detección de los diferentes parámetros que permitan verificar el cumplimiento normativo de los mismos."]
[null,"Informe que incluirá como mínimo los contenidos establecidos en el numeral 7.6.6. del Protocolo para el Monitoreo y Seguimiento de la Calidad del Aire del MAVDT (2010) - Manual de operación."]
[null,"PARÁMETROS CLAVE DE SEGUIMIENTO"]
[null,"Según normativa."]
[]
[]
[null,"CEI 2"]
[null,"ALTERACIÓN A LAS PROPIEDADES FÍSICAS DEL AIRE"]
[null,"MEDIDAS DE MANEJO OPCIONALES"]
[null,"NOTA: es necesario que el usuario durante la formulación del EIA realice la simulación del efecto sombra y del impacto en el microclima, que le permita en la formulación del PMA establecer las medidas correspondientes para controlar el impacto por sombras, reflejos y cambio en el microclima, generados por la operación de los aerogeneradores de proyectos eólicos. Las condiciones de dichas simulaciones, podrán ser consultadas en el instrumento de Obligaciones Mínimas para Proyectos de Uso de Energía Eólica Continental, publicado en www.anla.gov.co."]
[null,"Manejo de sombras:"]
[null,"Con base en los resultados del estudio presentado en la línea base, el dueño del proyecto, obra o actividad, deberá establecer una distancia mínima desde la instalación de los aerogeneradores a centros poblados, asentamientos o viviendas. Esta no deberá ser inferior a un rango entre 6-10 veces el diámetro de los rotores (incluyendo las aspas). "]
[null,"Se deberá proponer adicionalmente las demás medidas de manejo correspondientes a partir de los resultados obtenidos."]
[null,"Manejo de reflejos:"]
[null,"Incorporar el uso de pinturas anti reflectivas en las estructuras, así como el uso de materiales de construcción menos reflectantes, de tal manera que los reflejos presenten una luminosidad atenuada. Lo anterior busca que según las condiciones meteorológicas que determinan la intensidad de la luz diurna, de modo que cuando la infraestructura se encuentre en un área de sombra, la visibilidad desde una corta distancia se reduzca prácticamente a cero."]
[null,"Instalar en las viviendas cercanas que puedan verse más afectadas tales como barreras vivas, adecuación de ventanas, pantallas antirreflejos entre otras."]
[null,"DESCRIPCIÓN DEL SEGUIMIENTO (OPCIONAL)"]
[null,"Seguimiento al manejo de sombras y reflejos:"]
[null,"Se realizará un seguimiento periódico mínimo semestral de la afectación de los aerogeneradores a los receptores sensibles identificados por generación de sombras y reflejos. Lo anterior, se medirá en términos de percepción y quejas de la comunidad."]
[null,"Seguimiento a cambios en el microclima:"]
[null,"Se realizarán monitoreos de información meteorológica en los sitios más representativos del área de influencia del proyecto (vientos arriba y vientos abajo) y/o en comunidades aledañas. El programa de monitoreo considerará los siguientes aspectos:"]
[null,"Parámetros: precipitación, temperatura, humedad relativa, velocidad y dirección del viento, evaporación, radiación solar, brillo solar, nubosidad. La medición de temperatura se realizará a diferentes alturas de tal manera que permita establecer un gradiente vertical."]
[null,"El programa de monitoreo iniciará previo a la fase constructiva, y su monitoreo continuará durante toda la fase operativa, y de desmantelamiento y abandono."]
[null,"La toma de datos será de manera continua, almacenando registros como mínimo cada hora."]
[null,"Se georreferenciará la información de los monitoreos de acuerdo con modelo de almacenamiento geográfico establecido en la Resolución 2182 de 2016 del MADS, o aquella que la modifique o sustituya."]
[null,"En cada Informe de Cumplimiento Ambiental - ICA se presentará un análisis detallado de las variaciones de cada uno de los parámetros medidos considerando cambios estacionales, temporalidad (seca - lluvias) periodos del día y noche, patrones vientos arriba vs vientos abajo del proyecto. Se incluirá un análisis comparativo con relación a registros previos al inicio de operación en lo posible con información de estaciones del IDEAM o información simulada."]
[null,"Se presentará previo al inicio a actividades un documento técnico de soporte donde se justifique la selección de la localización y número de estaciones propuestas (en caso de que se requiera más de 1 estación por extensión del proyecto o porque se haya identificado previamente diferencias topográficas, del relieve que generen microclimas y/o varias zonificaciones climáticas), tipo de instrumentos y/o sensores. Las estaciones serán de tipo permanente. Su localización considerará los lineamientos del IDEAM o de la OMM. "]
[null,"PARÁMETROS CLAVE DE SEGUIMIENTO"]
[null,"Precipitación, temperatura, humedad relativa, velocidad y dirección del viento, evaporación, radiación solar, brillo solar, nubosidad."]
[]
[]
[null,"CEI 3"]
[null,"ALTERACIÓN EN LOS NIVELES DE PRESIÓN SONORA"]
[null,"MEDIDAS DE MANEJO OPCIONALES"]
[null,"Implementar sistemas de control y mitigación (aisladores acústicos) necesarias para asegurar que en ningún momento se superen los niveles de emisión de ruido establecidos en la Resolución 0627 de 2006, o la que la modifique o sustituya, para aquellas fuentes de emisiones sonoras representativas y que sean objeto de control. Presentar los respectivos soportes en los Informes de Cumplimiento Ambiental - ICA."]
[null,"Implementar procesos de reducción de niveles de ruido, tales como: buenas prácticas (control de velocidad de vehículos, realización de actividades generadoras de ruido en horario diurno, mantenimiento periódico de equipos), cambio de tecnología (sustitución de equipos que generen menos niveles de emisión de ruido), entre otros."]
[null,"DESCRIPCIÓN DEL SEGUIMIENTO (OPCIONAL)"]
[null,"Monitoreos de emisión de ruido:"]
[null,"Se realizarán monitoreos de emisión de ruido considerando todas las fuentes generadoras de ruido del proyecto. Las mediciones deben cubrir los periodos diurnos y nocturnos para el mismo día."]
[null,"Los monitoreos se realizarán según los procedimientos y parámetros establecidos en la Resolución 0627 de 2006 del MAVDT o aquella que la modifique o sustituya."]
[null,"La información de los monitoreos será georreferenciada, de acuerdo con modelo de almacenamiento geográfico establecido en la Resolución 2182 de 2016 o aquella que la modifique o sustituya."]
[null,"En los informes de los monitoreos de emisión de ruido se incluirá la información requerida en el Artículo 21 de la Resolución 0627 de 2006. El informe incluirá la comparación de las mediciones con los estándares máximos permisibles establecidos en la Resolución 0627 de 2006, o aquella que la modifique o sustituya."]
[null,"Monitoreos de ruido ambiental:"]
[null,"Se realizarán monitoreos de ruido ambiental de manera simultánea en los diferentes puntos de medición o en los periodos de operación más representativos en tiempo y lugar de la actividad. Dichos puntos coincidirán con los puntos monitoreados en la línea base presentada en el EIA, y en caso de que se presenten nuevos potenciales receptores de interés, se considerarán puntos adicionales de monitoreo, los cuales estarán localizados estratégicamente respecto a la ubicación de estos receptores. El número mínimo de días a la semana en los cuales se efectúen las mediciones es de dos (2), en donde uno de ellos tiene que ser un domingo; las mediciones cubrirán los periodos diurnos y nocturnos para el mismo día. Las mediciones se realizarán en la misma semana, para los dos días, los dos horarios y condiciones de operación representativa de la fuente, con el fin de establecer uniformidad en el monitoreo. "]
[null,"Los monitoreos se realizarán según los procedimientos y parámetros establecidos en la Resolución 0627 de 2006 del MAVDT o aquella que la modifique o sustituya."]
[null,"La información de los monitoreos será georreferenciada, de acuerdo con modelo de almacenamiento geográfico establecido en la Resolución 2182 de 2016 o aquella que la modifique o sustituya."]
[null,"En los informes de los monitoreos de ruido ambiental se incluirá la información requerida en el Artículo 21 de la Resolución 0627 de 2006. El informe incluirá la comparación de las mediciones con los estándares máximos permisibles establecidos en la Resolución 0627 de 2006, o aquella que la modifique o sustituya, y con la línea base presentada en el EIA para ruido ambiental."]
[null,"PARÁMETROS CLAVE DE SEGUIMIENTO"]
[null,"Ruido en dB."]
[]
[]
[null,"CEI 4"]
[null,"ALTERACIÓN EN LOS NIVELES DE RADIACIÓN"]
[null,"MEDIDAS DE MANEJO OPCIONALES"]
[null,"Dar cumplimiento a las condiciones técnicas de instalación de las fuentes generadoras de radiación ionizante y no ionizante."]
[null,"La ubicación de las fuentes generadoras de radiación ionizante y no ionizante contarán con una distancia optima de las zonas de oficinas, equipos, maquinaria y ecosistemas, y de acuerdo con el tiempo de exposición."]
[null,"Se instalarán zonas de aislamiento alrededor de las fuentes generadoras de radiación ionizante y no ionizante en las que se limite el ingreso de personal y se prohíba el ingreso de fauna, con el fin de prevenir los efectos de la radiación."]
[null,"Se instalarán sistemas de aislamiento en fuentes generadoras de radiación."]
[null,"DESCRIPCIÓN DEL SEGUIMIENTO (OPCIONAL)"]
[null,"Se realizarán monitoreos de radiación ionizante y/o no ionizante (campo eléctrico, campo magnético, radiación térmica, radiación lumínica, radioactividad, entre otros) en puntos representativos alrededor de la zona de influencia de las fuentes generadoras, teniendo en cuenta las mediciones de las variables (temperatura de bulbo húmedo, radiación solar, entre otras) que acompañan la medición de la variable principal de radiación  de acuerdo con las metodologías, guías o normas técnicas aplicables por el tipo de actividad."]
[null,"PARÁMETROS CLAVE DE SEGUIMIENTO"]
[null,"Radiación ionizante y/o no ionizante (campo eléctrico, campo magnético, radiación térmica, radiación lumínica, radioactividad, entre otros, según aplique."]
[]
[]
[null,"CEI 5"]
[null,"GENERACIÓN DE OLORES OFENSIVOS"]
[null,"MEDIDAS DE MANEJO OPCIONALES"]
[null,"Implementar sistemas de control de olores ofensivos en los eventos en los que la actividad lo requiera, los cuales deben cumplir con lo establecido en el Capítulo XIX de la Resolución 909 de 2008 o aquella que la modifique o sustituya.  "]
[null,"Implementar procesos de reducción de olores, tales como: buenas prácticas, mejora de procesos, cambio de tecnología, entre otros)."]
[null,"Formular el Programa para la Reducción del Impacto por Olores Ofensivos - PRIO en caso de cumplir los requisitos establecidos en el Protocolo para el Monitoreo, Control y Vigilancia de Olores Ofensivos, adoptado por la Resolución 2087 de 2014, o aquella que la modifique o sustituya."]
[null,"DESCRIPCIÓN DEL SEGUIMIENTO (OPCIONAL)"]
[null,"Se realizarán los monitoreos de olores ofensivos de fuentes de emisión de sustancias de olores ofensivos de acuerdo con los métodos establecidos en la Tabla 2 del Protocolo para el Monitoreo, Control y Vigilancia de Olores Ofensivos, el cual se adopta por la Resolución 2087 de 2014, o aquella que la modifiquen o sustituya. "]
[null,"Se evaluarán los niveles permisibles de calidad de aire de inmisión de olores ofensivos de sustancias o mezclas de sustancias mediante la realización de monitoreos de acuerdo con los métodos establecidos en la Tabla 4 del Artículo 7 de la Resolución 1541 de 2013 del Ministerio de Ambiente y Desarrollo Sostenible o de los que trata la Tabla 1 del Protocolo para el Monitoreo, Control y Vigilancia de Olores Ofensivos, el cual se adopta por la Resolución 2087 de 2014, o aquellas que las modifiquen o sustituyan. También se evaluarán dichos límites a través del uso de modelos de dispersión de contaminantes atmosféricos."]
[null,"PARÁMETROS CLAVE DE SEGUIMIENTO"]
[null,"Según normatividad."]
[]
[]
[null,"CEI 6"]
[null,"ALTERACIÓN DE LAS CONDICIONES GEOLÓGICAS EN PROFUNDIDAD"]
[null,"MEDIDAS DE MANEJO OPCIONALES"]
[null,"Implementar un mecanismo que suspenda automáticamente la actividad de inyección/ reinyección, cuando la presión de fractura alcance el límite establecido para la actividad, con el fin de evitar el fracturamiento de las unidades geológicas.\n\nIdentificar las causas e implementar las medidas correctivas correspondientes, establecidas en las autorizaciones otorgadas por las entidades competentes. "]
[null,"Suspender y/o replantear las actividades de fracturamiento hidráulico en perforación horizontal, inyección, reinyección u otros mecanismos de recobro mejorado, en el caso que se generen eventos sísmicos de magnitud mayor o igual a cuatro (4) en la escala de Richter, cuyo epicentro demuestre estar ubicado dentro del área que determine el Servicio Geológico Colombiano – SGC de manera específica para el proyecto, obra o actividad. Informar oportunamente a la ANLA y a las demás autoridades competentes sobre las acciones correctivas implementadas y la evidencia del éxito de su implementación. Nota: Esta medida es susceptible de modificación y/o ajuste de acuerdo a lo que establezcan al respecto las autoridades competentes."]
[null,"Realizar previo al inicio de las actividades, el levantamiento de las actas de vecindad en las viviendas e infraestructura social, económica y de servicios susceptibles de afectación en el área de influencia de las actividades del proyecto, obra o actividad."]
[null,"DESCRIPCIÓN DEL SEGUIMIENTO (OPCIONAL)"]
[null,"Realizar monitoreo continuo de presión de fractura durante la ejecución de actividades de inyección/reinyección, para verificar que no se sobrepase el límite de presión de fractura establecido."]
[null,"Realizar monitoreo continuo para verificar que durante las actividades de fracturamiento hidráulico en perforación horizontal, inyección, reinyección u otros mecanismos de recobro mejorado no se generen eventos sísmicos de magnitud mayor o igual a cuatro (4) en la escala de Richter, cuyo epicentro se demuestre estar ubicado dentro del área que determine el Servicio Geológico Colombiano de manera específica para el Proyecto, Obra o Actividad, de acuerdo con la red de monitoreo autorizada. Dichos monitoreos se realizarán durante la ejecución de las actividades del proyecto, obra o actividad y en el tiempo adicional que establezca el SGC. Nota: El seguimiento y monitoreo es susceptible de modificación y/o ajuste de acuerdo a lo que establezcan las autoridades competentes con relación a la medida de manejo."]
[null,"Realizar inspecciones de verificación del estado de las viviendas e infraestructura social, económica y de servicios susceptibles de afectación en el área de influencia de las actividades del proyecto, obra o actividad, cada vez que los sensores de sismicidad registren eventos sísmicos, con el fin de identificar eventuales afectaciones, y diferenciar aquellas atribuibles al desarrollo del proyecto, obra o actividad de acuerdo a lo que establezca el SGC. Dichas inspecciones se realizarán durante la ejecución de las actividades del proyecto, obra o actividad y en el tiempo adicional que establezca el SGC."]
[null,"PARÁMETROS CLAVE DE SEGUIMIENTO"]
[null,"Presión de fractura"]
[null,"Intensidad de eventos sísmicos"]
[]
[]
[null,"CEI 7"]
[null,"ALTERACIÓN DE LA GEOFORMA DEL TERRENO"]
[null,"MEDIDAS DE MANEJO OPCIONALES"]
[null,"Realizar las actividades de corte y relleno que sean necesarias durante las actividades constructivas del POA, mediante el sistema de corte y relleno compensado."]
[null,"Conformar y revegetalizar con especies nativas de la región todas las áreas intervenidas que queden expuestas (sin vegetación), incluyendo taludes de corte, ZODME´s, entre otros."]
[null,"Realizar la restauración morfológica consistente en mejorar las pendientes, implementar obras de estabilización y realizar la reincorporación paisajística, de tal forma que las áreas intervenidas y objeto de restauración morfológica se reintegren al entorno paisajístico, incluyendo fisiografía, color y escenario."]
[null,"Desmantelar las instalaciones temporales y recuperar la zona intervenida por las obras de construcción. Estas, se deben dejar en iguales o mejores condiciones a las iniciales."]
[null,"DESCRIPCIÓN DEL SEGUIMIENTO (OPCIONAL)"]
[null,"Realizar recorridos de inspección e identificación de áreas intervenidas que queden expuestas durante las actividades constructivas del POA y que requieran reconformación morfológica, restauración y/o revegetalización (márgenes de los cauces en los sitios autorizados para ocupaciones de cauce y aledañas, ZODME´s, zonas de préstamo lateral, taludes de corte y relleno, entre otras) durante las actividades constructivas del POA."]
[null,"Realizar inspección y seguimiento del avance en la implementación técnica de obras de reconformación de las áreas intervenidas durante las obras constructivas del POA."]
[null,"Realizar recorridos de inspección y seguimiento a las obras de reconformación de las áreas intervenidas durante fase de operación del POA, con el fin de identificar posibles focos de procesos erosivos y/o pérdida de cobertura vegetal."]
[null,"PARÁMETROS CLAVE DE SEGUIMIENTO"]
[null,"Geoforma del terreno."]
[]
[]
[null,"CEI 8"]
[null,"ALTERACIÓN DE LAS CONDICIONES GEOTÉCNICAS"]
[null,"MEDIDAS DE MANEJO OPCIONALES"]
[null,"Fase de construcción"]
[null,"Implementar las medidas de estabilización de acuerdo a las necesidades en las áreas afectadas y/o intervenidas por las actividades del POA (revegetalización, muros en gavión, trinchos, etc.)."]
[null,"Dotar los taludes de corte y ZODMES, con un sistema de filtros en material granular u otro sistema que permita el drenaje y conducción de aguas lluvias y de escorrentía para evitar posible saturación que desestabilice el área de disposición."]
[null,"Garantizar la adecuada compactación del material en la reconformación del terreno, de manera tal que la forma final debe ser llana y lisa y con pendiente definida para evitar empozamientos de agua."]
[null,"Conformar los terraplenes y taludes necesarios para la ejecución de las actividades del POA, de manera que propenda por la estabilidad y prevención de formación de procesos erosivos o de inestabilidad."]
[null,"Revegetalizar en la medida de lo posible las áreas desprovistas de cobertura vegetal, para disminuir el efecto erosivo del agua y del viento, en los taludes de corte, ZODME´s, vías u otro tipo de infraestructura que por las actividades del POA sea necesario descapotar. Esta revegetalización se debe realizar con especies nativas de la región."]
[null,"Realizar el manejo de aguas de escorrentía mediante cunetas y sistemas de coronación que entregue el agua de manera adecuada a cuerpos de agua superficial. "]
[null,"Implementar sistemas de recolección de aguas lluvias en las áreas que lo requieran, y realizar limpieza y mantenimiento permanente."]
[null,"Implementar señalización y delimitación de áreas a intervenir para evitar realizar cortes innecesarios de cobertura vegetal."]
[null,"Construir la infraestructura del POA, de tal manera que no obstruyan la red natural de drenaje del área a intervenir."]
[null,"Fase de operación"]
[null,"Realizar actividades de mantenimiento al 100% de la infraestructura desarrollada y existente para el manejo de aguas lluvias y drenajes (cunetas, canales, alcantarillas, box coulvert, disipadores, desarenadores y skimmer, entre otros)."]
[null,"Realizar la disposición de materiales sobrantes de excavación evitando la generación de procesos de remoción en masa y procesos de deterioro del terreno."]
[null,"En caso de que las lluvias hayan formado cárcavas, en las áreas intervenidas o aledañas a estas, será necesario reconformar nuevamente el terreno para evitar las depresiones, surcos o hundimientos que faciliten la generación de nuevas cárcavas."]
[null,"Realizar el mantenimiento en las áreas revegetalizadas contemplando la necesidad de aplicar medidas complementarias como control fitosanitario y fertilización, conforme a la evolución de la técnica implementada. Por otra parte, se debe proceder con la rectificación de las áreas en las cuales no se hayan desarrollado las raíces de manera apropiada y en los que su prendimiento no sea el óptimo. En este caso también se debe evaluar la eficiencia del método de empradización y, dado el caso se procederá con otro sistema."]
[null,"DESCRIPCIÓN DEL SEGUIMIENTO (OPCIONAL)"]
[null,"Fase de construcción"]
[null,"Verificar en campo las medidas y obras de estabilización de terrenos, control de erosión y manejo de aguas."]
[null,"Verificar que exista circulación del 100% del agua en las obras de drenaje adyacente a los taludes, ZODME´s, vías u otro tipo de infraestructura necesaria para las actividades del POA."]
[null,"Llevar control continuo de los taludes existentes en el área de influencia del POA, para prevenir la ocurrencia de fenómenos de inestabilidad. En caso de ocurrir, realizar un registro fotográfico amplio para definir y ejecutar las obras necesarias y adecuadas para la estabilización en el menor tiempo posible, incluyendo medidas como la del control topográfico en áreas de inestabilidad identificadas en zonas de alta inestabilidad."]
[null,"Fase de operación"]
[null,"Verificar en campo, mediante la realización de recorridos de inspección visual, la implementación de las medidas relacionadas con el mantenimiento de las obras destinadas al correcto encausamiento de las aguas lluvias y de escorrentía, de protección geotécnica y de revegetalización."]
[null,"PARÁMETROS CLAVE DE SEGUIMIENTO"]
[null,"Estabilización del terreno."]
[]
[]
[null,"CEI 9"]
[null,"ALTERACIÓN A LA CALIDAD DEL RECURSO HÍDRICO SUBTERRÁNEO"]
[null,"MEDIDAS DE MANEJO OPCIONALES"]
[null,"Instalar diques de contención con base y muros impermeabilizados que permitan contener como mínimo el 110% del volumen almacenado de combustibles, productos químicos y/o residuos peligrosos."]
[null,"Instalar sistemas de cunetas perimetrales en los sitios de almacenamiento de combustibles, productos químicos y/o residuos líquidos peligrosos y sitios de lavado de equipos y maquinaria, los cuales deben descolar en cajas de inspección o tanques ciegos para su contención, recolección y posterior tratamiento como residuo peligroso."]
[null,"Instalar cubierta y base impermeabilizada a los sitios de almacenamiento de residuos peligrosos."]
[null,"Implementar los programas de inspección de integridad y estanqueidad de los tanques subterráneos que almacenen combustibles y/o sustancias peligrosas."]
[null,"Instalar sistemas automatizados de control de fugas con control de alerta en tanques y tubería que contenga combustibles y/o sustancias químicas."]
[null,"Implementar programas de inspección y mantenimiento preventivo y correctivo de equipos, vehículos y maquinaria para evitar fugas de combustibles y/o sustancias peligrosas que puedan infiltrarse a las aguas subterráneas."]
[null,"Dar cumplimiento a la normativa de manejo y transporte de sustancias peligrosas Decreto 1076 de 2015 y Decreto 1072 de 2015, respectivamente, y procedimientos para manejo de sustancias peligrosas."]
[null,"DESCRIPCIÓN DEL SEGUIMIENTO (OPCIONAL)"]
[null,"Monitoreo de aguas subterráneas – Vertimiento en suelo:"]
[null,"Se realizarán monitoreos fisicoquímicos y microbiológicos de las aguas subterráneas antes de iniciar el vertimiento y tres veces al año después de iniciado en cada uno de los pozos de observación/piezómetros instalados, considerando épocas de máximas precipitaciones, épocas de mínimas precipitaciones y épocas de transición, bajo las siguientes condiciones:"]
[null,"La toma de muestras se realizará siguiendo la Guía para el Monitoreo de Vertimientos, Aguas Superficiales y Subterráneas del 2002 del IDEAM o aquella que lo modifique o sustituya."]
[null,"Los parámetros fisicoquímicos y biológicos a medir serán los establecidos en el artículo 6 del Decreto 50 de 2018 (2.2.3.3.4.9 del Decreto 1076 de 2018) o aquel que lo modifique o sustituya, y los iones y cationes (Na+, K+, Mg++, Ca++, Fe++, SO4=, Cl-, NO3-, CO3=, HCO3-). En los Informes de Cumplimiento Ambiental - ICA, se presentarán los reportes de laboratorio, las cadenas de custodia y el análisis de resultados de monitoreos en una base temporal para cada variable, para lo cual se emplearán gráficas de tendencia de concentración versus tiempo."]
[null,"Se calculará el valor del error analítico (%) a partir de la sumatoria de aniones y cationes.  Solo podrán reportarse las caracterizaciones de muestras que tengan errores analíticos inferiores a ±10%. Dichos cálculos se presentarán en los Informes de Cumplimiento Ambiental – ICA."]
[null,"Los monitoreos se realizarán a través de laboratorios acreditados por el IDEAM, tanto para la toma de la muestra, como para el análisis de los parámetros monitoreados."]
[null,"Para aguas subterráneas que puedan verse afectadas por el desarrollo de las actividades del proyecto, obra o actividad, que no estén asociados al permiso de vertimiento en suelos:"]
[null,"Se realizarán monitoreos fisicoquímicos y microbiológicos de las aguas subterráneas de las zonas que puedan verse afectadas por el desarrollo del proyecto, obra o actividad en la red piezométrica autorizada, bajo las siguientes condiciones:"]
[null,"La toma de muestras se realizará siguiendo la Guía para el Monitoreo de Vertimientos, Aguas Superficiales y Subterráneas del 2002 del IDEAM o aquella que lo modifique o sustituya."]
[null,"Se calculará el valor del error analítico (%) a partir de la sumatoria de aniones y cationes.  Solo podrán reportarse las caracterizaciones de muestras que tengan errores analíticos inferiores a ±10%. Dichos cálculos se presentarán en los Informes de Cumplimiento Ambiental – ICA."]
[null,"Los monitoreos se realizarán a través de laboratorios acreditados por el IDEAM, tanto para la toma de la muestra, como para el análisis de los parámetros monitoreados."]
[null,"Para los monitoreos fisicoquímicos y microbiológicos a realizar en aguas subterráneas que puedan verse afectadas por el desarrollo de las actividades del proyecto, el dueño del proyecto, obra o actividad de acuerdo a las características y particularidades del proyecto deberá complementar la información descrita en este ítem proponiendo el número de puntos de monitoreo, localización, parámetros a medir, frecuencia de medición, entre otras."]
[null,"PARÁMETROS CLAVE DE SEGUIMIENTO"]
[null,"Hidrocarburos (incluyendo proyectos lineales): TPH, pH, Conductividad eléctrica, Bario, Coliformes Totales, Fenoles y Grasas y Aceites."]
[null,"Minería (cielo abierto y subterránea) y Obras Subterráneas (túneles, galerías / bóvedas): pH, SDT, As, Pb, Hg, Cr, Fe, SO4, dureza, alcalinidad, Coliformes Totales."]
[null,"Embalses: Nitritos, Nitratos, Nitrógeno amoniacal, fosfato total, ortofosfatos, sulfatos, pH, Oxigeno, DBO, DQO y COT."]
[null,"Infraestructura (sin obras subterráneas): solidos suspendidos totales, DBO, DQO, coliformes totales, grasas y aceites e hidrocarburos totales."]
[]
[]
[null,"CEI 10"]
[null,"ALTERACIÓN EN LA OFERTA Y/O DISPONIBILIDAD DEL RECURSO HÍDRICO SUBTERRÁNEO"]
[null,"MEDIDAS DE MANEJO OPCIONALES"]
[null,"Instalar equipos de medición que se encuentren debidamente calibrados en los pozos objeto de concesión."]
[null,"No superar el caudal concesionado y régimen de operación de los pozos de agua subterránea autorizados, con el fin de permitir la recuperación del acuífero."]
[null,"Implementar las actividades establecidas en el Programa de Uso Eficiente y Ahorro de Agua - PUEAA."]
[null,"Hacer inspecciones para que no haya pérdidas de agua en el sistema."]
[null,"Instalar dispositivos como elementos impermeabilizantes, barreras de baja permeabilidad u otros dispositivos que eviten el flujo excesivo de agua subterránea hacia los pit minero y/u obras subterráneas, tales como: túneles viales e hidráulicos, bóvedas, galerías y minería subterránea."]
[null,"Adoptar las medidas constructivas que minimicen el drenaje de las aguas subterráneas."]
[null,"DESCRIPCIÓN DEL SEGUIMIENTO (OPCIONAL)"]
[null,"Para concesiones de agua subterránea:"]
[null,"Realizar una vez al mes mediciones del nivel estático y dinámico de los pozos de captación que sean concesionados para el proyecto."]
[null,"Se realizará un registro horario del caudal captado a través de la instalación de equipos de medición que se encuentren debidamente calibrados. Dicha calibración se realizará por un laboratorio de calibración acreditado."]
[null,"Se conformará una base de datos que indique: fecha, volumen de agua captada, régimen de la captación (hora/día), medición de nivel estático y dinámico."]
[null,"Para acuíferos o zonas de recarga que puedan verse afectados por el desarrollo de las actividades del proyecto, obra o actividad que no estén asociados a concesiones de agua subterránea:"]
[null,"Se realizarán inspecciones del estado y funcionamiento de los dispositivos o elementos empleados para evitar el flujo excesivo de agua subterránea en los pit mineros y/u obras subterráneas, tales como: túneles viales e hidráulicos, bóvedas, galerías y minería subterránea."]
[null,"Se realizarán las mediciones de nivel piezométrico (estático) en la red piezométrica establecida para el sistema acuífero que pueda verse afectado en términos de oferta y disponibilidad por el desarrollo de las actividades del proyecto."]
[null,"Para las mediciones de nivel piezométrico (estático) de los acuíferos o zonas de recarga que puedan verse afectados en términos de oferta y disponibilidad por el desarrollo de las actividades del proyecto, el dueño del proyecto, obra o actividad de acuerdo con las características y particularidades del proyecto deberá complementar la información descrita en este ítem proponiendo la frecuencia de medición del nivel piezométrico (estático) en la red piezométrica establecida."]
[null,"PARÁMETROS CLAVE DE SEGUIMIENTO"]
[null,"Nivel piezométrico (estático)."]
[]
[]
[null,"CEI 11"]
[null,"ALTERACIÓN HIDROGEOMORFOLÓGICA DE LA DINÁMICA FLUVIAL Y/O DEL RÉGIMEN SEDIMENTOLÓGICO"]
[null,"MEDIDAS DE MANEJO OPCIONALES"]
[null,"Realizar las obras geotécnicas necesarias para la estabilización de taludes y reconformación morfológica de las márgenes de los cauces intervenidos con las actividades del POA, sin afectar el caudal y la dinámica natural de las corrientes de agua."]
[null,"Instalar y mantener filtros o barreras sedimentadoras aguas abajo de los sitios de ocupación de cauce durante las obras de construcción. Estas estructuras se retirarán una vez finalicen dichas obras."]
[null,"Luego de los trabajos de construcción de las obras asociadas a la ocupación de cauce, se retirarán los materiales que puedan impedir el flujo natural de la corriente."]
[null,"Todo material extraído, material de construcción y/o material sobrante se localizará lejos de los cuerpos de agua y de las riberas de los drenajes."]
[null,"Realizar labores de revegetalización de las áreas intervenidas por la ocupación de cauce con especies nativas de la región, en caso de que las condiciones del terreno lo permitan."]
[null,"DESCRIPCIÓN DEL SEGUIMIENTO (OPCIONAL)"]
[null,"Durante el proceso constructivo de las obras que generen alteración a la dinámica de los cuerpos de agua, realizar seguimiento detallado del estado de las márgenes del cauce posiblemente afectado y de las obras de protección geotécnica implementadas."]
[null,"Durante la operación, realizar seguimiento del estado las márgenes, taludes, obras de control geotécnico y/u obras de revegetalización de los cuerpos de agua que puedan verse afectados por las actividades del POA."]
[null,"Cada dos años durante la ejecución del proyecto realizar un monitoreo de la dinámica fluvial de las corrientes que puedan verse afectadas por su desarrollo, a partir de fotografías aéreas, sensores remotos u otra información secundaria de diferentes épocas, que permita verificar los cambios en la morfología de las orillas de los cuerpos de agua."]
[null,"Realizar monitoreos de procesos erosivos en los cuerpos de agua que puedan verse afectados por el desarrollo de las actividades del POA, incluyendo la observación de los fenómenos de deslizamiento en las orillas, descripción de irregularidades del terreno, estado de los sistemas de drenaje, entre otros."]
[null,"Para grandes obras (diques, represas, embalses, trasvases, entre otras) que generen alteración en el régimen hidrogeomorfológico y/o sedimentológico en cuerpos de agua, realizar adicionalmente:"]
[null,"Realizar batimetrías en los cuerpos de agua que puedan verse afectados en condiciones morfodinámicas naturales por el desarrollo de las actividades del POA"]
[null,"Realizar monitoreos sedimentológicos (de material en suspensión a profundidad y fondo, caracterizando granulometrías) en los cuerpos de agua que puedan verse afectados por el desarrollo de las actividades del POA."]
[null,"PARÁMETROS CLAVE DE SEGUIMIENTO"]
[null,"Condiciones morfodinámicas y régimen sedimentológico."]
[]
[]
[null,"CEI 12"]
[null,"ALTERACIÓN EN LA CALIDAD DEL RECURSO HÍDRICO SUPERFICIAL"]
[null,"MEDIDAS DE MANEJO OPCIONALES"]
[null,"Instalar diques de contención con base y muros impermeabilizados que permitan contener como mínimo el 110% del volumen almacenado de combustibles, productos químicos y/o residuos peligrosos."]
[null,"Instalar sistemas de cunetas perimetrales en los sitios de almacenamiento de combustibles, productos químicos y/o residuos líquidos peligrosos y sitios de lavado de equipos y maquinaria, los cuales deben descolar en cajas de inspección o tanques ciegos para su contención, recolección y posterior tratamiento como residuo peligroso."]
[null,"Instalar cubierta y base impermeabilizada en los sitios de almacenamiento de residuos peligrosos y no peligrosos. La base impermeabilizada deberá cumplir con las características técnicas que garantices su resistencia."]
[null,"Implementar medidas de retención de materiales (líquidos y sólidos) en la zona de acopio de materiales de construcción, que garanticen la no afectación de los cuerpos hídricos cercanos."]
[null,"Implementar sistemas de manejo de aguas de escorrentía y sistemas de control de sólidos a la salida de los drenajes de las ZODMEs."]
[null,"Cubrir todo material de construcción acopiado a cielo abierto dentro de los frentes de obra y que no pueda ser utilizado durante la jornada laboral."]
[null,"Implementar obras de control geotécnico en los sitios que lo requieran, que garanticen la protección de los cuerpos de agua que puedan ser afectados por el desarrollo de las actividades del proyecto."]
[null,"Instalar sistemas automatizados de control de fugas con control de alerta en tanques y tubería que contenga combustibles y/o sustancias químicas."]
[null,"Implementar los programas de inspección y mantenimiento preventivo y correctivo de equipos, vehículos y maquinaria para evitar fugas de combustibles y/o sustancias peligrosas."]
[null,"Dar cumplimiento a la normativa de manejo y transporte de sustancias peligrosas Decreto 1076 de 2015 y Decreto 1072 de 2015, respectivamente, y procedimientos para manejo de sustancias peligrosas."]
[null,"Realizar el manejo adecuado del agua residual doméstica y/o no doméstica generada en el POA, implementando sistemas de almacenamiento y tratamiento para vertimiento al medio o implementando estrategias de reúso, y/o entrega a un tercero autorizado."]
[null,"DESCRIPCIÓN DEL SEGUIMIENTO (OPCIONAL)"]
[null,"Para vertimientos en cuerpos de agua superficial:"]
[null,"Se realizarán monitoreos fisicoquímicos y microbiológicos del recurso hídrico tres veces al año en el cuerpo de agua donde se realiza el vertimiento, considerando épocas de máximas precipitaciones, épocas de mínimas precipitaciones y épocas de transición, mediante la toma de muestras integradas en la sección transversal siguiendo los lineamientos establecidos en la Guía para el Monitoreo de Vertimientos, Aguas Superficiales y Subterráneas del 2002 del IDEAM, o cualquiera que la modifique o sustituya. Dichos monitoreos cumplirán con las siguientes condiciones:"]
[null,"Se realizarán en tres puntos siguiendo la masa de agua: 1) Aguas arriba del punto de vertimiento, 2) Aguas abajo del vertimiento, en un punto situado después de la distancia de mezcla completa estimada desde el sitio de la descarga y 3) Aguas abajo del punto de muestreo número 2, el cual permita conocer la asimilación de sustancias de importancia en la corriente hídrica. Los puntos coincidirán con los definidos en el Estudio de Impacto Ambiental."]
[null,"Los parámetros a monitorear serán los establecidos en la Resolución 631 de 2015 o aquella que la modifique o sustituya. De igual manera, se contemplarán los parámetros establecidos en los Planes de Ordenamiento y Manejo de Cuencas Hidrográficas - POMCAs y en los Planes de Ordenamiento del Recurso Hídrico - PORH."]
[null,"Los puntos donde se realiza el monitoreo y la información obtenida del mismo, se georreferenciará y almacenará de acuerdo con modelo de almacenamiento geográfico establecido en la Resolución 2182 de 2016 del MADS, o la norma que la modifique o sustituya."]
[null,"Los monitoreos se realizarán a través de laboratorios acreditados por el IDEAM, tanto para la toma de la muestra, como para el análisis de los parámetros monitoreados."]
[null,"Cuando entre el punto de monitoreo y el punto de vertimiento se presenten aportes o extracciones, estas se monitorearán y cuantificarán, en calidad y cantidad."]
[null,"Se realizarán monitoreos hidrobiológicos tres veces al año en el cuerpo de agua donde se realiza el vertimiento, considerando épocas de máximas precipitaciones, épocas de mínimas precipitaciones y épocas de transición. Dichos monitoreos cumplirán con las siguientes condiciones:"]
[null,"Cada monitoreo de hidrobiológicos se realizará en los mismos puntos donde se realizan los monitoreos fisicoquímicos y microbiológicos del recurso hídrico y de manera simultánea."]
[null,"Las comunidades hidrobiológicas a monitorear son:"]
[null,"Para sistemas lóticos: perifiton, comunidades bentónicas de fondos blandos (macrofauna y meiofauna) y de fondos duros (epifauna), fauna íctica y macrófitas. "]
[null,"Para sistemas lénticos: plancton (fitoplancton, zooplancton e ictioplancton), comunidades bentónicas de fondos blandos (macrofauna y meiofauna) y de fondos duros (epifauna), y a raíces de macrófitas (según sea el caso), macrófitas y fauna íctica."]
[null,"Los puntos donde se realice el monitoreo y la información obtenida del mismo, se georreferenciará y almacenará de acuerdo con modelo de almacenamiento geográfico establecido en la Resolución 2182 de 2016 del MADS, o la norma que la modifique o sustituya."]
[null,"Los monitoreos se realizarán a través de laboratorios acreditados por el IDEAM."]
[null,"Se calcularán el índice de calidad del agua BMWP (macroinvertebrados) ajustado para Colombia para cada uno de los tres monitoreos. "]
[null,"Se realizarán monitoreos cada dos meses de las aguas residuales a la entrada y salida del sistema de tratamiento, mediante un muestreo compuesto de 24 horas (o durante el tiempo en que se realice el vertimiento) con mediciones horarias, siguiendo lo establecido en la Guía para el Monitoreo de Vertimientos, Aguas Superficiales y Subterráneas del 2002 del IDEAM, o cualquiera que la modifique o sustituya. Dichos monitoreos cumplirán con las siguientes condiciones:"]
[null,"La fecha de realización del monitoreo del vertimiento coincidirá con la fecha de realización del monitoreo de calidad del cuerpo receptor."]
[null,"Los parámetros a registrar en el monitoreo del vertimiento serán los establecidos en la Resolución 631 de 2015 o aquella que la modifique o sustituya. "]
[null,"El punto donde se realice el vertimiento y la información obtenida del mismo, se georreferenciará y almacenará de acuerdo con modelo de almacenamiento geográfico establecido en la Resolución 2182 de 2016 del MADS, o la norma que la modifique o sustituya."]
[null,"Los monitoreos se realizarán a través de laboratorios acreditados por el IDEAM, tanto para la toma de la muestra, como para el análisis de los parámetros monitoreados."]
[null,"Para ocupación de cauce:"]
[null,"Se realizarán monitoreos fisicoquímicos del cuerpo de agua donde se realiza la ocupación de cauce, siguiendo los lineamientos establecidos en la Guía para el Monitoreo de Vertimientos, Aguas Superficiales y Subterráneas del 2002 del IDEAM, y bajo las siguientes condiciones:"]
[null,"Se realizará un monitoreo de calidad del agua en el transcurso de la semana previa a la iniciación de las obras asociadas a la ocupación."]
[null,"Se realizará un monitoreo de calidad de agua mensual cuando las obras de ocupación de cauce tengan una duración igual o mayor a un mes y un monitoreo de calidad de agua cuando las obras de ocupación de cauce tengan una duración menor a un mes."]
[null,"Se realizará un monitoreo de la calidad del agua en el transcurso de la semana siguiente a la finalización de las obras asociadas a la ocupación."]
[null,"Para cada monitoreo de calidad del agua se tomará una muestra integrada en la sección transversal, registrando en cada uno de ellos los siguientes parámetros: caudal, nivel de la lámina de agua, pH, temperatura, turbidez, conductividad, oxígeno disuelto, alcalinidad, grasas y aceites, sólidos suspendidos totales, sólidos sedimentables y TPH."]
[null,"Los monitoreos de calidad del agua y las mediciones de caudal se realizarán en dos puntos: uno aguas arriba y, el otro, aguas abajo del sitio de ocupación, teniendo en cuenta que no haya aportes o extracciones significativas de caudal (naturales o antrópicas) entre el punto de medición y el punto de la ocupación."]
[null,"Los puntos donde se realice el monitoreo y la información obtenida de los mismos, se georreferenciará y almacenará de acuerdo con modelo de almacenamiento geográfico establecido en la Resolución 2182 de 2016 del MADS, o la norma que la modifique o sustituya."]
[null,"Los monitoreos se realizarán a través de laboratorios acreditados por el IDEAM, tanto para la toma de la muestra, como para el análisis de los parámetros monitoreados."]
[null,"En los casos en que el caudal asociado a la ocupación de cauce no sea suficiente para la toma y análisis de las muestras, se justificará y presentará evidencia fotográfica en los Informes de Cumplimiento Ambiental - ICA."]
[null,"Se realizarán monitoreos hidrobiológicos donde se realiza la ocupación de cauce, dando cumplimiento a las siguientes condiciones:"]
[null,"a) Cada monitoreo de hidrobiológicos se realizará en los mismos puntos donde se realizan los monitoreos fisicoquímicos del recurso hídrico y de manera simultánea."]
[null,"b) Las comunidades hidrobiológicas a monitorear son: "]
[null,"i. Para sistemas lóticos: perifiton, comunidades bentónicas de fondos blandos (macrofauna y meiofauna) y de fondos duros (epifauna), fauna íctica y macrófitas. "]
[null,"ii. Para sistemas lénticos: plancton (fitoplancton, zooplancton e ictioplancton), comunidades bentónicas de fondos blandos (macrofauna y meiofauna) y de fondos duros (epifauna), y a raíces de macrófitas (según sea el caso), macrófitas y fauna íctica."]
[null,"c) Los puntos donde se realice el monitoreo y la información obtenida de los mismos, se georreferenciará y almacenará de acuerdo con modelo de almacenamiento geográfico establecido en la Resolución 2182 de 2016 del MADS, o la norma que la modifique o sustituya."]
[null,"d) Los monitoreos se realizarán a través de laboratorios acreditados por el IDEAM."]
[null,"e) Se calcularán el índice de calidad del agua BMWP (macroinvertebrados) ajustado para Colombia para cada uno de los tres monitoreos."]
[]
[null,"Para concesiones de agua superficial:"]
[]
[null,"Se realizarán monitoreos fisicoquímicos y microbiológicos en el cuerpo de agua donde se realiza la captación, considerando épocas de máximas precipitaciones, épocas de mínimas precipitaciones y épocas de transición, siguiendo los lineamientos establecidos en la Guía para el Monitoreo de Vertimientos, Aguas Superficiales y Subterráneas del 2002 del IDEAM o cualquiera que lo modifique o sustituya, y bajo las siguientes condiciones:"]
[null,"Se tomará una muestra integrada en la sección transversal establecida de acuerdo con los lineamientos de la Guía en mención."]
[null,"Se realizarán los monitoreos aguas arriba y aguas abajo del punto de captación, teniendo en cuenta que no haya aportes o extracciones significativas de caudal (naturales o antrópicas) entre los puntos de medición y el punto de captación."]
[null,"Se registrará en cada monitoreo de calidad, como mínimo los siguientes parámetros: temperatura, pH, conductividad, oxígeno disuelto, DBO (5), DQO, grasas y aceites, turbiedad, alcalinidad, dureza, coliformes totales, coliformes fecales y TPH."]
[null,"El punto de captación, los puntos donde se realice el monitoreo, y la información obtenida de los mismos, se georreferenciará y almacenará de acuerdo con modelo de almacenamiento geográfico establecido en la Resolución 2182 de 2016 del MADS, o la que la modifique o sustituya."]
[null,"Los monitoreos se realizarán a través de laboratorios acreditados por el IDEAM, tanto para la toma de la muestra, como para el análisis de los parámetros monitoreados."]
[null,"Se realizarán monitoreos hidrobiológicos tres veces al año en el cuerpo de agua donde se realiza la captación, considerando épocas de máximas precipitaciones, épocas de mínimas precipitaciones y épocas de transición, dando cumplimiento a las siguientes condiciones:"]
[null,"Cada monitoreo de hidrobiológicos se realizará en los mismos puntos donde se realizan los monitoreos fisicoquímicos del recurso hídrico y de manera simultánea."]
[null,"Las comunidades hidrobiológicas a monitorear son: perifiton, comunidades bentónicas de fondos blandos (macrofauna y meiofauna) y de fondos duros (epifauna), fauna íctica y macrófitas."]
[null,"Los puntos donde se realice el monitoreo y la información obtenida de los mismos, se georreferenciará y almacenará de acuerdo con modelo de almacenamiento geográfico establecido en la Resolución 2182 de 2016 del MADS, o la norma que la modifique o sustituya."]
[null,"Los monitoreos se realizarán a través de laboratorios acreditados por el IDEAM."]
[null,"Se calcularán el índice de calidad del agua BMWP (macroinvertebrados) ajustado para Colombia para cada uno de los tres monitoreos."]
[null,"Para cuerpos de agua que puedan verse afectados por el desarrollo de las actividades del proyecto, obra o actividad que no estén asociados a permisos:"]
[null,"Realizar monitoreos fisicoquímicos, microbiológicos e hidrobiológicos del recurso hídrico mínimo tres veces al año en los cuerpos de agua que puedan verse afectados por el desarrollo del proyecto, considerando épocas de máximas precipitaciones, épocas de mínimas precipitaciones y épocas de transición, siguiendo los lineamientos establecidos en la Guía para el Monitoreo de Vertimientos, Aguas Superficiales y Subterráneas del 2002 del IDEAM o cualquiera que lo modifique o sustituya, y bajo las siguientes condiciones:"]
[null,"Para los monitoreos fisicoquímicos, microbiológicos e hidrobiológicos a realizar en cuerpos de agua que puedan verse afectados por el desarrollo de las actividades del proyecto, tales como: drenaje de ZODMEs, arrastre de materiales a cuerpos de agua desde los sitios de operación, arrastre de materiales a cuerpos de agua desde los sitios de almacenamiento de residuos, materiales de construcción, combustibles, sustancias químicas, etc., el dueño del proyecto, obra o actividad de acuerdo a las características y particularidades del proyecto, deberá complementar la información descrita en este ítem especificando las fuentes a monitorear y proponiendo el número de puntos de monitoreo, su localización y tipo de monitoreo a realizar (integrado, compuesto o puntual), entre otras."]
[null,"PARÁMETROS CLAVE DE SEGUIMIENTO"]
[null,"Hidrocarburos (incluyendo proyectos lineales): TPH, pH, Conductividad eléctrica, Bario, Coliformes Totales, Fenoles y Grasas y Aceites."]
[null,"Minería (cielo abierto y subterránea) y Obras Subterráneas (túneles, galerías / bóvedas): pH, SDT, As, Pb, Hg, Cr, Fe, SO4, dureza, alcalinidad, Coliformes Totales."]
[null,"Embalses: Nitritos, Nitratos, Nitrógeno amoniacal, fosfato total, ortofosfatos, sulfatos, pH, Oxigeno, DBO, DQO y COT."]
[null,"Infraestructura (sin obras subterráneas): solidos suspendidos totales, DBO, DQO, coliformes totales, grasas y aceites e hidrocarburos totales. "]
[]
[]
[null,"CEI 13"]
[null,"ALTERACIÓN EN LA OFERTA Y DISPONIBILIDAD DEL RECURSO HÍDRICO SUPERFICIAL"]
[null,"MEDIDAS DE MANEJO OPCIONALES"]
[null,"Contar con equipos de medición que se encuentren debidamente calibrados en las fuentes de agua objeto de concesión."]
[null,"No superar el caudal concesionado y régimen de captación de agua superficial autorizado."]
[null,"Implementar las actividades establecidas en el Programa de Uso Eficiente y Ahorro de Agua - PUEAA."]
[null,"Hacer inspecciones para que no haya pérdidas de agua en el sistema."]
[null,"Realizar las actividades del proyecto de manera que, no se altere significativamente el régimen hidrológico de las corrientes hídricas del área de influencia del proyecto."]
[null,"DESCRIPCIÓN DEL SEGUIMIENTO (OPCIONAL)"]
[null,"Para concesiones de agua superficial:"]
[null,"Se realizarán mediciones de nivel y caudal del cuerpo de agua donde se realiza la captación bajo las siguientes condiciones:"]
[null,"Se localizará una sección transversal estable siguiendo los lineamientos establecidos por el Protocolo para el Monitoreo y Seguimiento del Agua (IDEAM, 2007), o aquel que lo modifique o sustituya, para la medición de caudal e instalar allí un medidor de nivel en el que se establezca el nivel correspondiente al caudal ambiental."]
[null,"Se realizará la medición de nivel y caudal de la siguiente manera: para captaciones permanentes, con una frecuencia semanal durante todo el año y para captaciones intermitentes, inmediatamente antes del inicio de la captación y durante el periodo de la captación."]
[null,"Se realizarán las mediciones en dos puntos: una aguas arriba y, las otras, aguas abajo del sitio de captación, teniendo en cuenta que no haya aportes o extracciones significativas de caudal (naturales o antrópicas) entre el punto de medición y el punto de captación."]
[null,"Se realizará la calibración de la curva nivel-caudal de la sección transversal del cuerpo de agua, siguiendo lo establecido en el Protocolo en mención, tres veces al año una vez en época de máximos precipitaciones, otra en épocas de mínimas precipitaciones y otra en épocas de transición, de acuerdo con la variación hidrológica. De la misma manera, una vez al año el levantamiento de la sección transversal donde se calibró la curva nivel-caudal, y en caso de que identifique un cambio significativo en la geometría de la sección transversal presentada históricamente, se deberá proyectar los ajustes necesarios de la curva."]
[null,"Se realizará un registro horario del caudal captado para captaciones permanentes e intermitentes a través de la instalación de medidores de flujo debidamente calibrados. Dicha calibración se realizará por un laboratorio de calibración acreditado."]
[null,"Se conformará una base de datos que indique: fecha, volumen de agua captada, caudal captado, régimen de la captación (hora/día), periodos de captación (día/mes)."]
[null,"Para cuerpos de agua superficial que puedan verse afectados por el desarrollo de las actividades del proyecto, obra o actividad que no estén asociados a concesiones de agua superficial:"]
[null,"Se realizarán las mediciones de nivel y caudal de los cuerpos de agua superficial del área de influencia del proyecto, obra o actividad, que puedan verse afectados en términos de oferta y disponibilidad por el desarrollo de sus actividades, bajo las siguientes condiciones:"]
[null,"Se localizará una sección transversal estable siguiendo los lineamientos establecidos por el Protocolo para el Monitoreo y Seguimiento del Agua (IDEAM, 2007), o aquel que lo modifique o sustituya, para la medición de caudal. "]
[null,"Para las mediciones de nivel y caudal de los cuerpos de agua superficial que puedan verse afectados en términos de oferta y disponibilidad por el desarrollo de las actividades del proyecto, el dueño del proyecto, obra o actividad de acuerdo con las características y particularidades del proyecto, deberá complementar la información descrita en este ítem especificando las fuentes a monitorear y proponiendo la frecuencia de medición del nivel y caudal y la localización de los puntos de medición de estas variables en la sección transversal definida."]
[null,"PARÁMETROS CLAVE DE SEGUIMIENTO"]
[null,"Nivel"]
[null,"Caudal"]
[]
[]
[null,"CEI 14"]
[null,"ALTERACIÓN EN LAS CONDICIONES OCEANOGRÁFICAS"]
[null,"MEDIDAS DE MANEJO OPCIONALES"]
[null,"Implementar los programas de inspección y mantenimiento preventivo y correctivo de equipos, vehículos y maquinaria empleados en el área marina y/o cerca de la línea de costa para evitar fugas de combustibles y/o sustancias peligrosas."]
[null,"Realizar el mantenimiento de equipos, vehículos y maquinaria en lugares autorizados."]
[null,"Minimizar la re-suspensión de sedimentos a través de los equipos utilizados en las actividades de dragado. "]
[null,"Contar con estructuras de contención de material para rellenos de línea de costa."]
[null,"Almacenar los materiales de construcción en sitios autorizados."]
[null,"Instalar cubierta y base impermeabilizada en los sitios de almacenamiento de residuos peligrosos y no peligrosos."]
[null,"Realizar el manejo adecuado del agua residual doméstica y/o no doméstica generada en el POA, implementando sistemas de almacenamiento y tratamiento para vertimiento al mar o implementando estrategias de reúso, y/o entrega a un tercero autorizado."]
[null,"Instalar sistemas de manejo de aguas (cunetas perimetrales, trampas de grasa, sedimentadores, diques) en los sitios de almacenamiento de combustibles, productos químicos y/o residuos líquidos peligrosos, sitios de lavado de equipos y maquinaria, muelles, campamentos de obra, patios de almacenamiento de productos, los cuales deben descolar en cajas de inspección o tanques ciegos para su contención, recolección y posterior tratamiento como residuo peligroso."]
[null,"Instalar sistemas automatizados de control de fugas con control de alerta en tanques y tubería que contenga combustibles y/o sustancias químicas."]
[null,"Dar cumplimiento a la normativa de manejo y transporte de sustancias peligrosas Decreto 1076 de 2015 y Decreto 1072 de 2015, respectivamente, y procedimientos para manejo de sustancias peligrosas."]
[null,"DESCRIPCIÓN DEL SEGUIMIENTO (OPCIONAL)"]
[null,"Para aguas marinas:"]
[null,"Se realizarán monitoreos horizontales y verticales de las características físicas y químicas del agua marina, siguiendo los lineamientos establecidos en la Guía para el Monitoreo y Seguimiento del Agua, elaborada por el IDEAM (2004) y las recomendaciones previstas en el Manual de Técnicas Analíticas para la Determinación de Parámetros Fisicoquímicos y Contaminantes Marinos del INVEMAR (2003), o aquellos que los modifiquen o sustituyan, dando cumplimiento a las siguientes condiciones:"]
[null,"Los parámetros a monitorear serán los establecidos en el artículo 18 del Decreto 703 del 2018 y en el documento Estudios de Línea Base Ambiental Marina - Documento de Orientación para la Industria de Gas y Petróleo del INVEMAR y ANH (2019) o aquellas que las modifiquen o sustituyan. Los resultados se compararán con los niveles máximos permisibles establecidos en el artículo 18 del Decreto 703 del 2018 y criterios establecidos por la EPA, en caso de ser necesario."]
[null,"Los puntos donde se realice el monitoreo y la información obtenida de los mismos, se georreferenciará y almacenará de acuerdo con modelo de almacenamiento geográfico establecido en la Resolución 2182 de 2016 del MADS, o la norma que la modifique o sustituya."]
[null,"Los monitoreos se realizarán a través de laboratorios acreditados por el IDEAM, tanto para la toma de la muestra, como para el análisis de los parámetros monitoreados."]
[null,"Para los monitoreos físicos y químicos del agua marina, el dueño del proyecto, obra o actividad de acuerdo a las características y particularidades del proyecto, deberá complementar la información descrita en este ítem proponiendo el número de puntos de monitoreo, su localización, profundidades a las cuales se tomarán las muestras y tipo de monitoreo a realizar (integrado, compuesto o puntual)."]
[null,"Para sedimentos marinos:"]
[null,"Se realizarán monitoreos de las características físicas y químicas de sedimentos marinos, siguiendo las recomendaciones previstas en el Manual de Técnicas Analíticas para la Determinación de Parámetros Fisicoquímicos y Contaminantes Marinos del INVEMAR (2003), dando cumplimiento a las siguientes condiciones:"]
[null,"Los parámetros a monitorear serán los establecidos en el documento Estudios de Línea Base Ambiental Marina - Documento de Orientación para la Industria de Gas y Petróleo del INVEMAR y ANH (2019) o aquella que la modifique o sustituya.  Los resultados se compararán con los niveles máximos permisibles establecidos en la normatividad nacional, o en su ausencia conforme a los estándares internacionales."]
[null,"Los puntos donde se realice el monitoreo y la información obtenida de los mismos, se georreferenciará y almacenará de acuerdo con modelo de almacenamiento geográfico establecido en la Resolución 2182 de 2016 del MADS, o la norma que la modifique o sustituya."]
[null,"Los monitoreos se realizarán a través de laboratorios acreditados por el IDEAM, tanto para la toma de la muestra, como para el análisis de los parámetros monitoreados."]
[null,"Para los monitoreos físicos y químicos de los sedimentos marinos, el dueño del proyecto, obra o actividad de acuerdo a las características y particularidades del proyecto, deberá complementar la información descrita en este ítem proponiendo el número de puntos de monitoreo, su localización, profundidades a las cuales se tomarán las muestras y tipo de monitoreo a realizar (integrado, compuesto o puntual)."]
[null,"PARÁMETROS CLAVE DE SEGUIMIENTO"]
[null,"Según normativa y documentos técnicos de referencia."]
[]
[]
[null,"CEI 15"]
[null,"ALTERACIÓN DE LAS CONDICIONES MORFOLÓGICAS DE LA LÍNEA DE COSTA "]
[null,"MEDIDAS DE MANEJO OPCIONALES"]
[null,"Restaurar las playas con el material de dragado"]
[null,"Construir estructuras de protección costera: espolones, rompeolas, entre otros."]
[null,"Contar con elementos naturales (manglares, arrecifes artificiales, pastos marinos, entre otros) para prevenir afectaciones a la línea de costa."]
[null,"DESCRIPCIÓN DEL SEGUIMIENTO (OPCIONAL)"]
[null,"Se verificará el patrón sedimentológico que modifica el perfil de playa a través de la determinación de las tasas de aumento y retroceso de la línea de costa mediante métodos directos y/o indirectos. "]
[null,"PARÁMETROS CLAVE DE SEGUIMIENTO"]
[null,"Tasa de aumento de la línea de costa."]
[null,"Tasa de retroceso de la línea de costa."]
[]
[null,"CEI 16"]
[null,"ALTERACIÓN A LA CALIDAD DEL SUELO"]
[null,"MEDIDAS DE MANEJO OPCIONALES"]
[null,"Fase de construcción"]
[null,"Instalar sistemas de cunetas perimetrales en los sitios de almacenamiento de combustibles, productos químicos y/o residuos líquidos peligrosos, sitios de lavado de equipos y maquinaria, áreas donde se desarrollen actividades relacionadas con concretos, lodos de perforación, entre otras, los cuales deben descolar en cajas de inspección o tanques ciegos para su contención, recolección y posterior tratamiento como residuo peligroso."]
[null,"Instalar cubierta y pisos impermeabilizados en los sitios de almacenamiento de residuos peligrosos."]
[null,"Las áreas de la infraestructura del POA, en las cuales haya riesgo de derrames, fugas o escapes durante la operación o el mantenimiento deberán construirse sobre piso duro y dotarse de cubierta y canal perimetral conectado a la red general de aguas aceitosas de la instalación."]
[null,"Asegurar que los equipos de fabricación o mezclado y transporte de insumos necesarios para las actividades del POA, estén en buenas condiciones técnicas, para evitar accidentes o derrames que puedan afectar los recursos naturales o el medio ambiente."]
[null,"Realizar el lavado de mezcladoras de concreto en instalaciones que cuenten con áreas y equipos necesarios para tal fin y acondicionados para el manejo y tratamiento de las aguas residuales generadas por esta actividad."]
[null,"Adecuar los sitios de almacenamiento de suelos de descapote para mantener el contenido de nutrientes (contenido de fosforo, potasio, materia orgánica, calcio y magnesio en el suelo almacenado). El material de descapote deber ser reutilizado en las actividades de restauración de áreas intervenidas, áreas erosionadas y en la revegetalización final."]
[null,"Fase de operación"]
[null,"Formular e implementar los programas de inspección y mantenimiento preventivo y correctivo de los sistemas de drenaje de aguas residuales (domésticas e industriales), aguas lluvia y aguas de escorrentía y de los sistemas de tratamiento de aguas residuales (domésticas e industriales) asociados a permisos de vertimiento en suelos."]
[null,"Formular e implementar los programas de inspección y mantenimiento preventivo y correctivo de equipos, vehículos y maquinaria para evitar fugas de combustibles y/o sustancias peligrosas que puedan infiltrarse en el suelo."]
[null,"Establecer el estado de fertilidad de los suelos y adicionar los fertilizantes (químicos u orgánicos) que se requieran. "]
[null,"A los suelos que hayan sido compactados se les realizará la escarificación o aflojamiento para facilitar la revegetalización."]
[null,"DESCRIPCIÓN DEL SEGUIMIENTO (OPCIONAL)"]
[null,"Monitoreo en suelos – Vertimiento en suelo:"]
[null,"Se realizarán monitoreos fisicoquímicos y microbiológicos del suelo receptor, antes de iniciar el vertimiento y tres veces al año después de iniciado, considerando épocas de máximas precipitaciones, épocas de mínimas precipitaciones y épocas de transición, bajo las siguientes condiciones:"]
[null,"Los parámetros fisicoquímicos y biológicos a medir serán los establecidos en el artículo 2.2.3.3.4.9 del Decreto 1076 de 2015 o aquel que lo modifique o sustituya, en cada área de disposición. En los Informes de Cumplimiento Ambiental – ICA se presentarán los reportes de laboratorio, las cadenas de custodia y el análisis de resultados de monitoreos en una base temporal para cada variable, para lo cual se deberán emplear gráficas de tendencia de concentración versus tiempo."]
[null,"Los monitoreos se realizarán a través de laboratorios acreditados por el IDEAM, tanto para la toma de la muestra, como para el análisis de los parámetros monitoreados."]
[null,"Para los monitoreos fisicoquímicos, microbiológicos e hidrobiológicos a realizar en suelos asociados a un permiso de vertimiento en suelos, el dueño del POA deberá complementar la información descrita en este ítem proponiendo el número de puntos de medición, su localización y criterios para la toma de muestras de suelo con base en métodos definidos por autoridades ambientales."]
[null,"Para suelos que puedan verse afectadas por el desarrollo de las actividades del proyecto, obra o actividad, que no estén asociados a un permiso de vertimiento en suelos:"]
[null,"Se realizarán monitoreos fisicoquímicos y microbiológicos de las aguas subterráneas de las zonas que puedan verse afectadas por el desarrollo del proyecto, obra o actividad en la red piezométrica autorizada, bajo las siguientes condiciones:"]
[null,"Los monitoreos se realizarán a través de laboratorios acreditados por el IDEAM, tanto para la toma de la muestra, como para el análisis de los parámetros monitoreados."]
[null,"Para los monitoreos fisicoquímicos, microbiológicos e hidrobiológicos a realizar en suelos que puedan verse afectados por el desarrollo del proyecto (zonas de almacenamiento de combustibles, sustancias químicas y/o residuos peligrosos, sitios de lavado de equipos y maquinaria, etc.), el dueño del POA deberá proponer el número de puntos de monitoreo, localización, parámetros a monitorear, frecuencia de medición y criterios para la toma de muestras de suelo con base en métodos definidos por autoridades ambientales."]
[null,"PARÁMETROS CLAVE DE SEGUIMIENTO"]
[null,"Nitrógeno disponible, Fósforo disponible, Potasio disponible, pH, Contenido de materia orgánica, Conductividad eléctrica, Capacidad de intercambio catiónico, Potencial de óxido reducción, Sodio intercambiable, Aluminio intercambiable, Saturación de Aluminio, Saturación de bases, Carbono orgánico, Grasas y aceites, Hierro, Arsénico, Selenio, Bario, Cadmio, Mercurio, Plomo, Cromo, Razón de Absorción de Sodio, Coliformes totales y fecales."]
[]
[]
[null,"CEI 17"]
[null,"ALTERACIÓN A ECOSISTEMAS TERRESTRES"]
[null,"MEDIDAS DE MANEJO OPCIONALES"]
[null,"Establecimiento y mantenimiento de corredores y/o estructuras de conectividad ecológica"]
[null,"Plantaciones forestales protectoras"]
[null,"Siembra de matorrales y rastrojos nativos y/o no invasores"]
[null,"Revegetalización de áreas, bordes y claros (efecto borde y/o fragmentación)"]
[null,"Cerramiento/demarcación de áreas"]
[null,"Revegetalización y/o empradización de áreas y/o taludes"]
[null,"Actividades de restauración"]
[null,"DESCRIPCIÓN DEL SEGUIMIENTO (OPCIONAL)"]
[null,"Verificación en campo del avance y efectividad de las obras y/o actividades"]
[null,"PARÁMETROS CLAVE DE SEGUIMIENTO"]
[null,"Área por ecosistema"]
[null,"Área intervenida"]
[null,"Área conservada"]
[null,"Área preservada"]
[null,"% de supervivencia de especies plantadas"]
[null,"% de cobertura revegetalizada y/o empradizada"]
[null,"% de área colonizada en áreas con cerramiento (regeneración/colonización natural)"]
[]
[]
[null,"CEI 18"]
[null,"ALTERACIÓN A COBERTURA VEGETAL"]
[null,"MEDIDAS DE MANEJO OPCIONALES"]
[null,"Plantaciones forestales protectoras"]
[null,"Siembra de matorrales y rastrojos nativos y/o no invasores"]
[null,"Revegetalización de áreas, bordes y claros (efecto borde y/o fragmentación)"]
[null,"Cerramiento/demarcación de áreas"]
[null,"Revegetalización y/o empradización de áreas y/o taludes"]
[null,"Actividades de restauración"]
[null,"Disposición técnica de residuos vegetales resultantes de las actividades de aprovechamiento forestal (hojas, ramas, raíces)"]
[]
[null,"DESCRIPCIÓN DEL SEGUIMIENTO (OPCIONAL)"]
[null,"Verificación en campo del avance y efectividad de las obras y/o actividades"]
[]
[null,"PARÁMETROS CLAVE DE SEGUIMIENTO"]
[null,"Área intervenida"]
[null,"Área conservada"]
[null,"Área preservada"]
[null,"% de supervivencia de especies plantadas"]
[null,"% de cobertura revegetalizada y/o empradizada"]
[null,"% de área colonizada en áreas con cerramiento (regeneración/colonización natural)"]
[]
[]
[null,"CEI 19"]
[null,"ALTERACIÓN A COMUNIDADES DE FLORA"]
[null,"MEDIDAS DE MANEJO OPCIONALES"]
[null,"Plantaciones forestales protectoras"]
[null,"Siembra de matorrales y rastrojos nativos y/o no invasores"]
[null,"Revegetalización de áreas, bordes y claros (efecto borde y/o fragmentación)"]
[null,"Cerramiento/demarcación de áreas"]
[null,"Revegetalización y/o empradización de áreas y/o taludes"]
[null,"Actividades de restauración"]
[null,"Disposición técnica de residuos vegetales resultantes de las actividades de aprovechamiento forestal (hojas, ramas, raíces)"]
[]
[null,"Especies CITES, en alguna categoría de amenaza o que requieran medidas especiales de manejo:"]
[null,"Rescate, reubicación y/o bloqueo de individuos de especies arbóreas y/o helechos arborescentes"]
[null,"Rescate, traslado y reubicación de individuos de flora epífita vascular"]
[null,"Compensación, mediante la rehabilitación ecológica de un área equivalente al área intervenida (sin perjuicio de actividades del plan de compensación)"]
[]
[null,"DESCRIPCIÓN DEL SEGUIMIENTO (OPCIONAL)"]
[null,"Verificación en campo del avance y efectividad de las obras y/o actividades"]
[null,"PARÁMETROS CLAVE DE SEGUIMIENTO"]
[null,"Grado de riesgo de extinción"]
[null,"Distribución geográfica"]
[null,"Representatividad de ecosistemas asociados a la especie"]
[null,"Singularidad taxonómica."]
[null,"% de supervivencia de especies plantadas"]
[null,"% de supervivencia de especies reubicadas"]
[null,"% de cobertura revegetalizada y/o empradizada"]
[null,"% de área colonizada en áreas con cerramiento (regeneración/colonización natural) "]
[]
[]
[null,"CEI 20"]
[null,"ALTERACIÓN A COMUNIDADES DE FAUNA TERRESTRE"]
[null,"MEDIDAS DE MANEJO OPCIONALES"]
[null,"Ahuyentamiento de individuos"]
[null,"Baja perturbación en épocas de reproducción"]
[null,"Rescate (uso de trampas), traslado y/o reubicación de individuos"]
[null,"Reportes de avistamiento"]
[null,"Registro de colisiones (aves, quirópteros)"]
[null,"Inventarios de fauna"]
[null,"Prohibición de caza o extracción de individuos"]
[null,"Capacitación y sensibilización de trabajadores y comunidad"]
[null,"Avisos informativos sobre: nidos, madrigueras, zonas de desove, entre otros"]
[null,"Avisos informativos y reductores de velocidad en corredores viales"]
[null,"Barreras físicas para evitar ingreso de individuos a áreas específicas del POA"]
[null,"Obligaciones y/o prohibiciones incluidos en contratos laborales"]
[]
[null,"Especies CITES, en alguna categoría de amenaza o que requieran medidas especiales de manejo:"]
[null,"Repoblamiento"]
[null,"Marcaje de individuos"]
[null,"Evaluación y monitoreo de especies focales y/o sombrilla"]
[]
[null,"DESCRIPCIÓN DEL SEGUIMIENTO (OPCIONAL)"]
[null,"Verificación en campo del avance y efectividad de las obras y/o actividades"]
[null,"PARÁMETROS CLAVE DE SEGUIMIENTO"]
[null,"Grado de riesgo de extinción"]
[null,"Distribución geográfica"]
[null,"Representatividad de ecosistemas asociados a la especie"]
[null,"Singularidad taxonómica."]
[]
[]
[null,"CEI 21"]
[null,"ALTERACIÓN A ECOSISTEMAS ACUÁTICOS"]
[null,"MEDIDAS DE MANEJO OPCIONALES"]
[null,"Restauración de ecosistemas acuáticos y marino-costeros"]
[]
[null,"DESCRIPCIÓN DEL SEGUIMIENTO (OPCIONAL)"]
[null,"Monitoreos hidrobiológicos en el cuerpo de agua donde se realice captación o vertimiento, considerando épocas de máximas precipitaciones, épocas de mínimas precipitaciones y épocas de transición"]
[]
[null,"Calcular el índice de calidad del agua BMWP (macroinvertebrados) ajustado para Colombia para tres monitoreos anuales"]
[]
[null,"Cada monitoreo de hidrobiológicos debe realizarse en los mismos puntos donde se realizan los monitoreos de calidad del recurso hídrico y de manera simultánea"]
[null,"Monitorear las siguientes comunidades hidrobiológicas: perifiton, comunidades bentónicas de fondos blandos (macrofauna y meiofauna) y de fondos duros (epifauna), fauna íctica y macrófitas"]
[null,"Georreferenciar los puntos donde se realiza el monitoreo de acuerdo con modelo de almacenamiento geográfico establecido en la Resolución 2182 de 2016 (o la que la sustituya o derogue)"]
[]
[null,"PARÁMETROS CLAVE DE SEGUIMIENTO"]
[null,"Área por ecosistema"]
[null,"Área intervenida"]
[null,"Área conservada"]
[null,"Área preservada"]
[null,"% de supervivencia de especies plantadas"]
[]
[]
[null,"CEI 22"]
[null,"ALTERACIÓN A COMUNIDADES DE FAUNA ACUÁTICA E HIDROBIOTA"]
[null,"MEDIDAS DE MANEJO OPCIONALES"]
[null,"Repoblamiento íctico, de macrofauna y de fauna acuática"]
[null,"Adecuación de sitios para desove"]
[null,"Brigadas de rescate íctico, de macrofauna y de fauna acuática"]
[null,"Marcaje de fauna acuática"]
[]
[null,"Especies CITES, en alguna categoría de amenaza o que requieran medidas especiales de manejo:"]
[]
[null,"Realizar estudios de dinámica poblacional"]
[null,"Reubicación (estudios ecológicos) y/o repoblamiento de especies"]
[]
[null,"DESCRIPCIÓN DEL SEGUIMIENTO (OPCIONAL)"]
[null,"Verificación en campo de la efectividad de las actividades de prevención y corrección de alteración a comunidades de fauna acuática e hidrobiota"]
[]
[null,"PARÁMETROS CLAVE DE SEGUIMIENTO"]
[null,"- Grado de riesgo de extinción"]
[null,"- Distribución geográfica"]
[null,"- Representatividad de ecosistemas asociados a la especie"]
[null,"- Singularidad taxonómica."]
[]
[]
[null,"CEI 23"]
[null,"CAMBIO EN LA ESTRUCTURA DEMOGRÁFICA, EN LA DISTRIBUCIÓN ESPACIAL DE LA POBLACIÓN Y SUS EFECTOS EN LA DINÁMICA DE LA POBLACIÓN"]
[null,"MEDIDAS DE MANEJO OPCIONALES"]
[null,"Reporte de alertas tempranas y coordinación con instituciones locales/regionales para su gestión"]
[null,"Implementación de prácticas que no estimulen la conformación de centros poblados "]
[null,"Realizar censos y monitoreos poblacionales"]
[null,"Aplicación del modelo BIT – PASE"]
[]
[null,"DESCRIPCIÓN DEL SEGUIMIENTO (OPCIONAL)"]
[null,"Monitoreo de cambios en la tendencia de la estructura (sexo y edad), la cantidad (fecundidad, mortalidad, migración) y la distribución (densidad y ubicación urbano/rural) de la población"]
[null,"Monitoreo y reporte de alertas sobre asentamientos informales y/o ilegales en el área de influencia"]
[null,"Verificación en campo de escenarios, instrumentos y mecanismos de participación ciudadana, capacitación y apoyo a comunidades e instituciones"]
[]
[null,"PARÁMETROS CLAVE DE SEGUIMIENTO"]
[null,"Estructura poblacional"]
[null,"Población"]
[null,"Distribución poblacional"]
[]
[]
[null,"CEI 24"]
[null,"ALTERACIÓN EN LA PERCEPCIÓN VISUAL DEL PAISAJE"]
[null,"MEDIDAS DE MANEJO OPCIONALES"]
[null,"Socializar y articular acciones con las entidades locales/regionales y con las comunidades afectadas, el manejo paisajístico de áreas intervenidas por el POA teniendo en cuenta, entre otras, las siguientes actividades:"]
[null,"Analizar las unidades de paisaje del área de influencia del proyecto, incluyendo los atributos de: Visibilidad, Integridad, Calidad, Fragilidad, Atractivo escénico y Percepción social del paisaje"]
[null,"Identificar y consolidar PQR relacionadas con alteraciones al paisaje"]
[null,"Definir y sustentar los puntos desde los cuales se realiza la evaluación paisajística: estos puntos corresponden a la ubicación geográfica en las unidades de paisaje susceptibles de alteración"]
[null,"Incorporar en el análisis de las unidades de paisaje, los sitios de interés paisajístico identificados por la comunidad"]
[null,"Definir los puntos desde los cuales se realiza la evaluación paisajística a partir de la concentración demográfica, la accesibilidad y el flujo de personas."]
[null,"Priorizar puntos de fácil acceso, cercanos a centros poblados o que tengan interés paisajístico (por ejemplo, miradores turísticos)"]
[null,"Establecer, mediante métodos cuantitativos o cualitativos (cartografía social, entrevistas, encuestas) la percepción de las comunidades respecto del valor paisajístico y la relación del paisaje con su cultura e identidad local y regional"]
[null,"Identificar las alteraciones temporales y permanentes al paisaje que genera el POA, aledañas a zonas pobladas y dejar constancia de acuerdos realizados a través de actas de vecindad (medios audiovisuales como registro)"]
[null,"Implementar barreras o pantallas naturales para prevenir, mitigar o corregir impactos visuales asociados a la construcción de patios de acopio, infraestructuras, ZODMES, sitios de disposición de residuos, escombreras, taludes, entre otros"]
[null,"Ubicar infraestructuras y áreas de trabajo en zonas poco transitadas"]
[null,"Diseñar patios de acopio, infraestructuras, ZODMES, sitios de disposición de residuos, escombreras, taludes, entre otros, con base en modelos paisajísticos que tengan en cuenta: las geoformas del terreno, la ruptura de la línea del horizonte, el uso de materiales o pinturas con colores fuertes y /o contrastantes"]
[null,"NOTA: esta ficha de manejo tiene un carácter transversal y, por ello, debe incorporar medidas de manejo que controlen el impacto desde el enfoque de los medios abiótico, biótico y socioeconómico."]
[null,"DESCRIPCIÓN DEL SEGUIMIENTO (OPCIONAL)"]
[null,"Verificación en campo del avance de las medidas de manejo paisajístico"]
[null,"PARÁMETROS CLAVE DE SEGUIMIENTO"]
[null,"Sistema de PQR"]
[]
[]
[null,"CEI 25"]
[null,"GENERACIÓN Y/O INCREMENTO DE CONFLICTOS SOCIO-AMBIENTALES"]
[null,"MEDIDAS DE MANEJO OPCIONALES"]
[null,"Implementar un sistema de relacionamiento comunitario (SRC) con los grupos de interés del proyecto, comunidades del área de influencia del proyecto, autoridades locales, regionales y nacionales y organizaciones civiles que, entre otras, tenga en cuenta: "]
[null,"Espacios (lugar(es) de atención a la comunidad) y canales de información para presentar y explicar: el proyecto y sus actividades; instrumentos de manejo y control (licencia, actos administrativos, PMA, contingencias); permisos para el uso y aprovechamiento de recursos; y mecanismos de participación ciudadana"]
[null,"Espacios y canales de sensibilización y capacitación de la ciudadanía y personal del POA"]
[null,"Canales y mecanismos de atención y respuesta de las peticiones, quejas y reclamos (PQR)."]
[null,"Base de datos que contenga: municipio, vereda, nombre o comunidad que interpone la queja, datos de contacto del peticionario, descripción del caso, a qué tipo de actividad está asociada respecto del Instrumento de Manejo y Control (IMC), tipo de queja, zona(s) donde se concentra el mayor número de casos; y georreferenciación del sitio en donde se reporta la queja"]
[null,"Acciones de fortalecimiento de la capacidad institucional y comunitaria en el área de influencia del POA"]
[null,"Apoyo a la formulación e implementación de proyectos productivos articulados con instrumentos de planeación local/regional"]
[null,"Apoyo a la formulación e implementación de proyectos de preservación o conservación ambiental articulados con instrumentos de planeación local/regional"]
[null,"DESCRIPCIÓN DEL SEGUIMIENTO (OPCIONAL)"]
[null,"Monitoreo de conflictos y conflictividad asociada al POA (Sistema de monitoreo de conflictos)"]
[null,"Monitoreo de la base de datos de PQR implementada"]
[null,"PARÁMETROS CLAVE DE SEGUIMIENTO"]
[null,"Seguimiento al SRC"]
[null,"Sistema de monitoreo de conflictos"]
[]
[]
[null,"CEI 26"]
[null,"MODIFICACIÓN DE LA ACCESIBILIDAD, MOVILIDAD Y CONECTIVIDAD LOCAL"]
[null,"MEDIDAS DE MANEJO OPCIONALES"]
[null,"Identificar y formular las condiciones específicas del impacto y donde se materializa, con base en trabajo de campo con la comunidad"]
[null,"Mantener, rehabilitar y/o mejorar los medios/rutas para la normal movilidad, accesibilidad y conectividad local de la población, afectados por el POA, en forma coordinada con la comunidad e instituciones locales/regionales"]
[null,"Elaboración de actas de vecindad y/o compromiso sobre afectaciones generadas por el POA y valoración económica de daños"]
[null,"Coordinar y publicar el cronograma de ejecución de las medidas y los planes de contingencia antes de su ejecución, con las comunidades y autoridades locales"]
[null,"Realizar sondeos de medición de la percepción sobre la efectividad de las medidas implementadas"]
[]
[null,"NOTA: Articular las medidas para prevenir la generación de conflictos ambientales (Ficha PMA_IE_24)"]
[]
[null,"DESCRIPCIÓN DEL SEGUIMIENTO (OPCIONAL)"]
[null,"Verificación en campo del avance de las medidas de manejo para el mantenimiento y/o rehabilitación de flujos, frecuencias, tipos de movilidad, acceso de las comunidades a centros nucleados y/o servicios sociales, tiempos de desplazamiento, seguridad vial, entre otros,"]
[null,"Trabajo de campo en los lugares de residencia y desplazamiento de la comunidad"]
[]
[null,"NOTA:  se recomienda el uso de métodos participativos y software adecuado para procesar información cualitativa, adicionales a los métodos estadísticos para procesar información cuantitativa."]
[]
[null,"PARÁMETROS CLAVE DE SEGUIMIENTO"]
[null,"Tiempos de desplazamiento"]
[null,"Costos de transporte"]
[null,"Nivel de accidentalidad"]
[null,"Sistema de PQR"]
[]
[]
[null,"CEI 27"]
[null,"MODIFICACIÓN DE LA INFRAESTRUCTURA FÍSICA, SOCIAL Y DE SERVICIOS PÚBLICOS"]
[null,"MEDIDAS DE MANEJO OPCIONALES"]
[null,"Implementar escenarios, instrumentos y/o mecanismos de concertación y comunicación con la comunidad e instituciones, previo a la realización de: obras, suspensiones temporales, traslados, reconstrucciones y/o protección de infraestructuras, escenarios sociales, comunitarios y de servicios públicos"]
[null,"Elaborar cronogramas y/o planes de contingencia en concertación y comunicación con la comunidad e instituciones "]
[null,"Ejecutar, en concertación y comunicación con la comunidad e instituciones, actividades técnicas de mantenimiento, mejoramiento, rehabilitación y/o compensación"]
[null,"Formular y ejecutar acciones para el ahorro y uso eficiente de recursos naturales, infraestructura y servicios públicos"]
[null,"Formular y ejecutar acciones para reducir la generación de residuos sólidos y peligrosos, así como para fomentar su reciclaje y reutilización"]
[null,"Elaborar actas de vecindad y/o compromiso sobre acuerdos realizados en torno a obras y/o actividades"]
[null,"Realizar un inventario georeferenciado de la infraestructura física, social, comunitaria, de servicios públicos y escenarios de recreación activa y pasiva potencialmente afectada"]
[]
[null,"NOTA: articular las medidas para prevenir la generación de conflictos socio-ambientales (Ficha PMA_IE_24)"]
[]
[null,"DESCRIPCIÓN DEL SEGUIMIENTO (OPCIONAL)"]
[null,"Verificación en campo del avance de las medidas de manejo para el mantenimiento, mejoramiento, rehabilitación y/o compensación de la infraestructura física, social, comunitaria, escenarios de recreación activa/pasiva y servicios públicos"]
[null,"Verificación de la efectividad de los escenarios, instrumentos y/o mecanismos de participación ciudadana"]
[]
[null,"PARÁMETROS CLAVE DE SEGUIMIENTO"]
[null,"Sistema de PQR"]
[null,"Actas de vecindad"]
[null,"Calidad, continuidad y cobertura de servicios públicos"]
[null,"Consumo de agua por el POA"]
[]
[]
[null,"CEI 28"]
[null,"MODIFICACIÓN DE LAS ACTIVIDADES ECONÓMICAS DE LA ZONA"]
[null,"MEDIDAS DE MANEJO OPCIONALES"]
[null,"En las unidades territoriales que hagan parte del área de influencia del POA:"]
[null,"Identificar y caracterizar las actividades económicas, productivas y de sustento potencialmente afectadas, empleando métodos y técnicas participativas"]
[null,"Caracterizar los predios (estructura de la propiedad, forma de tenencia, uso y nivel de dependencia económica), que por su tamaño tengan asociada la categoría de intervención con restricciones y ejecutar las acciones correspondientes (actas de vecindad y/o de compromiso)  "]
[null,"Implementar escenarios, instrumentos y/o mecanismos de concertación y comunicación con la comunidad e instituciones para formular y ejecutar proyectos productivos, preferiblemente articulados a los instrumentos de planeación local/regional"]
[null,"Implementar instrumentos, escenario y mecanismos informativos sobre los alcances reales de contratación de mano de obra generada por el POA"]
[null,"Fortalecer, en concertación y comunicación con la comunidad e instituciones, actividades económicas tradicionales"]
[null,"Restablecer, en concertación y comunicación con la comunidad e instituciones, las condiciones para el desarrollo de actividades económicas afectadas por el POA (actas de vecindad y/o de compromiso)"]
[null,"Coordinar y realizar alianzas con comunidad y entidades locales/regionales, preferiblemente articulados a los instrumentos de planeación"]
[null,"Realizar programas de educación/capacitación financiera que eviten el fenómeno de \"nuevo rico\", a nivel individual y familiar"]
[null,"Articular y coordinar el alcance y objetivos de Proyectos de Beneficio Comunitario (PBC), con comunidades e instituciones locales/regionales, preferiblemente articulados a los instrumentos de planeación"]
[null,"Fomentar y apoyar procesos de fortalecimiento de la participación de las organizaciones sociales para aumentar el nivel de sostenibilidad de proyectos productivos y otras iniciativas socioeconómicas"]
[null,"Concertar, cuando sea el caso, las condiciones en que se devuelve el predio, especificando si se recuperó el uso previo del suelo"]
[null,"Apoyar la gestión y trámites prediales"]
[]
[null,"NOTA: articular las medidas para prevenir la generación de conflictos socio-ambientales (Ficha PMA_IE_24) "]
[]
[null,"DESCRIPCIÓN DEL SEGUIMIENTO (OPCIONAL)"]
[null,"Verificación en campo del avance de las medidas de manejo implementadas, teniendo en cuenta las Unidades Territoriales que hagan parte del área de influencia"]
[]
[null,"NOTA: utilizar métodos participativos, complementarios a los análisis económicos y estadísticos, que incorporen el saber de los actores afectados, para garantizar la viabilidad, pertinencia, consistencia y apropiación de las medidas a ejecutar."]
[]
[null,"PARÁMETROS CLAVE DE SEGUIMIENTO"]
[]
[]
[]
[null,"CEI 29"]
[null,"TRASLADO INVOLUNTARIO DE POBLACIÓN"]
[null,"MEDIDAS DE MANEJO OPCIONALES"]
[null,"Elaborar y ejecutar el Plan de Reasentamiento teniendo en cuenta metodologías y lineamientos nacionales e internacionales (en consonancia con los principios y objetivos de la OP 4.12 de diciembre de 2001- Manual de operaciones del Banco Mundial - Políticas Operacionales)"]
[null,"Elaboración de un censo de preferencia, a través de una entidad de carácter público o privada competente, que permita la identificación y el análisis de las condiciones socioeconómicas y culturales de cada tipología de unidad social a reasentar"]
[null,"El Plan de reasentamiento debe incluir medidas para el restablecimiento de acceso a servicios públicos sociales y programadas gubernamentales; así como los de los medios de subsistencia de las familias o personas que resulten afectadas por cada unidad social"]
[null,"Promover la participación con las familias o personas afectadas a través de la transmisión constante de información, de tal manera que las partes interesadas se involucren en cada una de las etapas del proceso y se faciliten acuerdos de traslado efectivos "]
[null,"Elaboración, diligenciamiento y actualización permanente de la base de datos con la información básica de identificación y contacto de cada unidad social afectada, conformación, tipo de afectación, etapas del proceso y avance, condiciones del restablecimiento. "]
[null,"Llevar el registro periódico de avance del proceso en un formato donde se pueda verificar rápidamente el estado actual de cada caso, el cual registra cronológicamente las diferentes intervenciones que se realizan con cada unidad social: contiene como mínimos fechas, descripción de la gestión y resultados."]
[null,"Identificar posibles impactos en la población de continuará residiendo en el área procurando que sus condiciones socioeconómicas no se vean alteradas, en caso de afectación se debe incluir medidas de manejo adicionales"]
[null,"Generar estrategias y acciones colectivas para la inclusión en organizaciones sociales y el fortalecimiento en las redes de apoyo vecinales y familiares en el nuevo entorno y con la población receptora."]
[null,"Presentar Informes sobre los avances y resultados del plan de reasentamiento por cada unidad social "]
[null,"Realizar un acta de paz y salvo entre la empresa y el propietario o unidad social objeto de traslado involuntario en el que se deje constancia escrita que no hay aspectos pendientes por implementar, ejecutar, pagar y/o indemnizar, como consecuencia del traslado o relocalización causada por las actividades del POA"]
[null,"NOTA: articular medidas para prevenir la generación de conflictos socio-ambientales (CEI_IE_24)"]
[null,"DESCRIPCIÓN DEL SEGUIMIENTO (OPCIONAL)"]
[null,"Resultado de las visitas de seguimiento a unidades sociales afectadas para verificar el restablecimiento de condiciones socioeconómicas"]
[null,"PARÁMETROS CLAVE DE SEGUIMIENTO"]
[null,"Usos del suelo"]
[null,"Inventario de predios"]
[null,"Censo poblacional"]
[]
[]
[null,"REFERENCIAS"]
[]
[null,"DNP. (2009). Guía metodológica para la formulación de indicadores. Bogotá D.C."]
[null,"IDEA. (2018). Propuesta de reforma al modelo de licenciamiento Ambiental. Bogotá D.C.: DEA."]
[null,"Martínez, D. A. (2020). Propuesta de definicion y metodos de caracterizacion de conflictos socioambientales. Contrato 246 de 2020, Bogotá D.C."]

{"sheet":"Mod_2 CEI-MMA","index":7,"n_rows":12,"n_cols":17,"rows_kept":12,"cut":false,"hidden":false,"merged":[[4,2,4,16],[5,2,5,16],[7,2,7,16],[3,2,3,16]]}
[]
[]
[]
[null,null,"AUTORIDAD NACIONAL DE LICENCIAS AMBIENTALES"]
[null,null,"SUBDIRECCIÓN DE INSTRUMENTOS, PERMISOS Y TRÁMITES AMBIENTALES"]
[null,null,"GRUPO DE INSTRUMENTOS"]
[]
[null,null,"LISTADO DE RELACIONES DE LOS IMPACTOS Y SUS MEDIDAS DE MANEJO AMBIENTAL"]
[]
[]
[null,"ID CEI","NOMBRE DE LA CEI","ID MMA","MEDIDA MANEJO","ID CEI-MMA","TIPO MMA","ASOCIACIÓN\nMMA - CEI","Uso_CEI-MMA","PORCENTAJE COSTOS CEI",".","ACTIVIDADES ESPECÍFICAS","DESCRIPCIÓN DEL LUGAR","COORDENADA ESTE","COORDENADA NORTE","LISTA DE ANEXOS","OBSERVACIONES"]
[null,null,{"$f":"IFERROR(VLOOKUP(tbPMA[[#This Row],[ID CEI]],tbImpEstand[],2,FALSE),\"\")","v":""},null,{"$f":"IFERROR(VLOOKUP(tbPMA[[#This Row],[ID MMA]],tbMMA[],2,FALSE),\"\")","v":""},{"$f":"IF(tbPMA[[#This Row],[ID CEI]]=\"\",\"\",IF(tbPMA[[#This Row],[ID MMA]]=\"\",\"\",tbPMA[[#This Row],[ID CEI]]&\"_\"&tbPMA[[#This Row],[ID MMA]]))","v":""},{"$f":"IFERROR(VLOOKUP(tbPMA[[#This Row],[ID MMA]],tbMMA[],3,FALSE),\"\")","v":""},{"$f":"IF(tbPMA[[#This Row],[ID MMA]]=\"\",\"\",IF(COUNTIF(tbPMA[ID MMA],tbPMA[[#This Row],[ID MMA]])>1,tbPMA[[#This Row],[ID MMA]]&\" esta relacionada con \"&COUNTIF(tbPMA[ID MMA],tbPMA[[#This Row],[ID MMA]])&\" CEI. Defina el porcentaje de costos asociados a \"&tbPMA[[#This Row],[ID CEI]]&\" en la siguiente columna \",tbPMA[[#This Row],[ID MMA]]&\" esta relacionada solo con \"&tbPMA[[#This Row],[ID CEI]]&\". Reporte 100% de costos en la siguiente columna\"))","v":""},{"$f":"IFERROR(MATCH(F12,tbPSM[CEI MMA],0),0)","v":0},null,{"$f":"IF(SUMIF(tbPMA[ID MMA],tbPMA[[#This Row],[ID MMA]],tbPMA[PORCENTAJE COSTOS CEI])=0,\"\",SUMIF(tbPMA[ID MMA],tbPMA[[#This Row],[ID MMA]],tbPMA[PORCENTAJE COSTOS CEI]))","v":""}]

{"sheet":"Mod_3 MMA","index":8,"n_rows":12,"n_cols":8,"rows_kept":12,"cut":false,"hidden":false,"merged":[[3,2,3,6],[4,2,4,6],[5,2,5,6],[7,2,7,6]]}
[]
[]
[]
[null,null,"AUTORIDAD NACIONAL DE LICENCIAS AMBIENTALES"]
[null,null,"SUBDIRECCIÓN DE INSTRUMENTOS, PERMISOS Y TRÁMITES AMBIENTALES"]
[null,null,"GRUPO DE INSTRUMENTOS"]
[]
[null,null,"LISTADO DE MEDIDAS DE MANEJO AMBIENTAL PROPUESTAS"]
[]
[]
[null,"ID","MEDIDA DE MANEJO","TIPO DE MEDIDA","FASE CONSTRUCCIÓN","FASE OPERACIÓN Y MANTENIMIENTO","FASE DESMANTELAMIENTO Y ABANDONO","USO_MMA"]
[null,"MMA1",null,null,null,null,null,{"$f":"IFERROR(MATCH(tbMMA[[#This Row],[ID]],tbPMA[ID MMA],0),0)+IFERROR(MATCH(tbMMA[[#This Row],[ID]],tbPSM[ID_MMA],0),0)","v":0}]

{"sheet":"Mod_4 CEI-MMA-ASM","index":9,"n_rows":12,"n_cols":20,"rows_kept":12,"cut":false,"hidden":false,"merged":[[3,2,3,19],[4,2,4,19],[5,2,5,19],[7,2,7,19]]}
[]
[]
[]
[null,null,"AUTORIDAD NACIONAL DE LICENCIAS AMBIENTALES"]
[null,null,"SUBDIRECCIÓN DE INSTRUMENTOS, PERMISOS Y TRÁMITES AMBIENTALES"]
[null,null,"GRUPO DE INSTRUMENTOS"]
[]
[null,null,"PLAN DE SEGUIMIENTO Y MONITOREO"]
[]
[]
[null,"CEI MMA","NOMBRE DE LA CEI","MEDIDA DE MANEJO","ID ASM","ACTIVIDAD SM","CEI MMA ASM","ASOCIACIÓN CEI-MMA-ASM","PORCENTAJE COSTOS MMA",".","ID_MMA","ID_CEI","Tipo_MMA","Fase","USO_CEI-MMA-ASM","DESCRIPCIÓN DEL LUGAR","COORDENADA ESTE","COORDENADA NORTE","LISTA DE ANEXOS","OBSERVACIONES"]
[null,null,{"$f":"IFERROR(VLOOKUP(LEFT(tbPSM[[#This Row],[CEI MMA]],6),tbImpEstand[],2,FALSE),\"\")","v":""},{"$f":"IFERROR(VLOOKUP(RIGHT(tbPSM[[#This Row],[CEI MMA]],LEN(tbPSM[[#This Row],[CEI MMA]])-7),tbMMA[],2,FALSE),\"\")","v":""},null,{"$f":"IFERROR(VLOOKUP(tbPSM[[#This Row],[ID ASM]],tbASM[],2,FALSE),\"\")","v":""},{"$f":"tbPSM[[#This Row],[CEI MMA]]&\"_\"&tbPSM[[#This Row],[ID ASM]]","v":"_"},{"$f":"IF(tbPSM[[#This Row],[ID ASM]]=\"\",\"\",IF(COUNTIF(tbPSM[ID ASM],tbPSM[[#This Row],[ID ASM]])>1,tbPSM[[#This Row],[ID ASM]]&\" esta relacionada con \"&COUNTIF(tbPSM[ID ASM],tbPSM[[#This Row],[ID ASM]])&\" CEI - MMA. Defina el porcentaje de costos asociados a \"&tbPSM[[#This Row],[CEI MMA]]&\" en la siguiente columna \",tbPSM[[#This Row],[ID ASM]]&\" esta relacionada solo con \"&tbPSM[[#This Row],[CEI MMA]]&\". Reporte 100% de costos en la siguiente columna\"))","v":""},null,{"$f":"IF((SUMIF(tbPSM[ID ASM],tbPSM[[#This Row],[ID ASM]],tbPSM[PORCENTAJE COSTOS MMA]))=0,\"\",SUMIF(tbPSM[ID ASM],tbPSM[[#This Row],[ID ASM]],tbPSM[PORCENTAJE COSTOS MMA]))","v":""},{"$f":"RIGHT(tbPSM[[#This Row],[CEI MMA]],LEN(tbPSM[[#This Row],[CEI MMA]])-7)","v":{"$error":"#VALUE!"}},{"$f":"LEFT(tbPSM[[#This Row],[CEI MMA]],6)","v":""},{"$f":"VLOOKUP(tbPSM[[#This Row],[ID_MMA]],tbMMA[],3,FALSE)","v":{"$error":"#VALUE!"}},{"$f":"VLOOKUP(tbPSM[[#This Row],[ID_MMA]],tbMMA[],4,FALSE)","v":{"$error":"#VALUE!"}},{"$f":"IFERROR(MATCH(G12,tbIndicadoresPMA[CEI-MMA-ASM],0),0)","v":0}]

{"sheet":"Mod_5 ASM","index":10,"n_rows":12,"n_cols":9,"rows_kept":12,"cut":false,"hidden":false,"merged":[[3,2,3,8],[4,2,4,8],[5,2,5,8],[7,2,7,8]]}
[]
[]
[]
[null,null,"AUTORIDAD NACIONAL DE LICENCIAS AMBIENTALES"]
[null,null,"SUBDIRECCIÓN DE INSTRUMENTOS, PERMISOS Y TRÁMITES AMBIENTALES"]
[null,null,"GRUPO DE INSTRUMENTOS"]
[]
[null,null,"MEDIDAS DE SEGUIMIENTO Y  MONITOREO"]
[]
[]
[null,"ID ASM","ACTIVIDAD SM","FRECUENCIA","DURACIÓN","METODOLOGÍA","TIPO DE\nREGISTRO","USO_ASM","OBSERVACIONES"]
[null,"ASM1",null,null,null,null,null,{"$f":"IFERROR(MATCH(B12,tbPSM[ID ASM],0),0)","v":0}]

{"sheet":"Mod_6 CEI-MMA-ASM-IND","index":11,"n_rows":12,"n_cols":6,"rows_kept":12,"cut":false,"hidden":false,"merged":[[3,2,3,4],[4,2,4,4],[5,2,5,4],[7,2,7,4]]}
[]
[]
[]
[null,null,"AUTORIDAD NACIONAL DE LICENCIAS AMBIENTALES"]
[null,null,"SUBDIRECCIÓN DE INSTRUMENTOS, PERMISOS Y TRÁMITES AMBIENTALES"]
[null,null,"GRUPO DE INSTRUMENTOS"]
[]
[null,null,"INDICADORES DE EFECTIVIDAD"]
[]
[]
[null,"CEI-MMA-ASM","COD IND","CEI-MMA-ASM-IND","NOMBRE DEL INDICADOR","NOMBRE DEL ANEXO (IND. ADICIONALES)"]
[null,null,null,{"$f":"IF(OR(tbIndicadoresPMA[[#This Row],[CEI-MMA-ASM]]=\"\",tbIndicadoresPMA[[#This Row],[COD IND]]=\"\"),\"\",tbIndicadoresPMA[[#This Row],[CEI-MMA-ASM]]&\"_\"&\"IND\"&RIGHT(tbIndicadoresPMA[[#This Row],[COD IND]],2))","v":""},{"$f":"IF(tbIndicadoresPMA[[#This Row],[COD IND]]=\"\",\"\",VLOOKUP(tbIndicadoresPMA[[#This Row],[COD IND]],tbIndicadorCEI[],2,FALSE))","v":""}]

{"sheet":"Mod_7 Tablero_de_Control","index":12,"n_rows":444,"n_cols":8,"rows_kept":444,"cut":false,"hidden":false,"merged":[[231,2,231,3],[439,2,441,2],[22,1,23,1],[15,2,19,2],[22,5,23,6],[12,4,13,6],[12,7,13,7],[3,2,3,7],[4,2,4,7],[5,2,5,7],[6,2,6,7],[7,2,7,7]]}
[]
[]
[]
[null,null,"AUTORIDAD NACIONAL DE LICENCIAS AMBIENTALES"]
[null,null,"SUBDIRECCIÓN DE INSTRUMENTOS, PERMISOS Y TRÁMITES AMBIENTALES"]
[null,null,"GRUPO DE INSTRUMENTOS"]
[]
[null,null,"CENTRO DE VALIDACIÓN"]
[]
[]
[]
[]
[null,"SELECCIONE CEI:",null,null,{"$f":"IF(C13=\"\",\"\",\"INDICADORES ASOCIADOS A LA CEI / CAI:\")","v":""},null,null,{"$f":"IF(C13=\"\",\"\",IF(COUNTIF(tbIndicadoresPMA[CEI-MMA-ASM],C13&\"*\")=0,\"Alerta. Aún no se ha asociado ningún indicador para esta categoría\",\"Esta CEI / CAI tiene asociados \"&COUNTIF(tbIndicadoresPMA[CEI-MMA-ASM],C13&\"*\")&\" indicadores\"))","v":""}]
[]
[]
[null,{"$f":"IF(C13=\"\",\"\",\"NOMBRE:\")","v":""},{"$f":"IFERROR(PROPER(VLOOKUP(C13,tbImpEstand[],2,FALSE)),\"\")","v":""}]
[]
[]
[]
[]
[]
[]
[null,{"$f":"IF(C13=\"\",\"\",\"MMA ASOCIADAS A LA CEI / CAI:\")","v":""},{"$f":"IF(C13=\"\",\"\",IF(_xlfn._xlws.SORT(IFERROR(_xlfn._xlws.FILTER(tbPMA[ID CEI-MMA],tbPMA[ID CEI]=$C$13),\"\"),1,1,FALSE)={0},\"Alerta. No existe una MMA asociada a la CEI\",IF(_xlfn._xlws.SORT(IFERROR(_xlfn._xlws.FILTER(tbPMA[ID CEI-MMA],tbPMA[ID CEI]=$C$13),\"\"),1,1,FALSE)={\"\"},\"Alerta. No existe una MMA asociada a la CEI\",_xlfn._xlws.SORT(IFERROR(_xlfn._xlws.FILTER(tbPMA[ID CEI-MMA],tbPMA[ID CEI]=$C$13),\"\"),1,1,FALSE))))","v":""},{"$f":"IF(C23=\"\",\"\",IF(COUNTIF(tbPSM[CEI MMA],C23)=0,\"CEI-MMA no asociada en el CEI-MMA-ASM\",\"\"))","v":""},null,{"$f":"IF(C13=\"\",\"\",\"ASM ASOCIADAS A LA CEI / CAI:\")","v":""},null,{"$f":"IF(C13=\"\",\"\",IF(_xlfn._xlws.SORT(IFERROR(_xlfn._xlws.FILTER(tbPSM[CEI MMA ASM],tbPSM[ID_CEI]=$C$13,),\"\"),1,1,FALSE)={\"\"},\"Alerta. No existe ASM asociada a la CEI-MMA\",_xlfn._xlws.SORT(IFERROR(_xlfn._xlws.FILTER(tbPSM[CEI MMA ASM],tbPSM[ID_CEI]=$C$13,),\"\"),1,1,FALSE)))","v":""}]
[null,null,null,{"$f":"IF(C24=\"\",\"\",IF(COUNTIF(tbPSM[CEI MMA],C24)=0,\"CEI-MMA no asociada en el CEI-MMA-ASM\",\"\"))","v":""}]
[null,null,null,{"$f":"IF(C25=\"\",\"\",IF(COUNTIF(tbPSM[CEI MMA],C25)=0,\"CEI-MMA no asociada en el CEI-MMA-ASM\",\"\"))","v":""}]
[null,null,null,{"$f":"IF(C26=\"\",\"\",IF(COUNTIF(tbPSM[CEI MMA],C26)=0,\"CEI-MMA no asociada en el CEI-MMA-ASM\",\"\"))","v":""}]
[null,null,null,{"$f":"IF(C27=\"\",\"\",IF(COUNTIF(tbPSM[CEI MMA],C27)=0,\"CEI-MMA no asociada en el CEI-MMA-ASM\",\"\"))","v":""}]
[null,null,null,{"$f":"IF(C28=\"\",\"\",IF(COUNTIF(tbPSM[CEI MMA],C28)=0,\"CEI-MMA no asociada en el CEI-MMA-ASM\",\"\"))","v":""}]
[null,null,null,{"$f":"IF(C29=\"\",\"\",IF(COUNTIF(tbPSM[CEI MMA],C29)=0,\"CEI-MMA no asociada en el CEI-MMA-ASM\",\"\"))","v":""}]
[null,null,null,{"$f":"IF(C30=\"\",\"\",IF(COUNTIF(tbPSM[CEI MMA],C30)=0,\"CEI-MMA no asociada en el CEI-MMA-ASM\",\"\"))","v":""}]
[null,null,null,{"$f":"IF(C31=\"\",\"\",IF(COUNTIF(tbPSM[CEI MMA],C31)=0,\"CEI-MMA no asociada en el CEI-MMA-ASM\",\"\"))","v":""}]
[null,null,null,{"$f":"IF(C32=\"\",\"\",IF(COUNTIF(tbPSM[CEI MMA],C32)=0,\"CEI-MMA no asociada en el CEI-MMA-ASM\",\"\"))","v":""}]
[null,null,null,{"$f":"IF(C33=\"\",\"\",IF(COUNTIF(tbPSM[CEI MMA],C33)=0,\"CEI-MMA no asociada en el CEI-MMA-ASM\",\"\"))","v":""}]
[null,null,null,{"$f":"IF(C34=\"\",\"\",IF(COUNTIF(tbPSM[CEI MMA],C34)=0,\"CEI-MMA no asociada en el CEI-MMA-ASM\",\"\"))","v":""}]
[null,null,null,{"$f":"IF(C35=\"\",\"\",IF(COUNTIF(tbPSM[CEI MMA],C35)=0,\"CEI-MMA no asociada en el CEI-MMA-ASM\",\"\"))","v":""}]
[null,null,null,{"$f":"IF(C36=\"\",\"\",IF(COUNTIF(tbPSM[CEI MMA],C36)=0,\"CEI-MMA no asociada en el CEI-MMA-ASM\",\"\"))","v":""}]
[null,null,null,{"$f":"IF(C37=\"\",\"\",IF(COUNTIF(tbPSM[CEI MMA],C37)=0,\"CEI-MMA no asociada en el CEI-MMA-ASM\",\"\"))","v":""}]
[null,null,null,{"$f":"IF(C38=\"\",\"\",IF(COUNTIF(tbPSM[CEI MMA],C38)=0,\"CEI-MMA no asociada en el CEI-MMA-ASM\",\"\"))","v":""}]
[null,null,null,{"$f":"IF(C39=\"\",\"\",IF(COUNTIF(tbPSM[CEI MMA],C39)=0,\"CEI-MMA no asociada en el CEI-MMA-ASM\",\"\"))","v":""}]
[null,null,null,{"$f":"IF(C40=\"\",\"\",IF(COUNTIF(tbPSM[CEI MMA],C40)=0,\"CEI-MMA no asociada en el CEI-MMA-ASM\",\"\"))","v":""}]
[null,null,null,{"$f":"IF(C41=\"\",\"\",IF(COUNTIF(tbPSM[CEI MMA],C41)=0,\"CEI-MMA no asociada en el CEI-MMA-ASM\",\"\"))","v":""}]
[null,null,null,{"$f":"IF(C42=\"\",\"\",IF(COUNTIF(tbPSM[CEI MMA],C42)=0,\"CEI-MMA no asociada en el CEI-MMA-ASM\",\"\"))","v":""}]
[null,null,null,{"$f":"IF(C43=\"\",\"\",IF(COUNTIF(tbPSM[CEI MMA],C43)=0,\"CEI-MMA no asociada en el CEI-MMA-ASM\",\"\"))","v":""}]
[null,null,null,{"$f":"IF(C44=\"\",\"\",IF(COUNTIF(tbPSM[CEI MMA],C44)=0,\"CEI-MMA no asociada en el CEI-MMA-ASM\",\"\"))","v":""}]
[null,null,null,{"$f":"IF(C45=\"\",\"\",IF(COUNTIF(tbPSM[CEI MMA],C45)=0,\"CEI-MMA no asociada en el CEI-MMA-ASM\",\"\"))","v":""}]
[null,null,null,{"$f":"IF(C46=\"\",\"\",IF(COUNTIF(tbPSM[CEI MMA],C46)=0,\"CEI-MMA no asociada en el CEI-MMA-ASM\",\"\"))","v":""}]
[null,null,null,{"$f":"IF(C47=\"\",\"\",IF(COUNTIF(tbPSM[CEI MMA],C47)=0,\"CEI-MMA no asociada en el CEI-MMA-ASM\",\"\"))","v":""}]
[null,null,null,{"$f":"IF(C48=\"\",\"\",IF(COUNTIF(tbPSM[CEI MMA],C48)=0,\"CEI-MMA no asociada en el CEI-MMA-ASM\",\"\"))","v":""}]
[null,null,null,{"$f":"IF(C49=\"\",\"\",IF(COUNTIF(tbPSM[CEI MMA],C49)=0,\"CEI-MMA no asociada en el CEI-MMA-ASM\",\"\"))","v":""}]
[null,null,null,{"$f":"IF(C50=\"\",\"\",IF(COUNTIF(tbPSM[CEI MMA],C50)=0,\"CEI-MMA no asociada en el CEI-MMA-ASM\",\"\"))","v":""}]
[null,null,null,{"$f":"IF(C51=\"\",\"\",IF(COUNTIF(tbPSM[CEI MMA],C51)=0,\"CEI-MMA no asociada en el CEI-MMA-ASM\",\"\"))","v":""}]
[null,null,null,{"$f":"IF(C52=\"\",\"\",IF(COUNTIF(tbPSM[CEI MMA],C52)=0,\"CEI-MMA no asociada en el CEI-MMA-ASM\",\"\"))","v":""}]
[null,null,null,{"$f":"IF(C53=\"\",\"\",IF(COUNTIF(tbPSM[CEI MMA],C53)=0,\"CEI-MMA no asociada en el CEI-MMA-ASM\",\"\"))","v":""}]
[null,null,null,{"$f":"IF(C54=\"\",\"\",IF(COUNTIF(tbPSM[CEI MMA],C54)=0,\"CEI-MMA no asociada en el CEI-MMA-ASM\",\"\"))","v":""}]
[null,null,null,{"$f":"IF(C55=\"\",\"\",IF(COUNTIF(tbPSM[CEI MMA],C55)=0,\"CEI-MMA no asociada en el CEI-MMA-ASM\",\"\"))","v":""}]
[null,null,null,{"$f":"IF(C56=\"\",\"\",IF(COUNTIF(tbPSM[CEI MMA],C56)=0,\"CEI-MMA no asociada en el CEI-MMA-ASM\",\"\"))","v":""}]
[null,null,null,{"$f":"IF(C57=\"\",\"\",IF(COUNTIF(tbPSM[CEI MMA],C57)=0,\"CEI-MMA no asociada en el CEI-MMA-ASM\",\"\"))","v":""}]
[null,null,null,{"$f":"IF(C58=\"\",\"\",IF(COUNTIF(tbPSM[CEI MMA],C58)=0,\"CEI-MMA no asociada en el CEI-MMA-ASM\",\"\"))","v":""}]
[null,null,null,{"$f":"IF(C59=\"\",\"\",IF(COUNTIF(tbPSM[CEI MMA],C59)=0,\"CEI-MMA no asociada en el CEI-MMA-ASM\",\"\"))","v":""}]
[null,null,null,{"$f":"IF(C60=\"\",\"\",IF(COUNTIF(tbPSM[CEI MMA],C60)=0,\"CEI-MMA no asociada en el CEI-MMA-ASM\",\"\"))","v":""}]
[null,null,null,{"$f":"IF(C61=\"\",\"\",IF(COUNTIF(tbPSM[CEI MMA],C61)=0,\"CEI-MMA no asociada en el CEI-MMA-ASM\",\"\"))","v":""}]
[null,null,null,{"$f":"IF(C62=\"\",\"\",IF(COUNTIF(tbPSM[CEI MMA],C62)=0,\"CEI-MMA no asociada en el CEI-MMA-ASM\",\"\"))","v":""}]
[null,null,null,{"$f":"IF(C63=\"\",\"\",IF(COUNTIF(tbPSM[CEI MMA],C63)=0,\"CEI-MMA no asociada en el CEI-MMA-ASM\",\"\"))","v":""}]
[null,null,null,{"$f":"IF(C64=\"\",\"\",IF(COUNTIF(tbPSM[CEI MMA],C64)=0,\"CEI-MMA no asociada en el CEI-MMA-ASM\",\"\"))","v":""}]
[null,null,null,{"$f":"IF(C65=\"\",\"\",IF(COUNTIF(tbPSM[CEI MMA],C65)=0,\"CEI-MMA no asociada en el CEI-MMA-ASM\",\"\"))","v":""}]
[null,null,null,{"$f":"IF(C66=\"\",\"\",IF(COUNTIF(tbPSM[CEI MMA],C66)=0,\"CEI-MMA no asociada en el CEI-MMA-ASM\",\"\"))","v":""}]
[null,null,null,{"$f":"IF(C67=\"\",\"\",IF(COUNTIF(tbPSM[CEI MMA],C67)=0,\"CEI-MMA no asociada en el CEI-MMA-ASM\",\"\"))","v":""}]
[null,null,null,{"$f":"IF(C68=\"\",\"\",IF(COUNTIF(tbPSM[CEI MMA],C68)=0,\"CEI-MMA no asociada en el CEI-MMA-ASM\",\"\"))","v":""}]
[null,null,null,{"$f":"IF(C69=\"\",\"\",IF(COUNTIF(tbPSM[CEI MMA],C69)=0,\"CEI-MMA no asociada en el CEI-MMA-ASM\",\"\"))","v":""}]
[null,null,null,{"$f":"IF(C70=\"\",\"\",IF(COUNTIF(tbPSM[CEI MMA],C70)=0,\"CEI-MMA no asociada en el CEI-MMA-ASM\",\"\"))","v":""}]
[null,null,null,{"$f":"IF(C71=\"\",\"\",IF(COUNTIF(tbPSM[CEI MMA],C71)=0,\"CEI-MMA no asociada en el CEI-MMA-ASM\",\"\"))","v":""}]
[null,null,null,{"$f":"IF(C72=\"\",\"\",IF(COUNTIF(tbPSM[CEI MMA],C72)=0,\"CEI-MMA no asociada en el CEI-MMA-ASM\",\"\"))","v":""}]
[null,null,null,{"$f":"IF(C73=\"\",\"\",IF(COUNTIF(tbPSM[CEI MMA],C73)=0,\"CEI-MMA no asociada en el CEI-MMA-ASM\",\"\"))","v":""}]
[null,null,null,{"$f":"IF(C74=\"\",\"\",IF(COUNTIF(tbPSM[CEI MMA],C74)=0,\"CEI-MMA no asociada en el CEI-MMA-ASM\",\"\"))","v":""}]
[null,null,null,{"$f":"IF(C75=\"\",\"\",IF(COUNTIF(tbPSM[CEI MMA],C75)=0,\"CEI-MMA no asociada en el CEI-MMA-ASM\",\"\"))","v":""}]
[null,null,null,{"$f":"IF(C76=\"\",\"\",IF(COUNTIF(tbPSM[CEI MMA],C76)=0,\"CEI-MMA no asociada en el CEI-MMA-ASM\",\"\"))","v":""}]
[null,null,null,{"$f":"IF(C77=\"\",\"\",IF(COUNTIF(tbPSM[CEI MMA],C77)=0,\"CEI-MMA no asociada en el CEI-MMA-ASM\",\"\"))","v":""}]
[null,null,null,{"$f":"IF(C78=\"\",\"\",IF(COUNTIF(tbPSM[CEI MMA],C78)=0,\"CEI-MMA no asociada en el CEI-MMA-ASM\",\"\"))","v":""}]
[null,null,null,{"$f":"IF(C79=\"\",\"\",IF(COUNTIF(tbPSM[CEI MMA],C79)=0,\"CEI-MMA no asociada en el CEI-MMA-ASM\",\"\"))","v":""}]
[null,null,null,{"$f":"IF(C80=\"\",\"\",IF(COUNTIF(tbPSM[CEI MMA],C80)=0,\"CEI-MMA no asociada en el CEI-MMA-ASM\",\"\"))","v":""}]
[null,null,null,{"$f":"IF(C81=\"\",\"\",IF(COUNTIF(tbPSM[CEI MMA],C81)=0,\"CEI-MMA no asociada en el CEI-MMA-ASM\",\"\"))","v":""}]
[null,null,null,{"$f":"IF(C82=\"\",\"\",IF(COUNTIF(tbPSM[CEI MMA],C82)=0,\"CEI-MMA no asociada en el CEI-MMA-ASM\",\"\"))","v":""}]
[null,null,null,{"$f":"IF(C83=\"\",\"\",IF(COUNTIF(tbPSM[CEI MMA],C83)=0,\"CEI-MMA no asociada en el CEI-MMA-ASM\",\"\"))","v":""}]
[null,null,null,{"$f":"IF(C84=\"\",\"\",IF(COUNTIF(tbPSM[CEI MMA],C84)=0,\"CEI-MMA no asociada en el CEI-MMA-ASM\",\"\"))","v":""}]
[null,null,null,{"$f":"IF(C85=\"\",\"\",IF(COUNTIF(tbPSM[CEI MMA],C85)=0,\"CEI-MMA no asociada en el CEI-MMA-ASM\",\"\"))","v":""}]
[null,null,null,{"$f":"IF(C86=\"\",\"\",IF(COUNTIF(tbPSM[CEI MMA],C86)=0,\"CEI-MMA no asociada en el CEI-MMA-ASM\",\"\"))","v":""}]
[null,null,null,{"$f":"IF(C87=\"\",\"\",IF(COUNTIF(tbPSM[CEI MMA],C87)=0,\"CEI-MMA no asociada en el CEI-MMA-ASM\",\"\"))","v":""}]
[null,null,null,{"$f":"IF(C88=\"\",\"\",IF(COUNTIF(tbPSM[CEI MMA],C88)=0,\"CEI-MMA no asociada en el CEI-MMA-ASM\",\"\"))","v":""}]
[null,null,null,{"$f":"IF(C89=\"\",\"\",IF(COUNTIF(tbPSM[CEI MMA],C89)=0,\"CEI-MMA no asociada en el CEI-MMA-ASM\",\"\"))","v":""}]
[null,null,null,{"$f":"IF(C90=\"\",\"\",IF(COUNTIF(tbPSM[CEI MMA],C90)=0,\"CEI-MMA no asociada en el CEI-MMA-ASM\",\"\"))","v":""}]
[null,null,null,{"$f":"IF(C91=\"\",\"\",IF(COUNTIF(tbPSM[CEI MMA],C91)=0,\"CEI-MMA no asociada en el CEI-MMA-ASM\",\"\"))","v":""}]
[null,null,null,{"$f":"IF(C92=\"\",\"\",IF(COUNTIF(tbPSM[CEI MMA],C92)=0,\"CEI-MMA no asociada en el CEI-MMA-ASM\",\"\"))","v":""}]
[null,null,null,{"$f":"IF(C93=\"\",\"\",IF(COUNTIF(tbPSM[CEI MMA],C93)=0,\"CEI-MMA no asociada en el CEI-MMA-ASM\",\"\"))","v":""}]
[null,null,null,{"$f":"IF(C94=\"\",\"\",IF(COUNTIF(tbPSM[CEI MMA],C94)=0,\"CEI-MMA no asociada en el CEI-MMA-ASM\",\"\"))","v":""}]
[null,null,null,{"$f":"IF(C95=\"\",\"\",IF(COUNTIF(tbPSM[CEI MMA],C95)=0,\"CEI-MMA no asociada en el CEI-MMA-ASM\",\"\"))","v":""}]
[null,null,null,{"$f":"IF(C96=\"\",\"\",IF(COUNTIF(tbPSM[CEI MMA],C96)=0,\"CEI-MMA no asociada en el CEI-MMA-ASM\",\"\"))","v":""}]
[null,null,null,{"$f":"IF(C97=\"\",\"\",IF(COUNTIF(tbPSM[CEI MMA],C97)=0,\"CEI-MMA no asociada en el CEI-MMA-ASM\",\"\"))","v":""}]
[null,null,null,{"$f":"IF(C98=\"\",\"\",IF(COUNTIF(tbPSM[CEI MMA],C98)=0,\"CEI-MMA no asociada en el CEI-MMA-ASM\",\"\"))","v":""}]
[null,null,null,{"$f":"IF(C99=\"\",\"\",IF(COUNTIF(tbPSM[CEI MMA],C99)=0,\"CEI-MMA no asociada en el CEI-MMA-ASM\",\"\"))","v":""}]
[null,null,null,{"$f":"IF(C100=\"\",\"\",IF(COUNTIF(tbPSM[CEI MMA],C100)=0,\"CEI-MMA no asociada en el CEI-MMA-ASM\",\"\"))","v":""}]
[null,null,null,{"$f":"IF(C101=\"\",\"\",IF(COUNTIF(tbPSM[CEI MMA],C101)=0,\"CEI-MMA no asociada en el CEI-MMA-ASM\",\"\"))","v":""}]
[null,null,null,{"$f":"IF(C102=\"\",\"\",IF(COUNTIF(tbPSM[CEI MMA],C102)=0,\"CEI-MMA no asociada en el CEI-MMA-ASM\",\"\"))","v":""}]
[null,null,null,{"$f":"IF(C103=\"\",\"\",IF(COUNTIF(tbPSM[CEI MMA],C103)=0,\"CEI-MMA no asociada en el CEI-MMA-ASM\",\"\"))","v":""}]
[null,null,null,{"$f":"IF(C104=\"\",\"\",IF(COUNTIF(tbPSM[CEI MMA],C104)=0,\"CEI-MMA no asociada en el CEI-MMA-ASM\",\"\"))","v":""}]
[null,null,null,{"$f":"IF(C105=\"\",\"\",IF(COUNTIF(tbPSM[CEI MMA],C105)=0,\"CEI-MMA no asociada en el CEI-MMA-ASM\",\"\"))","v":""}]
[null,null,null,{"$f":"IF(C106=\"\",\"\",IF(COUNTIF(tbPSM[CEI MMA],C106)=0,\"CEI-MMA no asociada en el CEI-MMA-ASM\",\"\"))","v":""}]
[null,null,null,{"$f":"IF(C107=\"\",\"\",IF(COUNTIF(tbPSM[CEI MMA],C107)=0,\"CEI-MMA no asociada en el CEI-MMA-ASM\",\"\"))","v":""}]
[null,null,null,{"$f":"IF(C108=\"\",\"\",IF(COUNTIF(tbPSM[CEI MMA],C108)=0,\"CEI-MMA no asociada en el CEI-MMA-ASM\",\"\"))","v":""}]
[null,null,null,{"$f":"IF(C109=\"\",\"\",IF(COUNTIF(tbPSM[CEI MMA],C109)=0,\"CEI-MMA no asociada en el CEI-MMA-ASM\",\"\"))","v":""}]
[null,null,null,{"$f":"IF(C110=\"\",\"\",IF(COUNTIF(tbPSM[CEI MMA],C110)=0,\"CEI-MMA no asociada en el CEI-MMA-ASM\",\"\"))","v":""}]
[null,null,null,{"$f":"IF(C111=\"\",\"\",IF(COUNTIF(tbPSM[CEI MMA],C111)=0,\"CEI-MMA no asociada en el CEI-MMA-ASM\",\"\"))","v":""}]
[null,null,null,{"$f":"IF(C112=\"\",\"\",IF(COUNTIF(tbPSM[CEI MMA],C112)=0,\"CEI-MMA no asociada en el CEI-MMA-ASM\",\"\"))","v":""}]
[null,null,null,{"$f":"IF(C113=\"\",\"\",IF(COUNTIF(tbPSM[CEI MMA],C113)=0,\"CEI-MMA no asociada en el CEI-MMA-ASM\",\"\"))","v":""}]
[null,null,null,{"$f":"IF(C114=\"\",\"\",IF(COUNTIF(tbPSM[CEI MMA],C114)=0,\"CEI-MMA no asociada en el CEI-MMA-ASM\",\"\"))","v":""}]
[null,null,null,{"$f":"IF(C115=\"\",\"\",IF(COUNTIF(tbPSM[CEI MMA],C115)=0,\"CEI-MMA no asociada en el CEI-MMA-ASM\",\"\"))","v":""}]
[null,null,null,{"$f":"IF(C116=\"\",\"\",IF(COUNTIF(tbPSM[CEI MMA],C116)=0,\"CEI-MMA no asociada en el CEI-MMA-ASM\",\"\"))","v":""}]
[null,null,null,{"$f":"IF(C117=\"\",\"\",IF(COUNTIF(tbPSM[CEI MMA],C117)=0,\"CEI-MMA no asociada en el CEI-MMA-ASM\",\"\"))","v":""}]
[null,null,null,{"$f":"IF(C118=\"\",\"\",IF(COUNTIF(tbPSM[CEI MMA],C118)=0,\"CEI-MMA no asociada en el CEI-MMA-ASM\",\"\"))","v":""}]
[null,null,null,{"$f":"IF(C119=\"\",\"\",IF(COUNTIF(tbPSM[CEI MMA],C119)=0,\"CEI-MMA no asociada en el CEI-MMA-ASM\",\"\"))","v":""}]
[null,null,null,{"$f":"IF(C120=\"\",\"\",IF(COUNTIF(tbPSM[CEI MMA],C120)=0,\"CEI-MMA no asociada en el CEI-MMA-ASM\",\"\"))","v":""}]
[null,null,null,{"$f":"IF(C121=\"\",\"\",IF(COUNTIF(tbPSM[CEI MMA],C121)=0,\"CEI-MMA no asociada en el CEI-MMA-ASM\",\"\"))","v":""}]
[null,null,null,{"$f":"IF(C122=\"\",\"\",IF(COUNTIF(tbPSM[CEI MMA],C122)=0,\"CEI-MMA no asociada en el CEI-MMA-ASM\",\"\"))","v":""}]
[null,null,null,{"$f":"IF(C123=\"\",\"\",IF(COUNTIF(tbPSM[CEI MMA],C123)=0,\"CEI-MMA no asociada en el CEI-MMA-ASM\",\"\"))","v":""}]
[null,null,null,{"$f":"IF(C124=\"\",\"\",IF(COUNTIF(tbPSM[CEI MMA],C124)=0,\"CEI-MMA no asociada en el CEI-MMA-ASM\",\"\"))","v":""}]
[null,null,null,{"$f":"IF(C125=\"\",\"\",IF(COUNTIF(tbPSM[CEI MMA],C125)=0,\"CEI-MMA no asociada en el CEI-MMA-ASM\",\"\"))","v":""}]
[null,null,null,{"$f":"IF(C126=\"\",\"\",IF(COUNTIF(tbPSM[CEI MMA],C126)=0,\"CEI-MMA no asociada en el CEI-MMA-ASM\",\"\"))","v":""}]
[null,null,null,{"$f":"IF(C127=\"\",\"\",IF(COUNTIF(tbPSM[CEI MMA],C127)=0,\"CEI-MMA no asociada en el CEI-MMA-ASM\",\"\"))","v":""}]
[null,null,null,{"$f":"IF(C128=\"\",\"\",IF(COUNTIF(tbPSM[CEI MMA],C128)=0,\"CEI-MMA no asociada en el CEI-MMA-ASM\",\"\"))","v":""}]
[null,null,null,{"$f":"IF(C129=\"\",\"\",IF(COUNTIF(tbPSM[CEI MMA],C129)=0,\"CEI-MMA no asociada en el CEI-MMA-ASM\",\"\"))","v":""}]
[null,null,null,{"$f":"IF(C130=\"\",\"\",IF(COUNTIF(tbPSM[CEI MMA],C130)=0,\"CEI-MMA no asociada en el CEI-MMA-ASM\",\"\"))","v":""}]
[null,null,null,{"$f":"IF(C131=\"\",\"\",IF(COUNTIF(tbPSM[CEI MMA],C131)=0,\"CEI-MMA no asociada en el CEI-MMA-ASM\",\"\"))","v":""}]
[null,null,null,{"$f":"IF(C132=\"\",\"\",IF(COUNTIF(tbPSM[CEI MMA],C132)=0,\"CEI-MMA no asociada en el CEI-MMA-ASM\",\"\"))","v":""}]
[null,null,null,{"$f":"IF(C133=\"\",\"\",IF(COUNTIF(tbPSM[CEI MMA],C133)=0,\"CEI-MMA no asociada en el CEI-MMA-ASM\",\"\"))","v":""}]
[null,null,null,{"$f":"IF(C134=\"\",\"\",IF(COUNTIF(tbPSM[CEI MMA],C134)=0,\"CEI-MMA no asociada en el CEI-MMA-ASM\",\"\"))","v":""}]
[null,null,null,{"$f":"IF(C135=\"\",\"\",IF(COUNTIF(tbPSM[CEI MMA],C135)=0,\"CEI-MMA no asociada en el CEI-MMA-ASM\",\"\"))","v":""}]
[null,null,null,{"$f":"IF(C136=\"\",\"\",IF(COUNTIF(tbPSM[CEI MMA],C136)=0,\"CEI-MMA no asociada en el CEI-MMA-ASM\",\"\"))","v":""}]
[null,null,null,{"$f":"IF(C137=\"\",\"\",IF(COUNTIF(tbPSM[CEI MMA],C137)=0,\"CEI-MMA no asociada en el CEI-MMA-ASM\",\"\"))","v":""}]
[null,null,null,{"$f":"IF(C138=\"\",\"\",IF(COUNTIF(tbPSM[CEI MMA],C138)=0,\"CEI-MMA no asociada en el CEI-MMA-ASM\",\"\"))","v":""}]
[null,null,null,{"$f":"IF(C139=\"\",\"\",IF(COUNTIF(tbPSM[CEI MMA],C139)=0,\"CEI-MMA no asociada en el CEI-MMA-ASM\",\"\"))","v":""}]
[null,null,null,{"$f":"IF(C140=\"\",\"\",IF(COUNTIF(tbPSM[CEI MMA],C140)=0,\"CEI-MMA no asociada en el CEI-MMA-ASM\",\"\"))","v":""}]
[null,null,null,{"$f":"IF(C141=\"\",\"\",IF(COUNTIF(tbPSM[CEI MMA],C141)=0,\"CEI-MMA no asociada en el CEI-MMA-ASM\",\"\"))","v":""}]
[null,null,null,{"$f":"IF(C142=\"\",\"\",IF(COUNTIF(tbPSM[CEI MMA],C142)=0,\"CEI-MMA no asociada en el CEI-MMA-ASM\",\"\"))","v":""}]
[null,null,null,{"$f":"IF(C143=\"\",\"\",IF(COUNTIF(tbPSM[CEI MMA],C143)=0,\"CEI-MMA no asociada en el CEI-MMA-ASM\",\"\"))","v":""}]
[null,null,null,{"$f":"IF(C144=\"\",\"\",IF(COUNTIF(tbPSM[CEI MMA],C144)=0,\"CEI-MMA no asociada en el CEI-MMA-ASM\",\"\"))","v":""}]
[null,null,null,{"$f":"IF(C145=\"\",\"\",IF(COUNTIF(tbPSM[CEI MMA],C145)=0,\"CEI-MMA no asociada en el CEI-MMA-ASM\",\"\"))","v":""}]
[null,null,null,{"$f":"IF(C146=\"\",\"\",IF(COUNTIF(tbPSM[CEI MMA],C146)=0,\"CEI-MMA no asociada en el CEI-MMA-ASM\",\"\"))","v":""}]
[null,null,null,{"$f":"IF(C147=\"\",\"\",IF(COUNTIF(tbPSM[CEI MMA],C147)=0,\"CEI-MMA no asociada en el CEI-MMA-ASM\",\"\"))","v":""}]
[null,null,null,{"$f":"IF(C148=\"\",\"\",IF(COUNTIF(tbPSM[CEI MMA],C148)=0,\"CEI-MMA no asociada en el CEI-MMA-ASM\",\"\"))","v":""}]
[null,null,null,{"$f":"IF(C149=\"\",\"\",IF(COUNTIF(tbPSM[CEI MMA],C149)=0,\"CEI-MMA no asociada en el CEI-MMA-ASM\",\"\"))","v":""}]
[null,null,null,{"$f":"IF(C150=\"\",\"\",IF(COUNTIF(tbPSM[CEI MMA],C150)=0,\"CEI-MMA no asociada en el CEI-MMA-ASM\",\"\"))","v":""}]
[null,null,null,{"$f":"IF(C151=\"\",\"\",IF(COUNTIF(tbPSM[CEI MMA],C151)=0,\"CEI-MMA no asociada en el CEI-MMA-ASM\",\"\"))","v":""}]
[null,null,null,{"$f":"IF(C152=\"\",\"\",IF(COUNTIF(tbPSM[CEI MMA],C152)=0,\"CEI-MMA no asociada en el CEI-MMA-ASM\",\"\"))","v":""}]
[null,null,null,{"$f":"IF(C153=\"\",\"\",IF(COUNTIF(tbPSM[CEI MMA],C153)=0,\"CEI-MMA no asociada en el CEI-MMA-ASM\",\"\"))","v":""}]
[null,null,null,{"$f":"IF(C154=\"\",\"\",IF(COUNTIF(tbPSM[CEI MMA],C154)=0,\"CEI-MMA no asociada en el CEI-MMA-ASM\",\"\"))","v":""}]
[null,null,null,{"$f":"IF(C155=\"\",\"\",IF(COUNTIF(tbPSM[CEI MMA],C155)=0,\"CEI-MMA no asociada en el CEI-MMA-ASM\",\"\"))","v":""}]
[null,null,null,{"$f":"IF(C156=\"\",\"\",IF(COUNTIF(tbPSM[CEI MMA],C156)=0,\"CEI-MMA no asociada en el CEI-MMA-ASM\",\"\"))","v":""}]
[null,null,null,{"$f":"IF(C157=\"\",\"\",IF(COUNTIF(tbPSM[CEI MMA],C157)=0,\"CEI-MMA no asociada en el CEI-MMA-ASM\",\"\"))","v":""}]
[null,null,null,{"$f":"IF(C158=\"\",\"\",IF(COUNTIF(tbPSM[CEI MMA],C158)=0,\"CEI-MMA no asociada en el CEI-MMA-ASM\",\"\"))","v":""}]
[null,null,null,{"$f":"IF(C159=\"\",\"\",IF(COUNTIF(tbPSM[CEI MMA],C159)=0,\"CEI-MMA no asociada en el CEI-MMA-ASM\",\"\"))","v":""}]
[null,null,null,{"$f":"IF(C160=\"\",\"\",IF(COUNTIF(tbPSM[CEI MMA],C160)=0,\"CEI-MMA no asociada en el CEI-MMA-ASM\",\"\"))","v":""}]
[null,null,null,{"$f":"IF(C161=\"\",\"\",IF(COUNTIF(tbPSM[CEI MMA],C161)=0,\"CEI-MMA no asociada en el CEI-MMA-ASM\",\"\"))","v":""}]
[null,null,null,{"$f":"IF(C162=\"\",\"\",IF(COUNTIF(tbPSM[CEI MMA],C162)=0,\"CEI-MMA no asociada en el CEI-MMA-ASM\",\"\"))","v":""}]
[null,null,null,{"$f":"IF(C163=\"\",\"\",IF(COUNTIF(tbPSM[CEI MMA],C163)=0,\"CEI-MMA no asociada en el CEI-MMA-ASM\",\"\"))","v":""}]
[null,null,null,{"$f":"IF(C164=\"\",\"\",IF(COUNTIF(tbPSM[CEI MMA],C164)=0,\"CEI-MMA no asociada en el CEI-MMA-ASM\",\"\"))","v":""}]
[null,null,null,{"$f":"IF(C165=\"\",\"\",IF(COUNTIF(tbPSM[CEI MMA],C165)=0,\"CEI-MMA no asociada en el CEI-MMA-ASM\",\"\"))","v":""}]
[null,null,null,{"$f":"IF(C166=\"\",\"\",IF(COUNTIF(tbPSM[CEI MMA],C166)=0,\"CEI-MMA no asociada en el CEI-MMA-ASM\",\"\"))","v":""}]
[null,null,null,{"$f":"IF(C167=\"\",\"\",IF(COUNTIF(tbPSM[CEI MMA],C167)=0,\"CEI-MMA no asociada en el CEI-MMA-ASM\",\"\"))","v":""}]
[null,null,null,{"$f":"IF(C168=\"\",\"\",IF(COUNTIF(tbPSM[CEI MMA],C168)=0,\"CEI-MMA no asociada en el CEI-MMA-ASM\",\"\"))","v":""}]
[null,null,null,{"$f":"IF(C169=\"\",\"\",IF(COUNTIF(tbPSM[CEI MMA],C169)=0,\"CEI-MMA no asociada en el CEI-MMA-ASM\",\"\"))","v":""}]
[null,null,null,{"$f":"IF(C170=\"\",\"\",IF(COUNTIF(tbPSM[CEI MMA],C170)=0,\"CEI-MMA no asociada en el CEI-MMA-ASM\",\"\"))","v":""}]
[null,null,null,{"$f":"IF(C171=\"\",\"\",IF(COUNTIF(tbPSM[CEI MMA],C171)=0,\"CEI-MMA no asociada en el CEI-MMA-ASM\",\"\"))","v":""}]
[null,null,null,{"$f":"IF(C172=\"\",\"\",IF(COUNTIF(tbPSM[CEI MMA],C172)=0,\"CEI-MMA no asociada en el CEI-MMA-ASM\",\"\"))","v":""}]
[null,null,null,{"$f":"IF(C173=\"\",\"\",IF(COUNTIF(tbPSM[CEI MMA],C173)=0,\"CEI-MMA no asociada en el CEI-MMA-ASM\",\"\"))","v":""}]
[null,null,null,{"$f":"IF(C174=\"\",\"\",IF(COUNTIF(tbPSM[CEI MMA],C174)=0,\"CEI-MMA no asociada en el CEI-MMA-ASM\",\"\"))","v":""}]
[null,null,null,{"$f":"IF(C175=\"\",\"\",IF(COUNTIF(tbPSM[CEI MMA],C175)=0,\"CEI-MMA no asociada en el CEI-MMA-ASM\",\"\"))","v":""}]
[null,null,null,{"$f":"IF(C176=\"\",\"\",IF(COUNTIF(tbPSM[CEI MMA],C176)=0,\"CEI-MMA no asociada en el CEI-MMA-ASM\",\"\"))","v":""}]
[null,null,null,{"$f":"IF(C177=\"\",\"\",IF(COUNTIF(tbPSM[CEI MMA],C177)=0,\"CEI-MMA no asociada en el CEI-MMA-ASM\",\"\"))","v":""}]
[null,null,null,{"$f":"IF(C178=\"\",\"\",IF(COUNTIF(tbPSM[CEI MMA],C178)=0,\"CEI-MMA no asociada en el CEI-MMA-ASM\",\"\"))","v":""}]
[null,null,null,{"$f":"IF(C179=\"\",\"\",IF(COUNTIF(tbPSM[CEI MMA],C179)=0,\"CEI-MMA no asociada en el CEI-MMA-ASM\",\"\"))","v":""}]
[null,null,null,{"$f":"IF(C180=\"\",\"\",IF(COUNTIF(tbPSM[CEI MMA],C180)=0,\"CEI-MMA no asociada en el CEI-MMA-ASM\",\"\"))","v":""}]
[null,null,null,{"$f":"IF(C181=\"\",\"\",IF(COUNTIF(tbPSM[CEI MMA],C181)=0,\"CEI-MMA no asociada en el CEI-MMA-ASM\",\"\"))","v":""}]
[null,null,null,{"$f":"IF(C182=\"\",\"\",IF(COUNTIF(tbPSM[CEI MMA],C182)=0,\"CEI-MMA no asociada en el CEI-MMA-ASM\",\"\"))","v":""}]
[null,null,null,{"$f":"IF(C183=\"\",\"\",IF(COUNTIF(tbPSM[CEI MMA],C183)=0,\"CEI-MMA no asociada en el CEI-MMA-ASM\",\"\"))","v":""}]
[null,null,null,{"$f":"IF(C184=\"\",\"\",IF(COUNTIF(tbPSM[CEI MMA],C184)=0,\"CEI-MMA no asociada en el CEI-MMA-ASM\",\"\"))","v":""}]
[null,null,null,{"$f":"IF(C185=\"\",\"\",IF(COUNTIF(tbPSM[CEI MMA],C185)=0,\"CEI-MMA no asociada en el CEI-MMA-ASM\",\"\"))","v":""}]
[null,null,null,{"$f":"IF(C186=\"\",\"\",IF(COUNTIF(tbPSM[CEI MMA],C186)=0,\"CEI-MMA no asociada en el CEI-MMA-ASM\",\"\"))","v":""}]
[null,null,null,{"$f":"IF(C187=\"\",\"\",IF(COUNTIF(tbPSM[CEI MMA],C187)=0,\"CEI-MMA no asociada en el CEI-MMA-ASM\",\"\"))","v":""}]
[null,null,null,{"$f":"IF(C188=\"\",\"\",IF(COUNTIF(tbPSM[CEI MMA],C188)=0,\"CEI-MMA no asociada en el CEI-MMA-ASM\",\"\"))","v":""}]
[null,null,null,{"$f":"IF(C189=\"\",\"\",IF(COUNTIF(tbPSM[CEI MMA],C189)=0,\"CEI-MMA no asociada en el CEI-MMA-ASM\",\"\"))","v":""}]
[null,null,null,{"$f":"IF(C190=\"\",\"\",IF(COUNTIF(tbPSM[CEI MMA],C190)=0,\"CEI-MMA no asociada en el CEI-MMA-ASM\",\"\"))","v":""}]
[null,null,null,{"$f":"IF(C191=\"\",\"\",IF(COUNTIF(tbPSM[CEI MMA],C191)=0,\"CEI-MMA no asociada en el CEI-MMA-ASM\",\"\"))","v":""}]
[null,null,null,{"$f":"IF(C192=\"\",\"\",IF(COUNTIF(tbPSM[CEI MMA],C192)=0,\"CEI-MMA no asociada en el CEI-MMA-ASM\",\"\"))","v":""}]
[null,null,null,{"$f":"IF(C193=\"\",\"\",IF(COUNTIF(tbPSM[CEI MMA],C193)=0,\"CEI-MMA no asociada en el CEI-MMA-ASM\",\"\"))","v":""}]
[null,null,null,{"$f":"IF(C194=\"\",\"\",IF(COUNTIF(tbPSM[CEI MMA],C194)=0,\"CEI-MMA no asociada en el CEI-MMA-ASM\",\"\"))","v":""}]
[null,null,null,{"$f":"IF(C195=\"\",\"\",IF(COUNTIF(tbPSM[CEI MMA],C195)=0,\"CEI-MMA no asociada en el CEI-MMA-ASM\",\"\"))","v":""}]
[null,null,null,{"$f":"IF(C196=\"\",\"\",IF(COUNTIF(tbPSM[CEI MMA],C196)=0,\"CEI-MMA no asociada en el CEI-MMA-ASM\",\"\"))","v":""}]
[null,null,null,{"$f":"IF(C197=\"\",\"\",IF(COUNTIF(tbPSM[CEI MMA],C197)=0,\"CEI-MMA no asociada en el CEI-MMA-ASM\",\"\"))","v":""}]
[null,null,null,{"$f":"IF(C198=\"\",\"\",IF(COUNTIF(tbPSM[CEI MMA],C198)=0,\"CEI-MMA no asociada en el CEI-MMA-ASM\",\"\"))","v":""}]
[null,null,null,{"$f":"IF(C199=\"\",\"\",IF(COUNTIF(tbPSM[CEI MMA],C199)=0,\"CEI-MMA no asociada en el CEI-MMA-ASM\",\"\"))","v":""}]
[null,null,null,{"$f":"IF(C200=\"\",\"\",IF(COUNTIF(tbPSM[CEI MMA],C200)=0,\"CEI-MMA no asociada en el CEI-MMA-ASM\",\"\"))","v":""}]
[null,null,null,{"$f":"IF(C201=\"\",\"\",IF(COUNTIF(tbPSM[CEI MMA],C201)=0,\"CEI-MMA no asociada en el CEI-MMA-ASM\",\"\"))","v":""}]
[null,null,null,{"$f":"IF(C202=\"\",\"\",IF(COUNTIF(tbPSM[CEI MMA],C202)=0,\"CEI-MMA no asociada en el CEI-MMA-ASM\",\"\"))","v":""}]
[null,null,null,{"$f":"IF(C203=\"\",\"\",IF(COUNTIF(tbPSM[CEI MMA],C203)=0,\"CEI-MMA no asociada en el CEI-MMA-ASM\",\"\"))","v":""}]
[null,null,null,{"$f":"IF(C204=\"\",\"\",IF(COUNTIF(tbPSM[CEI MMA],C204)=0,\"CEI-MMA no asociada en el CEI-MMA-ASM\",\"\"))","v":""}]
[null,null,null,{"$f":"IF(C205=\"\",\"\",IF(COUNTIF(tbPSM[CEI MMA],C205)=0,\"CEI-MMA no asociada en el CEI-MMA-ASM\",\"\"))","v":""}]
[null,null,null,{"$f":"IF(C206=\"\",\"\",IF(COUNTIF(tbPSM[CEI MMA],C206)=0,\"CEI-MMA no asociada en el CEI-MMA-ASM\",\"\"))","v":""}]
[null,null,null,{"$f":"IF(C207=\"\",\"\",IF(COUNTIF(tbPSM[CEI MMA],C207)=0,\"CEI-MMA no asociada en el CEI-MMA-ASM\",\"\"))","v":""}]
[null,null,null,{"$f":"IF(C208=\"\",\"\",IF(COUNTIF(tbPSM[CEI MMA],C208)=0,\"CEI-MMA no asociada en el CEI-MMA-ASM\",\"\"))","v":""}]
[null,null,null,{"$f":"IF(C209=\"\",\"\",IF(COUNTIF(tbPSM[CEI MMA],C209)=0,\"CEI-MMA no asociada en el CEI-MMA-ASM\",\"\"))","v":""}]
[null,null,null,{"$f":"IF(C210=\"\",\"\",IF(COUNTIF(tbPSM[CEI MMA],C210)=0,\"CEI-MMA no asociada en el CEI-MMA-ASM\",\"\"))","v":""}]
[null,null,null,{"$f":"IF(C211=\"\",\"\",IF(COUNTIF(tbPSM[CEI MMA],C211)=0,\"CEI-MMA no asociada en el CEI-MMA-ASM\",\"\"))","v":""}]
[null,null,null,{"$f":"IF(C212=\"\",\"\",IF(COUNTIF(tbPSM[CEI MMA],C212)=0,\"CEI-MMA no asociada en el CEI-MMA-ASM\",\"\"))","v":""}]
[null,null,null,{"$f":"IF(C213=\"\",\"\",IF(COUNTIF(tbPSM[CEI MMA],C213)=0,\"CEI-MMA no asociada en el CEI-MMA-ASM\",\"\"))","v":""}]
[null,null,null,{"$f":"IF(C214=\"\",\"\",IF(COUNTIF(tbPSM[CEI MMA],C214)=0,\"CEI-MMA no asociada en el CEI-MMA-ASM\",\"\"))","v":""}]
[null,null,null,{"$f":"IF(C215=\"\",\"\",IF(COUNTIF(tbPSM[CEI MMA],C215)=0,\"CEI-MMA no asociada en el CEI-MMA-ASM\",\"\"))","v":""}]
[null,null,null,{"$f":"IF(C216=\"\",\"\",IF(COUNTIF(tbPSM[CEI MMA],C216)=0,\"CEI-MMA no asociada en el CEI-MMA-ASM\",\"\"))","v":""}]
[null,null,null,{"$f":"IF(C217=\"\",\"\",IF(COUNTIF(tbPSM[CEI MMA],C217)=0,\"CEI-MMA no asociada en el CEI-MMA-ASM\",\"\"))","v":""}]
[null,null,null,{"$f":"IF(C218=\"\",\"\",IF(COUNTIF(tbPSM[CEI MMA],C218)=0,\"CEI-MMA no asociada en el CEI-MMA-ASM\",\"\"))","v":""}]
[null,null,null,{"$f":"IF(C219=\"\",\"\",IF(COUNTIF(tbPSM[CEI MMA],C219)=0,\"CEI-MMA no asociada en el CEI-MMA-ASM\",\"\"))","v":""}]
[null,null,null,{"$f":"IF(C220=\"\",\"\",IF(COUNTIF(tbPSM[CEI MMA],C220)=0,\"CEI-MMA no asociada en el CEI-MMA-ASM\",\"\"))","v":""}]
[null,null,null,{"$f":"IF(C221=\"\",\"\",IF(COUNTIF(tbPSM[CEI MMA],C221)=0,\"CEI-MMA no asociada en el CEI-MMA-ASM\",\"\"))","v":""}]
[null,null,null,{"$f":"IF(C222=\"\",\"\",IF(COUNTIF(tbPSM[CEI MMA],C222)=0,\"CEI-MMA no asociada en el CEI-MMA-ASM\",\"\"))","v":""}]
[null,null,null,{"$f":"IF(C223=\"\",\"\",IF(COUNTIF(tbPSM[CEI MMA],C223)=0,\"CEI-MMA no asociada en el CEI-MMA-ASM\",\"\"))","v":""}]
[]
[]
[]
[]
[]
[null,"SELECCIONE MMA:"]
[]
[]
[null,{"$f":"IF(C229=\"\",\"\",\"NOMBRE:\")","v":""},{"$f":"IFERROR(PROPER(VLOOKUP(C229,tbMMA[],2,FALSE)),\"\")","v":""}]
[]
[]
[null,{"$f":"IF(C229=\"\",\"\",\"CEI ASOCIADAS A LA MMA:\")","v":""},{"$f":"IF(C229=\"\",\"\",IF(_xlfn._xlws.SORT(IFERROR(_xlfn._xlws.FILTER(tbPMA[ID CEI-MMA],tbPMA[ID MMA]=$C$229),\"\"),1,1,FALSE)={\"\"},\"Alerta. No existe una CEI asociada en la hoja CEI-MMA\",_xlfn._xlws.SORT(IFERROR(_xlfn._xlws.FILTER(tbPMA[ID CEI-MMA],tbPMA[ID MMA]=$C$229),\"\"),1,1,FALSE)))","v":""},{"$f":"IF(C235=\"\",\"\",IF(LEN(C235)>50,\"\",IF(COUNTIF(tbPSM[CEI MMA],C235)=0,\"CEI-MMA no asociada en CEI-MMA-ASM\",\"\")))","v":""},null,null,{"$f":"IF(C229=\"\",\"\",\"ASM ASOCIADAS A LA CEI:\")","v":""},{"$f":"IF(OR(C229=\"\",ISERROR(_xlfn._xlws.FILTER(tbPSM[ID ASM],tbPSM[ID_MMA]=$C$229,))),\"\",IF(_xlfn._xlws.SORT(_xlfn._xlws.FILTER(tbPSM[ID ASM],tbPSM[ID_MMA]=$C$229,),1,1,FALSE)={\"0\"},\"Alerta. No existe una ASM asociada a la MMA\",_xlfn._xlws.SORT(_xlfn._xlws.FILTER(tbPSM[CEI MMA ASM],tbPSM[ID_MMA]=$C$229,),1,1,FALSE)))","v":""}]
[null,null,null,{"$f":"IF(C236=\"\",\"\",IF(COUNTIF(tbPSM[CEI MMA],C236)=0,\"CEI-MMA no asociada en CEI-MMA-ASM\",\"\"))","v":""}]
[null,null,null,{"$f":"IF(C237=\"\",\"\",IF(COUNTIF(tbPSM[CEI MMA],C237)=0,\"CEI-MMA no asociada en CEI-MMA-ASM\",\"\"))","v":""}]
[null,null,null,{"$f":"IF(C238=\"\",\"\",IF(COUNTIF(tbPSM[CEI MMA],C238)=0,\"CEI-MMA no asociada en CEI-MMA-ASM\",\"\"))","v":""}]
[null,null,null,{"$f":"IF(C239=\"\",\"\",IF(COUNTIF(tbPSM[CEI MMA],C239)=0,\"CEI-MMA no asociada en CEI-MMA-ASM\",\"\"))","v":""}]
[null,null,null,{"$f":"IF(C240=\"\",\"\",IF(COUNTIF(tbPSM[CEI MMA],C240)=0,\"CEI-MMA no asociada en CEI-MMA-ASM\",\"\"))","v":""}]
[null,null,null,{"$f":"IF(C241=\"\",\"\",IF(COUNTIF(tbPSM[CEI MMA],C241)=0,\"CEI-MMA no asociada en CEI-MMA-ASM\",\"\"))","v":""}]
[null,null,null,{"$f":"IF(C242=\"\",\"\",IF(COUNTIF(tbPSM[CEI MMA],C242)=0,\"CEI-MMA no asociada en CEI-MMA-ASM\",\"\"))","v":""}]
[null,null,null,{"$f":"IF(C243=\"\",\"\",IF(COUNTIF(tbPSM[CEI MMA],C243)=0,\"CEI-MMA no asociada en CEI-MMA-ASM\",\"\"))","v":""}]
[null,null,null,{"$f":"IF(C244=\"\",\"\",IF(COUNTIF(tbPSM[CEI MMA],C244)=0,\"CEI-MMA no asociada en CEI-MMA-ASM\",\"\"))","v":""}]
[null,null,null,{"$f":"IF(C245=\"\",\"\",IF(COUNTIF(tbPSM[CEI MMA],C245)=0,\"CEI-MMA no asociada en CEI-MMA-ASM\",\"\"))","v":""}]
[null,null,null,{"$f":"IF(C246=\"\",\"\",IF(COUNTIF(tbPSM[CEI MMA],C246)=0,\"CEI-MMA no asociada en CEI-MMA-ASM\",\"\"))","v":""}]
[null,null,null,{"$f":"IF(C247=\"\",\"\",IF(COUNTIF(tbPSM[CEI MMA],C247)=0,\"CEI-MMA no asociada en CEI-MMA-ASM\",\"\"))","v":""}]
[null,null,null,{"$f":"IF(C248=\"\",\"\",IF(COUNTIF(tbPSM[CEI MMA],C248)=0,\"CEI-MMA no asociada en CEI-MMA-ASM\",\"\"))","v":""}]
[null,null,null,{"$f":"IF(C249=\"\",\"\",IF(COUNTIF(tbPSM[CEI MMA],C249)=0,\"CEI-MMA no asociada en CEI-MMA-ASM\",\"\"))","v":""}]
[null,null,null,{"$f":"IF(C250=\"\",\"\",IF(COUNTIF(tbPSM[CEI MMA],C250)=0,\"CEI-MMA no asociada en CEI-MMA-ASM\",\"\"))","v":""}]
[null,null,null,{"$f":"IF(C251=\"\",\"\",IF(COUNTIF(tbPSM[CEI MMA],C251)=0,\"CEI-MMA no asociada en CEI-MMA-ASM\",\"\"))","v":""}]
[null,null,null,{"$f":"IF(C252=\"\",\"\",IF(COUNTIF(tbPSM[CEI MMA],C252)=0,\"CEI-MMA no asociada en CEI-MMA-ASM\",\"\"))","v":""}]
[null,null,null,{"$f":"IF(C253=\"\",\"\",IF(COUNTIF(tbPSM[CEI MMA],C253)=0,\"CEI-MMA no asociada en CEI-MMA-ASM\",\"\"))","v":""}]
[null,null,null,{"$f":"IF(C254=\"\",\"\",IF(COUNTIF(tbPSM[CEI MMA],C254)=0,\"CEI-MMA no asociada en CEI-MMA-ASM\",\"\"))","v":""}]
[null,null,null,{"$f":"IF(C255=\"\",\"\",IF(COUNTIF(tbPSM[CEI MMA],C255)=0,\"CEI-MMA no asociada en CEI-MMA-ASM\",\"\"))","v":""}]
[null,null,null,{"$f":"IF(C256=\"\",\"\",IF(COUNTIF(tbPSM[CEI MMA],C256)=0,\"CEI-MMA no asociada en CEI-MMA-ASM\",\"\"))","v":""}]
[null,null,null,{"$f":"IF(C257=\"\",\"\",IF(COUNTIF(tbPSM[CEI MMA],C257)=0,\"CEI-MMA no asociada en CEI-MMA-ASM\",\"\"))","v":""}]
[null,null,null,{"$f":"IF(C258=\"\",\"\",IF(COUNTIF(tbPSM[CEI MMA],C258)=0,\"CEI-MMA no asociada en CEI-MMA-ASM\",\"\"))","v":""}]
[null,null,null,{"$f":"IF(C259=\"\",\"\",IF(COUNTIF(tbPSM[CEI MMA],C259)=0,\"CEI-MMA no asociada en CEI-MMA-ASM\",\"\"))","v":""}]
[null,null,null,{"$f":"IF(C260=\"\",\"\",IF(COUNTIF(tbPSM[CEI MMA],C260)=0,\"CEI-MMA no asociada en CEI-MMA-ASM\",\"\"))","v":""}]
[null,null,null,{"$f":"IF(C261=\"\",\"\",IF(COUNTIF(tbPSM[CEI MMA],C261)=0,\"CEI-MMA no asociada en CEI-MMA-ASM\",\"\"))","v":""}]
[null,null,null,{"$f":"IF(C262=\"\",\"\",IF(COUNTIF(tbPSM[CEI MMA],C262)=0,\"CEI-MMA no asociada en CEI-MMA-ASM\",\"\"))","v":""}]
[null,null,null,{"$f":"IF(C263=\"\",\"\",IF(COUNTIF(tbPSM[CEI MMA],C263)=0,\"CEI-MMA no asociada en CEI-MMA-ASM\",\"\"))","v":""}]
[null,null,null,{"$f":"IF(C264=\"\",\"\",IF(COUNTIF(tbPSM[CEI MMA],C264)=0,\"CEI-MMA no asociada en CEI-MMA-ASM\",\"\"))","v":""}]
[null,null,null,{"$f":"IF(C265=\"\",\"\",IF(COUNTIF(tbPSM[CEI MMA],C265)=0,\"CEI-MMA no asociada en CEI-MMA-ASM\",\"\"))","v":""}]
[null,null,null,{"$f":"IF(C266=\"\",\"\",IF(COUNTIF(tbPSM[CEI MMA],C266)=0,\"CEI-MMA no asociada en CEI-MMA-ASM\",\"\"))","v":""}]
[null,null,null,{"$f":"IF(C267=\"\",\"\",IF(COUNTIF(tbPSM[CEI MMA],C267)=0,\"CEI-MMA no asociada en CEI-MMA-ASM\",\"\"))","v":""}]
[null,null,null,{"$f":"IF(C268=\"\",\"\",IF(COUNTIF(tbPSM[CEI MMA],C268)=0,\"CEI-MMA no asociada en CEI-MMA-ASM\",\"\"))","v":""}]
[null,null,null,{"$f":"IF(C269=\"\",\"\",IF(COUNTIF(tbPSM[CEI MMA],C269)=0,\"CEI-MMA no asociada en CEI-MMA-ASM\",\"\"))","v":""}]
[null,null,null,{"$f":"IF(C270=\"\",\"\",IF(COUNTIF(tbPSM[CEI MMA],C270)=0,\"CEI-MMA no asociada en CEI-MMA-ASM\",\"\"))","v":""}]
[null,null,null,{"$f":"IF(C271=\"\",\"\",IF(COUNTIF(tbPSM[CEI MMA],C271)=0,\"CEI-MMA no asociada en CEI-MMA-ASM\",\"\"))","v":""}]
[null,null,null,{"$f":"IF(C272=\"\",\"\",IF(COUNTIF(tbPSM[CEI MMA],C272)=0,\"CEI-MMA no asociada en CEI-MMA-ASM\",\"\"))","v":""}]
[null,null,null,{"$f":"IF(C273=\"\",\"\",IF(COUNTIF(tbPSM[CEI MMA],C273)=0,\"CEI-MMA no asociada en CEI-MMA-ASM\",\"\"))","v":""}]
[null,null,null,{"$f":"IF(C274=\"\",\"\",IF(COUNTIF(tbPSM[CEI MMA],C274)=0,\"CEI-MMA no asociada en CEI-MMA-ASM\",\"\"))","v":""}]
[null,null,null,{"$f":"IF(C275=\"\",\"\",IF(COUNTIF(tbPSM[CEI MMA],C275)=0,\"CEI-MMA no asociada en CEI-MMA-ASM\",\"\"))","v":""}]
[null,null,null,{"$f":"IF(C276=\"\",\"\",IF(COUNTIF(tbPSM[CEI MMA],C276)=0,\"CEI-MMA no asociada en CEI-MMA-ASM\",\"\"))","v":""}]
[null,null,null,{"$f":"IF(C277=\"\",\"\",IF(COUNTIF(tbPSM[CEI MMA],C277)=0,\"CEI-MMA no asociada en CEI-MMA-ASM\",\"\"))","v":""}]
[null,null,null,{"$f":"IF(C278=\"\",\"\",IF(COUNTIF(tbPSM[CEI MMA],C278)=0,\"CEI-MMA no asociada en CEI-MMA-ASM\",\"\"))","v":""}]
[null,null,null,{"$f":"IF(C279=\"\",\"\",IF(COUNTIF(tbPSM[CEI MMA],C279)=0,\"CEI-MMA no asociada en CEI-MMA-ASM\",\"\"))","v":""}]
[null,null,null,{"$f":"IF(C280=\"\",\"\",IF(COUNTIF(tbPSM[CEI MMA],C280)=0,\"CEI-MMA no asociada en CEI-MMA-ASM\",\"\"))","v":""}]
[null,null,null,{"$f":"IF(C281=\"\",\"\",IF(COUNTIF(tbPSM[CEI MMA],C281)=0,\"CEI-MMA no asociada en CEI-MMA-ASM\",\"\"))","v":""}]
[null,null,null,{"$f":"IF(C282=\"\",\"\",IF(COUNTIF(tbPSM[CEI MMA],C282)=0,\"CEI-MMA no asociada en CEI-MMA-ASM\",\"\"))","v":""}]
[null,null,null,{"$f":"IF(C283=\"\",\"\",IF(COUNTIF(tbPSM[CEI MMA],C283)=0,\"CEI-MMA no asociada en CEI-MMA-ASM\",\"\"))","v":""}]
[null,null,null,{"$f":"IF(C284=\"\",\"\",IF(COUNTIF(tbPSM[CEI MMA],C284)=0,\"CEI-MMA no asociada en CEI-MMA-ASM\",\"\"))","v":""}]
[null,null,null,{"$f":"IF(C285=\"\",\"\",IF(COUNTIF(tbPSM[CEI MMA],C285)=0,\"CEI-MMA no asociada en CEI-MMA-ASM\",\"\"))","v":""}]
[null,null,null,{"$f":"IF(C286=\"\",\"\",IF(COUNTIF(tbPSM[CEI MMA],C286)=0,\"CEI-MMA no asociada en CEI-MMA-ASM\",\"\"))","v":""}]
[null,null,null,{"$f":"IF(C287=\"\",\"\",IF(COUNTIF(tbPSM[CEI MMA],C287)=0,\"CEI-MMA no asociada en CEI-MMA-ASM\",\"\"))","v":""}]
[null,null,null,{"$f":"IF(C288=\"\",\"\",IF(COUNTIF(tbPSM[CEI MMA],C288)=0,\"CEI-MMA no asociada en CEI-MMA-ASM\",\"\"))","v":""}]
[null,null,null,{"$f":"IF(C289=\"\",\"\",IF(COUNTIF(tbPSM[CEI MMA],C289)=0,\"CEI-MMA no asociada en CEI-MMA-ASM\",\"\"))","v":""}]
[null,null,null,{"$f":"IF(C290=\"\",\"\",IF(COUNTIF(tbPSM[CEI MMA],C290)=0,\"CEI-MMA no asociada en CEI-MMA-ASM\",\"\"))","v":""}]
[null,null,null,{"$f":"IF(C291=\"\",\"\",IF(COUNTIF(tbPSM[CEI MMA],C291)=0,\"CEI-MMA no asociada en CEI-MMA-ASM\",\"\"))","v":""}]
[null,null,null,{"$f":"IF(C292=\"\",\"\",IF(COUNTIF(tbPSM[CEI MMA],C292)=0,\"CEI-MMA no asociada en CEI-MMA-ASM\",\"\"))","v":""}]
[null,null,null,{"$f":"IF(C293=\"\",\"\",IF(COUNTIF(tbPSM[CEI MMA],C293)=0,\"CEI-MMA no asociada en CEI-MMA-ASM\",\"\"))","v":""}]
[null,null,null,{"$f":"IF(C294=\"\",\"\",IF(COUNTIF(tbPSM[CEI MMA],C294)=0,\"CEI-MMA no asociada en CEI-MMA-ASM\",\"\"))","v":""}]
[null,null,null,{"$f":"IF(C295=\"\",\"\",IF(COUNTIF(tbPSM[CEI MMA],C295)=0,\"CEI-MMA no asociada en CEI-MMA-ASM\",\"\"))","v":""}]
[null,null,null,{"$f":"IF(C296=\"\",\"\",IF(COUNTIF(tbPSM[CEI MMA],C296)=0,\"CEI-MMA no asociada en CEI-MMA-ASM\",\"\"))","v":""}]
[null,null,null,{"$f":"IF(C297=\"\",\"\",IF(COUNTIF(tbPSM[CEI MMA],C297)=0,\"CEI-MMA no asociada en CEI-MMA-ASM\",\"\"))","v":""}]
[null,null,null,{"$f":"IF(C298=\"\",\"\",IF(COUNTIF(tbPSM[CEI MMA],C298)=0,\"CEI-MMA no asociada en CEI-MMA-ASM\",\"\"))","v":""}]
[null,null,null,{"$f":"IF(C299=\"\",\"\",IF(COUNTIF(tbPSM[CEI MMA],C299)=0,\"CEI-MMA no asociada en CEI-MMA-ASM\",\"\"))","v":""}]
[null,null,null,{"$f":"IF(C300=\"\",\"\",IF(COUNTIF(tbPSM[CEI MMA],C300)=0,\"CEI-MMA no asociada en CEI-MMA-ASM\",\"\"))","v":""}]
[null,null,null,{"$f":"IF(C301=\"\",\"\",IF(COUNTIF(tbPSM[CEI MMA],C301)=0,\"CEI-MMA no asociada en CEI-MMA-ASM\",\"\"))","v":""}]
[null,null,null,{"$f":"IF(C302=\"\",\"\",IF(COUNTIF(tbPSM[CEI MMA],C302)=0,\"CEI-MMA no asociada en CEI-MMA-ASM\",\"\"))","v":""}]
[null,null,null,{"$f":"IF(C303=\"\",\"\",IF(COUNTIF(tbPSM[CEI MMA],C303)=0,\"CEI-MMA no asociada en CEI-MMA-ASM\",\"\"))","v":""}]
[null,null,null,{"$f":"IF(C304=\"\",\"\",IF(COUNTIF(tbPSM[CEI MMA],C304)=0,\"CEI-MMA no asociada en CEI-MMA-ASM\",\"\"))","v":""}]
[null,null,null,{"$f":"IF(C305=\"\",\"\",IF(COUNTIF(tbPSM[CEI MMA],C305)=0,\"CEI-MMA no asociada en CEI-MMA-ASM\",\"\"))","v":""}]
[null,null,null,{"$f":"IF(C306=\"\",\"\",IF(COUNTIF(tbPSM[CEI MMA],C306)=0,\"CEI-MMA no asociada en CEI-MMA-ASM\",\"\"))","v":""}]
[null,null,null,{"$f":"IF(C307=\"\",\"\",IF(COUNTIF(tbPSM[CEI MMA],C307)=0,\"CEI-MMA no asociada en CEI-MMA-ASM\",\"\"))","v":""}]
[null,null,null,{"$f":"IF(C308=\"\",\"\",IF(COUNTIF(tbPSM[CEI MMA],C308)=0,\"CEI-MMA no asociada en CEI-MMA-ASM\",\"\"))","v":""}]
[null,null,null,{"$f":"IF(C309=\"\",\"\",IF(COUNTIF(tbPSM[CEI MMA],C309)=0,\"CEI-MMA no asociada en CEI-MMA-ASM\",\"\"))","v":""}]
[null,null,null,{"$f":"IF(C310=\"\",\"\",IF(COUNTIF(tbPSM[CEI MMA],C310)=0,\"CEI-MMA no asociada en CEI-MMA-ASM\",\"\"))","v":""}]
[null,null,null,{"$f":"IF(C311=\"\",\"\",IF(COUNTIF(tbPSM[CEI MMA],C311)=0,\"CEI-MMA no asociada en CEI-MMA-ASM\",\"\"))","v":""}]
[null,null,null,{"$f":"IF(C312=\"\",\"\",IF(COUNTIF(tbPSM[CEI MMA],C312)=0,\"CEI-MMA no asociada en CEI-MMA-ASM\",\"\"))","v":""}]
[null,null,null,{"$f":"IF(C313=\"\",\"\",IF(COUNTIF(tbPSM[CEI MMA],C313)=0,\"CEI-MMA no asociada en CEI-MMA-ASM\",\"\"))","v":""}]
[null,null,null,{"$f":"IF(C314=\"\",\"\",IF(COUNTIF(tbPSM[CEI MMA],C314)=0,\"CEI-MMA no asociada en CEI-MMA-ASM\",\"\"))","v":""}]
[null,null,null,{"$f":"IF(C315=\"\",\"\",IF(COUNTIF(tbPSM[CEI MMA],C315)=0,\"CEI-MMA no asociada en CEI-MMA-ASM\",\"\"))","v":""}]
[null,null,null,{"$f":"IF(C316=\"\",\"\",IF(COUNTIF(tbPSM[CEI MMA],C316)=0,\"CEI-MMA no asociada en CEI-MMA-ASM\",\"\"))","v":""}]
[null,null,null,{"$f":"IF(C317=\"\",\"\",IF(COUNTIF(tbPSM[CEI MMA],C317)=0,\"CEI-MMA no asociada en CEI-MMA-ASM\",\"\"))","v":""}]
[null,null,null,{"$f":"IF(C318=\"\",\"\",IF(COUNTIF(tbPSM[CEI MMA],C318)=0,\"CEI-MMA no asociada en CEI-MMA-ASM\",\"\"))","v":""}]
[null,null,null,{"$f":"IF(C319=\"\",\"\",IF(COUNTIF(tbPSM[CEI MMA],C319)=0,\"CEI-MMA no asociada en CEI-MMA-ASM\",\"\"))","v":""}]
[null,null,null,{"$f":"IF(C320=\"\",\"\",IF(COUNTIF(tbPSM[CEI MMA],C320)=0,\"CEI-MMA no asociada en CEI-MMA-ASM\",\"\"))","v":""}]
[null,null,null,{"$f":"IF(C321=\"\",\"\",IF(COUNTIF(tbPSM[CEI MMA],C321)=0,\"CEI-MMA no asociada en CEI-MMA-ASM\",\"\"))","v":""}]
[null,null,null,{"$f":"IF(C322=\"\",\"\",IF(COUNTIF(tbPSM[CEI MMA],C322)=0,\"CEI-MMA no asociada en CEI-MMA-ASM\",\"\"))","v":""}]
[null,null,null,{"$f":"IF(C323=\"\",\"\",IF(COUNTIF(tbPSM[CEI MMA],C323)=0,\"CEI-MMA no asociada en CEI-MMA-ASM\",\"\"))","v":""}]
[null,null,null,{"$f":"IF(C324=\"\",\"\",IF(COUNTIF(tbPSM[CEI MMA],C324)=0,\"CEI-MMA no asociada en CEI-MMA-ASM\",\"\"))","v":""}]
[null,null,null,{"$f":"IF(C325=\"\",\"\",IF(COUNTIF(tbPSM[CEI MMA],C325)=0,\"CEI-MMA no asociada en CEI-MMA-ASM\",\"\"))","v":""}]
[null,null,null,{"$f":"IF(C326=\"\",\"\",IF(COUNTIF(tbPSM[CEI MMA],C326)=0,\"CEI-MMA no asociada en CEI-MMA-ASM\",\"\"))","v":""}]
[null,null,null,{"$f":"IF(C327=\"\",\"\",IF(COUNTIF(tbPSM[CEI MMA],C327)=0,\"CEI-MMA no asociada en CEI-MMA-ASM\",\"\"))","v":""}]
[null,null,null,{"$f":"IF(C328=\"\",\"\",IF(COUNTIF(tbPSM[CEI MMA],C328)=0,\"CEI-MMA no asociada en CEI-MMA-ASM\",\"\"))","v":""}]
[null,null,null,{"$f":"IF(C329=\"\",\"\",IF(COUNTIF(tbPSM[CEI MMA],C329)=0,\"CEI-MMA no asociada en CEI-MMA-ASM\",\"\"))","v":""}]
[null,null,null,{"$f":"IF(C330=\"\",\"\",IF(COUNTIF(tbPSM[CEI MMA],C330)=0,\"CEI-MMA no asociada en CEI-MMA-ASM\",\"\"))","v":""}]
[null,null,null,{"$f":"IF(C331=\"\",\"\",IF(COUNTIF(tbPSM[CEI MMA],C331)=0,\"CEI-MMA no asociada en CEI-MMA-ASM\",\"\"))","v":""}]
[null,null,null,{"$f":"IF(C332=\"\",\"\",IF(COUNTIF(tbPSM[CEI MMA],C332)=0,\"CEI-MMA no asociada en CEI-MMA-ASM\",\"\"))","v":""}]
[null,null,null,{"$f":"IF(C333=\"\",\"\",IF(COUNTIF(tbPSM[CEI MMA],C333)=0,\"CEI-MMA no asociada en CEI-MMA-ASM\",\"\"))","v":""}]
[null,null,null,{"$f":"IF(C334=\"\",\"\",IF(COUNTIF(tbPSM[CEI MMA],C334)=0,\"CEI-MMA no asociada en CEI-MMA-ASM\",\"\"))","v":""}]
[null,null,null,{"$f":"IF(C335=\"\",\"\",IF(COUNTIF(tbPSM[CEI MMA],C335)=0,\"CEI-MMA no asociada en CEI-MMA-ASM\",\"\"))","v":""}]
[null,null,null,{"$f":"IF(C336=\"\",\"\",IF(COUNTIF(tbPSM[CEI MMA],C336)=0,\"CEI-MMA no asociada en CEI-MMA-ASM\",\"\"))","v":""}]
[null,null,null,{"$f":"IF(C337=\"\",\"\",IF(COUNTIF(tbPSM[CEI MMA],C337)=0,\"CEI-MMA no asociada en CEI-MMA-ASM\",\"\"))","v":""}]
[null,null,null,{"$f":"IF(C338=\"\",\"\",IF(COUNTIF(tbPSM[CEI MMA],C338)=0,\"CEI-MMA no asociada en CEI-MMA-ASM\",\"\"))","v":""}]
[null,null,null,{"$f":"IF(C339=\"\",\"\",IF(COUNTIF(tbPSM[CEI MMA],C339)=0,\"CEI-MMA no asociada en CEI-MMA-ASM\",\"\"))","v":""}]
[null,null,null,{"$f":"IF(C340=\"\",\"\",IF(COUNTIF(tbPSM[CEI MMA],C340)=0,\"CEI-MMA no asociada en CEI-MMA-ASM\",\"\"))","v":""}]
[null,null,null,{"$f":"IF(C341=\"\",\"\",IF(COUNTIF(tbPSM[CEI MMA],C341)=0,\"CEI-MMA no asociada en CEI-MMA-ASM\",\"\"))","v":""}]
[null,null,null,{"$f":"IF(C342=\"\",\"\",IF(COUNTIF(tbPSM[CEI MMA],C342)=0,\"CEI-MMA no asociada en CEI-MMA-ASM\",\"\"))","v":""}]
[null,null,null,{"$f":"IF(C343=\"\",\"\",IF(COUNTIF(tbPSM[CEI MMA],C343)=0,\"CEI-MMA no asociada en CEI-MMA-ASM\",\"\"))","v":""}]
[null,null,null,{"$f":"IF(C344=\"\",\"\",IF(COUNTIF(tbPSM[CEI MMA],C344)=0,\"CEI-MMA no asociada en CEI-MMA-ASM\",\"\"))","v":""}]
[null,null,null,{"$f":"IF(C345=\"\",\"\",IF(COUNTIF(tbPSM[CEI MMA],C345)=0,\"CEI-MMA no asociada en CEI-MMA-ASM\",\"\"))","v":""}]
[null,null,null,{"$f":"IF(C346=\"\",\"\",IF(COUNTIF(tbPSM[CEI MMA],C346)=0,\"CEI-MMA no asociada en CEI-MMA-ASM\",\"\"))","v":""}]
[null,null,null,{"$f":"IF(C347=\"\",\"\",IF(COUNTIF(tbPSM[CEI MMA],C347)=0,\"CEI-MMA no asociada en CEI-MMA-ASM\",\"\"))","v":""}]
[null,null,null,{"$f":"IF(C348=\"\",\"\",IF(COUNTIF(tbPSM[CEI MMA],C348)=0,\"CEI-MMA no asociada en CEI-MMA-ASM\",\"\"))","v":""}]
[null,null,null,{"$f":"IF(C349=\"\",\"\",IF(COUNTIF(tbPSM[CEI MMA],C349)=0,\"CEI-MMA no asociada en CEI-MMA-ASM\",\"\"))","v":""}]
[null,null,null,{"$f":"IF(C350=\"\",\"\",IF(COUNTIF(tbPSM[CEI MMA],C350)=0,\"CEI-MMA no asociada en CEI-MMA-ASM\",\"\"))","v":""}]
[null,null,null,{"$f":"IF(C351=\"\",\"\",IF(COUNTIF(tbPSM[CEI MMA],C351)=0,\"CEI-MMA no asociada en CEI-MMA-ASM\",\"\"))","v":""}]
[null,null,null,{"$f":"IF(C352=\"\",\"\",IF(COUNTIF(tbPSM[CEI MMA],C352)=0,\"CEI-MMA no asociada en CEI-MMA-ASM\",\"\"))","v":""}]
[null,null,null,{"$f":"IF(C353=\"\",\"\",IF(COUNTIF(tbPSM[CEI MMA],C353)=0,\"CEI-MMA no asociada en CEI-MMA-ASM\",\"\"))","v":""}]
[null,null,null,{"$f":"IF(C354=\"\",\"\",IF(COUNTIF(tbPSM[CEI MMA],C354)=0,\"CEI-MMA no asociada en CEI-MMA-ASM\",\"\"))","v":""}]
[null,null,null,{"$f":"IF(C355=\"\",\"\",IF(COUNTIF(tbPSM[CEI MMA],C355)=0,\"CEI-MMA no asociada en CEI-MMA-ASM\",\"\"))","v":""}]
[null,null,null,{"$f":"IF(C356=\"\",\"\",IF(COUNTIF(tbPSM[CEI MMA],C356)=0,\"CEI-MMA no asociada en CEI-MMA-ASM\",\"\"))","v":""}]
[null,null,null,{"$f":"IF(C357=\"\",\"\",IF(COUNTIF(tbPSM[CEI MMA],C357)=0,\"CEI-MMA no asociada en CEI-MMA-ASM\",\"\"))","v":""}]
[null,null,null,{"$f":"IF(C358=\"\",\"\",IF(COUNTIF(tbPSM[CEI MMA],C358)=0,\"CEI-MMA no asociada en CEI-MMA-ASM\",\"\"))","v":""}]
[null,null,null,{"$f":"IF(C359=\"\",\"\",IF(COUNTIF(tbPSM[CEI MMA],C359)=0,\"CEI-MMA no asociada en CEI-MMA-ASM\",\"\"))","v":""}]
[null,null,null,{"$f":"IF(C360=\"\",\"\",IF(COUNTIF(tbPSM[CEI MMA],C360)=0,\"CEI-MMA no asociada en CEI-MMA-ASM\",\"\"))","v":""}]
[null,null,null,{"$f":"IF(C361=\"\",\"\",IF(COUNTIF(tbPSM[CEI MMA],C361)=0,\"CEI-MMA no asociada en CEI-MMA-ASM\",\"\"))","v":""}]
[null,null,null,{"$f":"IF(C362=\"\",\"\",IF(COUNTIF(tbPSM[CEI MMA],C362)=0,\"CEI-MMA no asociada en CEI-MMA-ASM\",\"\"))","v":""}]
[null,null,null,{"$f":"IF(C363=\"\",\"\",IF(COUNTIF(tbPSM[CEI MMA],C363)=0,\"CEI-MMA no asociada en CEI-MMA-ASM\",\"\"))","v":""}]
[null,null,null,{"$f":"IF(C364=\"\",\"\",IF(COUNTIF(tbPSM[CEI MMA],C364)=0,\"CEI-MMA no asociada en CEI-MMA-ASM\",\"\"))","v":""}]
[null,null,null,{"$f":"IF(C365=\"\",\"\",IF(COUNTIF(tbPSM[CEI MMA],C365)=0,\"CEI-MMA no asociada en CEI-MMA-ASM\",\"\"))","v":""}]
[null,null,null,{"$f":"IF(C366=\"\",\"\",IF(COUNTIF(tbPSM[CEI MMA],C366)=0,\"CEI-MMA no asociada en CEI-MMA-ASM\",\"\"))","v":""}]
[null,null,null,{"$f":"IF(C367=\"\",\"\",IF(COUNTIF(tbPSM[CEI MMA],C367)=0,\"CEI-MMA no asociada en CEI-MMA-ASM\",\"\"))","v":""}]
[null,null,null,{"$f":"IF(C368=\"\",\"\",IF(COUNTIF(tbPSM[CEI MMA],C368)=0,\"CEI-MMA no asociada en CEI-MMA-ASM\",\"\"))","v":""}]
[null,null,null,{"$f":"IF(C369=\"\",\"\",IF(COUNTIF(tbPSM[CEI MMA],C369)=0,\"CEI-MMA no asociada en CEI-MMA-ASM\",\"\"))","v":""}]
[null,null,null,{"$f":"IF(C370=\"\",\"\",IF(COUNTIF(tbPSM[CEI MMA],C370)=0,\"CEI-MMA no asociada en CEI-MMA-ASM\",\"\"))","v":""}]
[null,null,null,{"$f":"IF(C371=\"\",\"\",IF(COUNTIF(tbPSM[CEI MMA],C371)=0,\"CEI-MMA no asociada en CEI-MMA-ASM\",\"\"))","v":""}]
[null,null,null,{"$f":"IF(C372=\"\",\"\",IF(COUNTIF(tbPSM[CEI MMA],C372)=0,\"CEI-MMA no asociada en CEI-MMA-ASM\",\"\"))","v":""}]
[null,null,null,{"$f":"IF(C373=\"\",\"\",IF(COUNTIF(tbPSM[CEI MMA],C373)=0,\"CEI-MMA no asociada en CEI-MMA-ASM\",\"\"))","v":""}]
[null,null,null,{"$f":"IF(C374=\"\",\"\",IF(COUNTIF(tbPSM[CEI MMA],C374)=0,\"CEI-MMA no asociada en CEI-MMA-ASM\",\"\"))","v":""}]
[null,null,null,{"$f":"IF(C375=\"\",\"\",IF(COUNTIF(tbPSM[CEI MMA],C375)=0,\"CEI-MMA no asociada en CEI-MMA-ASM\",\"\"))","v":""}]
[null,null,null,{"$f":"IF(C376=\"\",\"\",IF(COUNTIF(tbPSM[CEI MMA],C376)=0,\"CEI-MMA no asociada en CEI-MMA-ASM\",\"\"))","v":""}]
[null,null,null,{"$f":"IF(C377=\"\",\"\",IF(COUNTIF(tbPSM[CEI MMA],C377)=0,\"CEI-MMA no asociada en CEI-MMA-ASM\",\"\"))","v":""}]
[null,null,null,{"$f":"IF(C378=\"\",\"\",IF(COUNTIF(tbPSM[CEI MMA],C378)=0,\"CEI-MMA no asociada en CEI-MMA-ASM\",\"\"))","v":""}]
[null,null,null,{"$f":"IF(C379=\"\",\"\",IF(COUNTIF(tbPSM[CEI MMA],C379)=0,\"CEI-MMA no asociada en CEI-MMA-ASM\",\"\"))","v":""}]
[null,null,null,{"$f":"IF(C380=\"\",\"\",IF(COUNTIF(tbPSM[CEI MMA],C380)=0,\"CEI-MMA no asociada en CEI-MMA-ASM\",\"\"))","v":""}]
[null,null,null,{"$f":"IF(C381=\"\",\"\",IF(COUNTIF(tbPSM[CEI MMA],C381)=0,\"CEI-MMA no asociada en CEI-MMA-ASM\",\"\"))","v":""}]
[null,null,null,{"$f":"IF(C382=\"\",\"\",IF(COUNTIF(tbPSM[CEI MMA],C382)=0,\"CEI-MMA no asociada en CEI-MMA-ASM\",\"\"))","v":""}]
[null,null,null,{"$f":"IF(C383=\"\",\"\",IF(COUNTIF(tbPSM[CEI MMA],C383)=0,\"CEI-MMA no asociada en CEI-MMA-ASM\",\"\"))","v":""}]
[null,null,null,{"$f":"IF(C384=\"\",\"\",IF(COUNTIF(tbPSM[CEI MMA],C384)=0,\"CEI-MMA no asociada en CEI-MMA-ASM\",\"\"))","v":""}]
[null,null,null,{"$f":"IF(C385=\"\",\"\",IF(COUNTIF(tbPSM[CEI MMA],C385)=0,\"CEI-MMA no asociada en CEI-MMA-ASM\",\"\"))","v":""}]
[null,null,null,{"$f":"IF(C386=\"\",\"\",IF(COUNTIF(tbPSM[CEI MMA],C386)=0,\"CEI-MMA no asociada en CEI-MMA-ASM\",\"\"))","v":""}]
[null,null,null,{"$f":"IF(C387=\"\",\"\",IF(COUNTIF(tbPSM[CEI MMA],C387)=0,\"CEI-MMA no asociada en CEI-MMA-ASM\",\"\"))","v":""}]
[null,null,null,{"$f":"IF(C388=\"\",\"\",IF(COUNTIF(tbPSM[CEI MMA],C388)=0,\"CEI-MMA no asociada en CEI-MMA-ASM\",\"\"))","v":""}]
[null,null,null,{"$f":"IF(C389=\"\",\"\",IF(COUNTIF(tbPSM[CEI MMA],C389)=0,\"CEI-MMA no asociada en CEI-MMA-ASM\",\"\"))","v":""}]
[null,null,null,{"$f":"IF(C390=\"\",\"\",IF(COUNTIF(tbPSM[CEI MMA],C390)=0,\"CEI-MMA no asociada en CEI-MMA-ASM\",\"\"))","v":""}]
[null,null,null,{"$f":"IF(C391=\"\",\"\",IF(COUNTIF(tbPSM[CEI MMA],C391)=0,\"CEI-MMA no asociada en CEI-MMA-ASM\",\"\"))","v":""}]
[null,null,null,{"$f":"IF(C392=\"\",\"\",IF(COUNTIF(tbPSM[CEI MMA],C392)=0,\"CEI-MMA no asociada en CEI-MMA-ASM\",\"\"))","v":""}]
[null,null,null,{"$f":"IF(C393=\"\",\"\",IF(COUNTIF(tbPSM[CEI MMA],C393)=0,\"CEI-MMA no asociada en CEI-MMA-ASM\",\"\"))","v":""}]
[null,null,null,{"$f":"IF(C394=\"\",\"\",IF(COUNTIF(tbPSM[CEI MMA],C394)=0,\"CEI-MMA no asociada en CEI-MMA-ASM\",\"\"))","v":""}]
[null,null,null,{"$f":"IF(C395=\"\",\"\",IF(COUNTIF(tbPSM[CEI MMA],C395)=0,\"CEI-MMA no asociada en CEI-MMA-ASM\",\"\"))","v":""}]
[null,null,null,{"$f":"IF(C396=\"\",\"\",IF(COUNTIF(tbPSM[CEI MMA],C396)=0,\"CEI-MMA no asociada en CEI-MMA-ASM\",\"\"))","v":""}]
[null,null,null,{"$f":"IF(C397=\"\",\"\",IF(COUNTIF(tbPSM[CEI MMA],C397)=0,\"CEI-MMA no asociada en CEI-MMA-ASM\",\"\"))","v":""}]
[null,null,null,{"$f":"IF(C398=\"\",\"\",IF(COUNTIF(tbPSM[CEI MMA],C398)=0,\"CEI-MMA no asociada en CEI-MMA-ASM\",\"\"))","v":""}]
[null,null,null,{"$f":"IF(C399=\"\",\"\",IF(COUNTIF(tbPSM[CEI MMA],C399)=0,\"CEI-MMA no asociada en CEI-MMA-ASM\",\"\"))","v":""}]
[null,null,null,{"$f":"IF(C400=\"\",\"\",IF(COUNTIF(tbPSM[CEI MMA],C400)=0,\"CEI-MMA no asociada en CEI-MMA-ASM\",\"\"))","v":""}]
[null,null,null,{"$f":"IF(C401=\"\",\"\",IF(COUNTIF(tbPSM[CEI MMA],C401)=0,\"CEI-MMA no asociada en CEI-MMA-ASM\",\"\"))","v":""}]
[null,null,null,{"$f":"IF(C402=\"\",\"\",IF(COUNTIF(tbPSM[CEI MMA],C402)=0,\"CEI-MMA no asociada en CEI-MMA-ASM\",\"\"))","v":""}]
[null,null,null,{"$f":"IF(C403=\"\",\"\",IF(COUNTIF(tbPSM[CEI MMA],C403)=0,\"CEI-MMA no asociada en CEI-MMA-ASM\",\"\"))","v":""}]
[null,null,null,{"$f":"IF(C404=\"\",\"\",IF(COUNTIF(tbPSM[CEI MMA],C404)=0,\"CEI-MMA no asociada en CEI-MMA-ASM\",\"\"))","v":""}]
[null,null,null,{"$f":"IF(C405=\"\",\"\",IF(COUNTIF(tbPSM[CEI MMA],C405)=0,\"CEI-MMA no asociada en CEI-MMA-ASM\",\"\"))","v":""}]
[null,null,null,{"$f":"IF(C406=\"\",\"\",IF(COUNTIF(tbPSM[CEI MMA],C406)=0,\"CEI-MMA no asociada en CEI-MMA-ASM\",\"\"))","v":""}]
[null,null,null,{"$f":"IF(C407=\"\",\"\",IF(COUNTIF(tbPSM[CEI MMA],C407)=0,\"CEI-MMA no asociada en CEI-MMA-ASM\",\"\"))","v":""}]
[null,null,null,{"$f":"IF(C408=\"\",\"\",IF(COUNTIF(tbPSM[CEI MMA],C408)=0,\"CEI-MMA no asociada en CEI-MMA-ASM\",\"\"))","v":""}]
[null,null,null,{"$f":"IF(C409=\"\",\"\",IF(COUNTIF(tbPSM[CEI MMA],C409)=0,\"CEI-MMA no asociada en CEI-MMA-ASM\",\"\"))","v":""}]
[null,null,null,{"$f":"IF(C410=\"\",\"\",IF(COUNTIF(tbPSM[CEI MMA],C410)=0,\"CEI-MMA no asociada en CEI-MMA-ASM\",\"\"))","v":""}]
[null,null,null,{"$f":"IF(C411=\"\",\"\",IF(COUNTIF(tbPSM[CEI MMA],C411)=0,\"CEI-MMA no asociada en CEI-MMA-ASM\",\"\"))","v":""}]
[null,null,null,{"$f":"IF(C412=\"\",\"\",IF(COUNTIF(tbPSM[CEI MMA],C412)=0,\"CEI-MMA no asociada en CEI-MMA-ASM\",\"\"))","v":""}]
[null,null,null,{"$f":"IF(C413=\"\",\"\",IF(COUNTIF(tbPSM[CEI MMA],C413)=0,\"CEI-MMA no asociada en CEI-MMA-ASM\",\"\"))","v":""}]
[null,null,null,{"$f":"IF(C414=\"\",\"\",IF(COUNTIF(tbPSM[CEI MMA],C414)=0,\"CEI-MMA no asociada en CEI-MMA-ASM\",\"\"))","v":""}]
[null,null,null,{"$f":"IF(C415=\"\",\"\",IF(COUNTIF(tbPSM[CEI MMA],C415)=0,\"CEI-MMA no asociada en CEI-MMA-ASM\",\"\"))","v":""}]
[null,null,null,{"$f":"IF(C416=\"\",\"\",IF(COUNTIF(tbPSM[CEI MMA],C416)=0,\"CEI-MMA no asociada en CEI-MMA-ASM\",\"\"))","v":""}]
[null,null,null,{"$f":"IF(C417=\"\",\"\",IF(COUNTIF(tbPSM[CEI MMA],C417)=0,\"CEI-MMA no asociada en CEI-MMA-ASM\",\"\"))","v":""}]
[null,null,null,{"$f":"IF(C418=\"\",\"\",IF(COUNTIF(tbPSM[CEI MMA],C418)=0,\"CEI-MMA no asociada en CEI-MMA-ASM\",\"\"))","v":""}]
[null,null,null,{"$f":"IF(C419=\"\",\"\",IF(COUNTIF(tbPSM[CEI MMA],C419)=0,\"CEI-MMA no asociada en CEI-MMA-ASM\",\"\"))","v":""}]
[null,null,null,{"$f":"IF(C420=\"\",\"\",IF(COUNTIF(tbPSM[CEI MMA],C420)=0,\"CEI-MMA no asociada en CEI-MMA-ASM\",\"\"))","v":""}]
[null,null,null,{"$f":"IF(C421=\"\",\"\",IF(COUNTIF(tbPSM[CEI MMA],C421)=0,\"CEI-MMA no asociada en CEI-MMA-ASM\",\"\"))","v":""}]
[null,null,null,{"$f":"IF(C422=\"\",\"\",IF(COUNTIF(tbPSM[CEI MMA],C422)=0,\"CEI-MMA no asociada en CEI-MMA-ASM\",\"\"))","v":""}]
[null,null,null,{"$f":"IF(C423=\"\",\"\",IF(COUNTIF(tbPSM[CEI MMA],C423)=0,\"CEI-MMA no asociada en CEI-MMA-ASM\",\"\"))","v":""}]
[null,null,null,{"$f":"IF(C424=\"\",\"\",IF(COUNTIF(tbPSM[CEI MMA],C424)=0,\"CEI-MMA no asociada en CEI-MMA-ASM\",\"\"))","v":""}]
[null,null,null,{"$f":"IF(C425=\"\",\"\",IF(COUNTIF(tbPSM[CEI MMA],C425)=0,\"CEI-MMA no asociada en CEI-MMA-ASM\",\"\"))","v":""}]
[null,null,null,{"$f":"IF(C426=\"\",\"\",IF(COUNTIF(tbPSM[CEI MMA],C426)=0,\"CEI-MMA no asociada en CEI-MMA-ASM\",\"\"))","v":""}]
[null,null,null,{"$f":"IF(C427=\"\",\"\",IF(COUNTIF(tbPSM[CEI MMA],C427)=0,\"CEI-MMA no asociada en CEI-MMA-ASM\",\"\"))","v":""}]
[null,null,null,{"$f":"IF(C428=\"\",\"\",IF(COUNTIF(tbPSM[CEI MMA],C428)=0,\"CEI-MMA no asociada en CEI-MMA-ASM\",\"\"))","v":""}]
[null,null,null,{"$f":"IF(C429=\"\",\"\",IF(COUNTIF(tbPSM[CEI MMA],C429)=0,\"CEI-MMA no asociada en CEI-MMA-ASM\",\"\"))","v":""}]
[null,null,null,{"$f":"IF(C430=\"\",\"\",IF(COUNTIF(tbPSM[CEI MMA],C430)=0,\"CEI-MMA no asociada en CEI-MMA-ASM\",\"\"))","v":""}]
[null,null,null,{"$f":"IF(C431=\"\",\"\",IF(COUNTIF(tbPSM[CEI MMA],C431)=0,\"CEI-MMA no asociada en CEI-MMA-ASM\",\"\"))","v":""}]
[null,null,null,{"$f":"IF(C432=\"\",\"\",IF(COUNTIF(tbPSM[CEI MMA],C432)=0,\"CEI-MMA no asociada en CEI-MMA-ASM\",\"\"))","v":""}]
[null,null,null,{"$f":"IF(C433=\"\",\"\",IF(COUNTIF(tbPSM[CEI MMA],C433)=0,\"CEI-MMA no asociada en CEI-MMA-ASM\",\"\"))","v":""}]
[null,null,null,{"$f":"IF(C434=\"\",\"\",IF(COUNTIF(tbPSM[CEI MMA],C434)=0,\"CEI-MMA no asociada en CEI-MMA-ASM\",\"\"))","v":""}]
[null,null,null,{"$f":"IF(C435=\"\",\"\",IF(COUNTIF(tbPSM[CEI MMA],C435)=0,\"CEI-MMA no asociada en CEI-MMA-ASM\",\"\"))","v":""}]
[]
[null,"SELECCIONE ASM:"]
[]
[]
[null,null,{"$f":"IFERROR(PROPER(VLOOKUP(C437,tbASM[],2,FALSE)),\"\")","v":""}]
[null,{"$f":"IF(C437=\"\",\"\",\"NOMBRE:\")","v":""},null,{"$f":"IF(C437=\"\",\"\",IF(COUNTIF(tbPSM[ID ASM],C437)=0,\"ASM no asociada en CEI-MMA-ASM\",\"\"))","v":""}]
[]
[]
[null,{"$f":"IF(C437=\"\",\"\",\"CEI y MMA ASOCIADAS A LA ASM:\")","v":""},{"$f":"IF(C437=\"\",\"\",_xlfn._xlws.FILTER(tbPSM[CEI MMA ASM],tbPSM[ID ASM]=$C$437,\"\"))","v":""}]

{"sheet":"Mod_8 CostosMMA","index":13,"n_rows":12,"n_cols":3,"rows_kept":12,"cut":false,"hidden":false,"merged":[[11,1,11,2],[10,1,10,2],[3,2,3,9],[4,2,4,9],[5,2,5,9],[7,2,7,9]]}
[]
[]
[]
[null,null,"AUTORIDAD NACIONAL DE LICENCIAS AMBIENTALES"]
[null,null,"SUBDIRECCIÓN DE INSTRUMENTOS, PERMISOS Y TRÁMITES AMBIENTALES"]
[null,null,"GRUPO DE INSTRUMENTOS"]
[]
[null,null,"COSTOS REALES ANUALIZADOS MMA"]
[]
[]
[null,"Duración del proyecto"]
[null,"Unidad de tiempo"]

{"sheet":"Mod_8 CostosASM","index":14,"n_rows":8,"n_cols":3,"rows_kept":8,"cut":false,"hidden":true,"merged":[[3,2,3,8],[4,2,4,8],[5,2,5,8],[7,2,7,8]]}
[]
[]
[]
[null,null,"AUTORIDAD NACIONAL DE LICENCIAS AMBIENTALES"]
[null,null,"SUBDIRECCIÓN DE INSTRUMENTOS, PERMISOS Y TRÁMITES AMBIENTALES"]
[null,null,"GRUPO DE INSTRUMENTOS"]
[]
[null,null,"COSTOS ANUALIZADOS ASM"]

{"sheet":"FlujoEconómico","index":15,"n_rows":8,"n_cols":3,"rows_kept":8,"cut":false,"hidden":true,"merged":[[3,2,3,12],[4,2,4,12],[5,2,5,12],[7,2,7,12]]}
[]
[]
[]
[null,null,"AUTORIDAD NACIONAL DE LICENCIAS AMBIENTALES"]
[null,null,"SUBDIRECCIÓN DE INSTRUMENTOS, PERMISOS Y TRÁMITES AMBIENTALES"]
[null,null,"GRUPO DE INSTRUMENTOS"]
[]
[null,null,"COSTOS REALES ANUALIZADOS MMA"]

{"sheet":"Mod_9 Centro_de_Costos","index":16,"n_rows":36,"n_cols":16,"rows_kept":36,"cut":false,"hidden":true,"merged":[[7,2,7,15],[6,2,6,15],[5,2,5,15],[4,2,4,15],[3,2,3,15]]}
[]
[]
[]
[null,null,"AUTORIDAD NACIONAL DE LICENCIAS AMBIENTALES"]
[null,null,"SUBDIRECCIÓN DE INSTRUMENTOS, PERMISOS Y TRÁMITES AMBIENTALES"]
[null,null,"GRUPO DE INSTRUMENTOS"]
[]
[null,null,"RESUMEN DE COSTOS"]
[]
[]
[]
[]
[]
[]
[]
[]
[]
[]
[]
[]
[]
[]
[null,"ID CEI","$ MMA"," $ ASM","Total CEI",null,"ID CEI","MMA","% MMA a la CEI","Costo CEI-MMA",null,"ID CEI","MMA","ASM","% ASM a la CEI-MMA","Costo CEI-MMA-ASM"]
[null,"CAI_01",8196.5,{"$error":"#REF!"},{"$error":"#REF!"},null,"CAI_01","MMA6",0.5,8196.5,null,"CAI_01","MMA6","ASM1",0.5,{"$error":"#REF!"}]
[null,"CAI_03",10065,{"$error":"#REF!"},{"$error":"#REF!"},null,"CAI_03","MMA4",0.5,10065,null,"CAI_03","MMA4","ASM2",0.5,{"$error":"#REF!"}]
[null,"CAI_04",10178.5,{"$error":"#REF!"},{"$error":"#REF!"},null,"CAI_04","MMA2",0.5,10178.5,null,"CAI_04","MMA2","ASM3",0.5,{"$error":"#REF!"}]
[null,"CAI_05",8196.5,{"$error":"#REF!"},{"$error":"#REF!"},null,"CAI_05","MMA6",0.5,8196.5,null,"CAI_05","MMA6","ASM4",1,{"$error":"#REF!"}]
[null,"CEI_01",25229,{"$error":"#REF!"},{"$error":"#REF!"},null,"CEI_01","MMA1",0.5,8836,null,"CEI_01","MMA1","ASM5",1,{"$error":"#REF!"}]
[null,"CEI_04",10178.5,{"$error":"#REF!"},{"$error":"#REF!"},null,"CEI_01","MMA8",1,16393,null,"CEI_01","MMA8","ASM9",1,{"$error":"#REF!"}]
[null,"CEI_06",18620,{"$error":"#REF!"},{"$error":"#REF!"},null,"CEI_04","MMA2",0.5,10178.5,null,"CEI_04","MMA2","ASM6",1,{"$error":"#REF!"}]
[null,"CEI_07",20121,{"$error":"#REF!"},{"$error":"#REF!"},null,"CEI_06","MMA5",1,18620,null,"CEI_06","MMA5","ASM7",1,{"$error":"#REF!"}]
[null,"CEI_12",8836,{"$error":"#REF!"},{"$error":"#REF!"},null,"CEI_07","MMA7",1,20121,null,"CEI_07","MMA7","ASM8",1,{"$error":"#REF!"}]
[null,"CEI_24",21719,{"$error":"#REF!"},{"$error":"#REF!"},null,"CEI_12","MMA1",0.5,8836,null,"CEI_12","MMA1","ASM1",0.5,{"$error":"#REF!"}]
[null,"CEI_29",10065,{"$error":"#REF!"},{"$error":"#REF!"},null,"CEI_24","MMA3",1,21719,null,"CEI_24","MMA3","ASM2",0.5,{"$error":"#REF!"}]
[null,"Total general",151405,{"$error":"#REF!"},{"$error":"#REF!"},null,"CEI_29","MMA4",0.5,10065,null,"CEI_29","MMA4","ASM3",0.5,{"$error":"#REF!"}]
[null,null,null,null,null,null,"Total general",null,null,151405,null,"Total general",null,null,null,{"$error":"#REF!"}]

{"sheet":"Listas","index":17,"n_rows":401,"n_cols":59,"rows_kept":401,"cut":false,"hidden":true,"merged":[]}
["Tipo_medida",null,"Fase",null,"IMPACTO_PMA","NOMBRE","VALIDACIÓN_PSM",null,"IMPACTO_PSM",null,"PMA",null,"MMA","VALIDACIÓN_PMA","VALIDACIÓN_PSM","Valor",null,"MMA_TbPMA",null,"MMA_TbPMS",null,"ASM","VALIDACIÓN_PSM",null,"ASM_TbPSM",null,"USO_CEI",null,"USO_MMA",null,"USO_PMA",null,"USO_ASM",null,"MMA_PMA","USO MMA","SUM_PORC",null,"CEI-MMA-ASM","CEI","MMA","MSM",null,null,"CÓDIGO","INDICADOR","CEI","ID_IND","Periodicidad","Definición","Formula","Meta","Interpretación","Notas","Adicional",null,null,"CEI","Num_Indicadores"]
["Prevención",null,"Construcción",null,{"$f":"_xlfn._xlws.SORT(_xlfn.UNIQUE(tbPMA[ID CEI],FALSE,FALSE),1,1,FALSE)","v":0},{"$f":"IFERROR(VLOOKUP(E2,tbImpEstand[],2,FALSE),\"\")","v":""},{"$f":"IF(E2=\"\",\"\",IFERROR(VLOOKUP(E2,$I$2:$I$51,1,FALSE),\"NO DEFINIDO EN EL PSM\"))","v":"NO DEFINIDO EN EL PSM"},null,{"$f":"_xlfn._xlws.SORT(_xlfn.UNIQUE(tbPSM[ID_CEI],FALSE,FALSE),1,1,FALSE)","v":""},null,{"$f":"_xlfn._xlws.SORT(_xlfn.UNIQUE(tbPMA[ID CEI-MMA],FALSE,FALSE))","v":""},null,{"$f":"_xlfn._xlws.SORT(_xlfn.UNIQUE(tbMMA[ID],FALSE,FALSE),1,1,FALSE)","v":"MMA1"},{"$f":"IF(M2=\"\",\"\",IFERROR(VLOOKUP(M2,$R$2:$R$201,1,FALSE),\"NO DEFINIDO EN PMA\"))","v":"NO DEFINIDO EN PMA"},{"$f":"IF(N2=\"\",\"\",IFERROR(VLOOKUP(N2,$T$2:$T$201,1,FALSE),\"NO DEFINIDO EN EL PSM\"))","v":"NO DEFINIDO EN EL PSM"},null,null,{"$f":"_xlfn._xlws.SORT(_xlfn.UNIQUE(tbPMA[ID MMA],FALSE,FALSE),1,1,FALSE)","v":0},null,{"$f":"_xlfn._xlws.SORT(_xlfn.UNIQUE(tbPSM[ID_MMA],FALSE,FALSE),1,1,FALSE)","v":{"$error":"#VALUE!"}},null,{"$f":"_xlfn.UNIQUE(tbASM[ID ASM],FALSE,FALSE)","v":"ASM1"},{"$f":"IF(V2=\"\",\"\",IFERROR(VLOOKUP(V2,$Y$2:$Y$201,1,FALSE),\"NO DEFINIDO EN EL PSM\"))","v":"NO DEFINIDO EN EL PSM"},null,{"$f":"_xlfn._xlws.SORT(_xlfn.UNIQUE(tbPSM[ID ASM],FALSE,FALSE),1,1,FALSE)","v":0},null,{"$f":"SUM(tbImpEstand[USO_CEI])","v":0},null,{"$f":"SUM(tbMMA[USO_MMA])","v":0},null,{"$f":"SUM(tbPMA[Uso_CEI-MMA])","v":0},null,{"$f":"SUM(tbASM[USO_ASM])","v":0},null,{"$f":"_xlfn._xlws.SORT(_xlfn.UNIQUE(tbMMA[ID],FALSE,FALSE),1,1,TRUE)","v":"MMA1"},{"$f":"IF(AI2=\"\",\"\",COUNTIF(tbPMA[ID MMA],AI2))","v":0},{"$f":"SUMIF(tbPMA[ID MMA],AI2,tbPMA[PORCENTAJE COSTOS CEI])","v":0},null,{"$f":"_xlfn.UNIQUE(tbPSM[CEI MMA ASM],FALSE,FALSE)","v":"_"},{"$f":"LEFT(AM2,6)","v":"_"},{"$f":"IF(AN2=\"\",\"\",MID(AM2,8,FIND(\"_\",AM2,FIND(\"_\",AM2,FIND(\"_\",AM2,1)+1)+1)-8))","v":{"$error":"#VALUE!"}},{"$f":"IF(AM2=\"\",\"\",MID(AM2,FIND(\"_\",AM2,FIND(\"_\",AM2,FIND(\"_\",AM2,1)+1)+1)+1,6))","v":{"$error":"#VALUE!"}},null,null,"CEI-01-IND-01","Índice de Calidad de Aire - ICA",{"$f":"SUBSTITUTE(LEFT(AS2,6),\"-\",\"_\",1)","v":"CEI_01"},{"$f":"RIGHT(tbIndicadorCEI[[#This Row],[CÓDIGO]],2)","v":"01"},null,null,null,null,null,null,"NO",null,null,{"$f":"_xlfn._xlws.SORT(_xlfn.UNIQUE(tbImpEstand[ID CEI],FALSE,FALSE),1,1)","v":"CEI_01"},{"$f":"COUNTIF(tbIndicadorCEI[CEI],BF2)","v":4}]
["Mitigación",null,"Operación y mantenimiento",null,null,{"$f":"IFERROR(VLOOKUP(E3,tbImpEstand[],2,FALSE),\"\")","v":""},{"$f":"IF(E3=\"\",\"\",IFERROR(VLOOKUP(E3,$I$2:$I$51,1,FALSE),\"NO DEFINIDO EN EL PSM\"))","v":""},null,null,null,null,null,null,{"$f":"IF(M3=\"\",\"\",IFERROR(VLOOKUP(M3,$R$2:$R$201,1,FALSE),\"NO DEFINIDO EN PMA\"))","v":""},{"$f":"IF(N3=\"\",\"\",IFERROR(VLOOKUP(N3,$T$2:$T$201,1,FALSE),\"NO DEFINIDO EN EL PSM\"))","v":""},null,null,null,null,null,null,null,{"$f":"IF(V3=\"\",\"\",IFERROR(VLOOKUP(V3,$Y$2:$Y$201,1,FALSE),\"NO DEFINIDO EN EL PSM\"))","v":""},null,null,null,null,null,null,null,null,null,null,null,null,{"$f":"IF(AI3=\"\",\"\",COUNTIF(tbPMA[ID MMA],AI3))","v":""},{"$f":"SUMIF(tbPMA[ID MMA],AI3,tbPMA[PORCENTAJE COSTOS CEI])","v":0},null,null,{"$f":"LEFT(AM3,6)","v":""},{"$f":"IF(AN3=\"\",\"\",MID(AM3,8,FIND(\"_\",AM3,FIND(\"_\",AM3,FIND(\"_\",AM3,1)+1)+1)-8))","v":""},{"$f":"IF(AM3=\"\",\"\",MID(AM3,FIND(\"_\",AM3,FIND(\"_\",AM3,FIND(\"_\",AM3,1)+1)+1)+1,6))","v":""},null,null,"CEI-01-IND-02","Reducción de emisión de gases y/o material particulado",{"$f":"SUBSTITUTE(LEFT(AS3,6),\"-\",\"_\",1)","v":"CEI_01"},{"$f":"RIGHT(tbIndicadorCEI[[#This Row],[CÓDIGO]],2)","v":"02"},null,null,null,null,null,null,"NO",null,null,"CEI_02",{"$f":"COUNTIF(tbIndicadorCEI[CEI],BF3)","v":1}]
["Corrección",null,"Desmantelamiento y abandono",null,null,{"$f":"IFERROR(VLOOKUP(E4,tbImpEstand[],2,FALSE),\"\")","v":""},"",null,null,null,null,null,null,"","",null,null,null,null,null,null,null,"",null,null,null,null,null,null,null,null,null,null,null,null,{"$f":"IF(AI4=\"\",\"\",COUNTIF(tbPMA[ID MMA],AI4))","v":""},{"$f":"SUMIF(tbPMA[ID MMA],AI4,tbPMA[PORCENTAJE COSTOS CEI])","v":0},null,null,"","","",null,null,"CEI-01-IND-03","Fuentes fijas puntuales de emisión de gases y/o material particulado controladas",{"$f":"SUBSTITUTE(LEFT(AS4,6),\"-\",\"_\",1)","v":"CEI_01"},{"$f":"RIGHT(tbIndicadorCEI[[#This Row],[CÓDIGO]],2)","v":"03"},null,null,null,null,null,null,"NO",null,null,"CEI_03",{"$f":"COUNTIF(tbIndicadorCEI[CEI],BF4)","v":2}]
["Compensación",null,null,null,null,{"$f":"IFERROR(VLOOKUP(E5,tbImpEstand[],2,FALSE),\"\")","v":""},"",null,null,null,null,null,null,"","",null,null,null,null,null,null,null,"",null,null,null,null,null,"MMA_SIN_USAR",null,"MSM_SIN_USAR",null,null,null,null,{"$f":"IF(AI5=\"\",\"\",COUNTIF(tbPMA[ID MMA],AI5))","v":""},{"$f":"SUMIF(tbPMA[ID MMA],AI5,tbPMA[PORCENTAJE COSTOS CEI])","v":0},null,null,"","","",null,null,"CEI-01-IND-04","Reducción de gases de efecto invernadero – GEI",{"$f":"SUBSTITUTE(LEFT(AS5,6),\"-\",\"_\",1)","v":"CEI_01"},{"$f":"RIGHT(tbIndicadorCEI[[#This Row],[CÓDIGO]],2)","v":"04"},null,null,null,null,null,null,"NO",null,null,"CEI_04",{"$f":"COUNTIF(tbIndicadorCEI[CEI],BF5)","v":2}]
[null,null,null,null,null,{"$f":"IFERROR(VLOOKUP(E6,tbImpEstand[],2,FALSE),\"\")","v":""},"",null,null,null,null,null,null,"","",null,null,null,null,null,null,null,"",null,null,null,null,null,{"$f":"COUNTIF(tbMMA[USO_MMA],0)","v":1},null,{"$f":"COUNTIF(tbASM[USO_ASM],0)","v":1},null,null,null,null,{"$f":"IF(AI6=\"\",\"\",COUNTIF(tbPMA[ID MMA],AI6))","v":""},{"$f":"SUMIF(tbPMA[ID MMA],AI6,tbPMA[PORCENTAJE COSTOS CEI])","v":0},null,null,"","","",null,null,"CEI-02-IND-01","Variación porcentual de parámetros meteorológicos",{"$f":"SUBSTITUTE(LEFT(AS6,6),\"-\",\"_\",1)","v":"CEI_02"},{"$f":"RIGHT(tbIndicadorCEI[[#This Row],[CÓDIGO]],2)","v":"01"},null,null,null,null,null,null,"NO",null,null,"CEI_05",{"$f":"COUNTIF(tbIndicadorCEI[CEI],BF6)","v":2}]
["ORIGEN",null,null,null,null,{"$f":"IFERROR(VLOOKUP(E7,tbImpEstand[],2,FALSE),\"\")","v":""},"",null,null,null,null,null,null,"","",null,null,null,null,null,null,null,"",null,null,null,null,null,null,null,null,null,null,null,null,{"$f":"IF(AI7=\"\",\"\",COUNTIF(tbPMA[ID MMA],AI7))","v":""},{"$f":"SUMIF(tbPMA[ID MMA],AI7,tbPMA[PORCENTAJE COSTOS CEI])","v":0},null,null,"","","",null,null,"CEI-03-IND-01","Fuentes de emisión de ruido controladas",{"$f":"SUBSTITUTE(LEFT(AS7,6),\"-\",\"_\",1)","v":"CEI_03"},{"$f":"RIGHT(tbIndicadorCEI[[#This Row],[CÓDIGO]],2)","v":"01"},null,null,null,null,null,null,"NO",null,null,"CEI_06",{"$f":"COUNTIF(tbIndicadorCEI[CEI],BF7)","v":2}]
["MAGNA SIRGAS Único",null,null,null,null,{"$f":"IFERROR(VLOOKUP(E8,tbImpEstand[],2,FALSE),\"\")","v":""},"",null,null,null,null,null,null,"","",null,null,null,null,null,null,null,"",null,null,null,null,null,{"$f":"COUNTIF(tbMMA[USO_MMA],0)","v":1},null,{"$f":"COUNTIF(tbASM[USO_ASM],0)","v":1},null,null,null,null,{"$f":"IF(AI8=\"\",\"\",COUNTIF(tbPMA[ID MMA],AI8))","v":""},{"$f":"SUMIF(tbPMA[ID MMA],AI8,tbPMA[PORCENTAJE COSTOS CEI])","v":0},null,null,"","","",null,null,"CEI-03-IND-02","Excedencia de niveles de emisión de ruido",{"$f":"SUBSTITUTE(LEFT(AS8,6),\"-\",\"_\",1)","v":"CEI_03"},{"$f":"RIGHT(tbIndicadorCEI[[#This Row],[CÓDIGO]],2)","v":"02"},null,null,null,null,null,null,"NO",null,null,"CEI_07",{"$f":"COUNTIF(tbIndicadorCEI[CEI],BF8)","v":1}]
[null,null,"Aplica",null,null,{"$f":"IFERROR(VLOOKUP(E9,tbImpEstand[],2,FALSE),\"\")","v":""},"",null,null,null,null,null,null,"","",null,null,null,null,null,null,null,"",null,null,null,null,null,null,null,null,null,null,null,null,{"$f":"IF(AI9=\"\",\"\",COUNTIF(tbPMA[ID MMA],AI9))","v":""},{"$f":"SUMIF(tbPMA[ID MMA],AI9,tbPMA[PORCENTAJE COSTOS CEI])","v":0},null,null,"","","",null,null,"CEI-04-IND-01","Fuentes de radiación ionizante y/o no ionizante controladas",{"$f":"SUBSTITUTE(LEFT(AS9,6),\"-\",\"_\",1)","v":"CEI_04"},{"$f":"RIGHT(tbIndicadorCEI[[#This Row],[CÓDIGO]],2)","v":"01"},null,null,null,null,null,null,"NO",null,null,"CEI_08",{"$f":"COUNTIF(tbIndicadorCEI[CEI],BF9)","v":6}]
["MAGNA SIRGAS Bogotá",null,"Si",null,null,{"$f":"IFERROR(VLOOKUP(E10,tbImpEstand[],2,FALSE),\"\")","v":""},"",null,null,null,null,null,null,"","",null,null,null,null,null,null,null,"",null,null,null,null,null,null,null,null,null,null,null,null,{"$f":"IF(AI10=\"\",\"\",COUNTIF(tbPMA[ID MMA],AI10))","v":""},{"$f":"SUMIF(tbPMA[ID MMA],AI10,tbPMA[PORCENTAJE COSTOS CEI])","v":0},null,null,"","","",null,null,"CEI-04-IND-02","Reducción de emisión de radiación",{"$f":"SUBSTITUTE(LEFT(AS10,6),\"-\",\"_\",1)","v":"CEI_04"},{"$f":"RIGHT(tbIndicadorCEI[[#This Row],[CÓDIGO]],2)","v":"02"},null,null,null,null,null,null,"NO",null,null,"CEI_09",{"$f":"COUNTIF(tbIndicadorCEI[CEI],BF10)","v":1}]
["MAGNA SIRGAS Este",null,"No",null,null,{"$f":"IFERROR(VLOOKUP(E11,tbImpEstand[],2,FALSE),\"\")","v":""},"",null,null,null,null,null,null,"","",null,null,null,null,null,null,null,"",null,null,null,null,null,null,null,null,null,null,null,null,{"$f":"IF(AI11=\"\",\"\",COUNTIF(tbPMA[ID MMA],AI11))","v":""},{"$f":"SUMIF(tbPMA[ID MMA],AI11,tbPMA[PORCENTAJE COSTOS CEI])","v":0},null,null,"","","",null,null,"CEI-05-IND-01","Olores ofensivos por sustancia o mezcla de sustancias controlados",{"$f":"SUBSTITUTE(LEFT(AS11,6),\"-\",\"_\",1)","v":"CEI_05"},{"$f":"RIGHT(tbIndicadorCEI[[#This Row],[CÓDIGO]],2)","v":"01"},null,null,null,null,null,null,"NO",null,null,"CEI_10",{"$f":"COUNTIF(tbIndicadorCEI[CEI],BF11)","v":4}]
["MAGNA SIRGAS Este Este",null,null,null,null,{"$f":"IFERROR(VLOOKUP(E12,tbImpEstand[],2,FALSE),\"\")","v":""},"",null,null,null,null,null,null,"","",null,null,null,null,null,null,null,"",null,null,null,null,null,null,null,null,null,null,null,null,{"$f":"IF(AI12=\"\",\"\",COUNTIF(tbPMA[ID MMA],AI12))","v":""},{"$f":"SUMIF(tbPMA[ID MMA],AI12,tbPMA[PORCENTAJE COSTOS CEI])","v":0},null,null,"","","",null,null,"CEI-05-IND-02","Reducción de emisión de olores ofensivos",{"$f":"SUBSTITUTE(LEFT(AS12,6),\"-\",\"_\",1)","v":"CEI_05"},{"$f":"RIGHT(tbIndicadorCEI[[#This Row],[CÓDIGO]],2)","v":"02"},null,null,null,null,null,null,"NO",null,null,"CEI_11",{"$f":"COUNTIF(tbIndicadorCEI[CEI],BF12)","v":4}]
["MAGNA SIRGAS Oeste",null,null,null,null,{"$f":"IFERROR(VLOOKUP(E13,tbImpEstand[],2,FALSE),\"\")","v":""},"",null,null,null,null,null,null,"","",null,null,null,null,null,null,null,"",null,null,null,null,null,null,null,null,null,null,null,null,{"$f":"IF(AI13=\"\",\"\",COUNTIF(tbPMA[ID MMA],AI13))","v":""},{"$f":"SUMIF(tbPMA[ID MMA],AI13,tbPMA[PORCENTAJE COSTOS CEI])","v":0},null,null,"","","",null,null,"CEI-06-IND-01","Número de eventos sísmicos inducidos por las actividades del POA",{"$f":"SUBSTITUTE(LEFT(AS13,6),\"-\",\"_\",1)","v":"CEI_06"},{"$f":"RIGHT(tbIndicadorCEI[[#This Row],[CÓDIGO]],2)","v":"01"},null,null,null,null,null,null,"NO",null,null,"CEI_12",{"$f":"COUNTIF(tbIndicadorCEI[CEI],BF13)","v":9}]
["MAGNA SIRGAS Oeste Oeste",null,null,null,null,{"$f":"IFERROR(VLOOKUP(E14,tbImpEstand[],2,FALSE),\"\")","v":""},"",null,null,null,null,null,null,"","",null,null,null,null,null,null,null,"",null,null,null,null,null,null,null,null,null,null,null,null,{"$f":"IF(AI14=\"\",\"\",COUNTIF(tbPMA[ID MMA],AI14))","v":""},{"$f":"SUMIF(tbPMA[ID MMA],AI14,tbPMA[PORCENTAJE COSTOS CEI])","v":0},null,null,"","","",null,null,"CEI-06-IND-02","Vibraciones en superficie atribuibles a las actividades del POA",{"$f":"SUBSTITUTE(LEFT(AS14,6),\"-\",\"_\",1)","v":"CEI_06"},{"$f":"RIGHT(tbIndicadorCEI[[#This Row],[CÓDIGO]],2)","v":"02"},null,null,null,null,null,null,"NO",null,null,"CEI_13",{"$f":"COUNTIF(tbIndicadorCEI[CEI],BF14)","v":2}]
["MAGNA SIRGAS Insular",null,null,null,null,{"$f":"IFERROR(VLOOKUP(E15,tbImpEstand[],2,FALSE),\"\")","v":""},"",null,null,null,null,null,null,"","",null,null,null,null,null,null,null,"",null,null,null,null,null,null,null,null,null,null,null,null,{"$f":"IF(AI15=\"\",\"\",COUNTIF(tbPMA[ID MMA],AI15))","v":""},{"$f":"SUMIF(tbPMA[ID MMA],AI15,tbPMA[PORCENTAJE COSTOS CEI])","v":0},null,null,"","","",null,null,"CEI-07-IND-01","Áreas reconformadas y/o restauradas morfológicamente",{"$f":"SUBSTITUTE(LEFT(AS15,6),\"-\",\"_\",1)","v":"CEI_07"},{"$f":"RIGHT(tbIndicadorCEI[[#This Row],[CÓDIGO]],2)","v":"01"},null,null,null,null,null,null,"NO",null,null,"CEI_14",{"$f":"COUNTIF(tbIndicadorCEI[CEI],BF15)","v":4}]
[null,null,"UnidadTiempo",null,null,{"$f":"IFERROR(VLOOKUP(E16,tbImpEstand[],2,FALSE),\"\")","v":""},"",null,null,null,null,null,null,"","",null,null,null,null,null,null,null,"",null,null,null,null,null,null,null,null,null,null,null,null,{"$f":"IF(AI16=\"\",\"\",COUNTIF(tbPMA[ID MMA],AI16))","v":""},{"$f":"SUMIF(tbPMA[ID MMA],AI16,tbPMA[PORCENTAJE COSTOS CEI])","v":0},null,null,"","","",null,null,"CEI-08-IND-01","Áreas intervenidas estabilizadas",{"$f":"SUBSTITUTE(LEFT(AS16,6),\"-\",\"_\",1)","v":"CEI_08"},{"$f":"RIGHT(tbIndicadorCEI[[#This Row],[CÓDIGO]],2)","v":"01"},null,null,null,null,null,null,"NO",null,null,"CEI_15",{"$f":"COUNTIF(tbIndicadorCEI[CEI],BF16)","v":3}]
[null,null,"Mes",null,null,{"$f":"IFERROR(VLOOKUP(E17,tbImpEstand[],2,FALSE),\"\")","v":""},"",null,null,null,null,null,null,"","",null,null,null,null,null,null,null,"",null,null,null,"ID_CAI","CAI",null,null,null,null,null,null,null,{"$f":"IF(AI17=\"\",\"\",COUNTIF(tbPMA[ID MMA],AI17))","v":""},{"$f":"SUMIF(tbPMA[ID MMA],AI17,tbPMA[PORCENTAJE COSTOS CEI])","v":0},null,null,"","","",null,null,"CEI-08-IND-02","Identificación de puntos críticos",{"$f":"SUBSTITUTE(LEFT(AS17,6),\"-\",\"_\",1)","v":"CEI_08"},{"$f":"RIGHT(tbIndicadorCEI[[#This Row],[CÓDIGO]],2)","v":"02"},null,null,null,null,null,null,"NO",null,null,"CEI_16",{"$f":"COUNTIF(tbIndicadorCEI[CEI],BF17)","v":2}]
["MEDIO",null,"Año",null,null,{"$f":"IFERROR(VLOOKUP(E18,tbImpEstand[],2,FALSE),\"\")","v":""},"",null,null,null,null,null,null,"","",null,null,null,null,null,null,null,"",null,null,null,{"$f":"_xlfn._xlws.FILTER(tbImpEstand[[ID CEI]:[CATEGORÍA ESTANDARIZADA DE IMPACTO]],LEFT(tbImpEstand[ID CEI],3)=\"CAI\",\"No hay categorías adicionales\")","v":"No hay categorías adicionales"},null,null,null,null,null,null,null,null,{"$f":"IF(AI18=\"\",\"\",COUNTIF(tbPMA[ID MMA],AI18))","v":""},{"$f":"SUMIF(tbPMA[ID MMA],AI18,tbPMA[PORCENTAJE COSTOS CEI])","v":0},null,null,"","","",null,null,"CEI-08-IND-03","Variación de los factores de seguridad",{"$f":"SUBSTITUTE(LEFT(AS18,6),\"-\",\"_\",1)","v":"CEI_08"},{"$f":"RIGHT(tbIndicadorCEI[[#This Row],[CÓDIGO]],2)","v":"03"},null,null,null,null,null,null,"NO",null,null,"CEI_17",{"$f":"COUNTIF(tbIndicadorCEI[CEI],BF18)","v":3}]
["Abiótico",null,null,null,null,{"$f":"IFERROR(VLOOKUP(E19,tbImpEstand[],2,FALSE),\"\")","v":""},"",null,null,null,null,null,null,"","",null,null,null,null,null,null,null,"",null,null,null,null,null,null,null,null,null,null,null,null,{"$f":"IF(AI19=\"\",\"\",COUNTIF(tbPMA[ID MMA],AI19))","v":""},{"$f":"SUMIF(tbPMA[ID MMA],AI19,tbPMA[PORCENTAJE COSTOS CEI])","v":0},null,null,"","","",null,null,"CEI-08-IND-04","Variación de la calidad del macizo rocoso",{"$f":"SUBSTITUTE(LEFT(AS19,6),\"-\",\"_\",1)","v":"CEI_08"},{"$f":"RIGHT(tbIndicadorCEI[[#This Row],[CÓDIGO]],2)","v":"04"},null,null,null,null,null,null,"NO",null,null,"CEI_18",{"$f":"COUNTIF(tbIndicadorCEI[CEI],BF19)","v":3}]
["Biótico",null,null,null,null,{"$f":"IFERROR(VLOOKUP(E20,tbImpEstand[],2,FALSE),\"\")","v":""},"",null,null,null,null,null,null,"","",null,null,null,null,null,null,null,"",null,null,null,null,null,null,null,null,null,null,null,null,{"$f":"IF(AI20=\"\",\"\",COUNTIF(tbPMA[ID MMA],AI20))","v":""},{"$f":"SUMIF(tbPMA[ID MMA],AI20,tbPMA[PORCENTAJE COSTOS CEI])","v":0},null,null,"","","",null,null,"CEI-08-IND-05","Variación de las presiones de poro",{"$f":"SUBSTITUTE(LEFT(AS20,6),\"-\",\"_\",1)","v":"CEI_08"},{"$f":"RIGHT(tbIndicadorCEI[[#This Row],[CÓDIGO]],2)","v":"05"},null,null,null,null,null,null,"NO",null,null,"CEI_19",{"$f":"COUNTIF(tbIndicadorCEI[CEI],BF20)","v":3}]
["Socioeconómico",null,null,null,null,{"$f":"IFERROR(VLOOKUP(E21,tbImpEstand[],2,FALSE),\"\")","v":""},"",null,null,null,null,null,null,"","",null,null,null,null,null,null,null,"",null,null,null,null,null,null,null,null,null,null,null,null,{"$f":"IF(AI21=\"\",\"\",COUNTIF(tbPMA[ID MMA],AI21))","v":""},{"$f":"SUMIF(tbPMA[ID MMA],AI21,tbPMA[PORCENTAJE COSTOS CEI])","v":0},null,null,"","","",null,null,"CEI-08-IND-06","Variación de deformación del material geológico medido y/o de las estructuras construidas",{"$f":"SUBSTITUTE(LEFT(AS21,6),\"-\",\"_\",1)","v":"CEI_08"},{"$f":"RIGHT(tbIndicadorCEI[[#This Row],[CÓDIGO]],2)","v":"06"},null,null,null,null,null,null,"NO",null,null,"CEI_20",{"$f":"COUNTIF(tbIndicadorCEI[CEI],BF21)","v":3}]
[null,null,"COMPONENTE",null,null,{"$f":"IFERROR(VLOOKUP(E22,tbImpEstand[],2,FALSE),\"\")","v":""},"",null,null,null,null,null,null,"","",null,null,null,null,null,null,null,"",null,null,null,null,null,null,null,null,null,null,null,null,{"$f":"IF(AI22=\"\",\"\",COUNTIF(tbPMA[ID MMA],AI22))","v":""},{"$f":"SUMIF(tbPMA[ID MMA],AI22,tbPMA[PORCENTAJE COSTOS CEI])","v":0},null,null,"","","",null,null,"CEI-09-IND-01","Calidad del recurso hídrico subterráneo",{"$f":"SUBSTITUTE(LEFT(AS22,6),\"-\",\"_\",1)","v":"CEI_09"},{"$f":"RIGHT(tbIndicadorCEI[[#This Row],[CÓDIGO]],2)","v":"01"},null,null,null,null,null,null,"NO",null,null,"CEI_21",{"$f":"COUNTIF(tbIndicadorCEI[CEI],BF22)","v":1}]
[null,null,"Atmosférico",null,null,{"$f":"IFERROR(VLOOKUP(E23,tbImpEstand[],2,FALSE),\"\")","v":""},"",null,null,null,null,null,null,"","",null,null,null,null,null,null,null,"",null,null,null,null,null,null,null,null,null,null,null,null,{"$f":"IF(AI23=\"\",\"\",COUNTIF(tbPMA[ID MMA],AI23))","v":""},{"$f":"SUMIF(tbPMA[ID MMA],AI23,tbPMA[PORCENTAJE COSTOS CEI])","v":0},null,null,"","","",null,null,"CEI-10-IND-01","Nivel piezométrico de los acuíferos y/o sus zonas de recarga mantenido",{"$f":"SUBSTITUTE(LEFT(AS23,6),\"-\",\"_\",1)","v":"CEI_10"},{"$f":"RIGHT(tbIndicadorCEI[[#This Row],[CÓDIGO]],2)","v":"01"},null,null,null,null,null,null,"NO",null,null,"CEI_22",{"$f":"COUNTIF(tbIndicadorCEI[CEI],BF23)","v":1}]
[null,null,"Geológico",null,null,{"$f":"IFERROR(VLOOKUP(E24,tbImpEstand[],2,FALSE),\"\")","v":""},"",null,null,null,null,null,null,"","",null,null,null,null,null,null,null,"",null,null,null,null,null,null,null,null,null,null,null,null,{"$f":"IF(AI24=\"\",\"\",COUNTIF(tbPMA[ID MMA],AI24))","v":""},{"$f":"SUMIF(tbPMA[ID MMA],AI24,tbPMA[PORCENTAJE COSTOS CEI])","v":0},null,null,{"$f":"LEFT(AM24,6)","v":""},"","",null,null,"CEI-10-IND-02","Caudal de agua infiltrado",{"$f":"SUBSTITUTE(LEFT(AS24,6),\"-\",\"_\",1)","v":"CEI_10"},{"$f":"RIGHT(tbIndicadorCEI[[#This Row],[CÓDIGO]],2)","v":"02"},null,null,null,null,null,null,"NO",null,null,"CEI_23",{"$f":"COUNTIF(tbIndicadorCEI[CEI],BF24)","v":1}]
["CEI_MMA_ASM",null,"Geomorfológico",null,null,{"$f":"IFERROR(VLOOKUP(E25,tbImpEstand[],2,FALSE),\"\")","v":""},"",null,null,null,null,null,null,"","",null,null,null,null,null,null,null,"",null,null,null,null,null,null,null,null,null,null,null,null,{"$f":"IF(AI25=\"\",\"\",COUNTIF(tbPMA[ID MMA],AI25))","v":""},{"$f":"SUMIF(tbPMA[ID MMA],AI25,tbPMA[PORCENTAJE COSTOS CEI])","v":0},null,null,"","","",null,null,"CEI-10-IND-03","Caudal de manantiales mantenido",{"$f":"SUBSTITUTE(LEFT(AS25,6),\"-\",\"_\",1)","v":"CEI_10"},{"$f":"RIGHT(tbIndicadorCEI[[#This Row],[CÓDIGO]],2)","v":"03"},null,null,null,null,null,null,"NO",null,null,"CEI_24",{"$f":"COUNTIF(tbIndicadorCEI[CEI],BF25)","v":1}]
[{"$f":"OFFSET(Listas!$AM$2,,,COUNTIF(CEI_MMA_ASM,\"?*\"))","v":"_"},null,"Geotecnia",null,null,{"$f":"IFERROR(VLOOKUP(E26,tbImpEstand[],2,FALSE),\"\")","v":""},"",null,null,null,null,null,null,"","",null,null,null,null,null,null,null,"",null,null,null,null,null,null,null,null,null,null,null,null,{"$f":"IF(AI26=\"\",\"\",COUNTIF(tbPMA[ID MMA],AI26))","v":""},{"$f":"SUMIF(tbPMA[ID MMA],AI26,tbPMA[PORCENTAJE COSTOS CEI])","v":0},null,null,"","","",null,null,"CEI-10-IND-04","Manantiales desaparecidos",{"$f":"SUBSTITUTE(LEFT(AS26,6),\"-\",\"_\",1)","v":"CEI_10"},{"$f":"RIGHT(tbIndicadorCEI[[#This Row],[CÓDIGO]],2)","v":"04"},null,null,null,null,null,null,"NO",null,null,"CEI_25",{"$f":"COUNTIF(tbIndicadorCEI[CEI],BF26)","v":1}]
[null,null,"Hidrogeológico",null,null,{"$f":"IFERROR(VLOOKUP(E27,tbImpEstand[],2,FALSE),\"\")","v":""},"",null,null,null,null,null,null,"","",null,null,null,null,null,null,null,"",null,null,null,"CEI_01_MMA1_ASM1",null,{"$f":"_xlfn._xlws.FILTER(tbIndicadorCEI[CÓDIGO],tbIndicadorCEI[CEI]=LEFT(AA27,6),\"Esta categoría no tiene indicadores\")","v":"CEI-01-IND-01"},null,{"$f":"OFFSET(AC27,,,VLOOKUP(LEFT(AA27,6),NumIndicadores,2,FALSE),1)","v":"CEI-01-IND-01"},null,null,null,null,{"$f":"IF(AI27=\"\",\"\",COUNTIF(tbPMA[ID MMA],AI27))","v":""},{"$f":"SUMIF(tbPMA[ID MMA],AI27,tbPMA[PORCENTAJE COSTOS CEI])","v":0},null,null,"","","",null,null,"CEI-11-IND-01","Cambios y/o alteraciones de las condiciones naturales de la corriente controlados",{"$f":"SUBSTITUTE(LEFT(AS27,6),\"-\",\"_\",1)","v":"CEI_11"},{"$f":"RIGHT(tbIndicadorCEI[[#This Row],[CÓDIGO]],2)","v":"01"},null,null,null,null,null,null,"NO",null,null,"CEI_26",{"$f":"COUNTIF(tbIndicadorCEI[CEI],BF27)","v":3}]
[null,null,"Hidrológico",null,null,{"$f":"IFERROR(VLOOKUP(E28,tbImpEstand[],2,FALSE),\"\")","v":""},"",null,null,null,null,null,null,"","",null,null,null,null,null,null,null,"",null,null,null,null,null,"CEI-01-IND-02",null,"CEI-01-IND-02",null,null,null,null,{"$f":"IF(AI28=\"\",\"\",COUNTIF(tbPMA[ID MMA],AI28))","v":""},{"$f":"SUMIF(tbPMA[ID MMA],AI28,tbPMA[PORCENTAJE COSTOS CEI])","v":0},null,null,"","","",null,null,"CEI-11-IND-02","Histórico del nivel base de erosión",{"$f":"SUBSTITUTE(LEFT(AS28,6),\"-\",\"_\",1)","v":"CEI_11"},{"$f":"RIGHT(tbIndicadorCEI[[#This Row],[CÓDIGO]],2)","v":"02"},null,null,null,null,null,null,"NO",null,null,"CEI_27",{"$f":"COUNTIF(tbIndicadorCEI[CEI],BF28)","v":2}]
[null,null,"Oceanográfico",null,null,{"$f":"IFERROR(VLOOKUP(E29,tbImpEstand[],2,FALSE),\"\")","v":""},"",null,null,null,null,null,null,"","",null,null,null,null,null,null,null,"",null,null,null,null,null,"CEI-01-IND-03",null,"CEI-01-IND-03",null,null,null,null,{"$f":"IF(AI29=\"\",\"\",COUNTIF(tbPMA[ID MMA],AI29))","v":""},{"$f":"SUMIF(tbPMA[ID MMA],AI29,tbPMA[PORCENTAJE COSTOS CEI])","v":0},null,null,"","","",null,null,"CEI-11-IND-03","Histórico del factor de sinuosidad",{"$f":"SUBSTITUTE(LEFT(AS29,6),\"-\",\"_\",1)","v":"CEI_11"},{"$f":"RIGHT(tbIndicadorCEI[[#This Row],[CÓDIGO]],2)","v":"03"},null,null,null,null,null,null,"NO",null,null,"CEI_28",{"$f":"COUNTIF(tbIndicadorCEI[CEI],BF29)","v":2}]
[null,null,"Suelo",null,null,{"$f":"IFERROR(VLOOKUP(E30,tbImpEstand[],2,FALSE),\"\")","v":""},{"$f":"IF(E30=\"\",\"\",IFERROR(VLOOKUP(E30,$I$2:$I$51,1,FALSE),\"NO DEFINIDO EN EL PSM\"))","v":""},null,null,null,null,null,null,"","",null,null,null,null,null,null,null,"",null,null,null,null,null,"CEI-01-IND-04",null,"CEI-01-IND-04",null,null,null,null,{"$f":"IF(AI30=\"\",\"\",COUNTIF(tbPMA[ID MMA],AI30))","v":""},{"$f":"SUMIF(tbPMA[ID MMA],AI30,tbPMA[PORCENTAJE COSTOS CEI])","v":0},null,null,"","","",null,null,"CEI-11-IND-04","Incremento en el nivel de amenaza por procesos de remoción en masa",{"$f":"SUBSTITUTE(LEFT(AS30,6),\"-\",\"_\",1)","v":"CEI_11"},{"$f":"RIGHT(tbIndicadorCEI[[#This Row],[CÓDIGO]],2)","v":"04"},null,null,null,null,null,null,"NO",null,null,"CEI_29",{"$f":"COUNTIF(tbIndicadorCEI[CEI],BF30)","v":5}]
[null,null,"Otro",null,null,{"$f":"IFERROR(VLOOKUP(E31,tbImpEstand[],2,FALSE),\"\")","v":""},"",null,null,null,null,null,null,"","",null,null,null,null,null,null,null,"",null,null,null,null,null,null,null,null,null,null,null,null,{"$f":"IF(AI31=\"\",\"\",COUNTIF(tbPMA[ID MMA],AI31))","v":""},{"$f":"SUMIF(tbPMA[ID MMA],AI31,tbPMA[PORCENTAJE COSTOS CEI])","v":0},null,null,"","","",null,null,"CEI-12-IND-01","Carga contaminante",{"$f":"SUBSTITUTE(LEFT(AS31,6),\"-\",\"_\",1)","v":"CEI_12"},{"$f":"RIGHT(tbIndicadorCEI[[#This Row],[CÓDIGO]],2)","v":"01"},null,null,null,null,null,null,"NO",null,null,null,{"$f":"COUNTIF(tbIndicadorCEI[CEI],BF31)","v":0}]
[null,null,null,null,null,{"$f":"IFERROR(VLOOKUP(E32,tbImpEstand[],2,FALSE),\"\")","v":""},"",null,null,null,null,null,null,"","",null,null,null,null,null,null,null,"",null,null,null,null,null,null,null,null,null,null,null,null,{"$f":"IF(AI32=\"\",\"\",COUNTIF(tbPMA[ID MMA],AI32))","v":""},{"$f":"SUMIF(tbPMA[ID MMA],AI32,tbPMA[PORCENTAJE COSTOS CEI])","v":0},null,null,"","","",null,null,"CEI-12-IND-02","Índice de contaminación por mineralización (ICOMI)",{"$f":"SUBSTITUTE(LEFT(AS32,6),\"-\",\"_\",1)","v":"CEI_12"},{"$f":"RIGHT(tbIndicadorCEI[[#This Row],[CÓDIGO]],2)","v":"02"},null,null,null,null,null,null,"NO",null,null,null,{"$f":"COUNTIF(tbIndicadorCEI[CEI],BF32)","v":0}]
[null,null,null,null,null,{"$f":"IFERROR(VLOOKUP(E33,tbImpEstand[],2,FALSE),\"\")","v":""},"",null,null,null,null,null,null,"","",null,null,null,null,null,null,null,"",null,null,null,null,null,null,null,null,null,null,null,null,{"$f":"IF(AI33=\"\",\"\",COUNTIF(tbPMA[ID MMA],AI33))","v":""},{"$f":"SUMIF(tbPMA[ID MMA],AI33,tbPMA[PORCENTAJE COSTOS CEI])","v":0},null,null,"","","",null,null,"CEI-12-IND-03","Índice de contaminación por materia orgánica (ICOMO)",{"$f":"SUBSTITUTE(LEFT(AS33,6),\"-\",\"_\",1)","v":"CEI_12"},{"$f":"RIGHT(tbIndicadorCEI[[#This Row],[CÓDIGO]],2)","v":"03"},null,null,null,null,null,null,"NO",null,null,null,{"$f":"COUNTIF(tbIndicadorCEI[CEI],BF33)","v":0}]
[null,null,null,null,null,{"$f":"IFERROR(VLOOKUP(E34,tbImpEstand[],2,FALSE),\"\")","v":""},"",null,null,null,null,null,null,"","",null,null,null,null,null,null,null,"",null,null,null,null,null,null,null,null,null,null,null,null,{"$f":"IF(AI34=\"\",\"\",COUNTIF(tbPMA[ID MMA],AI34))","v":""},{"$f":"SUMIF(tbPMA[ID MMA],AI34,tbPMA[PORCENTAJE COSTOS CEI])","v":0},null,null,"","","",null,null,"CEI-12-IND-04","Índice de contaminación por sólidos suspendidos (ICOSUS)",{"$f":"SUBSTITUTE(LEFT(AS34,6),\"-\",\"_\",1)","v":"CEI_12"},{"$f":"RIGHT(tbIndicadorCEI[[#This Row],[CÓDIGO]],2)","v":"04"},null,null,null,null,null,null,"NO",null,null,null,{"$f":"COUNTIF(tbIndicadorCEI[CEI],BF34)","v":0}]
[null,null,"COMPONENTE",null,null,{"$f":"IFERROR(VLOOKUP(E35,tbImpEstand[],2,FALSE),\"\")","v":""},"",null,null,null,null,null,null,"","",null,null,null,null,null,null,null,"",null,null,null,null,null,null,null,null,null,null,null,null,{"$f":"IF(AI35=\"\",\"\",COUNTIF(tbPMA[ID MMA],AI35))","v":""},{"$f":"SUMIF(tbPMA[ID MMA],AI35,tbPMA[PORCENTAJE COSTOS CEI])","v":0},null,null,"","","",null,null,"CEI-12-IND-05","Índice de contaminación por temperatura (ICOTEMP)",{"$f":"SUBSTITUTE(LEFT(AS35,6),\"-\",\"_\",1)","v":"CEI_12"},{"$f":"RIGHT(tbIndicadorCEI[[#This Row],[CÓDIGO]],2)","v":"05"},null,null,null,null,null,null,"NO",null,null,null,{"$f":"COUNTIF(tbIndicadorCEI[CEI],BF35)","v":0}]
[null,null,"Cobertura",null,null,{"$f":"IFERROR(VLOOKUP(E36,tbImpEstand[],2,FALSE),\"\")","v":""},"",null,null,null,null,null,null,"","",null,null,null,null,null,null,null,"",null,null,null,null,null,null,null,null,null,null,null,null,{"$f":"IF(AI36=\"\",\"\",COUNTIF(tbPMA[ID MMA],AI36))","v":""},{"$f":"SUMIF(tbPMA[ID MMA],AI36,tbPMA[PORCENTAJE COSTOS CEI])","v":0},null,null,"","","",null,null,"CEI-12-IND-06","Índice de contaminación por pH (ICOpH)",{"$f":"SUBSTITUTE(LEFT(AS36,6),\"-\",\"_\",1)","v":"CEI_12"},{"$f":"RIGHT(tbIndicadorCEI[[#This Row],[CÓDIGO]],2)","v":"06"},null,null,null,null,null,null,"NO"]
[null,null,"Ecosistema",null,null,{"$f":"IFERROR(VLOOKUP(E37,tbImpEstand[],2,FALSE),\"\")","v":""},"",null,null,null,null,null,null,"","",null,null,null,null,null,null,null,"",null,null,null,null,null,null,null,null,null,null,null,null,{"$f":"IF(AI37=\"\",\"\",COUNTIF(tbPMA[ID MMA],AI37))","v":""},{"$f":"SUMIF(tbPMA[ID MMA],AI37,tbPMA[PORCENTAJE COSTOS CEI])","v":0},null,null,"","","",null,null,"CEI-12-IND-07","Calidad del recurso hídrico superficial asociado a los usos del agua",{"$f":"SUBSTITUTE(LEFT(AS37,6),\"-\",\"_\",1)","v":"CEI_12"},{"$f":"RIGHT(tbIndicadorCEI[[#This Row],[CÓDIGO]],2)","v":"07"},null,null,null,null,null,null,"NO"]
[null,null,"Fauna",null,null,{"$f":"IFERROR(VLOOKUP(E38,tbImpEstand[],2,FALSE),\"\")","v":""},"",null,null,null,null,null,null,"","",null,null,null,null,null,null,null,"",null,null,null,null,null,null,null,null,null,null,null,null,{"$f":"IF(AI38=\"\",\"\",COUNTIF(tbPMA[ID MMA],AI38))","v":""},{"$f":"SUMIF(tbPMA[ID MMA],AI38,tbPMA[PORCENTAJE COSTOS CEI])","v":0},null,null,"","","",null,null,"CEI-12-IND-08","Calidad del recurso hídrico superficial asociado a los objetivos de calidad establecidos por la autoridad ambiental regional",{"$f":"SUBSTITUTE(LEFT(AS38,6),\"-\",\"_\",1)","v":"CEI_12"},{"$f":"RIGHT(tbIndicadorCEI[[#This Row],[CÓDIGO]],2)","v":"08"},null,null,null,null,null,null,"NO"]
[null,null,"Fauna-Hidrobiota",null,null,{"$f":"IFERROR(VLOOKUP(E39,tbImpEstand[],2,FALSE),\"\")","v":""},"",null,null,null,null,null,null,"","",null,null,null,null,null,null,null,"",null,null,null,null,null,null,null,null,null,null,null,null,{"$f":"IF(AI39=\"\",\"\",COUNTIF(tbPMA[ID MMA],AI39))","v":""},{"$f":"SUMIF(tbPMA[ID MMA],AI39,tbPMA[PORCENTAJE COSTOS CEI])","v":0},null,null,"","","",null,null,"CEI-12-IND-09","Índice Biológico BMWP/Col (Biological Monitoring Working Party Score)",{"$f":"SUBSTITUTE(LEFT(AS39,6),\"-\",\"_\",1)","v":"CEI_12"},{"$f":"RIGHT(tbIndicadorCEI[[#This Row],[CÓDIGO]],2)","v":"09"},null,null,null,null,null,null,"NO"]
[null,null,"Flora",null,null,{"$f":"IFERROR(VLOOKUP(E40,tbImpEstand[],2,FALSE),\"\")","v":""},"",null,null,null,null,null,null,"","",null,null,null,null,null,null,null,"",null,null,null,null,null,null,null,null,null,null,null,null,{"$f":"IF(AI40=\"\",\"\",COUNTIF(tbPMA[ID MMA],AI40))","v":""},{"$f":"SUMIF(tbPMA[ID MMA],AI40,tbPMA[PORCENTAJE COSTOS CEI])","v":0},null,null,"","","",null,null,"CEI-13-IND-01","Cambio en el caudal de las fuentes de agua superficial",{"$f":"SUBSTITUTE(LEFT(AS40,6),\"-\",\"_\",1)","v":"CEI_13"},{"$f":"RIGHT(tbIndicadorCEI[[#This Row],[CÓDIGO]],2)","v":"01"},null,null,null,null,null,null,"NO"]
[null,null,"Otro",null,null,{"$f":"IFERROR(VLOOKUP(E41,tbImpEstand[],2,FALSE),\"\")","v":""},"",null,null,null,null,null,null,"","",null,null,null,null,null,null,null,"",null,null,null,null,null,null,null,null,null,null,null,null,{"$f":"IF(AI41=\"\",\"\",COUNTIF(tbPMA[ID MMA],AI41))","v":""},{"$f":"SUMIF(tbPMA[ID MMA],AI41,tbPMA[PORCENTAJE COSTOS CEI])","v":0},null,null,"","","",null,null,"CEI-13-IND-02","Variación en el caudal condicionado",{"$f":"SUBSTITUTE(LEFT(AS41,6),\"-\",\"_\",1)","v":"CEI_13"},{"$f":"RIGHT(tbIndicadorCEI[[#This Row],[CÓDIGO]],2)","v":"02"},null,null,null,null,null,null,"NO"]
[null,null,null,null,null,{"$f":"IFERROR(VLOOKUP(E42,tbImpEstand[],2,FALSE),\"\")","v":""},"",null,null,null,null,null,null,"","",null,null,null,null,null,null,null,"",null,null,null,null,null,null,null,null,null,null,null,null,{"$f":"IF(AI42=\"\",\"\",COUNTIF(tbPMA[ID MMA],AI42))","v":""},{"$f":"SUMIF(tbPMA[ID MMA],AI42,tbPMA[PORCENTAJE COSTOS CEI])","v":0},null,null,"","","",null,null,"CEI-14-IND-01","Calidad del agua marina",{"$f":"SUBSTITUTE(LEFT(AS42,6),\"-\",\"_\",1)","v":"CEI_14"},{"$f":"RIGHT(tbIndicadorCEI[[#This Row],[CÓDIGO]],2)","v":"01"},null,null,null,null,null,null,"NO"]
[null,null,null,null,null,{"$f":"IFERROR(VLOOKUP(E43,tbImpEstand[],2,FALSE),\"\")","v":""},"",null,null,null,null,null,null,"","",null,null,null,null,null,null,null,"",null,null,null,null,null,null,null,null,null,null,null,null,{"$f":"IF(AI43=\"\",\"\",COUNTIF(tbPMA[ID MMA],AI43))","v":""},{"$f":"SUMIF(tbPMA[ID MMA],AI43,tbPMA[PORCENTAJE COSTOS CEI])","v":0},null,null,{"$f":"LEFT(AM43,6)","v":""},"","",null,null,"CEI-14-IND-02","Calidad del agua marina asociado a los objetivos de calidad establecidos por la autoridad ambiental regional",{"$f":"SUBSTITUTE(LEFT(AS43,6),\"-\",\"_\",1)","v":"CEI_14"},{"$f":"RIGHT(tbIndicadorCEI[[#This Row],[CÓDIGO]],2)","v":"02"},null,null,null,null,null,null,"NO"]
[null,null,null,null,null,{"$f":"IFERROR(VLOOKUP(E44,tbImpEstand[],2,FALSE),\"\")","v":""},"",null,null,null,null,null,null,"","",null,null,null,null,null,null,null,"",null,null,null,null,null,null,null,null,null,null,null,null,{"$f":"IF(AI44=\"\",\"\",COUNTIF(tbPMA[ID MMA],AI44))","v":""},{"$f":"SUMIF(tbPMA[ID MMA],AI44,tbPMA[PORCENTAJE COSTOS CEI])","v":0},null,null,"","","",null,null,"CEI-14-IND-03","Índice de calidad de agua marina (ICAM)",{"$f":"SUBSTITUTE(LEFT(AS44,6),\"-\",\"_\",1)","v":"CEI_14"},{"$f":"RIGHT(tbIndicadorCEI[[#This Row],[CÓDIGO]],2)","v":"03"},null,null,null,null,null,null,"NO"]
[null,null,null,null,null,{"$f":"IFERROR(VLOOKUP(E45,tbImpEstand[],2,FALSE),\"\")","v":""},"",null,null,null,null,null,null,"","",null,null,null,null,null,null,null,"",null,null,null,null,null,null,null,null,null,null,null,null,{"$f":"IF(AI45=\"\",\"\",COUNTIF(tbPMA[ID MMA],AI45))","v":""},{"$f":"SUMIF(tbPMA[ID MMA],AI45,tbPMA[PORCENTAJE COSTOS CEI])","v":0},null,null,"","","",null,null,"CEI-14-IND-04","Calidad del sedimento marino (suspendido y de fondo)",{"$f":"SUBSTITUTE(LEFT(AS45,6),\"-\",\"_\",1)","v":"CEI_14"},{"$f":"RIGHT(tbIndicadorCEI[[#This Row],[CÓDIGO]],2)","v":"04"},null,null,null,null,null,null,"NO"]
[null,null,"COMPONENTE",null,null,{"$f":"IFERROR(VLOOKUP(E46,tbImpEstand[],2,FALSE),\"\")","v":""},"",null,null,null,null,null,null,"","",null,null,null,null,null,null,null,"",null,null,null,null,null,null,null,null,null,null,null,null,{"$f":"IF(AI46=\"\",\"\",COUNTIF(tbPMA[ID MMA],AI46))","v":""},{"$f":"SUMIF(tbPMA[ID MMA],AI46,tbPMA[PORCENTAJE COSTOS CEI])","v":0},null,null,"","","",null,null,"CEI-15-IND-01","Variación en el ancho de playa (playa seca)",{"$f":"SUBSTITUTE(LEFT(AS46,6),\"-\",\"_\",1)","v":"CEI_15"},{"$f":"RIGHT(tbIndicadorCEI[[#This Row],[CÓDIGO]],2)","v":"01"},null,null,null,null,null,null,"NO"]
[null,null,"Cultural",null,null,{"$f":"IFERROR(VLOOKUP(E47,tbImpEstand[],2,FALSE),\"\")","v":""},"",null,null,null,null,null,null,"","",null,null,null,null,null,null,null,"",null,null,null,null,null,null,null,null,null,null,null,null,{"$f":"IF(AI47=\"\",\"\",COUNTIF(tbPMA[ID MMA],AI47))","v":""},{"$f":"SUMIF(tbPMA[ID MMA],AI47,tbPMA[PORCENTAJE COSTOS CEI])","v":0},null,null,"","","",null,null,"CEI-15-IND-02","Variación de la pendiente del perfil de playa (playa seca y sumergida)",{"$f":"SUBSTITUTE(LEFT(AS47,6),\"-\",\"_\",1)","v":"CEI_15"},{"$f":"RIGHT(tbIndicadorCEI[[#This Row],[CÓDIGO]],2)","v":"02"},null,null,null,null,null,null,"NO"]
[null,null,"Demográfico",null,null,{"$f":"IFERROR(VLOOKUP(E48,tbImpEstand[],2,FALSE),\"\")","v":""},"",null,null,null,null,null,null,"","",null,null,null,null,null,null,null,"",null,null,null,null,null,null,null,null,null,null,null,null,{"$f":"IF(AI48=\"\",\"\",COUNTIF(tbPMA[ID MMA],AI48))","v":""},{"$f":"SUMIF(tbPMA[ID MMA],AI48,tbPMA[PORCENTAJE COSTOS CEI])","v":0},null,null,"","","",null,null,"CEI-15-IND-03","Área restaurada",{"$f":"SUBSTITUTE(LEFT(AS48,6),\"-\",\"_\",1)","v":"CEI_15"},{"$f":"RIGHT(tbIndicadorCEI[[#This Row],[CÓDIGO]],2)","v":"03"},null,null,null,null,null,null,"NO"]
[null,null,"Económico",null,null,{"$f":"IFERROR(VLOOKUP(E49,tbImpEstand[],2,FALSE),\"\")","v":""},"",null,null,null,null,null,null,"","",null,null,null,null,null,null,null,"",null,null,null,null,null,null,null,null,null,null,null,null,{"$f":"IF(AI49=\"\",\"\",COUNTIF(tbPMA[ID MMA],AI49))","v":""},{"$f":"SUMIF(tbPMA[ID MMA],AI49,tbPMA[PORCENTAJE COSTOS CEI])","v":0},null,null,"","","",null,null,"CEI-16-IND-01","Calidad del suelo",{"$f":"SUBSTITUTE(LEFT(AS49,6),\"-\",\"_\",1)","v":"CEI_16"},{"$f":"RIGHT(tbIndicadorCEI[[#This Row],[CÓDIGO]],2)","v":"01"},null,null,null,null,null,null,"NO"]
[null,null,"Espacial",null,null,{"$f":"IFERROR(VLOOKUP(E50,tbImpEstand[],2,FALSE),\"\")","v":""},"",null,null,null,null,null,null,"","",null,null,null,null,null,null,null,"",null,null,null,null,null,null,null,null,null,null,null,null,{"$f":"IF(AI50=\"\",\"\",COUNTIF(tbPMA[ID MMA],AI50))","v":""},{"$f":"SUMIF(tbPMA[ID MMA],AI50,tbPMA[PORCENTAJE COSTOS CEI])","v":0},null,null,"","","",null,null,"CEI-16-IND-02","Suelos contaminados restaurados",{"$f":"SUBSTITUTE(LEFT(AS50,6),\"-\",\"_\",1)","v":"CEI_16"},{"$f":"RIGHT(tbIndicadorCEI[[#This Row],[CÓDIGO]],2)","v":"02"},null,null,null,null,null,null,"NO"]
[null,null,"Población a reasentar",null,null,{"$f":"IFERROR(VLOOKUP(E51,tbImpEstand[],2,FALSE),\"\")","v":""},"",null,null,null,null,null,null,"","",null,null,null,null,null,null,null,"",null,null,null,null,null,null,null,null,null,null,null,null,{"$f":"IF(AI51=\"\",\"\",COUNTIF(tbPMA[ID MMA],AI51))","v":""},{"$f":"SUMIF(tbPMA[ID MMA],AI51,tbPMA[PORCENTAJE COSTOS CEI])","v":0},null,null,"","","",null,null,"CEI-17-IND-01","Área basal",{"$f":"SUBSTITUTE(LEFT(AS51,6),\"-\",\"_\",1)","v":"CEI_17"},{"$f":"RIGHT(tbIndicadorCEI[[#This Row],[CÓDIGO]],2)","v":"01"},null,null,null,null,null,null,"NO"]
[null,null,"Político Administrativo",null,null,null,null,null,null,null,null,null,null,"","",null,null,null,null,null,null,null,"",null,null,null,null,null,null,null,null,null,null,null,null,{"$f":"IF(AI52=\"\",\"\",COUNTIF(tbPMA[ID MMA],AI52))","v":""},{"$f":"SUMIF(tbPMA[ID MMA],AI52,tbPMA[PORCENTAJE COSTOS CEI])","v":0},null,null,"","","",null,null,"CEI-17-IND-02","Índice de proximidad",{"$f":"SUBSTITUTE(LEFT(AS52,6),\"-\",\"_\",1)","v":"CEI_17"},{"$f":"RIGHT(tbIndicadorCEI[[#This Row],[CÓDIGO]],2)","v":"02"},null,null,null,null,null,null,"NO"]
[null,null,"Otro",null,null,null,null,null,null,null,null,null,null,"","",null,null,null,null,null,null,null,"",null,null,null,null,null,null,null,null,null,null,null,null,{"$f":"IF(AI53=\"\",\"\",COUNTIF(tbPMA[ID MMA],AI53))","v":""},{"$f":"SUMIF(tbPMA[ID MMA],AI53,tbPMA[PORCENTAJE COSTOS CEI])","v":0},null,null,"","","",null,null,"CEI-17-IND-03","Índice de conectividad de coberturas naturales",{"$f":"SUBSTITUTE(LEFT(AS53,6),\"-\",\"_\",1)","v":"CEI_17"},{"$f":"RIGHT(tbIndicadorCEI[[#This Row],[CÓDIGO]],2)","v":"03"},null,null,null,null,null,null,"NO"]
[null,null,null,null,null,null,null,null,null,null,null,null,null,"","",null,null,null,null,null,null,null,"",null,null,null,null,null,null,null,null,null,null,null,null,{"$f":"IF(AI54=\"\",\"\",COUNTIF(tbPMA[ID MMA],AI54))","v":""},{"$f":"SUMIF(tbPMA[ID MMA],AI54,tbPMA[PORCENTAJE COSTOS CEI])","v":0},null,null,"","","",null,null,"CEI-18-IND-01","Densidad de parches de coberturas naturales",{"$f":"SUBSTITUTE(LEFT(AS54,6),\"-\",\"_\",1)","v":"CEI_18"},{"$f":"RIGHT(tbIndicadorCEI[[#This Row],[CÓDIGO]],2)","v":"01"},null,null,null,null,null,null,"NO"]
[null,"Version","Cambios",null,null,null,null,null,null,null,null,null,null,"","",null,null,null,null,null,null,null,"",null,null,null,null,null,null,null,null,null,null,null,null,{"$f":"IF(AI55=\"\",\"\",COUNTIF(tbPMA[ID MMA],AI55))","v":""},{"$f":"SUMIF(tbPMA[ID MMA],AI55,tbPMA[PORCENTAJE COSTOS CEI])","v":0},null,null,"","","",null,null,"CEI-18-IND-02","Variación de la superficie de las coberturas de la tierra",{"$f":"SUBSTITUTE(LEFT(AS55,6),\"-\",\"_\",1)","v":"CEI_18"},{"$f":"RIGHT(tbIndicadorCEI[[#This Row],[CÓDIGO]],2)","v":"02"},null,null,null,null,null,null,"NO"]
[null,"2021.10","Versión inicial",null,null,null,null,null,null,null,null,null,null,"","",null,null,null,null,null,null,null,"",null,null,null,null,null,null,null,null,null,null,null,null,{"$f":"IF(AI56=\"\",\"\",COUNTIF(tbPMA[ID MMA],AI56))","v":""},{"$f":"SUMIF(tbPMA[ID MMA],AI56,tbPMA[PORCENTAJE COSTOS CEI])","v":0},null,null,"","","",null,null,"CEI-18-IND-03","Variación del carbono almacenado",{"$f":"SUBSTITUTE(LEFT(AS56,6),\"-\",\"_\",1)","v":"CEI_18"},{"$f":"RIGHT(tbIndicadorCEI[[#This Row],[CÓDIGO]],2)","v":"03"},null,null,null,null,null,null,"NO"]
[null,"2022.10","Se agregó historial de cambios",null,null,null,null,null,null,null,null,null,null,"","",null,null,null,null,null,null,null,"",null,null,null,null,null,null,null,null,null,null,null,null,{"$f":"IF(AI57=\"\",\"\",COUNTIF(tbPMA[ID MMA],AI57))","v":""},{"$f":"SUMIF(tbPMA[ID MMA],AI57,tbPMA[PORCENTAJE COSTOS CEI])","v":0},null,null,"","","",null,null,"CEI-19-IND-01","Riqueza de especies amenazadas y/o endémicas",{"$f":"SUBSTITUTE(LEFT(AS57,6),\"-\",\"_\",1)","v":"CEI_19"},{"$f":"RIGHT(tbIndicadorCEI[[#This Row],[CÓDIGO]],2)","v":"01"},null,null,null,null,null,null,"NO"]
[null,"2022.10","Se creó formulario para consultar, adicionar o eliminar Categorías Adicionales de Impacto (CAI)",null,null,null,null,null,null,null,null,null,null,"","",null,null,null,null,null,null,null,"",null,null,null,null,null,null,null,null,null,null,null,null,{"$f":"IF(AI58=\"\",\"\",COUNTIF(tbPMA[ID MMA],AI58))","v":""},{"$f":"SUMIF(tbPMA[ID MMA],AI58,tbPMA[PORCENTAJE COSTOS CEI])","v":0},null,null,"","","",null,null,"CEI-19-IND-02","Tasa de mortalidad",{"$f":"SUBSTITUTE(LEFT(AS58,6),\"-\",\"_\",1)","v":"CEI_19"},{"$f":"RIGHT(tbIndicadorCEI[[#This Row],[CÓDIGO]],2)","v":"02"},null,null,null,null,null,null,"NO"]
[null,"2022.10","Se trasladó el indicador de efectividad \"Reducción de gases de efecto invernadero\" de la CEI02 a CEI01",null,null,null,null,null,null,null,null,null,null,"","",null,null,null,null,null,null,null,"",null,null,null,null,null,null,null,null,null,null,null,null,{"$f":"IF(AI59=\"\",\"\",COUNTIF(tbPMA[ID MMA],AI59))","v":""},{"$f":"SUMIF(tbPMA[ID MMA],AI59,tbPMA[PORCENTAJE COSTOS CEI])","v":0},null,null,"","","",null,null,"CEI-19-IND-03","Tasa de reclutamiento",{"$f":"SUBSTITUTE(LEFT(AS59,6),\"-\",\"_\",1)","v":"CEI_19"},{"$f":"RIGHT(tbIndicadorCEI[[#This Row],[CÓDIGO]],2)","v":"03"},null,null,null,null,null,null,"NO"]
[null,"2022.10","Se adicionó el indicador de efectividad \"Variación porcentual de parámetros meteorológicos\" a la CEI02",null,null,null,null,null,null,null,null,null,null,"","",null,null,null,null,null,null,null,"",null,null,null,null,null,null,null,null,null,null,null,null,{"$f":"IF(AI60=\"\",\"\",COUNTIF(tbPMA[ID MMA],AI60))","v":""},{"$f":"SUMIF(tbPMA[ID MMA],AI60,tbPMA[PORCENTAJE COSTOS CEI])","v":0},null,null,"","","",null,null,"CEI-20-IND-01","Riqueza de especies de fauna clave (amenazadas, endémicas, migratoria)",{"$f":"SUBSTITUTE(LEFT(AS60,6),\"-\",\"_\",1)","v":"CEI_20"},{"$f":"RIGHT(tbIndicadorCEI[[#This Row],[CÓDIGO]],2)","v":"01"},null,null,null,null,null,null,"NO"]
[null,"2022.10","Se creó formulario para consultar indicadores de efectividad, que permite adicionar nuevos indicadores",null,null,null,null,null,null,null,null,null,null,"","",null,null,null,null,null,null,null,"",null,null,null,null,null,null,null,null,null,null,null,null,{"$f":"IF(AI61=\"\",\"\",COUNTIF(tbPMA[ID MMA],AI61))","v":""},{"$f":"SUMIF(tbPMA[ID MMA],AI61,tbPMA[PORCENTAJE COSTOS CEI])","v":0},null,null,"","","",null,null,"CEI-20-IND-02","Abundancia especies clave (migratorias, endémicas, amenazadas)",{"$f":"SUBSTITUTE(LEFT(AS61,6),\"-\",\"_\",1)","v":"CEI_20"},{"$f":"RIGHT(tbIndicadorCEI[[#This Row],[CÓDIGO]],2)","v":"02"},null,null,null,null,null,null,"NO"]
[null,"2022.10","La consulta de indicadores de efectividad se trasladó a un documento externo (Página web)",null,null,null,null,null,null,null,null,null,null,"","",null,null,null,null,null,null,null,"",null,null,null,null,null,null,null,null,null,null,null,null,{"$f":"IF(AI62=\"\",\"\",COUNTIF(tbPMA[ID MMA],AI62))","v":""},{"$f":"SUMIF(tbPMA[ID MMA],AI62,tbPMA[PORCENTAJE COSTOS CEI])","v":0},null,null,"","","",null,null,"CEI-20-IND-03","Densidad de mortalidad de fauna silvestre causada por atropellamiento o colisión por kilómetro lineal",{"$f":"SUBSTITUTE(LEFT(AS62,6),\"-\",\"_\",1)","v":"CEI_20"},{"$f":"RIGHT(tbIndicadorCEI[[#This Row],[CÓDIGO]],2)","v":"03"},null,null,null,null,null,null,"NO"]
[null,"2022.10","Se agregó columnas de Descripción del lugar y coordenadas en el módulo 4",null,null,null,null,null,null,null,null,null,null,"","",null,null,null,null,null,null,null,"",null,null,null,null,null,null,null,null,null,null,null,null,{"$f":"IF(AI63=\"\",\"\",COUNTIF(tbPMA[ID MMA],AI63))","v":""},{"$f":"SUMIF(tbPMA[ID MMA],AI63,tbPMA[PORCENTAJE COSTOS CEI])","v":0},null,null,"","","",null,null,"CEI-21-IND-01","Alteración a ecosistemas acuáticos",{"$f":"SUBSTITUTE(LEFT(AS63,6),\"-\",\"_\",1)","v":"CEI_21"},{"$f":"RIGHT(tbIndicadorCEI[[#This Row],[CÓDIGO]],2)","v":"01"},null,null,null,null,null,null,"NO"]
[null,null,null,null,"CEI","NOMBRE",null,null,null,null,null,null,null,"","",null,null,null,null,null,null,null,"",null,null,null,null,null,null,null,null,null,null,null,null,{"$f":"IF(AI64=\"\",\"\",COUNTIF(tbPMA[ID MMA],AI64))","v":""},{"$f":"SUMIF(tbPMA[ID MMA],AI64,tbPMA[PORCENTAJE COSTOS CEI])","v":0},null,null,"","","",null,null,"CEI-22-IND-01","Alteración a comunidades de fauna acuática e hidrobiota",{"$f":"SUBSTITUTE(LEFT(AS64,6),\"-\",\"_\",1)","v":"CEI_22"},{"$f":"RIGHT(tbIndicadorCEI[[#This Row],[CÓDIGO]],2)","v":"01"},null,null,null,null,null,null,"NO"]
[null,null,null,null,"CAI_01",{"$f":"VLOOKUP(E65,tbImpEstand[],2,FALSE)","v":{"$error":"#N/A"}},null,null,null,null,null,null,null,"","",null,null,null,null,null,null,null,"",null,null,null,null,null,null,null,null,null,null,null,null,{"$f":"IF(AI65=\"\",\"\",COUNTIF(tbPMA[ID MMA],AI65))","v":""},{"$f":"SUMIF(tbPMA[ID MMA],AI65,tbPMA[PORCENTAJE COSTOS CEI])","v":0},null,null,{"$f":"LEFT(AM65,6)","v":""},"","",null,null,"CEI-23-IND-01","Cambio en la estructura demográfica, en la distribución espacial de la población y sus efectos en la dinámica poblacional",{"$f":"SUBSTITUTE(LEFT(AS65,6),\"-\",\"_\",1)","v":"CEI_23"},{"$f":"RIGHT(tbIndicadorCEI[[#This Row],[CÓDIGO]],2)","v":"01"},null,null,null,null,null,null,"NO"]
[null,null,null,null,null,null,null,null,null,null,null,null,null,"","",null,null,null,null,null,null,null,"",null,null,null,null,null,null,null,null,null,null,null,null,{"$f":"IF(AI66=\"\",\"\",COUNTIF(tbPMA[ID MMA],AI66))","v":""},{"$f":"SUMIF(tbPMA[ID MMA],AI66,tbPMA[PORCENTAJE COSTOS CEI])","v":0},null,null,"","","",null,null,"CEI-24-IND-01","Paisaje perceptual/visualmente reconformado",{"$f":"SUBSTITUTE(LEFT(AS66,6),\"-\",\"_\",1)","v":"CEI_24"},{"$f":"RIGHT(tbIndicadorCEI[[#This Row],[CÓDIGO]],2)","v":"01"},null,null,null,null,null,null,"NO"]
[null,null,null,null,null,null,null,null,null,null,null,null,null,{"$f":"IF(M67=\"\",\"\",IFERROR(VLOOKUP(M67,$R$2:$R$201,1,FALSE),\"NO DEFINIDO EN PMA\"))","v":""},{"$f":"IF(N67=\"\",\"\",IFERROR(VLOOKUP(N67,$T$2:$T$201,1,FALSE),\"NO DEFINIDO EN EL PSM\"))","v":""},null,null,null,null,null,null,null,{"$f":"IF(V67=\"\",\"\",IFERROR(VLOOKUP(V67,$Y$2:$Y$201,1,FALSE),\"NO DEFINIDO EN EL PSM\"))","v":""},null,null,null,null,null,null,null,null,null,null,null,null,{"$f":"IF(AI67=\"\",\"\",COUNTIF(tbPMA[ID MMA],AI67))","v":""},{"$f":"SUMIF(tbPMA[ID MMA],AI67,tbPMA[PORCENTAJE COSTOS CEI])","v":0},null,null,{"$f":"LEFT(AM67,6)","v":""},{"$f":"IF(AN67=\"\",\"\",MID(AM67,8,FIND(\"_\",AM67,FIND(\"_\",AM67,FIND(\"_\",AM67,1)+1)+1)-8))","v":""},{"$f":"IF(AM67=\"\",\"\",MID(AM67,FIND(\"_\",AM67,FIND(\"_\",AM67,FIND(\"_\",AM67,1)+1)+1)+1,6))","v":""},null,null,"CEI-25-IND-01","Generación y/o incremento de conflictos ambientales",{"$f":"SUBSTITUTE(LEFT(AS67,6),\"-\",\"_\",1)","v":"CEI_25"},{"$f":"RIGHT(tbIndicadorCEI[[#This Row],[CÓDIGO]],2)","v":"01"},null,null,null,null,null,null,"NO"]
[null,null,null,null,"CÓDIGO","INDICADOR",null,null,null,null,null,null,null,"","",null,null,null,null,null,null,null,"",null,null,null,null,null,null,null,null,null,null,null,null,{"$f":"IF(AI68=\"\",\"\",COUNTIF(tbPMA[ID MMA],AI68))","v":""},{"$f":"SUMIF(tbPMA[ID MMA],AI68,tbPMA[PORCENTAJE COSTOS CEI])","v":0},null,null,"","","",null,null,"CEI-26-IND-01","Tasa de accidentalidad vial (por cada 1.000 Hab.)",{"$f":"SUBSTITUTE(LEFT(AS68,6),\"-\",\"_\",1)","v":"CEI_26"},{"$f":"RIGHT(tbIndicadorCEI[[#This Row],[CÓDIGO]],2)","v":"01"},null,null,null,null,null,null,"NO"]
[null,null,null,null,{"$f":"_xlfn._xlws.FILTER(tbIndicadorCEI[[CÓDIGO]:[INDICADOR]],tbIndicadorCEI[CEI]=tbCEI_Ind[CEI],\"No hay indicadores\")","v":"No hay indicadores"},null,null,null,null,null,null,null,null,"","",null,null,null,null,null,null,null,"",null,null,null,null,null,null,null,null,null,null,null,null,{"$f":"IF(AI69=\"\",\"\",COUNTIF(tbPMA[ID MMA],AI69))","v":""},{"$f":"SUMIF(tbPMA[ID MMA],AI69,tbPMA[PORCENTAJE COSTOS CEI])","v":0},null,null,"","","",null,null,"CEI-26-IND-02","Tasa de variación en tiempos de viaje",{"$f":"SUBSTITUTE(LEFT(AS69,6),\"-\",\"_\",1)","v":"CEI_26"},{"$f":"RIGHT(tbIndicadorCEI[[#This Row],[CÓDIGO]],2)","v":"02"},null,null,null,null,null,null,"NO"]
[null,null,null,null,null,null,null,null,null,null,null,null,null,"","",null,null,null,null,null,null,null,"",null,null,null,null,null,null,null,null,null,null,null,null,{"$f":"IF(AI70=\"\",\"\",COUNTIF(tbPMA[ID MMA],AI70))","v":""},{"$f":"SUMIF(tbPMA[ID MMA],AI70,tbPMA[PORCENTAJE COSTOS CEI])","v":0},null,null,"","","",null,null,"CEI-26-IND-03","Manejo de sitios críticos (vías terciarias)",{"$f":"SUBSTITUTE(LEFT(AS70,6),\"-\",\"_\",1)","v":"CEI_26"},{"$f":"RIGHT(tbIndicadorCEI[[#This Row],[CÓDIGO]],2)","v":"03"},null,null,null,null,null,null,"NO"]
[null,null,null,null,null,null,null,null,null,null,null,null,null,"","",null,null,null,null,null,null,null,"",null,null,null,null,null,null,null,null,null,null,null,null,{"$f":"IF(AI71=\"\",\"\",COUNTIF(tbPMA[ID MMA],AI71))","v":""},{"$f":"SUMIF(tbPMA[ID MMA],AI71,tbPMA[PORCENTAJE COSTOS CEI])","v":0},null,null,"","","",null,null,"CEI-27-IND-01","Acceso a servicios sociales (SSSS)",{"$f":"SUBSTITUTE(LEFT(AS71,6),\"-\",\"_\",1)","v":"CEI_27"},{"$f":"RIGHT(tbIndicadorCEI[[#This Row],[CÓDIGO]],2)","v":"01"},null,null,null,null,null,null,"NO"]
[null,null,null,null,null,null,null,null,null,null,null,null,null,"","",null,null,null,null,null,null,null,"",null,null,null,null,null,null,null,null,null,null,null,null,{"$f":"IF(AI72=\"\",\"\",COUNTIF(tbPMA[ID MMA],AI72))","v":""},{"$f":"SUMIF(tbPMA[ID MMA],AI72,tbPMA[PORCENTAJE COSTOS CEI])","v":0},null,null,"","","",null,null,"CEI-27-IND-02","Puntos de acceso a servicios sociales (SSSS)",{"$f":"SUBSTITUTE(LEFT(AS72,6),\"-\",\"_\",1)","v":"CEI_27"},{"$f":"RIGHT(tbIndicadorCEI[[#This Row],[CÓDIGO]],2)","v":"02"},null,null,null,null,null,null,"NO"]
[null,null,null,null,null,null,null,null,null,null,null,null,null,"","",null,null,null,null,null,null,null,"",null,null,null,null,null,null,null,null,null,null,null,null,{"$f":"IF(AI73=\"\",\"\",COUNTIF(tbPMA[ID MMA],AI73))","v":""},{"$f":"SUMIF(tbPMA[ID MMA],AI73,tbPMA[PORCENTAJE COSTOS CEI])","v":0},null,null,"","","",null,null,"CEI-28-IND-01","Intervención de predios en el AI",{"$f":"SUBSTITUTE(LEFT(AS73,6),\"-\",\"_\",1)","v":"CEI_28"},{"$f":"RIGHT(tbIndicadorCEI[[#This Row],[CÓDIGO]],2)","v":"01"},null,null,null,null,null,null,"NO"]
[null,null,null,null,null,null,null,null,null,null,null,null,null,"","",null,null,null,null,null,null,null,"",null,null,null,null,null,null,null,null,null,null,null,null,{"$f":"IF(AI74=\"\",\"\",COUNTIF(tbPMA[ID MMA],AI74))","v":""},{"$f":"SUMIF(tbPMA[ID MMA],AI74,tbPMA[PORCENTAJE COSTOS CEI])","v":0},null,null,"","","",null,null,"CEI-28-IND-02","Variación en actividades económicas tradicionales",{"$f":"SUBSTITUTE(LEFT(AS74,6),\"-\",\"_\",1)","v":"CEI_28"},{"$f":"RIGHT(tbIndicadorCEI[[#This Row],[CÓDIGO]],2)","v":"02"},null,null,null,null,null,null,"NO"]
[null,null,null,null,null,null,null,null,null,null,null,null,null,"","",null,null,null,null,null,null,null,"",null,null,null,null,null,null,null,null,null,null,null,null,{"$f":"IF(AI75=\"\",\"\",COUNTIF(tbPMA[ID MMA],AI75))","v":""},{"$f":"SUMIF(tbPMA[ID MMA],AI75,tbPMA[PORCENTAJE COSTOS CEI])","v":0},null,null,"","","",null,null,"CEI-29-IND-01","Población reasentada",{"$f":"SUBSTITUTE(LEFT(AS75,6),\"-\",\"_\",1)","v":"CEI_29"},{"$f":"RIGHT(tbIndicadorCEI[[#This Row],[CÓDIGO]],2)","v":"01"},null,null,null,null,null,null,"NO"]
[null,null,null,null,null,null,null,null,null,null,null,null,null,"","",null,null,null,null,null,null,null,"",null,null,null,null,null,null,null,null,null,null,null,null,{"$f":"IF(AI76=\"\",\"\",COUNTIF(tbPMA[ID MMA],AI76))","v":""},{"$f":"SUMIF(tbPMA[ID MMA],AI76,tbPMA[PORCENTAJE COSTOS CEI])","v":0},null,null,{"$f":"LEFT(AM76,6)","v":""},"","",null,null,"CEI-29-IND-02","Nivel de ejecución de programas/proyectos",{"$f":"SUBSTITUTE(LEFT(AS76,6),\"-\",\"_\",1)","v":"CEI_29"},{"$f":"RIGHT(tbIndicadorCEI[[#This Row],[CÓDIGO]],2)","v":"02"},null,null,null,null,null,null,"NO"]
[null,null,null,null,null,null,null,null,null,null,null,null,null,"","",null,null,null,null,null,null,null,"",null,null,null,null,null,null,null,null,null,null,null,null,{"$f":"IF(AI77=\"\",\"\",COUNTIF(tbPMA[ID MMA],AI77))","v":""},{"$f":"SUMIF(tbPMA[ID MMA],AI77,tbPMA[PORCENTAJE COSTOS CEI])","v":0},null,null,{"$f":"LEFT(AM77,6)","v":""},"","",null,null,"CEI-29-IND-03","Cumplimiento de tiempos (eficacia)",{"$f":"SUBSTITUTE(LEFT(AS77,6),\"-\",\"_\",1)","v":"CEI_29"},{"$f":"RIGHT(tbIndicadorCEI[[#This Row],[CÓDIGO]],2)","v":"03"},null,null,null,null,null,null,"NO"]
[null,null,null,null,null,null,null,null,null,null,null,null,null,"","",null,null,null,null,null,null,null,"",null,null,null,null,null,null,null,null,null,null,null,null,{"$f":"IF(AI78=\"\",\"\",COUNTIF(tbPMA[ID MMA],AI78))","v":""},{"$f":"SUMIF(tbPMA[ID MMA],AI78,tbPMA[PORCENTAJE COSTOS CEI])","v":0},null,null,"","","",null,null,"CEI-29-IND-04","Variación de costos (eficiencia)",{"$f":"SUBSTITUTE(LEFT(AS78,6),\"-\",\"_\",1)","v":"CEI_29"},{"$f":"RIGHT(tbIndicadorCEI[[#This Row],[CÓDIGO]],2)","v":"04"},null,null,null,null,null,null,"NO"]
[null,null,null,null,null,null,null,null,null,null,null,null,null,"","",null,null,null,null,null,null,null,"",null,null,null,null,null,null,null,null,null,null,null,null,{"$f":"IF(AI79=\"\",\"\",COUNTIF(tbPMA[ID MMA],AI79))","v":""},{"$f":"SUMIF(tbPMA[ID MMA],AI79,tbPMA[PORCENTAJE COSTOS CEI])","v":0},null,null,"","","",null,null,"CEI-29-IND-05","Número de impactos atendidos",{"$f":"SUBSTITUTE(LEFT(AS79,6),\"-\",\"_\",1)","v":"CEI_29"},{"$f":"RIGHT(tbIndicadorCEI[[#This Row],[CÓDIGO]],2)","v":"05"},null,null,null,null,null,null,"NO"]
[null,null,null,null,null,null,null,null,null,null,null,null,null,"","",null,null,null,null,null,null,null,"",null,null,null,null,null,null,null,null,null,null,null,null,{"$f":"IF(AI80=\"\",\"\",COUNTIF(tbPMA[ID MMA],AI80))","v":""},{"$f":"SUMIF(tbPMA[ID MMA],AI80,tbPMA[PORCENTAJE COSTOS CEI])","v":0},null,null,"","","",null,null,null,null,{"$f":"SUBSTITUTE(LEFT(AS80,6),\"-\",\"_\",1)","v":""}]
[null,null,null,null,null,null,null,null,null,null,null,null,null,"","",null,null,null,null,null,null,null,"",null,null,null,null,null,null,null,null,null,null,null,null,{"$f":"IF(AI81=\"\",\"\",COUNTIF(tbPMA[ID MMA],AI81))","v":""},{"$f":"SUMIF(tbPMA[ID MMA],AI81,tbPMA[PORCENTAJE COSTOS CEI])","v":0},null,null,"","","",null,null,null,null,""]
[null,null,null,null,null,null,null,null,null,null,null,null,null,"","",null,null,null,null,null,null,null,"",null,null,null,null,null,null,null,null,null,null,null,null,{"$f":"IF(AI82=\"\",\"\",COUNTIF(tbPMA[ID MMA],AI82))","v":""},{"$f":"SUMIF(tbPMA[ID MMA],AI82,tbPMA[PORCENTAJE COSTOS CEI])","v":0},null,null,"","","",null,null,null,null,""]
[null,null,null,null,null,null,null,null,null,null,null,null,null,"","",null,null,null,null,null,null,null,"",null,null,null,null,null,null,null,null,null,null,null,null,{"$f":"IF(AI83=\"\",\"\",COUNTIF(tbPMA[ID MMA],AI83))","v":""},{"$f":"SUMIF(tbPMA[ID MMA],AI83,tbPMA[PORCENTAJE COSTOS CEI])","v":0},null,null,"","","",null,null,null,null,""]
[null,null,null,null,null,null,null,null,null,null,null,null,null,"","",null,null,null,null,null,null,null,"",null,null,null,null,null,null,null,null,null,null,null,null,{"$f":"IF(AI84=\"\",\"\",COUNTIF(tbPMA[ID MMA],AI84))","v":""},{"$f":"SUMIF(tbPMA[ID MMA],AI84,tbPMA[PORCENTAJE COSTOS CEI])","v":0},null,null,"","","",null,null,null,null,""]
[null,null,null,null,null,null,null,null,null,null,null,null,null,"","",null,null,null,null,null,null,null,"",null,null,null,null,null,null,null,null,null,null,null,null,{"$f":"IF(AI85=\"\",\"\",COUNTIF(tbPMA[ID MMA],AI85))","v":""},{"$f":"SUMIF(tbPMA[ID MMA],AI85,tbPMA[PORCENTAJE COSTOS CEI])","v":0},null,null,"","","",null,null,null,null,""]
[null,null,null,null,null,null,null,null,null,null,null,null,null,"","",null,null,null,null,null,null,null,"",null,null,null,null,null,null,null,null,null,null,null,null,{"$f":"IF(AI86=\"\",\"\",COUNTIF(tbPMA[ID MMA],AI86))","v":""},{"$f":"SUMIF(tbPMA[ID MMA],AI86,tbPMA[PORCENTAJE COSTOS CEI])","v":0},null,null,"","",""]
[null,null,null,null,null,null,null,null,null,null,null,null,null,"","",null,null,null,null,null,null,null,"",null,null,null,null,null,null,null,null,null,null,null,null,{"$f":"IF(AI87=\"\",\"\",COUNTIF(tbPMA[ID MMA],AI87))","v":""},{"$f":"SUMIF(tbPMA[ID MMA],AI87,tbPMA[PORCENTAJE COSTOS CEI])","v":0},null,null,"","",""]
[null,null,null,null,null,null,null,null,null,null,null,null,null,"","",null,null,null,null,null,null,null,"",null,null,null,null,null,null,null,null,null,null,null,null,{"$f":"IF(AI88=\"\",\"\",COUNTIF(tbPMA[ID MMA],AI88))","v":""},{"$f":"SUMIF(tbPMA[ID MMA],AI88,tbPMA[PORCENTAJE COSTOS CEI])","v":0},null,null,"","",""]
[null,null,null,null,null,null,null,null,null,null,null,null,null,"","",null,null,null,null,null,null,null,"",null,null,null,null,null,null,null,null,null,null,null,null,{"$f":"IF(AI89=\"\",\"\",COUNTIF(tbPMA[ID MMA],AI89))","v":""},{"$f":"SUMIF(tbPMA[ID MMA],AI89,tbPMA[PORCENTAJE COSTOS CEI])","v":0},null,null,"","",""]
[null,null,null,null,null,null,null,null,null,null,null,null,null,"","",null,null,null,null,null,null,null,"",null,null,null,null,null,null,null,null,null,null,null,null,{"$f":"IF(AI90=\"\",\"\",COUNTIF(tbPMA[ID MMA],AI90))","v":""},{"$f":"SUMIF(tbPMA[ID MMA],AI90,tbPMA[PORCENTAJE COSTOS CEI])","v":0},null,null,"","",""]
[null,null,null,null,null,null,null,null,null,null,null,null,null,"","",null,null,null,null,null,null,null,"",null,null,null,null,null,null,null,null,null,null,null,null,{"$f":"IF(AI91=\"\",\"\",COUNTIF(tbPMA[ID MMA],AI91))","v":""},{"$f":"SUMIF(tbPMA[ID MMA],AI91,tbPMA[PORCENTAJE COSTOS CEI])","v":0},null,null,"","",""]
[null,null,null,null,null,null,null,null,null,null,null,null,null,"","",null,null,null,null,null,null,null,"",null,null,null,null,null,null,null,null,null,null,null,null,{"$f":"IF(AI92=\"\",\"\",COUNTIF(tbPMA[ID MMA],AI92))","v":""},{"$f":"SUMIF(tbPMA[ID MMA],AI92,tbPMA[PORCENTAJE COSTOS CEI])","v":0},null,null,"","",""]
[null,null,null,null,null,null,null,null,null,null,null,null,null,"","",null,null,null,null,null,null,null,"",null,null,null,null,null,null,null,null,null,null,null,null,{"$f":"IF(AI93=\"\",\"\",COUNTIF(tbPMA[ID MMA],AI93))","v":""},{"$f":"SUMIF(tbPMA[ID MMA],AI93,tbPMA[PORCENTAJE COSTOS CEI])","v":0},null,null,"","",""]
[null,null,null,null,null,null,null,null,null,null,null,null,null,"","",null,null,null,null,null,null,null,"",null,null,null,null,null,null,null,null,null,null,null,null,{"$f":"IF(AI94=\"\",\"\",COUNTIF(tbPMA[ID MMA],AI94))","v":""},{"$f":"SUMIF(tbPMA[ID MMA],AI94,tbPMA[PORCENTAJE COSTOS CEI])","v":0},null,null,"","",""]
[null,null,null,null,null,null,null,null,null,null,null,null,null,"","",null,null,null,null,null,null,null,"",null,null,null,null,null,null,null,null,null,null,null,null,{"$f":"IF(AI95=\"\",\"\",COUNTIF(tbPMA[ID MMA],AI95))","v":""},{"$f":"SUMIF(tbPMA[ID MMA],AI95,tbPMA[PORCENTAJE COSTOS CEI])","v":0},null,null,"","",""]
[null,null,null,null,null,null,null,null,null,null,null,null,null,"","",null,null,null,null,null,null,null,"",null,null,null,null,null,null,null,null,null,null,null,null,{"$f":"IF(AI96=\"\",\"\",COUNTIF(tbPMA[ID MMA],AI96))","v":""},{"$f":"SUMIF(tbPMA[ID MMA],AI96,tbPMA[PORCENTAJE COSTOS CEI])","v":0},null,null,"","",""]
[null,null,null,null,null,null,null,null,null,null,null,null,null,"","",null,null,null,null,null,null,null,"",null,null,null,null,null,null,null,null,null,null,null,null,{"$f":"IF(AI97=\"\",\"\",COUNTIF(tbPMA[ID MMA],AI97))","v":""},{"$f":"SUMIF(tbPMA[ID MMA],AI97,tbPMA[PORCENTAJE COSTOS CEI])","v":0},null,null,{"$f":"LEFT(AM97,6)","v":""},"",""]
[null,null,null,null,null,null,null,null,null,null,null,null,null,"","",null,null,null,null,null,null,null,"",null,null,null,null,null,null,null,null,null,null,null,null,{"$f":"IF(AI98=\"\",\"\",COUNTIF(tbPMA[ID MMA],AI98))","v":""},{"$f":"SUMIF(tbPMA[ID MMA],AI98,tbPMA[PORCENTAJE COSTOS CEI])","v":0},null,null,{"$f":"LEFT(AM98,6)","v":""},"",""]
[null,null,null,null,null,null,null,null,null,null,null,null,null,"","",null,null,null,null,null,null,null,"",null,null,null,null,null,null,null,null,null,null,null,null,{"$f":"IF(AI99=\"\",\"\",COUNTIF(tbPMA[ID MMA],AI99))","v":""},{"$f":"SUMIF(tbPMA[ID MMA],AI99,tbPMA[PORCENTAJE COSTOS CEI])","v":0},null,null,"","",""]
[null,null,null,null,null,null,null,null,null,null,null,null,null,"","",null,null,null,null,null,null,null,"",null,null,null,null,null,null,null,null,null,null,null,null,{"$f":"IF(AI100=\"\",\"\",COUNTIF(tbPMA[ID MMA],AI100))","v":""},{"$f":"SUMIF(tbPMA[ID MMA],AI100,tbPMA[PORCENTAJE COSTOS CEI])","v":0},null,null,"","",""]
[null,null,null,null,null,null,null,null,null,null,null,null,null,"","",null,null,null,null,null,null,null,"",null,null,null,null,null,null,null,null,null,null,null,null,{"$f":"IF(AI101=\"\",\"\",COUNTIF(tbPMA[ID MMA],AI101))","v":""},{"$f":"SUMIF(tbPMA[ID MMA],AI101,tbPMA[PORCENTAJE COSTOS CEI])","v":0},null,null,"","",""]
[null,null,null,null,null,null,null,null,null,null,null,null,null,"","",null,null,null,null,null,null,null,"",null,null,null,null,null,null,null,null,null,null,null,null,{"$f":"IF(AI102=\"\",\"\",COUNTIF(tbPMA[ID MMA],AI102))","v":""},{"$f":"SUMIF(tbPMA[ID MMA],AI102,tbPMA[PORCENTAJE COSTOS CEI])","v":0},null,null,"","",""]
[null,null,null,null,null,null,null,null,null,null,null,null,null,"","",null,null,null,null,null,null,null,"",null,null,null,null,null,null,null,null,null,null,null,null,{"$f":"IF(AI103=\"\",\"\",COUNTIF(tbPMA[ID MMA],AI103))","v":""},{"$f":"SUMIF(tbPMA[ID MMA],AI103,tbPMA[PORCENTAJE COSTOS CEI])","v":0},null,null,"","",""]
[null,null,null,null,null,null,null,null,null,null,null,null,null,"","",null,null,null,null,null,null,null,"",null,null,null,null,null,null,null,null,null,null,null,null,{"$f":"IF(AI104=\"\",\"\",COUNTIF(tbPMA[ID MMA],AI104))","v":""},{"$f":"SUMIF(tbPMA[ID MMA],AI104,tbPMA[PORCENTAJE COSTOS CEI])","v":0},null,null,"","",""]
[null,null,null,null,null,null,null,null,null,null,null,null,null,"","",null,null,null,null,null,null,null,"",null,null,null,null,null,null,null,null,null,null,null,null,{"$f":"IF(AI105=\"\",\"\",COUNTIF(tbPMA[ID MMA],AI105))","v":""},{"$f":"SUMIF(tbPMA[ID MMA],AI105,tbPMA[PORCENTAJE COSTOS CEI])","v":0},null,null,"","",""]
[null,null,null,null,null,null,null,null,null,null,null,null,null,"","",null,null,null,null,null,null,null,"",null,null,null,null,null,null,null,null,null,null,null,null,{"$f":"IF(AI106=\"\",\"\",COUNTIF(tbPMA[ID MMA],AI106))","v":""},{"$f":"SUMIF(tbPMA[ID MMA],AI106,tbPMA[PORCENTAJE COSTOS CEI])","v":0},null,null,"","",""]
[null,null,null,null,null,null,null,null,null,null,null,null,null,"","",null,null,null,null,null,null,null,"",null,null,null,null,null,null,null,null,null,null,null,null,{"$f":"IF(AI107=\"\",\"\",COUNTIF(tbPMA[ID MMA],AI107))","v":""},{"$f":"SUMIF(tbPMA[ID MMA],AI107,tbPMA[PORCENTAJE COSTOS CEI])","v":0},null,null,"","",""]
[null,null,null,null,null,null,null,null,null,null,null,null,null,"","",null,null,null,null,null,null,null,"",null,null,null,null,null,null,null,null,null,null,null,null,{"$f":"IF(AI108=\"\",\"\",COUNTIF(tbPMA[ID MMA],AI108))","v":""},{"$f":"SUMIF(tbPMA[ID MMA],AI108,tbPMA[PORCENTAJE COSTOS CEI])","v":0},null,null,"","",""]
[null,null,null,null,null,null,null,null,null,null,null,null,null,"","",null,null,null,null,null,null,null,"",null,null,null,null,null,null,null,null,null,null,null,null,{"$f":"IF(AI109=\"\",\"\",COUNTIF(tbPMA[ID MMA],AI109))","v":""},{"$f":"SUMIF(tbPMA[ID MMA],AI109,tbPMA[PORCENTAJE COSTOS CEI])","v":0},null,null,"","",""]
[null,null,null,null,null,null,null,null,null,null,null,null,null,"","",null,null,null,null,null,null,null,"",null,null,null,null,null,null,null,null,null,null,null,null,{"$f":"IF(AI110=\"\",\"\",COUNTIF(tbPMA[ID MMA],AI110))","v":""},{"$f":"SUMIF(tbPMA[ID MMA],AI110,tbPMA[PORCENTAJE COSTOS CEI])","v":0},null,null,"","",""]
[null,null,null,null,null,null,null,null,null,null,null,null,null,"","",null,null,null,null,null,null,null,"",null,null,null,null,null,null,null,null,null,null,null,null,{"$f":"IF(AI111=\"\",\"\",COUNTIF(tbPMA[ID MMA],AI111))","v":""},{"$f":"SUMIF(tbPMA[ID MMA],AI111,tbPMA[PORCENTAJE COSTOS CEI])","v":0},null,null,"","",""]
[null,null,null,null,null,null,null,null,null,null,null,null,null,"","",null,null,null,null,null,null,null,"",null,null,null,null,null,null,null,null,null,null,null,null,{"$f":"IF(AI112=\"\",\"\",COUNTIF(tbPMA[ID MMA],AI112))","v":""},{"$f":"SUMIF(tbPMA[ID MMA],AI112,tbPMA[PORCENTAJE COSTOS CEI])","v":0},null,null,"","",""]
[null,null,null,null,null,null,null,null,null,null,null,null,null,"","",null,null,null,null,null,null,null,"",null,null,null,null,null,null,null,null,null,null,null,null,{"$f":"IF(AI113=\"\",\"\",COUNTIF(tbPMA[ID MMA],AI113))","v":""},{"$f":"SUMIF(tbPMA[ID MMA],AI113,tbPMA[PORCENTAJE COSTOS CEI])","v":0},null,null,"","",""]
[null,null,null,null,null,null,null,null,null,null,null,null,null,"","",null,null,null,null,null,null,null,"",null,null,null,null,null,null,null,null,null,null,null,null,{"$f":"IF(AI114=\"\",\"\",COUNTIF(tbPMA[ID MMA],AI114))","v":""},{"$f":"SUMIF(tbPMA[ID MMA],AI114,tbPMA[PORCENTAJE COSTOS CEI])","v":0},null,null,"","",""]
[null,null,null,null,null,null,null,null,null,null,null,null,null,"","",null,null,null,null,null,null,null,"",null,null,null,null,null,null,null,null,null,null,null,null,{"$f":"IF(AI115=\"\",\"\",COUNTIF(tbPMA[ID MMA],AI115))","v":""},{"$f":"SUMIF(tbPMA[ID MMA],AI115,tbPMA[PORCENTAJE COSTOS CEI])","v":0},null,null,"","",""]
[null,null,null,null,null,null,null,null,null,null,null,null,null,"","",null,null,null,null,null,null,null,"",null,null,null,null,null,null,null,null,null,null,null,null,{"$f":"IF(AI116=\"\",\"\",COUNTIF(tbPMA[ID MMA],AI116))","v":""},{"$f":"SUMIF(tbPMA[ID MMA],AI116,tbPMA[PORCENTAJE COSTOS CEI])","v":0},null,null,"","",""]
[null,null,null,null,null,null,null,null,null,null,null,null,null,"","",null,null,null,null,null,null,null,"",null,null,null,null,null,null,null,null,null,null,null,null,{"$f":"IF(AI117=\"\",\"\",COUNTIF(tbPMA[ID MMA],AI117))","v":""},{"$f":"SUMIF(tbPMA[ID MMA],AI117,tbPMA[PORCENTAJE COSTOS CEI])","v":0},null,null,"","",""]
[null,null,null,null,null,null,null,null,null,null,null,null,null,"","",null,null,null,null,null,null,null,"",null,null,null,null,null,null,null,null,null,null,null,null,{"$f":"IF(AI118=\"\",\"\",COUNTIF(tbPMA[ID MMA],AI118))","v":""},{"$f":"SUMIF(tbPMA[ID MMA],AI118,tbPMA[PORCENTAJE COSTOS CEI])","v":0},null,null,"","",""]
[null,null,null,null,null,null,null,null,null,null,null,null,null,"","",null,null,null,null,null,null,null,"",null,null,null,null,null,null,null,null,null,null,null,null,{"$f":"IF(AI119=\"\",\"\",COUNTIF(tbPMA[ID MMA],AI119))","v":""},{"$f":"SUMIF(tbPMA[ID MMA],AI119,tbPMA[PORCENTAJE COSTOS CEI])","v":0},null,null,{"$f":"LEFT(AM119,6)","v":""},"",""]
[null,null,null,null,null,null,null,null,null,null,null,null,null,"","",null,null,null,null,null,null,null,"",null,null,null,null,null,null,null,null,null,null,null,null,{"$f":"IF(AI120=\"\",\"\",COUNTIF(tbPMA[ID MMA],AI120))","v":""},{"$f":"SUMIF(tbPMA[ID MMA],AI120,tbPMA[PORCENTAJE COSTOS CEI])","v":0},null,null,"","",""]
[null,null,null,null,null,null,null,null,null,null,null,null,null,"","",null,null,null,null,null,null,null,"",null,null,null,null,null,null,null,null,null,null,null,null,{"$f":"IF(AI121=\"\",\"\",COUNTIF(tbPMA[ID MMA],AI121))","v":""},{"$f":"SUMIF(tbPMA[ID MMA],AI121,tbPMA[PORCENTAJE COSTOS CEI])","v":0},null,null,"","",""]
[null,null,null,null,null,null,null,null,null,null,null,null,null,"","",null,null,null,null,null,null,null,"",null,null,null,null,null,null,null,null,null,null,null,null,{"$f":"IF(AI122=\"\",\"\",COUNTIF(tbPMA[ID MMA],AI122))","v":""},{"$f":"SUMIF(tbPMA[ID MMA],AI122,tbPMA[PORCENTAJE COSTOS CEI])","v":0},null,null,"","",""]
[null,null,null,null,null,null,null,null,null,null,null,null,null,"","",null,null,null,null,null,null,null,"",null,null,null,null,null,null,null,null,null,null,null,null,{"$f":"IF(AI123=\"\",\"\",COUNTIF(tbPMA[ID MMA],AI123))","v":""},{"$f":"SUMIF(tbPMA[ID MMA],AI123,tbPMA[PORCENTAJE COSTOS CEI])","v":0},null,null,"","",""]
[null,null,null,null,null,null,null,null,null,null,null,null,null,"","",null,null,null,null,null,null,null,"",null,null,null,null,null,null,null,null,null,null,null,null,{"$f":"IF(AI124=\"\",\"\",COUNTIF(tbPMA[ID MMA],AI124))","v":""},{"$f":"SUMIF(tbPMA[ID MMA],AI124,tbPMA[PORCENTAJE COSTOS CEI])","v":0},null,null,{"$f":"LEFT(AM124,6)","v":""},"",""]
[null,null,null,null,null,null,null,null,null,null,null,null,null,"","",null,null,null,null,null,null,null,"",null,null,null,null,null,null,null,null,null,null,null,null,{"$f":"IF(AI125=\"\",\"\",COUNTIF(tbPMA[ID MMA],AI125))","v":""},{"$f":"SUMIF(tbPMA[ID MMA],AI125,tbPMA[PORCENTAJE COSTOS CEI])","v":0},null,null,{"$f":"LEFT(AM125,6)","v":""},"",""]
[null,null,null,null,null,null,null,null,null,null,null,null,null,"","",null,null,null,null,null,null,null,"",null,null,null,null,null,null,null,null,null,null,null,null,{"$f":"IF(AI126=\"\",\"\",COUNTIF(tbPMA[ID MMA],AI126))","v":""},{"$f":"SUMIF(tbPMA[ID MMA],AI126,tbPMA[PORCENTAJE COSTOS CEI])","v":0},null,null,"","",""]
[null,null,null,null,null,null,null,null,null,null,null,null,null,"","",null,null,null,null,null,null,null,"",null,null,null,null,null,null,null,null,null,null,null,null,{"$f":"IF(AI127=\"\",\"\",COUNTIF(tbPMA[ID MMA],AI127))","v":""},{"$f":"SUMIF(tbPMA[ID MMA],AI127,tbPMA[PORCENTAJE COSTOS CEI])","v":0},null,null,"","",""]
[null,null,null,null,null,null,null,null,null,null,null,null,null,"","",null,null,null,null,null,null,null,"",null,null,null,null,null,null,null,null,null,null,null,null,{"$f":"IF(AI128=\"\",\"\",COUNTIF(tbPMA[ID MMA],AI128))","v":""},{"$f":"SUMIF(tbPMA[ID MMA],AI128,tbPMA[PORCENTAJE COSTOS CEI])","v":0},null,null,"","",""]
[null,null,null,null,null,null,null,null,null,null,null,null,null,"","",null,null,null,null,null,null,null,"",null,null,null,null,null,null,null,null,null,null,null,null,{"$f":"IF(AI129=\"\",\"\",COUNTIF(tbPMA[ID MMA],AI129))","v":""},{"$f":"SUMIF(tbPMA[ID MMA],AI129,tbPMA[PORCENTAJE COSTOS CEI])","v":0},null,null,"","",""]
[null,null,null,null,null,null,null,null,null,null,null,null,null,"","",null,null,null,null,null,null,null,"",null,null,null,null,null,null,null,null,null,null,null,null,{"$f":"IF(AI130=\"\",\"\",COUNTIF(tbPMA[ID MMA],AI130))","v":""},{"$f":"SUMIF(tbPMA[ID MMA],AI130,tbPMA[PORCENTAJE COSTOS CEI])","v":0},null,null,"","",""]
[null,null,null,null,null,null,null,null,null,null,null,null,null,{"$f":"IF(M131=\"\",\"\",IFERROR(VLOOKUP(M131,$R$2:$R$201,1,FALSE),\"NO DEFINIDO EN PMA\"))","v":""},{"$f":"IF(N131=\"\",\"\",IFERROR(VLOOKUP(N131,$T$2:$T$201,1,FALSE),\"NO DEFINIDO EN EL PSM\"))","v":""},null,null,null,null,null,null,null,{"$f":"IF(V131=\"\",\"\",IFERROR(VLOOKUP(V131,$Y$2:$Y$201,1,FALSE),\"NO DEFINIDO EN EL PSM\"))","v":""},null,null,null,null,null,null,null,null,null,null,null,null,{"$f":"IF(AI131=\"\",\"\",COUNTIF(tbPMA[ID MMA],AI131))","v":""},{"$f":"SUMIF(tbPMA[ID MMA],AI131,tbPMA[PORCENTAJE COSTOS CEI])","v":0},null,null,"",{"$f":"IF(AN131=\"\",\"\",MID(AM131,8,FIND(\"_\",AM131,FIND(\"_\",AM131,FIND(\"_\",AM131,1)+1)+1)-8))","v":""},{"$f":"IF(AM131=\"\",\"\",MID(AM131,FIND(\"_\",AM131,FIND(\"_\",AM131,FIND(\"_\",AM131,1)+1)+1)+1,6))","v":""}]
[null,null,null,null,null,null,null,null,null,null,null,null,null,"","",null,null,null,null,null,null,null,"",null,null,null,null,null,null,null,null,null,null,null,null,{"$f":"IF(AI132=\"\",\"\",COUNTIF(tbPMA[ID MMA],AI132))","v":""},{"$f":"SUMIF(tbPMA[ID MMA],AI132,tbPMA[PORCENTAJE COSTOS CEI])","v":0},null,null,"","",""]
[null,null,null,null,null,null,null,null,null,null,null,null,null,"","",null,null,null,null,null,null,null,"",null,null,null,null,null,null,null,null,null,null,null,null,{"$f":"IF(AI133=\"\",\"\",COUNTIF(tbPMA[ID MMA],AI133))","v":""},{"$f":"SUMIF(tbPMA[ID MMA],AI133,tbPMA[PORCENTAJE COSTOS CEI])","v":0},null,null,"","",""]
[null,null,null,null,null,null,null,null,null,null,null,null,null,"","",null,null,null,null,null,null,null,"",null,null,null,null,null,null,null,null,null,null,null,null,{"$f":"IF(AI134=\"\",\"\",COUNTIF(tbPMA[ID MMA],AI134))","v":""},{"$f":"SUMIF(tbPMA[ID MMA],AI134,tbPMA[PORCENTAJE COSTOS CEI])","v":0},null,null,"","",""]
[null,null,null,null,null,null,null,null,null,null,null,null,null,"","",null,null,null,null,null,null,null,"",null,null,null,null,null,null,null,null,null,null,null,null,{"$f":"IF(AI135=\"\",\"\",COUNTIF(tbPMA[ID MMA],AI135))","v":""},{"$f":"SUMIF(tbPMA[ID MMA],AI135,tbPMA[PORCENTAJE COSTOS CEI])","v":0},null,null,"","",""]
[null,null,null,null,null,null,null,null,null,null,null,null,null,"","",null,null,null,null,null,null,null,"",null,null,null,null,null,null,null,null,null,null,null,null,{"$f":"IF(AI136=\"\",\"\",COUNTIF(tbPMA[ID MMA],AI136))","v":""},{"$f":"SUMIF(tbPMA[ID MMA],AI136,tbPMA[PORCENTAJE COSTOS CEI])","v":0},null,null,"","",""]
[null,null,null,null,null,null,null,null,null,null,null,null,null,"","",null,null,null,null,null,null,null,"",null,null,null,null,null,null,null,null,null,null,null,null,{"$f":"IF(AI137=\"\",\"\",COUNTIF(tbPMA[ID MMA],AI137))","v":""},{"$f":"SUMIF(tbPMA[ID MMA],AI137,tbPMA[PORCENTAJE COSTOS CEI])","v":0},null,null,"","",""]
[null,null,null,null,null,null,null,null,null,null,null,null,null,"","",null,null,null,null,null,null,null,"",null,null,null,null,null,null,null,null,null,null,null,null,{"$f":"IF(AI138=\"\",\"\",COUNTIF(tbPMA[ID MMA],AI138))","v":""},{"$f":"SUMIF(tbPMA[ID MMA],AI138,tbPMA[PORCENTAJE COSTOS CEI])","v":0},null,null,"","",""]
[null,null,null,null,null,null,null,null,null,null,null,null,null,"","",null,null,null,null,null,null,null,"",null,null,null,null,null,null,null,null,null,null,null,null,{"$f":"IF(AI139=\"\",\"\",COUNTIF(tbPMA[ID MMA],AI139))","v":""},{"$f":"SUMIF(tbPMA[ID MMA],AI139,tbPMA[PORCENTAJE COSTOS CEI])","v":0},null,null,"","",""]
[null,null,null,null,null,null,null,null,null,null,null,null,null,"","",null,null,null,null,null,null,null,"",null,null,null,null,null,null,null,null,null,null,null,null,{"$f":"IF(AI140=\"\",\"\",COUNTIF(tbPMA[ID MMA],AI140))","v":""},{"$f":"SUMIF(tbPMA[ID MMA],AI140,tbPMA[PORCENTAJE COSTOS CEI])","v":0},null,null,"","",""]
[null,null,null,null,null,null,null,null,null,null,null,null,null,"","",null,null,null,null,null,null,null,"",null,null,null,null,null,null,null,null,null,null,null,null,{"$f":"IF(AI141=\"\",\"\",COUNTIF(tbPMA[ID MMA],AI141))","v":""},{"$f":"SUMIF(tbPMA[ID MMA],AI141,tbPMA[PORCENTAJE COSTOS CEI])","v":0},null,null,"","",""]
[null,null,null,null,null,null,null,null,null,null,null,null,null,"","",null,null,null,null,null,null,null,"",null,null,null,null,null,null,null,null,null,null,null,null,{"$f":"IF(AI142=\"\",\"\",COUNTIF(tbPMA[ID MMA],AI142))","v":""},{"$f":"SUMIF(tbPMA[ID MMA],AI142,tbPMA[PORCENTAJE COSTOS CEI])","v":0},null,null,"","",""]
[null,null,null,null,null,null,null,null,null,null,null,null,null,"","",null,null,null,null,null,null,null,"",null,null,null,null,null,null,null,null,null,null,null,null,{"$f":"IF(AI143=\"\",\"\",COUNTIF(tbPMA[ID MMA],AI143))","v":""},{"$f":"SUMIF(tbPMA[ID MMA],AI143,tbPMA[PORCENTAJE COSTOS CEI])","v":0},null,null,"","",""]
[null,null,null,null,null,null,null,null,null,null,null,null,null,"","",null,null,null,null,null,null,null,"",null,null,null,null,null,null,null,null,null,null,null,null,{"$f":"IF(AI144=\"\",\"\",COUNTIF(tbPMA[ID MMA],AI144))","v":""},{"$f":"SUMIF(tbPMA[ID MMA],AI144,tbPMA[PORCENTAJE COSTOS CEI])","v":0},null,null,"","",""]
[null,null,null,null,null,null,null,null,null,null,null,null,null,"","",null,null,null,null,null,null,null,"",null,null,null,null,null,null,null,null,null,null,null,null,{"$f":"IF(AI145=\"\",\"\",COUNTIF(tbPMA[ID MMA],AI145))","v":""},{"$f":"SUMIF(tbPMA[ID MMA],AI145,tbPMA[PORCENTAJE COSTOS CEI])","v":0},null,null,"","",""]
[null,null,null,null,null,null,null,null,null,null,null,null,null,"","",null,null,null,null,null,null,null,"",null,null,null,null,null,null,null,null,null,null,null,null,{"$f":"IF(AI146=\"\",\"\",COUNTIF(tbPMA[ID MMA],AI146))","v":""},{"$f":"SUMIF(tbPMA[ID MMA],AI146,tbPMA[PORCENTAJE COSTOS CEI])","v":0},null,null,{"$f":"LEFT(AM146,6)","v":""},"",""]
[null,null,null,null,null,null,null,null,null,null,null,null,null,"","",null,null,null,null,null,null,null,"",null,null,null,null,null,null,null,null,null,null,null,null,{"$f":"IF(AI147=\"\",\"\",COUNTIF(tbPMA[ID MMA],AI147))","v":""},{"$f":"SUMIF(tbPMA[ID MMA],AI147,tbPMA[PORCENTAJE COSTOS CEI])","v":0},null,null,"","",""]
[null,null,null,null,null,null,null,null,null,null,null,null,null,"","",null,null,null,null,null,null,null,"",null,null,null,null,null,null,null,null,null,null,null,null,{"$f":"IF(AI148=\"\",\"\",COUNTIF(tbPMA[ID MMA],AI148))","v":""},{"$f":"SUMIF(tbPMA[ID MMA],AI148,tbPMA[PORCENTAJE COSTOS CEI])","v":0},null,null,"","",""]
[null,null,null,null,null,null,null,null,null,null,null,null,null,"","",null,null,null,null,null,null,null,"",null,null,null,null,null,null,null,null,null,null,null,null,{"$f":"IF(AI149=\"\",\"\",COUNTIF(tbPMA[ID MMA],AI149))","v":""},{"$f":"SUMIF(tbPMA[ID MMA],AI149,tbPMA[PORCENTAJE COSTOS CEI])","v":0},null,null,{"$f":"LEFT(AM149,6)","v":""},"",""]
[null,null,null,null,null,null,null,null,null,null,null,null,null,"","",null,null,null,null,null,null,null,"",null,null,null,null,null,null,null,null,null,null,null,null,{"$f":"IF(AI150=\"\",\"\",COUNTIF(tbPMA[ID MMA],AI150))","v":""},{"$f":"SUMIF(tbPMA[ID MMA],AI150,tbPMA[PORCENTAJE COSTOS CEI])","v":0},null,null,{"$f":"LEFT(AM150,6)","v":""},"",""]
[null,null,null,null,null,null,null,null,null,null,null,null,null,"","",null,null,null,null,null,null,null,"",null,null,null,null,null,null,null,null,null,null,null,null,{"$f":"IF(AI151=\"\",\"\",COUNTIF(tbPMA[ID MMA],AI151))","v":""},{"$f":"SUMIF(tbPMA[ID MMA],AI151,tbPMA[PORCENTAJE COSTOS CEI])","v":0},null,null,"","",""]
[null,null,null,null,null,null,null,null,null,null,null,null,null,"","",null,null,null,null,null,null,null,"",null,null,null,null,null,null,null,null,null,null,null,null,{"$f":"IF(AI152=\"\",\"\",COUNTIF(tbPMA[ID MMA],AI152))","v":""},{"$f":"SUMIF(tbPMA[ID MMA],AI152,tbPMA[PORCENTAJE COSTOS CEI])","v":0},null,null,"","",""]
[null,null,null,null,null,null,null,null,null,null,null,null,null,"","",null,null,null,null,null,null,null,"",null,null,null,null,null,null,null,null,null,null,null,null,{"$f":"IF(AI153=\"\",\"\",COUNTIF(tbPMA[ID MMA],AI153))","v":""},{"$f":"SUMIF(tbPMA[ID MMA],AI153,tbPMA[PORCENTAJE COSTOS CEI])","v":0},null,null,"","",""]
[null,null,null,null,null,null,null,null,null,null,null,null,null,"","",null,null,null,null,null,null,null,"",null,null,null,null,null,null,null,null,null,null,null,null,{"$f":"IF(AI154=\"\",\"\",COUNTIF(tbPMA[ID MMA],AI154))","v":""},{"$f":"SUMIF(tbPMA[ID MMA],AI154,tbPMA[PORCENTAJE COSTOS CEI])","v":0},null,null,"","",""]
[null,null,null,null,null,null,null,null,null,null,null,null,null,"","",null,null,null,null,null,null,null,"",null,null,null,null,null,null,null,null,null,null,null,null,{"$f":"IF(AI155=\"\",\"\",COUNTIF(tbPMA[ID MMA],AI155))","v":""},{"$f":"SUMIF(tbPMA[ID MMA],AI155,tbPMA[PORCENTAJE COSTOS CEI])","v":0},null,null,"","",""]
[null,null,null,null,null,null,null,null,null,null,null,null,null,"","",null,null,null,null,null,null,null,"",null,null,null,null,null,null,null,null,null,null,null,null,{"$f":"IF(AI156=\"\",\"\",COUNTIF(tbPMA[ID MMA],AI156))","v":""},{"$f":"SUMIF(tbPMA[ID MMA],AI156,tbPMA[PORCENTAJE COSTOS CEI])","v":0},null,null,"","",""]
[null,null,null,null,null,null,null,null,null,null,null,null,null,"","",null,null,null,null,null,null,null,"",null,null,null,null,null,null,null,null,null,null,null,null,{"$f":"IF(AI157=\"\",\"\",COUNTIF(tbPMA[ID MMA],AI157))","v":""},{"$f":"SUMIF(tbPMA[ID MMA],AI157,tbPMA[PORCENTAJE COSTOS CEI])","v":0},null,null,"","",""]
[null,null,null,null,null,null,null,null,null,null,null,null,null,"","",null,null,null,null,null,null,null,"",null,null,null,null,null,null,null,null,null,null,null,null,{"$f":"IF(AI158=\"\",\"\",COUNTIF(tbPMA[ID MMA],AI158))","v":""},{"$f":"SUMIF(tbPMA[ID MMA],AI158,tbPMA[PORCENTAJE COSTOS CEI])","v":0},null,null,"","",""]
[null,null,null,null,null,null,null,null,null,null,null,null,null,"","",null,null,null,null,null,null,null,"",null,null,null,null,null,null,null,null,null,null,null,null,{"$f":"IF(AI159=\"\",\"\",COUNTIF(tbPMA[ID MMA],AI159))","v":""},{"$f":"SUMIF(tbPMA[ID MMA],AI159,tbPMA[PORCENTAJE COSTOS CEI])","v":0},null,null,"","",""]
[null,null,null,null,null,null,null,null,null,null,null,null,null,"","",null,null,null,null,null,null,null,"",null,null,null,null,null,null,null,null,null,null,null,null,{"$f":"IF(AI160=\"\",\"\",COUNTIF(tbPMA[ID MMA],AI160))","v":""},{"$f":"SUMIF(tbPMA[ID MMA],AI160,tbPMA[PORCENTAJE COSTOS CEI])","v":0},null,null,"","",""]
[null,null,null,null,null,null,null,null,null,null,null,null,null,"","",null,null,null,null,null,null,null,"",null,null,null,null,null,null,null,null,null,null,null,null,{"$f":"IF(AI161=\"\",\"\",COUNTIF(tbPMA[ID MMA],AI161))","v":""},{"$f":"SUMIF(tbPMA[ID MMA],AI161,tbPMA[PORCENTAJE COSTOS CEI])","v":0},null,null,"","",""]
[null,null,null,null,null,null,null,null,null,null,null,null,null,"","",null,null,null,null,null,null,null,"",null,null,null,null,null,null,null,null,null,null,null,null,{"$f":"IF(AI162=\"\",\"\",COUNTIF(tbPMA[ID MMA],AI162))","v":""},{"$f":"SUMIF(tbPMA[ID MMA],AI162,tbPMA[PORCENTAJE COSTOS CEI])","v":0},null,null,"","",""]
[null,null,null,null,null,null,null,null,null,null,null,null,null,"","",null,null,null,null,null,null,null,"",null,null,null,null,null,null,null,null,null,null,null,null,{"$f":"IF(AI163=\"\",\"\",COUNTIF(tbPMA[ID MMA],AI163))","v":""},{"$f":"SUMIF(tbPMA[ID MMA],AI163,tbPMA[PORCENTAJE COSTOS CEI])","v":0},null,null,"","",""]
[null,null,null,null,null,null,null,null,null,null,null,null,null,"","",null,null,null,null,null,null,null,"",null,null,null,null,null,null,null,null,null,null,null,null,{"$f":"IF(AI164=\"\",\"\",COUNTIF(tbPMA[ID MMA],AI164))","v":""},{"$f":"SUMIF(tbPMA[ID MMA],AI164,tbPMA[PORCENTAJE COSTOS CEI])","v":0},null,null,"","",""]
[null,null,null,null,null,null,null,null,null,null,null,null,null,"","",null,null,null,null,null,null,null,"",null,null,null,null,null,null,null,null,null,null,null,null,{"$f":"IF(AI165=\"\",\"\",COUNTIF(tbPMA[ID MMA],AI165))","v":""},{"$f":"SUMIF(tbPMA[ID MMA],AI165,tbPMA[PORCENTAJE COSTOS CEI])","v":0},null,null,"","",""]
[null,null,null,null,null,null,null,null,null,null,null,null,null,"","",null,null,null,null,null,null,null,"",null,null,null,null,null,null,null,null,null,null,null,null,{"$f":"IF(AI166=\"\",\"\",COUNTIF(tbPMA[ID MMA],AI166))","v":""},{"$f":"SUMIF(tbPMA[ID MMA],AI166,tbPMA[PORCENTAJE COSTOS CEI])","v":0},null,null,"","",""]
[null,null,null,null,null,null,null,null,null,null,null,null,null,"","",null,null,null,null,null,null,null,"",null,null,null,null,null,null,null,null,null,null,null,null,{"$f":"IF(AI167=\"\",\"\",COUNTIF(tbPMA[ID MMA],AI167))","v":""},{"$f":"SUMIF(tbPMA[ID MMA],AI167,tbPMA[PORCENTAJE COSTOS CEI])","v":0},null,null,"","",""]
[null,null,null,null,null,null,null,null,null,null,null,null,null,"","",null,null,null,null,null,null,null,"",null,null,null,null,null,null,null,null,null,null,null,null,{"$f":"IF(AI168=\"\",\"\",COUNTIF(tbPMA[ID MMA],AI168))","v":""},{"$f":"SUMIF(tbPMA[ID MMA],AI168,tbPMA[PORCENTAJE COSTOS CEI])","v":0},null,null,"","",""]
[null,null,null,null,null,null,null,null,null,null,null,null,null,"","",null,null,null,null,null,null,null,"",null,null,null,null,null,null,null,null,null,null,null,null,{"$f":"IF(AI169=\"\",\"\",COUNTIF(tbPMA[ID MMA],AI169))","v":""},{"$f":"SUMIF(tbPMA[ID MMA],AI169,tbPMA[PORCENTAJE COSTOS CEI])","v":0},null,null,"","",""]
[null,null,null,null,null,null,null,null,null,null,null,null,null,"","",null,null,null,null,null,null,null,"",null,null,null,null,null,null,null,null,null,null,null,null,{"$f":"IF(AI170=\"\",\"\",COUNTIF(tbPMA[ID MMA],AI170))","v":""},{"$f":"SUMIF(tbPMA[ID MMA],AI170,tbPMA[PORCENTAJE COSTOS CEI])","v":0},null,null,"","",""]
[null,null,null,null,null,null,null,null,null,null,null,null,null,"","",null,null,null,null,null,null,null,"",null,null,null,null,null,null,null,null,null,null,null,null,{"$f":"IF(AI171=\"\",\"\",COUNTIF(tbPMA[ID MMA],AI171))","v":""},{"$f":"SUMIF(tbPMA[ID MMA],AI171,tbPMA[PORCENTAJE COSTOS CEI])","v":0},null,null,{"$f":"LEFT(AM171,6)","v":""},"",""]
[null,null,null,null,null,null,null,null,null,null,null,null,null,"","",null,null,null,null,null,null,null,"",null,null,null,null,null,null,null,null,null,null,null,null,{"$f":"IF(AI172=\"\",\"\",COUNTIF(tbPMA[ID MMA],AI172))","v":""},{"$f":"SUMIF(tbPMA[ID MMA],AI172,tbPMA[PORCENTAJE COSTOS CEI])","v":0},null,null,{"$f":"LEFT(AM172,6)","v":""},"",""]
[null,null,null,null,null,null,null,null,null,null,null,null,null,"","",null,null,null,null,null,null,null,"",null,null,null,null,null,null,null,null,null,null,null,null,{"$f":"IF(AI173=\"\",\"\",COUNTIF(tbPMA[ID MMA],AI173))","v":""},{"$f":"SUMIF(tbPMA[ID MMA],AI173,tbPMA[PORCENTAJE COSTOS CEI])","v":0},null,null,"","",""]
[null,null,null,null,null,null,null,null,null,null,null,null,null,"","",null,null,null,null,null,null,null,"",null,null,null,null,null,null,null,null,null,null,null,null,{"$f":"IF(AI174=\"\",\"\",COUNTIF(tbPMA[ID MMA],AI174))","v":""},{"$f":"SUMIF(tbPMA[ID MMA],AI174,tbPMA[PORCENTAJE COSTOS CEI])","v":0},null,null,"","",""]
[null,null,null,null,null,null,null,null,null,null,null,null,null,"","",null,null,null,null,null,null,null,"",null,null,null,null,null,null,null,null,null,null,null,null,{"$f":"IF(AI175=\"\",\"\",COUNTIF(tbPMA[ID MMA],AI175))","v":""},{"$f":"SUMIF(tbPMA[ID MMA],AI175,tbPMA[PORCENTAJE COSTOS CEI])","v":0},null,null,"","",""]
[null,null,null,null,null,null,null,null,null,null,null,null,null,"","",null,null,null,null,null,null,null,"",null,null,null,null,null,null,null,null,null,null,null,null,{"$f":"IF(AI176=\"\",\"\",COUNTIF(tbPMA[ID MMA],AI176))","v":""},{"$f":"SUMIF(tbPMA[ID MMA],AI176,tbPMA[PORCENTAJE COSTOS CEI])","v":0},null,null,"","",""]
[null,null,null,null,null,null,null,null,null,null,null,null,null,"","",null,null,null,null,null,null,null,"",null,null,null,null,null,null,null,null,null,null,null,null,{"$f":"IF(AI177=\"\",\"\",COUNTIF(tbPMA[ID MMA],AI177))","v":""},{"$f":"SUMIF(tbPMA[ID MMA],AI177,tbPMA[PORCENTAJE COSTOS CEI])","v":0},null,null,"","",""]
[null,null,null,null,null,null,null,null,null,null,null,null,null,"","",null,null,null,null,null,null,null,"",null,null,null,null,null,null,null,null,null,null,null,null,{"$f":"IF(AI178=\"\",\"\",COUNTIF(tbPMA[ID MMA],AI178))","v":""},{"$f":"SUMIF(tbPMA[ID MMA],AI178,tbPMA[PORCENTAJE COSTOS CEI])","v":0},null,null,"","",""]
[null,null,null,null,null,null,null,null,null,null,null,null,null,"","",null,null,null,null,null,null,null,"",null,null,null,null,null,null,null,null,null,null,null,null,{"$f":"IF(AI179=\"\",\"\",COUNTIF(tbPMA[ID MMA],AI179))","v":""},{"$f":"SUMIF(tbPMA[ID MMA],AI179,tbPMA[PORCENTAJE COSTOS CEI])","v":0},null,null,"","",""]
[null,null,null,null,null,null,null,null,null,null,null,null,null,"","",null,null,null,null,null,null,null,"",null,null,null,null,null,null,null,null,null,null,null,null,{"$f":"IF(AI180=\"\",\"\",COUNTIF(tbPMA[ID MMA],AI180))","v":""},{"$f":"SUMIF(tbPMA[ID MMA],AI180,tbPMA[PORCENTAJE COSTOS CEI])","v":0},null,null,"","",""]
[null,null,null,null,null,null,null,null,null,null,null,null,null,"","",null,null,null,null,null,null,null,"",null,null,null,null,null,null,null,null,null,null,null,null,{"$f":"IF(AI181=\"\",\"\",COUNTIF(tbPMA[ID MMA],AI181))","v":""},{"$f":"SUMIF(tbPMA[ID MMA],AI181,tbPMA[PORCENTAJE COSTOS CEI])","v":0},null,null,"","",""]
[null,null,null,null,null,null,null,null,null,null,null,null,null,"","",null,null,null,null,null,null,null,"",null,null,null,null,null,null,null,null,null,null,null,null,{"$f":"IF(AI182=\"\",\"\",COUNTIF(tbPMA[ID MMA],AI182))","v":""},{"$f":"SUMIF(tbPMA[ID MMA],AI182,tbPMA[PORCENTAJE COSTOS CEI])","v":0},null,null,"","",""]
[null,null,null,null,null,null,null,null,null,null,null,null,null,"","",null,null,null,null,null,null,null,"",null,null,null,null,null,null,null,null,null,null,null,null,{"$f":"IF(AI183=\"\",\"\",COUNTIF(tbPMA[ID MMA],AI183))","v":""},{"$f":"SUMIF(tbPMA[ID MMA],AI183,tbPMA[PORCENTAJE COSTOS CEI])","v":0},null,null,"","",""]
[null,null,null,null,null,null,null,null,null,null,null,null,null,"","",null,null,null,null,null,null,null,"",null,null,null,null,null,null,null,null,null,null,null,null,{"$f":"IF(AI184=\"\",\"\",COUNTIF(tbPMA[ID MMA],AI184))","v":""},{"$f":"SUMIF(tbPMA[ID MMA],AI184,tbPMA[PORCENTAJE COSTOS CEI])","v":0},null,null,"","",""]
[null,null,null,null,null,null,null,null,null,null,null,null,null,"","",null,null,null,null,null,null,null,"",null,null,null,null,null,null,null,null,null,null,null,null,{"$f":"IF(AI185=\"\",\"\",COUNTIF(tbPMA[ID MMA],AI185))","v":""},{"$f":"SUMIF(tbPMA[ID MMA],AI185,tbPMA[PORCENTAJE COSTOS CEI])","v":0},null,null,"","",""]
[null,null,null,null,null,null,null,null,null,null,null,null,null,"","",null,null,null,null,null,null,null,"",null,null,null,null,null,null,null,null,null,null,null,null,{"$f":"IF(AI186=\"\",\"\",COUNTIF(tbPMA[ID MMA],AI186))","v":""},{"$f":"SUMIF(tbPMA[ID MMA],AI186,tbPMA[PORCENTAJE COSTOS CEI])","v":0},null,null,"","",""]
[null,null,null,null,null,null,null,null,null,null,null,null,null,"","",null,null,null,null,null,null,null,"",null,null,null,null,null,null,null,null,null,null,null,null,{"$f":"IF(AI187=\"\",\"\",COUNTIF(tbPMA[ID MMA],AI187))","v":""},{"$f":"SUMIF(tbPMA[ID MMA],AI187,tbPMA[PORCENTAJE COSTOS CEI])","v":0},null,null,"","",""]
[null,null,null,null,null,null,null,null,null,null,null,null,null,"","",null,null,null,null,null,null,null,"",null,null,null,null,null,null,null,null,null,null,null,null,{"$f":"IF(AI188=\"\",\"\",COUNTIF(tbPMA[ID MMA],AI188))","v":""},{"$f":"SUMIF(tbPMA[ID MMA],AI188,tbPMA[PORCENTAJE COSTOS CEI])","v":0},null,null,"","",""]
[null,null,null,null,null,null,null,null,null,null,null,null,null,"","",null,null,null,null,null,null,null,"",null,null,null,null,null,null,null,null,null,null,null,null,{"$f":"IF(AI189=\"\",\"\",COUNTIF(tbPMA[ID MMA],AI189))","v":""},{"$f":"SUMIF(tbPMA[ID MMA],AI189,tbPMA[PORCENTAJE COSTOS CEI])","v":0},null,null,"","",""]
[null,null,null,null,null,null,null,null,null,null,null,null,null,"","",null,null,null,null,null,null,null,"",null,null,null,null,null,null,null,null,null,null,null,null,{"$f":"IF(AI190=\"\",\"\",COUNTIF(tbPMA[ID MMA],AI190))","v":""},{"$f":"SUMIF(tbPMA[ID MMA],AI190,tbPMA[PORCENTAJE COSTOS CEI])","v":0},null,null,"","",""]
[null,null,null,null,null,null,null,null,null,null,null,null,null,"","",null,null,null,null,null,null,null,"",null,null,null,null,null,null,null,null,null,null,null,null,{"$f":"IF(AI191=\"\",\"\",COUNTIF(tbPMA[ID MMA],AI191))","v":""},{"$f":"SUMIF(tbPMA[ID MMA],AI191,tbPMA[PORCENTAJE COSTOS CEI])","v":0},null,null,"","",""]
[null,null,null,null,null,null,null,null,null,null,null,null,null,"","",null,null,null,null,null,null,null,"",null,null,null,null,null,null,null,null,null,null,null,null,{"$f":"IF(AI192=\"\",\"\",COUNTIF(tbPMA[ID MMA],AI192))","v":""},{"$f":"SUMIF(tbPMA[ID MMA],AI192,tbPMA[PORCENTAJE COSTOS CEI])","v":0},null,null,"","",""]
[null,null,null,null,null,null,null,null,null,null,null,null,null,"","",null,null,null,null,null,null,null,"",null,null,null,null,null,null,null,null,null,null,null,null,{"$f":"IF(AI193=\"\",\"\",COUNTIF(tbPMA[ID MMA],AI193))","v":""},{"$f":"SUMIF(tbPMA[ID MMA],AI193,tbPMA[PORCENTAJE COSTOS CEI])","v":0},null,null,{"$f":"LEFT(AM193,6)","v":""},"",""]
[null,null,null,null,null,null,null,null,null,null,null,null,null,"","",null,null,null,null,null,null,null,"",null,null,null,null,null,null,null,null,null,null,null,null,{"$f":"IF(AI194=\"\",\"\",COUNTIF(tbPMA[ID MMA],AI194))","v":""},{"$f":"SUMIF(tbPMA[ID MMA],AI194,tbPMA[PORCENTAJE COSTOS CEI])","v":0},null,null,"","",""]
[null,null,null,null,null,null,null,null,null,null,null,null,null,{"$f":"IF(M195=\"\",\"\",IFERROR(VLOOKUP(M195,$R$2:$R$201,1,FALSE),\"NO DEFINIDO EN PMA\"))","v":""},{"$f":"IF(N195=\"\",\"\",IFERROR(VLOOKUP(N195,$T$2:$T$201,1,FALSE),\"NO DEFINIDO EN EL PSM\"))","v":""},null,null,null,null,null,null,null,{"$f":"IF(V195=\"\",\"\",IFERROR(VLOOKUP(V195,$Y$2:$Y$201,1,FALSE),\"NO DEFINIDO EN EL PSM\"))","v":""},null,null,null,null,null,null,null,null,null,null,null,null,{"$f":"IF(AI195=\"\",\"\",COUNTIF(tbPMA[ID MMA],AI195))","v":""},{"$f":"SUMIF(tbPMA[ID MMA],AI195,tbPMA[PORCENTAJE COSTOS CEI])","v":0},null,null,"",{"$f":"IF(AN195=\"\",\"\",MID(AM195,8,FIND(\"_\",AM195,FIND(\"_\",AM195,FIND(\"_\",AM195,1)+1)+1)-8))","v":""},{"$f":"IF(AM195=\"\",\"\",MID(AM195,FIND(\"_\",AM195,FIND(\"_\",AM195,FIND(\"_\",AM195,1)+1)+1)+1,6))","v":""}]
[null,null,null,null,null,null,null,null,null,null,null,null,null,"","",null,null,null,null,null,null,null,"",null,null,null,null,null,null,null,null,null,null,null,null,{"$f":"IF(AI196=\"\",\"\",COUNTIF(tbPMA[ID MMA],AI196))","v":""},{"$f":"SUMIF(tbPMA[ID MMA],AI196,tbPMA[PORCENTAJE COSTOS CEI])","v":0},null,null,"","",""]
[null,null,null,null,null,null,null,null,null,null,null,null,null,"","",null,null,null,null,null,null,null,"",null,null,null,null,null,null,null,null,null,null,null,null,{"$f":"IF(AI197=\"\",\"\",COUNTIF(tbPMA[ID MMA],AI197))","v":""},{"$f":"SUMIF(tbPMA[ID MMA],AI197,tbPMA[PORCENTAJE COSTOS CEI])","v":0},null,null,"","",""]
[null,null,null,null,null,null,null,null,null,null,null,null,null,"","",null,null,null,null,null,null,null,"",null,null,null,null,null,null,null,null,null,null,null,null,{"$f":"IF(AI198=\"\",\"\",COUNTIF(tbPMA[ID MMA],AI198))","v":""},{"$f":"SUMIF(tbPMA[ID MMA],AI198,tbPMA[PORCENTAJE COSTOS CEI])","v":0},null,null,"","",""]
[null,null,null,null,null,null,null,null,null,null,null,null,null,"","",null,null,null,null,null,null,null,"",null,null,null,null,null,null,null,null,null,null,null,null,{"$f":"IF(AI199=\"\",\"\",COUNTIF(tbPMA[ID MMA],AI199))","v":""},{"$f":"SUMIF(tbPMA[ID MMA],AI199,tbPMA[PORCENTAJE COSTOS CEI])","v":0},null,null,"","",""]
[null,null,null,null,null,null,null,null,null,null,null,null,null,"","",null,null,null,null,null,null,null,"",null,null,null,null,null,null,null,null,null,null,null,null,{"$f":"IF(AI200=\"\",\"\",COUNTIF(tbPMA[ID MMA],AI200))","v":""},{"$f":"SUMIF(tbPMA[ID MMA],AI200,tbPMA[PORCENTAJE COSTOS CEI])","v":0},null,null,"","",""]
[null,null,null,null,null,null,null,null,null,null,null,null,null,"","",null,null,null,null,null,null,null,{"$f":"IF(V201=\"\",\"\",IFERROR(VLOOKUP(V201,$Y$2:$Y$201,1,FALSE),\"NO DEFINIDO EN EL PSM\"))","v":""},null,null,null,null,null,null,null,null,null,null,null,null,{"$f":"IF(AI201=\"\",\"\",COUNTIF(tbPMA[ID MMA],AI201))","v":""},null,null,null,{"$f":"LEFT(AM201,6)","v":""},{"$f":"IF(AN201=\"\",\"\",MID(AM201,8,FIND(\"_\",AM201,FIND(\"_\",AM201,FIND(\"_\",AM201,1)+1)+1)-8))","v":""},{"$f":"IF(AM201=\"\",\"\",MID(AM201,FIND(\"_\",AM201,FIND(\"_\",AM201,FIND(\"_\",AM201,1)+1)+1)+1,6))","v":""}]
[null,null,null,null,null,null,null,null,null,null,null,null,null,null,null,null,null,null,null,null,null,null,null,null,null,null,null,null,null,null,null,null,null,null,null,null,null,null,null,"","",""]
[null,null,null,null,null,null,null,null,null,null,null,null,null,null,null,null,null,null,null,null,null,null,null,null,null,null,null,null,null,null,null,null,null,null,null,null,null,null,null,"","",""]
[null,null,null,null,null,null,null,null,null,null,null,null,null,null,null,null,null,null,null,null,null,null,null,null,null,null,null,null,null,null,null,null,null,null,null,null,null,null,null,"","",""]
[null,null,null,null,null,null,null,null,null,null,null,null,null,null,null,null,null,null,null,null,null,null,null,null,null,null,null,null,null,null,null,null,null,null,null,null,null,null,null,"","",""]
[null,null,null,null,null,null,null,null,null,null,null,null,null,null,null,null,null,null,null,null,null,null,null,null,null,null,null,null,null,null,null,null,null,null,null,null,null,null,null,"","",""]
[null,null,null,null,null,null,null,null,null,null,null,null,null,null,null,null,null,null,null,null,null,null,null,null,null,null,null,null,null,null,null,null,null,null,null,null,null,null,null,"","",""]
[null,null,null,null,null,null,null,null,null,null,null,null,null,null,null,null,null,null,null,null,null,null,null,null,null,null,null,null,null,null,null,null,null,null,null,null,null,null,null,"","",""]
[null,null,null,null,null,null,null,null,null,null,null,null,null,null,null,null,null,null,null,null,null,null,null,null,null,null,null,null,null,null,null,null,null,null,null,null,null,null,null,"","",""]
[null,null,null,null,null,null,null,null,null,null,null,null,null,null,null,null,null,null,null,null,null,null,null,null,null,null,null,null,null,null,null,null,null,null,null,null,null,null,null,"","",""]
[null,null,null,null,null,null,null,null,null,null,null,null,null,null,null,null,null,null,null,null,null,null,null,null,null,null,null,null,null,null,null,null,null,null,null,null,null,null,null,"","",""]
[null,null,null,null,null,null,null,null,null,null,null,null,null,null,null,null,null,null,null,null,null,null,null,null,null,null,null,null,null,null,null,null,null,null,null,null,null,null,null,"","",""]
[null,null,null,null,null,null,null,null,null,null,null,null,null,null,null,null,null,null,null,null,null,null,null,null,null,null,null,null,null,null,null,null,null,null,null,null,null,null,null,"","",""]
[null,null,null,null,null,null,null,null,null,null,null,null,null,null,null,null,null,null,null,null,null,null,null,null,null,null,null,null,null,null,null,null,null,null,null,null,null,null,null,"","",""]
[null,null,null,null,null,null,null,null,null,null,null,null,null,null,null,null,null,null,null,null,null,null,null,null,null,null,null,null,null,null,null,null,null,null,null,null,null,null,null,"","",""]
[null,null,null,null,null,null,null,null,null,null,null,null,null,null,null,null,null,null,null,null,null,null,null,null,null,null,null,null,null,null,null,null,null,null,null,null,null,null,null,"","",""]
[null,null,null,null,null,null,null,null,null,null,null,null,null,null,null,null,null,null,null,null,null,null,null,null,null,null,null,null,null,null,null,null,null,null,null,null,null,null,null,"","",""]
[null,null,null,null,null,null,null,null,null,null,null,null,null,null,null,null,null,null,null,null,null,null,null,null,null,null,null,null,null,null,null,null,null,null,null,null,null,null,null,"","",""]
[null,null,null,null,null,null,null,null,null,null,null,null,null,null,null,null,null,null,null,null,null,null,null,null,null,null,null,null,null,null,null,null,null,null,null,null,null,null,null,"","",""]
[null,null,null,null,null,null,null,null,null,null,null,null,null,null,null,null,null,null,null,null,null,null,null,null,null,null,null,null,null,null,null,null,null,null,null,null,null,null,null,"","",""]
[null,null,null,null,null,null,null,null,null,null,null,null,null,null,null,null,null,null,null,null,null,null,null,null,null,null,null,null,null,null,null,null,null,null,null,null,null,null,null,"","",""]
[null,null,null,null,null,null,null,null,null,null,null,null,null,null,null,null,null,null,null,null,null,null,null,null,null,null,null,null,null,null,null,null,null,null,null,null,null,null,null,"","",""]
[null,null,null,null,null,null,null,null,null,null,null,null,null,null,null,null,null,null,null,null,null,null,null,null,null,null,null,null,null,null,null,null,null,null,null,null,null,null,null,{"$f":"LEFT(AM223,6)","v":""},{"$f":"IF(AN223=\"\",\"\",MID(AM223,8,FIND(\"_\",AM223,FIND(\"_\",AM223,FIND(\"_\",AM223,1)+1)+1)-8))","v":""},{"$f":"IF(AM223=\"\",\"\",MID(AM223,FIND(\"_\",AM223,FIND(\"_\",AM223,FIND(\"_\",AM223,1)+1)+1)+1,6))","v":""}]
[null,null,null,null,null,null,null,null,null,null,null,null,null,null,null,null,null,null,null,null,null,null,null,null,null,null,null,null,null,null,null,null,null,null,null,null,null,null,null,"","",""]
[null,null,null,null,null,null,null,null,null,null,null,null,null,null,null,null,null,null,null,null,null,null,null,null,null,null,null,null,null,null,null,null,null,null,null,null,null,null,null,"","",""]
[null,null,null,null,null,null,null,null,null,null,null,null,null,null,null,null,null,null,null,null,null,null,null,null,null,null,null,null,null,null,null,null,null,null,null,null,null,null,null,"","",""]
[null,null,null,null,null,null,null,null,null,null,null,null,null,null,null,null,null,null,null,null,null,null,null,null,null,null,null,null,null,null,null,null,null,null,null,null,null,null,null,"","",""]
[null,null,null,null,null,null,null,null,null,null,null,null,null,null,null,null,null,null,null,null,null,null,null,null,null,null,null,null,null,null,null,null,null,null,null,null,null,null,null,"","",""]
[null,null,null,null,null,null,null,null,null,null,null,null,null,null,null,null,null,null,null,null,null,null,null,null,null,null,null,null,null,null,null,null,null,null,null,null,null,null,null,"","",""]
[null,null,null,null,null,null,null,null,null,null,null,null,null,null,null,null,null,null,null,null,null,null,null,null,null,null,null,null,null,null,null,null,null,null,null,null,null,null,null,"","",""]
[null,null,null,null,null,null,null,null,null,null,null,null,null,null,null,null,null,null,null,null,null,null,null,null,null,null,null,null,null,null,null,null,null,null,null,null,null,null,null,"","",""]
[null,null,null,null,null,null,null,null,null,null,null,null,null,null,null,null,null,null,null,null,null,null,null,null,null,null,null,null,null,null,null,null,null,null,null,null,null,null,null,"","",""]
[null,null,null,null,null,null,null,null,null,null,null,null,null,null,null,null,null,null,null,null,null,null,null,null,null,null,null,null,null,null,null,null,null,null,null,null,null,null,null,"","",""]
[null,null,null,null,null,null,null,null,null,null,null,null,null,null,null,null,null,null,null,null,null,null,null,null,null,null,null,null,null,null,null,null,null,null,null,null,null,null,null,"","",""]
[null,null,null,null,null,null,null,null,null,null,null,null,null,null,null,null,null,null,null,null,null,null,null,null,null,null,null,null,null,null,null,null,null,null,null,null,null,null,null,"","",""]
[null,null,null,null,null,null,null,null,null,null,null,null,null,null,null,null,null,null,null,null,null,null,null,null,null,null,null,null,null,null,null,null,null,null,null,null,null,null,null,"","",""]
[null,null,null,null,null,null,null,null,null,null,null,null,null,null,null,null,null,null,null,null,null,null,null,null,null,null,null,null,null,null,null,null,null,null,null,null,null,null,null,"","",""]
[null,null,null,null,null,null,null,null,null,null,null,null,null,null,null,null,null,null,null,null,null,null,null,null,null,null,null,null,null,null,null,null,null,null,null,null,null,null,null,"","",""]
[null,null,null,null,null,null,null,null,null,null,null,null,null,null,null,null,null,null,null,null,null,null,null,null,null,null,null,null,null,null,null,null,null,null,null,null,null,null,null,"","",""]
[null,null,null,null,null,null,null,null,null,null,null,null,null,null,null,null,null,null,null,null,null,null,null,null,null,null,null,null,null,null,null,null,null,null,null,null,null,null,null,"","",""]
[null,null,null,null,null,null,null,null,null,null,null,null,null,null,null,null,null,null,null,null,null,null,null,null,null,null,null,null,null,null,null,null,null,null,null,null,null,null,null,"","",""]
[null,null,null,null,null,null,null,null,null,null,null,null,null,null,null,null,null,null,null,null,null,null,null,null,null,null,null,null,null,null,null,null,null,null,null,null,null,null,null,"","",""]
[null,null,null,null,null,null,null,null,null,null,null,null,null,null,null,null,null,null,null,null,null,null,null,null,null,null,null,null,null,null,null,null,null,null,null,null,null,null,null,"","",""]
[null,null,null,null,null,null,null,null,null,null,null,null,null,null,null,null,null,null,null,null,null,null,null,null,null,null,null,null,null,null,null,null,null,null,null,null,null,null,null,"","",""]
[null,null,null,null,null,null,null,null,null,null,null,null,null,null,null,null,null,null,null,null,null,null,null,null,null,null,null,null,null,null,null,null,null,null,null,null,null,null,null,"","",""]
[null,null,null,null,null,null,null,null,null,null,null,null,null,null,null,null,null,null,null,null,null,null,null,null,null,null,null,null,null,null,null,null,null,null,null,null,null,null,null,"","",""]
[null,null,null,null,null,null,null,null,null,null,null,null,null,null,null,null,null,null,null,null,null,null,null,null,null,null,null,null,null,null,null,null,null,null,null,null,null,null,null,"","",""]
[null,null,null,null,null,null,null,null,null,null,null,null,null,null,null,null,null,null,null,null,null,null,null,null,null,null,null,null,null,null,null,null,null,null,null,null,null,null,null,"","",""]
[null,null,null,null,null,null,null,null,null,null,null,null,null,null,null,null,null,null,null,null,null,null,null,null,null,null,null,null,null,null,null,null,null,null,null,null,null,null,null,"","",""]
[null,null,null,null,null,null,null,null,null,null,null,null,null,null,null,null,null,null,null,null,null,null,null,null,null,null,null,null,null,null,null,null,null,null,null,null,null,null,null,"","",""]
[null,null,null,null,null,null,null,null,null,null,null,null,null,null,null,null,null,null,null,null,null,null,null,null,null,null,null,null,null,null,null,null,null,null,null,null,null,null,null,"","",""]
[null,null,null,null,null,null,null,null,null,null,null,null,null,null,null,null,null,null,null,null,null,null,null,null,null,null,null,null,null,null,null,null,null,null,null,null,null,null,null,"","",""]
[null,null,null,null,null,null,null,null,null,null,null,null,null,null,null,null,null,null,null,null,null,null,null,null,null,null,null,null,null,null,null,null,null,null,null,null,null,null,null,"","",""]
[null,null,null,null,null,null,null,null,null,null,null,null,null,null,null,null,null,null,null,null,null,null,null,null,null,null,null,null,null,null,null,null,null,null,null,null,null,null,null,"","",""]
[null,null,null,null,null,null,null,null,null,null,null,null,null,null,null,null,null,null,null,null,null,null,null,null,null,null,null,null,null,null,null,null,null,null,null,null,null,null,null,"","",""]
[null,null,null,null,null,null,null,null,null,null,null,null,null,null,null,null,null,null,null,null,null,null,null,null,null,null,null,null,null,null,null,null,null,null,null,null,null,null,null,"","",""]
[null,null,null,null,null,null,null,null,null,null,null,null,null,null,null,null,null,null,null,null,null,null,null,null,null,null,null,null,null,null,null,null,null,null,null,null,null,null,null,"","",""]
[null,null,null,null,null,null,null,null,null,null,null,null,null,null,null,null,null,null,null,null,null,null,null,null,null,null,null,null,null,null,null,null,null,null,null,null,null,null,null,"","",""]
[null,null,null,null,null,null,null,null,null,null,null,null,null,null,null,null,null,null,null,null,null,null,null,null,null,null,null,null,null,null,null,null,null,null,null,null,null,null,null,"","",""]
[null,null,null,null,null,null,null,null,null,null,null,null,null,null,null,null,null,null,null,null,null,null,null,null,null,null,null,null,null,null,null,null,null,null,null,null,null,null,null,"","",""]
[null,null,null,null,null,null,null,null,null,null,null,null,null,null,null,null,null,null,null,null,null,null,null,null,null,null,null,null,null,null,null,null,null,null,null,null,null,null,null,"","",""]
[null,null,null,null,null,null,null,null,null,null,null,null,null,null,null,null,null,null,null,null,null,null,null,null,null,null,null,null,null,null,null,null,null,null,null,null,null,null,null,"","",""]
[null,null,null,null,null,null,null,null,null,null,null,null,null,null,null,null,null,null,null,null,null,null,null,null,null,null,null,null,null,null,null,null,null,null,null,null,null,null,null,"","",""]
[null,null,null,null,null,null,null,null,null,null,null,null,null,null,null,null,null,null,null,null,null,null,null,null,null,null,null,null,null,null,null,null,null,null,null,null,null,null,null,"","",""]
[null,null,null,null,null,null,null,null,null,null,null,null,null,null,null,null,null,null,null,null,null,null,null,null,null,null,null,null,null,null,null,null,null,null,null,null,null,null,null,"","",""]
[null,null,null,null,null,null,null,null,null,null,null,null,null,null,null,null,null,null,null,null,null,null,null,null,null,null,null,null,null,null,null,null,null,null,null,null,null,null,null,"","",""]
[null,null,null,null,null,null,null,null,null,null,null,null,null,null,null,null,null,null,null,null,null,null,null,null,null,null,null,null,null,null,null,null,null,null,null,null,null,null,null,"","",""]
[null,null,null,null,null,null,null,null,null,null,null,null,null,null,null,null,null,null,null,null,null,null,null,null,null,null,null,null,null,null,null,null,null,null,null,null,null,null,null,"","",""]
[null,null,null,null,null,null,null,null,null,null,null,null,null,null,null,null,null,null,null,null,null,null,null,null,null,null,null,null,null,null,null,null,null,null,null,null,null,null,null,"","",""]
[null,null,null,null,null,null,null,null,null,null,null,null,null,null,null,null,null,null,null,null,null,null,null,null,null,null,null,null,null,null,null,null,null,null,null,null,null,null,null,{"$f":"LEFT(AM270,6)","v":""},{"$f":"IF(AN270=\"\",\"\",MID(AM270,8,FIND(\"_\",AM270,FIND(\"_\",AM270,FIND(\"_\",AM270,1)+1)+1)-8))","v":""},{"$f":"IF(AM270=\"\",\"\",MID(AM270,FIND(\"_\",AM270,FIND(\"_\",AM270,FIND(\"_\",AM270,1)+1)+1)+1,6))","v":""}]
[null,null,null,null,null,null,null,null,null,null,null,null,null,null,null,null,null,null,null,null,null,null,null,null,null,null,null,null,null,null,null,null,null,null,null,null,null,null,null,"","",""]
[null,null,null,null,null,null,null,null,null,null,null,null,null,null,null,null,null,null,null,null,null,null,null,null,null,null,null,null,null,null,null,null,null,null,null,null,null,null,null,"","",""]
[null,null,null,null,null,null,null,null,null,null,null,null,null,null,null,null,null,null,null,null,null,null,null,null,null,null,null,null,null,null,null,null,null,null,null,null,null,null,null,"","",""]
[null,null,null,null,null,null,null,null,null,null,null,null,null,null,null,null,null,null,null,null,null,null,null,null,null,null,null,null,null,null,null,null,null,null,null,null,null,null,null,"","",""]
[null,null,null,null,null,null,null,null,null,null,null,null,null,null,null,null,null,null,null,null,null,null,null,null,null,null,null,null,null,null,null,null,null,null,null,null,null,null,null,"","",""]
[null,null,null,null,null,null,null,null,null,null,null,null,null,null,null,null,null,null,null,null,null,null,null,null,null,null,null,null,null,null,null,null,null,null,null,null,null,null,null,"","",""]
[null,null,null,null,null,null,null,null,null,null,null,null,null,null,null,null,null,null,null,null,null,null,null,null,null,null,null,null,null,null,null,null,null,null,null,null,null,null,null,"","",""]
[null,null,null,null,null,null,null,null,null,null,null,null,null,null,null,null,null,null,null,null,null,null,null,null,null,null,null,null,null,null,null,null,null,null,null,null,null,null,null,"","",""]
[null,null,null,null,null,null,null,null,null,null,null,null,null,null,null,null,null,null,null,null,null,null,null,null,null,null,null,null,null,null,null,null,null,null,null,null,null,null,null,"","",""]
[null,null,null,null,null,null,null,null,null,null,null,null,null,null,null,null,null,null,null,null,null,null,null,null,null,null,null,null,null,null,null,null,null,null,null,null,null,null,null,"","",""]
[null,null,null,null,null,null,null,null,null,null,null,null,null,null,null,null,null,null,null,null,null,null,null,null,null,null,null,null,null,null,null,null,null,null,null,null,null,null,null,"","",""]
[null,null,null,null,null,null,null,null,null,null,null,null,null,null,null,null,null,null,null,null,null,null,null,null,null,null,null,null,null,null,null,null,null,null,null,null,null,null,null,"","",""]
[null,null,null,null,null,null,null,null,null,null,null,null,null,null,null,null,null,null,null,null,null,null,null,null,null,null,null,null,null,null,null,null,null,null,null,null,null,null,null,"","",""]
[null,null,null,null,null,null,null,null,null,null,null,null,null,null,null,null,null,null,null,null,null,null,null,null,null,null,null,null,null,null,null,null,null,null,null,null,null,null,null,"","",""]
[null,null,null,null,null,null,null,null,null,null,null,null,null,null,null,null,null,null,null,null,null,null,null,null,null,null,null,null,null,null,null,null,null,null,null,null,null,null,null,"","",""]
[null,null,null,null,null,null,null,null,null,null,null,null,null,null,null,null,null,null,null,null,null,null,null,null,null,null,null,null,null,null,null,null,null,null,null,null,null,null,null,"","",""]
[null,null,null,null,null,null,null,null,null,null,null,null,null,null,null,null,null,null,null,null,null,null,null,null,null,null,null,null,null,null,null,null,null,null,null,null,null,null,null,"","",""]
[null,null,null,null,null,null,null,null,null,null,null,null,null,null,null,null,null,null,null,null,null,null,null,null,null,null,null,null,null,null,null,null,null,null,null,null,null,null,null,"","",""]
[null,null,null,null,null,null,null,null,null,null,null,null,null,null,null,null,null,null,null,null,null,null,null,null,null,null,null,null,null,null,null,null,null,null,null,null,null,null,null,"","",""]
[null,null,null,null,null,null,null,null,null,null,null,null,null,null,null,null,null,null,null,null,null,null,null,null,null,null,null,null,null,null,null,null,null,null,null,null,null,null,null,"","",""]
[null,null,null,null,null,null,null,null,null,null,null,null,null,null,null,null,null,null,null,null,null,null,null,null,null,null,null,null,null,null,null,null,null,null,null,null,null,null,null,"","",""]
[null,null,null,null,null,null,null,null,null,null,null,null,null,null,null,null,null,null,null,null,null,null,null,null,null,null,null,null,null,null,null,null,null,null,null,null,null,null,null,"","",""]
[null,null,null,null,null,null,null,null,null,null,null,null,null,null,null,null,null,null,null,null,null,null,null,null,null,null,null,null,null,null,null,null,null,null,null,null,null,null,null,"","",""]
[null,null,null,null,null,null,null,null,null,null,null,null,null,null,null,null,null,null,null,null,null,null,null,null,null,null,null,null,null,null,null,null,null,null,null,null,null,null,null,"","",""]
[null,null,null,null,null,null,null,null,null,null,null,null,null,null,null,null,null,null,null,null,null,null,null,null,null,null,null,null,null,null,null,null,null,null,null,null,null,null,null,"","",""]
[null,null,null,null,null,null,null,null,null,null,null,null,null,null,null,null,null,null,null,null,null,null,null,null,null,null,null,null,null,null,null,null,null,null,null,null,null,null,null,"","",""]
[null,null,null,null,null,null,null,null,null,null,null,null,null,null,null,null,null,null,null,null,null,null,null,null,null,null,null,null,null,null,null,null,null,null,null,null,null,null,null,"","",""]
[null,null,null,null,null,null,null,null,null,null,null,null,null,null,null,null,null,null,null,null,null,null,null,null,null,null,null,null,null,null,null,null,null,null,null,null,null,null,null,"","",""]
[null,null,null,null,null,null,null,null,null,null,null,null,null,null,null,null,null,null,null,null,null,null,null,null,null,null,null,null,null,null,null,null,null,null,null,null,null,null,null,"","",""]
[null,null,null,null,null,null,null,null,null,null,null,null,null,null,null,null,null,null,null,null,null,null,null,null,null,null,null,null,null,null,null,null,null,null,null,null,null,null,null,"","",""]
[null,null,null,null,null,null,null,null,null,null,null,null,null,null,null,null,null,null,null,null,null,null,null,null,null,null,null,null,null,null,null,null,null,null,null,null,null,null,null,"","",""]
[null,null,null,null,null,null,null,null,null,null,null,null,null,null,null,null,null,null,null,null,null,null,null,null,null,null,null,null,null,null,null,null,null,null,null,null,null,null,null,"","",""]
[null,null,null,null,null,null,null,null,null,null,null,null,null,null,null,null,null,null,null,null,null,null,null,null,null,null,null,null,null,null,null,null,null,null,null,null,null,null,null,"","",""]
[null,null,null,null,null,null,null,null,null,null,null,null,null,null,null,null,null,null,null,null,null,null,null,null,null,null,null,null,null,null,null,null,null,null,null,null,null,null,null,"","",""]
[null,null,null,null,null,null,null,null,null,null,null,null,null,null,null,null,null,null,null,null,null,null,null,null,null,null,null,null,null,null,null,null,null,null,null,null,null,null,null,"","",""]
[null,null,null,null,null,null,null,null,null,null,null,null,null,null,null,null,null,null,null,null,null,null,null,null,null,null,null,null,null,null,null,null,null,null,null,null,null,null,null,"","",""]
[null,null,null,null,null,null,null,null,null,null,null,null,null,null,null,null,null,null,null,null,null,null,null,null,null,null,null,null,null,null,null,null,null,null,null,null,null,null,null,"","",""]
[null,null,null,null,null,null,null,null,null,null,null,null,null,null,null,null,null,null,null,null,null,null,null,null,null,null,null,null,null,null,null,null,null,null,null,null,null,null,null,"","",""]
[null,null,null,null,null,null,null,null,null,null,null,null,null,null,null,null,null,null,null,null,null,null,null,null,null,null,null,null,null,null,null,null,null,null,null,null,null,null,null,"","",""]
[null,null,null,null,null,null,null,null,null,null,null,null,null,null,null,null,null,null,null,null,null,null,null,null,null,null,null,null,null,null,null,null,null,null,null,null,null,null,null,"","",""]
[null,null,null,null,null,null,null,null,null,null,null,null,null,null,null,null,null,null,null,null,null,null,null,null,null,null,null,null,null,null,null,null,null,null,null,null,null,null,null,"","",""]
[null,null,null,null,null,null,null,null,null,null,null,null,null,null,null,null,null,null,null,null,null,null,null,null,null,null,null,null,null,null,null,null,null,null,null,null,null,null,null,"","",""]
[null,null,null,null,null,null,null,null,null,null,null,null,null,null,null,null,null,null,null,null,null,null,null,null,null,null,null,null,null,null,null,null,null,null,null,null,null,null,null,"","",""]
[null,null,null,null,null,null,null,null,null,null,null,null,null,null,null,null,null,null,null,null,null,null,null,null,null,null,null,null,null,null,null,null,null,null,null,null,null,null,null,"","",""]
[null,null,null,null,null,null,null,null,null,null,null,null,null,null,null,null,null,null,null,null,null,null,null,null,null,null,null,null,null,null,null,null,null,null,null,null,null,null,null,"","",""]
[null,null,null,null,null,null,null,null,null,null,null,null,null,null,null,null,null,null,null,null,null,null,null,null,null,null,null,null,null,null,null,null,null,null,null,null,null,null,null,"","",""]
[null,null,null,null,null,null,null,null,null,null,null,null,null,null,null,null,null,null,null,null,null,null,null,null,null,null,null,null,null,null,null,null,null,null,null,null,null,null,null,"","",""]
[null,null,null,null,null,null,null,null,null,null,null,null,null,null,null,null,null,null,null,null,null,null,null,null,null,null,null,null,null,null,null,null,null,null,null,null,null,null,null,"","",""]
[null,null,null,null,null,null,null,null,null,null,null,null,null,null,null,null,null,null,null,null,null,null,null,null,null,null,null,null,null,null,null,null,null,null,null,null,null,null,null,"","",""]
[null,null,null,null,null,null,null,null,null,null,null,null,null,null,null,null,null,null,null,null,null,null,null,null,null,null,null,null,null,null,null,null,null,null,null,null,null,null,null,"","",""]
[null,null,null,null,null,null,null,null,null,null,null,null,null,null,null,null,null,null,null,null,null,null,null,null,null,null,null,null,null,null,null,null,null,null,null,null,null,null,null,"","",""]
[null,null,null,null,null,null,null,null,null,null,null,null,null,null,null,null,null,null,null,null,null,null,null,null,null,null,null,null,null,null,null,null,null,null,null,null,null,null,null,"","",""]
[null,null,null,null,null,null,null,null,null,null,null,null,null,null,null,null,null,null,null,null,null,null,null,null,null,null,null,null,null,null,null,null,null,null,null,null,null,null,null,"","",""]
[null,null,null,null,null,null,null,null,null,null,null,null,null,null,null,null,null,null,null,null,null,null,null,null,null,null,null,null,null,null,null,null,null,null,null,null,null,null,null,"","",""]
[null,null,null,null,null,null,null,null,null,null,null,null,null,null,null,null,null,null,null,null,null,null,null,null,null,null,null,null,null,null,null,null,null,null,null,null,null,null,null,"","",""]
[null,null,null,null,null,null,null,null,null,null,null,null,null,null,null,null,null,null,null,null,null,null,null,null,null,null,null,null,null,null,null,null,null,null,null,null,null,null,null,"","",""]
[null,null,null,null,null,null,null,null,null,null,null,null,null,null,null,null,null,null,null,null,null,null,null,null,null,null,null,null,null,null,null,null,null,null,null,null,null,null,null,"","",""]
[null,null,null,null,null,null,null,null,null,null,null,null,null,null,null,null,null,null,null,null,null,null,null,null,null,null,null,null,null,null,null,null,null,null,null,null,null,null,null,"","",""]
[null,null,null,null,null,null,null,null,null,null,null,null,null,null,null,null,null,null,null,null,null,null,null,null,null,null,null,null,null,null,null,null,null,null,null,null,null,null,null,"","",""]
[null,null,null,null,null,null,null,null,null,null,null,null,null,null,null,null,null,null,null,null,null,null,null,null,null,null,null,null,null,null,null,null,null,null,null,null,null,null,null,"","",""]
[null,null,null,null,null,null,null,null,null,null,null,null,null,null,null,null,null,null,null,null,null,null,null,null,null,null,null,null,null,null,null,null,null,null,null,null,null,null,null,"","",""]
[null,null,null,null,null,null,null,null,null,null,null,null,null,null,null,null,null,null,null,null,null,null,null,null,null,null,null,null,null,null,null,null,null,null,null,null,null,null,null,"","",""]
[null,null,null,null,null,null,null,null,null,null,null,null,null,null,null,null,null,null,null,null,null,null,null,null,null,null,null,null,null,null,null,null,null,null,null,null,null,null,null,"","",""]
[null,null,null,null,null,null,null,null,null,null,null,null,null,null,null,null,null,null,null,null,null,null,null,null,null,null,null,null,null,null,null,null,null,null,null,null,null,null,null,{"$f":"LEFT(AM334,6)","v":""},{"$f":"IF(AN334=\"\",\"\",MID(AM334,8,FIND(\"_\",AM334,FIND(\"_\",AM334,FIND(\"_\",AM334,1)+1)+1)-8))","v":""},{"$f":"IF(AM334=\"\",\"\",MID(AM334,FIND(\"_\",AM334,FIND(\"_\",AM334,FIND(\"_\",AM334,1)+1)+1)+1,6))","v":""}]
[null,null,null,null,null,null,null,null,null,null,null,null,null,null,null,null,null,null,null,null,null,null,null,null,null,null,null,null,null,null,null,null,null,null,null,null,null,null,null,"","",""]
[null,null,null,null,null,null,null,null,null,null,null,null,null,null,null,null,null,null,null,null,null,null,null,null,null,null,null,null,null,null,null,null,null,null,null,null,null,null,null,"","",""]
[null,null,null,null,null,null,null,null,null,null,null,null,null,null,null,null,null,null,null,null,null,null,null,null,null,null,null,null,null,null,null,null,null,null,null,null,null,null,null,"","",""]
[null,null,null,null,null,null,null,null,null,null,null,null,null,null,null,null,null,null,null,null,null,null,null,null,null,null,null,null,null,null,null,null,null,null,null,null,null,null,null,"","",""]
[null,null,null,null,null,null,null,null,null,null,null,null,null,null,null,null,null,null,null,null,null,null,null,null,null,null,null,null,null,null,null,null,null,null,null,null,null,null,null,"","",""]
[null,null,null,null,null,null,null,null,null,null,null,null,null,null,null,null,null,null,null,null,null,null,null,null,null,null,null,null,null,null,null,null,null,null,null,null,null,null,null,"","",""]
[null,null,null,null,null,null,null,null,null,null,null,null,null,null,null,null,null,null,null,null,null,null,null,null,null,null,null,null,null,null,null,null,null,null,null,null,null,null,null,"","",""]
[null,null,null,null,null,null,null,null,null,null,null,null,null,null,null,null,null,null,null,null,null,null,null,null,null,null,null,null,null,null,null,null,null,null,null,null,null,null,null,"","",""]
[null,null,null,null,null,null,null,null,null,null,null,null,null,null,null,null,null,null,null,null,null,null,null,null,null,null,null,null,null,null,null,null,null,null,null,null,null,null,null,"","",""]
[null,null,null,null,null,null,null,null,null,null,null,null,null,null,null,null,null,null,null,null,null,null,null,null,null,null,null,null,null,null,null,null,null,null,null,null,null,null,null,"","",""]
[null,null,null,null,null,null,null,null,null,null,null,null,null,null,null,null,null,null,null,null,null,null,null,null,null,null,null,null,null,null,null,null,null,null,null,null,null,null,null,"","",""]
[null,null,null,null,null,null,null,null,null,null,null,null,null,null,null,null,null,null,null,null,null,null,null,null,null,null,null,null,null,null,null,null,null,null,null,null,null,null,null,"","",""]
[null,null,null,null,null,null,null,null,null,null,null,null,null,null,null,null,null,null,null,null,null,null,null,null,null,null,null,null,null,null,null,null,null,null,null,null,null,null,null,"","",""]
[null,null,null,null,null,null,null,null,null,null,null,null,null,null,null,null,null,null,null,null,null,null,null,null,null,null,null,null,null,null,null,null,null,null,null,null,null,null,null,"","",""]
[null,null,null,null,null,null,null,null,null,null,null,null,null,null,null,null,null,null,null,null,null,null,null,null,null,null,null,null,null,null,null,null,null,null,null,null,null,null,null,"","",""]
[null,null,null,null,null,null,null,null,null,null,null,null,null,null,null,null,null,null,null,null,null,null,null,null,null,null,null,null,null,null,null,null,null,null,null,null,null,null,null,"","",""]
[null,null,null,null,null,null,null,null,null,null,null,null,null,null,null,null,null,null,null,null,null,null,null,null,null,null,null,null,null,null,null,null,null,null,null,null,null,null,null,"","",""]
[null,null,null,null,null,null,null,null,null,null,null,null,null,null,null,null,null,null,null,null,null,null,null,null,null,null,null,null,null,null,null,null,null,null,null,null,null,null,null,"","",""]
[null,null,null,null,null,null,null,null,null,null,null,null,null,null,null,null,null,null,null,null,null,null,null,null,null,null,null,null,null,null,null,null,null,null,null,null,null,null,null,"","",""]
[null,null,null,null,null,null,null,null,null,null,null,null,null,null,null,null,null,null,null,null,null,null,null,null,null,null,null,null,null,null,null,null,null,null,null,null,null,null,null,"","",""]
[null,null,null,null,null,null,null,null,null,null,null,null,null,null,null,null,null,null,null,null,null,null,null,null,null,null,null,null,null,null,null,null,null,null,null,null,null,null,null,"","",""]
[null,null,null,null,null,null,null,null,null,null,null,null,null,null,null,null,null,null,null,null,null,null,null,null,null,null,null,null,null,null,null,null,null,null,null,null,null,null,null,"","",""]
[null,null,null,null,null,null,null,null,null,null,null,null,null,null,null,null,null,null,null,null,null,null,null,null,null,null,null,null,null,null,null,null,null,null,null,null,null,null,null,"","",""]
[null,null,null,null,null,null,null,null,null,null,null,null,null,null,null,null,null,null,null,null,null,null,null,null,null,null,null,null,null,null,null,null,null,null,null,null,null,null,null,"","",""]
[null,null,null,null,null,null,null,null,null,null,null,null,null,null,null,null,null,null,null,null,null,null,null,null,null,null,null,null,null,null,null,null,null,null,null,null,null,null,null,"","",""]
[null,null,null,null,null,null,null,null,null,null,null,null,null,null,null,null,null,null,null,null,null,null,null,null,null,null,null,null,null,null,null,null,null,null,null,null,null,null,null,"","",""]
[null,null,null,null,null,null,null,null,null,null,null,null,null,null,null,null,null,null,null,null,null,null,null,null,null,null,null,null,null,null,null,null,null,null,null,null,null,null,null,"","",""]
[null,null,null,null,null,null,null,null,null,null,null,null,null,null,null,null,null,null,null,null,null,null,null,null,null,null,null,null,null,null,null,null,null,null,null,null,null,null,null,"","",""]
[null,null,null,null,null,null,null,null,null,null,null,null,null,null,null,null,null,null,null,null,null,null,null,null,null,null,null,null,null,null,null,null,null,null,null,null,null,null,null,"","",""]
[null,null,null,null,null,null,null,null,null,null,null,null,null,null,null,null,null,null,null,null,null,null,null,null,null,null,null,null,null,null,null,null,null,null,null,null,null,null,null,"","",""]
[null,null,null,null,null,null,null,null,null,null,null,null,null,null,null,null,null,null,null,null,null,null,null,null,null,null,null,null,null,null,null,null,null,null,null,null,null,null,null,"","",""]
[null,null,null,null,null,null,null,null,null,null,null,null,null,null,null,null,null,null,null,null,null,null,null,null,null,null,null,null,null,null,null,null,null,null,null,null,null,null,null,"","",""]
[null,null,null,null,null,null,null,null,null,null,null,null,null,null,null,null,null,null,null,null,null,null,null,null,null,null,null,null,null,null,null,null,null,null,null,null,null,null,null,"","",""]
[null,null,null,null,null,null,null,null,null,null,null,null,null,null,null,null,null,null,null,null,null,null,null,null,null,null,null,null,null,null,null,null,null,null,null,null,null,null,null,"","",""]
[null,null,null,null,null,null,null,null,null,null,null,null,null,null,null,null,null,null,null,null,null,null,null,null,null,null,null,null,null,null,null,null,null,null,null,null,null,null,null,"","",""]
[null,null,null,null,null,null,null,null,null,null,null,null,null,null,null,null,null,null,null,null,null,null,null,null,null,null,null,null,null,null,null,null,null,null,null,null,null,null,null,"","",""]
[null,null,null,null,null,null,null,null,null,null,null,null,null,null,null,null,null,null,null,null,null,null,null,null,null,null,null,null,null,null,null,null,null,null,null,null,null,null,null,"","",""]
[null,null,null,null,null,null,null,null,null,null,null,null,null,null,null,null,null,null,null,null,null,null,null,null,null,null,null,null,null,null,null,null,null,null,null,null,null,null,null,"","",""]
[null,null,null,null,null,null,null,null,null,null,null,null,null,null,null,null,null,null,null,null,null,null,null,null,null,null,null,null,null,null,null,null,null,null,null,null,null,null,null,"","",""]
[null,null,null,null,null,null,null,null,null,null,null,null,null,null,null,null,null,null,null,null,null,null,null,null,null,null,null,null,null,null,null,null,null,null,null,null,null,null,null,"","",""]
[null,null,null,null,null,null,null,null,null,null,null,null,null,null,null,null,null,null,null,null,null,null,null,null,null,null,null,null,null,null,null,null,null,null,null,null,null,null,null,"","",""]
[null,null,null,null,null,null,null,null,null,null,null,null,null,null,null,null,null,null,null,null,null,null,null,null,null,null,null,null,null,null,null,null,null,null,null,null,null,null,null,"","",""]
[null,null,null,null,null,null,null,null,null,null,null,null,null,null,null,null,null,null,null,null,null,null,null,null,null,null,null,null,null,null,null,null,null,null,null,null,null,null,null,"","",""]
[null,null,null,null,null,null,null,null,null,null,null,null,null,null,null,null,null,null,null,null,null,null,null,null,null,null,null,null,null,null,null,null,null,null,null,null,null,null,null,"","",""]
[null,null,null,null,null,null,null,null,null,null,null,null,null,null,null,null,null,null,null,null,null,null,null,null,null,null,null,null,null,null,null,null,null,null,null,null,null,null,null,"","",""]
[null,null,null,null,null,null,null,null,null,null,null,null,null,null,null,null,null,null,null,null,null,null,null,null,null,null,null,null,null,null,null,null,null,null,null,null,null,null,null,"","",""]
[null,null,null,null,null,null,null,null,null,null,null,null,null,null,null,null,null,null,null,null,null,null,null,null,null,null,null,null,null,null,null,null,null,null,null,null,null,null,null,"","",""]
[null,null,null,null,null,null,null,null,null,null,null,null,null,null,null,null,null,null,null,null,null,null,null,null,null,null,null,null,null,null,null,null,null,null,null,null,null,null,null,"","",""]
[null,null,null,null,null,null,null,null,null,null,null,null,null,null,null,null,null,null,null,null,null,null,null,null,null,null,null,null,null,null,null,null,null,null,null,null,null,null,null,"","",""]
[null,null,null,null,null,null,null,null,null,null,null,null,null,null,null,null,null,null,null,null,null,null,null,null,null,null,null,null,null,null,null,null,null,null,null,null,null,null,null,"","",""]
[null,null,null,null,null,null,null,null,null,null,null,null,null,null,null,null,null,null,null,null,null,null,null,null,null,null,null,null,null,null,null,null,null,null,null,null,null,null,null,"","",""]
[null,null,null,null,null,null,null,null,null,null,null,null,null,null,null,null,null,null,null,null,null,null,null,null,null,null,null,null,null,null,null,null,null,null,null,null,null,null,null,"","",""]
[null,null,null,null,null,null,null,null,null,null,null,null,null,null,null,null,null,null,null,null,null,null,null,null,null,null,null,null,null,null,null,null,null,null,null,null,null,null,null,"","",""]
[null,null,null,null,null,null,null,null,null,null,null,null,null,null,null,null,null,null,null,null,null,null,null,null,null,null,null,null,null,null,null,null,null,null,null,null,null,null,null,"","",""]
[null,null,null,null,null,null,null,null,null,null,null,null,null,null,null,null,null,null,null,null,null,null,null,null,null,null,null,null,null,null,null,null,null,null,null,null,null,null,null,"","",""]
[null,null,null,null,null,null,null,null,null,null,null,null,null,null,null,null,null,null,null,null,null,null,null,null,null,null,null,null,null,null,null,null,null,null,null,null,null,null,null,"","",""]
[null,null,null,null,null,null,null,null,null,null,null,null,null,null,null,null,null,null,null,null,null,null,null,null,null,null,null,null,null,null,null,null,null,null,null,null,null,null,null,"","",""]
[null,null,null,null,null,null,null,null,null,null,null,null,null,null,null,null,null,null,null,null,null,null,null,null,null,null,null,null,null,null,null,null,null,null,null,null,null,null,null,"","",""]
[null,null,null,null,null,null,null,null,null,null,null,null,null,null,null,null,null,null,null,null,null,null,null,null,null,null,null,null,null,null,null,null,null,null,null,null,null,null,null,"","",""]
[null,null,null,null,null,null,null,null,null,null,null,null,null,null,null,null,null,null,null,null,null,null,null,null,null,null,null,null,null,null,null,null,null,null,null,null,null,null,null,"","",""]
[null,null,null,null,null,null,null,null,null,null,null,null,null,null,null,null,null,null,null,null,null,null,null,null,null,null,null,null,null,null,null,null,null,null,null,null,null,null,null,"","",""]
[null,null,null,null,null,null,null,null,null,null,null,null,null,null,null,null,null,null,null,null,null,null,null,null,null,null,null,null,null,null,null,null,null,null,null,null,null,null,null,"","",""]
[null,null,null,null,null,null,null,null,null,null,null,null,null,null,null,null,null,null,null,null,null,null,null,null,null,null,null,null,null,null,null,null,null,null,null,null,null,null,null,"","",""]
[null,null,null,null,null,null,null,null,null,null,null,null,null,null,null,null,null,null,null,null,null,null,null,null,null,null,null,null,null,null,null,null,null,null,null,null,null,null,null,{"$f":"LEFT(AM398,6)","v":""},{"$f":"IF(AN398=\"\",\"\",MID(AM398,8,FIND(\"_\",AM398,FIND(\"_\",AM398,FIND(\"_\",AM398,1)+1)+1)-8))","v":""},{"$f":"IF(AM398=\"\",\"\",MID(AM398,FIND(\"_\",AM398,FIND(\"_\",AM398,FIND(\"_\",AM398,1)+1)+1)+1,6))","v":""}]
[null,null,null,null,null,null,null,null,null,null,null,null,null,null,null,null,null,null,null,null,null,null,null,null,null,null,null,null,null,null,null,null,null,null,null,null,null,null,null,"","",""]
[null,null,null,null,null,null,null,null,null,null,null,null,null,null,null,null,null,null,null,null,null,null,null,null,null,null,null,null,null,null,null,null,null,null,null,null,null,null,null,"","",""]
[null,null,null,null,null,null,null,null,null,null,null,null,null,null,null,null,null,null,null,null,null,null,null,null,null,null,null,null,null,null,null,null,null,null,null,null,null,null,null,"","",""]